Workbook

Sheet Intro
G2: Electricity Distribution Network Service Provider
H3: Post-Tax Revenue Model
K4: Version: | L4: 3
K5: Date: | L5: January 2015
B8: Introduction | J8: Electricity Distribution Module
C13: This model illustrates the basic elements of the AER's building block calculation and associated price and revenue constraints for distribution businesses.
C14: The model is intended to produce X factors that are applicable to revenue caps, price caps and revenue yield forms of control.
C15: Building block revenues and cash flows are modelled in nominal terms unless specified otherwise.
C17: INSTRUCTIONS FOR USE
C18: The full PTRM handbook is available on the AER website at http://www.aer.gov.au/node/27616
C20: 1. Prior to the commencement of the regulatory control period
C22: 1a. Fill out input cells on the 'DMS Input' sheet. These input cells are highlighted blue.
C23: This provides information on the service provider submitting the PTRM and the context for the PTRM preparation.
C24: This information also controls the automatic import of the PTRM into the AER's Data Management System (DMS).
C26: 1b. Fill out input cells on the 'PTRM Input' sheet. These input cells are highlighted blue.
C27: This provides the data for the PTRM calculations.
C28: In general, input expenditure data should be valued in real dollar terms of the year indicated, as at the end of that year.
C29: Units and basis for entry are specified where required for each data table.
C30: Review any cautions (which are generated based on data entered) before continuing.
C32: 1c. Determine the expected revenue (smoothed revenue) using the 'X factors' sheet
C33: Clause 6.2.6 requires that the form of control applicable to standard control services be of a CPI–X form.
C34: This sheet provides for the calculation of X factors under three basic forms of control, namely a weighted average price cap, revenue cap and revenue yield.
C35: The X factor values may differ for each year of the regulatory control period but must be set such that the NPV of annual expected revenues (smoothed) is equal to the NPV of the annual revenue requirements (unsmoothed) for that period.
C36: This sheet provides input cells for each X factor and contains macro buttons which should be used to goal seek an X factor value for a specific year to equate the NPVs of smoothed and unsmoothed revenues.
C38: 2. Within the regulatory control period when updating the annual return on debt
C40: 2a. Update input cells on the 'DMS Input' sheet. These input cells are highlighted blue.
C41: Check that the contact details are still current and describe the new amendment.
C43: 2b. Update input cells on the 'PTRM Input' sheet. These input cells are highlighted blue.
C44: In general, the only row that should be changed is the Trailing Average Portfolio Return on Debt (row 222).
C45: The basis for updating the annual return on debt will be in accordance with the relevant regulatory decision prior to the commencement of the period.
C47: 2c. Determine the expected revenue (smoothed revenue) using the 'X factors' sheet
C48: Indicate the year of the annual debt update (cell F21) to ensure the correct content-sensitive cautions are displayed.
C49: Enter new X factors for this year (and potentially later years within the regulatory control period) in order to equate the NPVs of smoothed and unsmoothed revenues.
C50: The macro buttons should be used to goal seek the X factor for these specific years.
C51: Note that X factors for earlier years within the regulatory control period should not be changed.
C54: VERSION RECORD
C56: Version | D56: Date | F56: Description
C57: 1 | D57: June 2008 | F57: Initial model, based on transmission PTRM
C59: 2 | D59: June 2009 | F59: Various non-consequential errors corrected
C61: 3 | D61: January 2015 | F61: Allowed time-varying return on debt, and revenue revisions for annual return on debt update
F62: Explicitly recognised revenue adjustments in building block calculations
F63: Incorporated equity raising cost calculations into automatic smoothing process
F64: Revised and expanded summary tables and reporting
F65: Standardised many elements with transmission PTRM
F66: Enabled automatic import into AER DMS

Sheet DMS input
B2: =C16&" - DMS Input"&" - DNSP PTRM - version "&Intro!$L$4 -> Powercor - DMS Input - DNSP PTRM - version 3 | G2: Input cells are in blue
B6: This sheet requests information that allows the AER to automatically import the PTRM into our data management system (DMS).
B7: This sheet's metadata relates to the business and context for the PTRM (rather than the PTRM itself).
B8: Some of this data is automatically populated based on data entered on the PTRM input sheet. Only change blue input cells.
B9: Some rows are hidden. To facilitate the automatic import, please do not delete or add rows on this sheet.
B10: Throughout the rest of the workbook, defined name ranges are used to identify data that is imported into the DMS.
B12: Entity details
B14: Trading name | C14: Powercor Australia Ltd
B15: ACN / ABN | C15: 64651109
B16: Business short name | C16: Powercor
B18: Business address | C18: Address 1 | E18: 40 Market Street
D19: Address 2
C20: Suburb | E20: Melbourne
D21: State | E21: Vic | F21: Postcode | G21: 3000
B23: Postal address | C23: Address 1 | E23: Locked Bag 14090
D24: Address 2
C25: Suburb | E25: Melbourne
D26: State | E26: Vic | F26: Postcode | G26: 8001
B29: Contact name/s | C29: Mark de Villiers | F29: Renate Vogt
B30: Contact phone/s | C30: (03) 9683 4907 | F30: (03) 9683 4082
B31: Contact email address/s | C31: mdevilliers@powercor.com.au | F31: rvogt@powercor.com.au
B33: Regulatory process details
B35: Forthcoming regulatory control period | C35: ='PTRM input'!G40 -> 2016 | D35: =IF(COUNTA($C35:C35)>='PTRM input'!$R$7,"",'PTRM input'!H40) -> 2017 | E35: =IF(COUNTA($C35:D35)>='PTRM input'!$R$7,"",'PTRM input'!I40) -> 2018 | F35: =IF(COUNTA($C35:E35)>='PTRM input'!$R$7,"",'PTRM input'!J40) -> 2019 | G35: =IF(COUNTA($C35:F35)>='PTRM input'!$R$7,"",'PTRM input'!K40) -> 2020 | H35: =IF(COUNTA($C35:G35)>='PTRM input'!$R$7,"",'PTRM input'!L40) ->  | I35: =IF(COUNTA($C35:H35)>='PTRM input'!$R$7,"",'PTRM input'!M40) ->  | J35: =IF(COUNTA($C35:I35)>='PTRM input'!$R$7,"",'PTRM input'!N40) ->  | K35: =IF(COUNTA($C35:J35)>='PTRM input'!$R$7,"",'PTRM input'!O40) ->  | L35: =IF(COUNTA($C35:K35)>='PTRM input'!$R$7,"",'PTRM input'!P40) -> 
B36: Year prior to the FRCP | C36: ='PTRM input'!F241 -> 2015
B38: Current regulatory control period
B41: Previous regulatory control period
B44: Sector | C44: Electricity
B45: Segment | C45: Distribution
B46: Source | C46: Contingent projects
B47: Regulatory Year Ending | C47: =LEFT('X factors'!$F$21,2)&RIGHT('X factors'!$F$21,2) -> 2020
B48: Reporting Period Type | C48: =IF(LEN(C35)=4,"Calendar",IF(LEN(C35)=7,"Financial","Other")) -> Calendar
B49: RIN or Model Type | C49: PTRM
B50: Security Classification | C50: Public
B51: Data quality (Actual, estimate, consolidated) | C51: Consolidated
B52: Model response - version no.
B53: Amended model submission - reason
B54: Model template - version no. | C54: 3
B55: $ real | C55: ='PTRM input'!F241 -> 2015
B56: Form of control | C56: Revenue Cap

Sheet PTRM input
E2: ='DMS input'!$C$16&" - PTRM input"&" - DNSP PTRM - version "&Intro!$L$4 -> Powercor - PTRM input - DNSP PTRM - version 3 | I2: Input cells are in blue | K2: Purple cells indicate changes from the final determination PTRM | L2: Purple cells indicate changes from the final determination PTRM
E5: ="Opening Regulatory Asset Base and Opening Tax Asset Base for "&Q7&" ($m Nominal)" -> Opening Regulatory Asset Base and Opening Tax Asset Base for 2016 ($m Nominal)
G6: Asset Class Name | J6: Opening Asset Value | K6: Assets Under Construction | L6: Remaining Life | M6: Standard Life | N6: Opening Tax Value | O6: Tax Remaining Life | P6: Tax Standard Life | Q6: Base Regulatory Year | R6: Length of Regulatory Control Period (Year)
E7: Asset Class 1 | G7: Subtransmission | J7: 397.8676361 | L7: n/a | M7: 50 | N7: 287.4234991 | O7: 32.66513048 | P7: 44 | Q7: 2016 | R7: 5
E8: Asset Class 2 | G8: Distribution system assets | J8: 2500.252193 | L8: n/a | M8: 51 | N8: 1813.872292 | O8: 28.04887356 | P8: 46
E9: Asset Class 3 | G9: Standard metering | J9: 13.33914445 | L9: n/a | M9: n/a | N9: 0.1867275086 | O9: 1 | P9: n/a
E10: Asset Class 4 | G10: Public lighting | J10: 12.64885152 | L10: n/a | M10: n/a | N10: 0 | O10: n/a | P10: n/a
E11: Asset Class 5 | G11: SCADA/Network control | J11: 15.64234526 | L11: n/a | M11: 13 | N11: 30.6586752 | O11: 7.485797856 | P11: 10
E12: Asset Class 6 | G12: Non-network general assets - IT | J12: 93.50347392 | L12: n/a | M12: 6 | N12: 54.01865239 | O12: 3.252811373 | P12: 4
E13: Asset Class 7 | G13: Non-network general assets - Other | J13: 148.6982095 | L13: n/a | M13: 15 | N13: 89.85589982 | O13: 7.526113944 | P13: 12
E14: Asset Class 8 | G14: VBRC | J14: 101.6748703 | L14: n/a | M14: 25.60619701 | N14: 73.79082364 | O14: 42.92851416 | P14: 45
E15: Asset Class 9 | G15: Supervisory cables | J15: 3.339696637 | L15: n/a | M15: n/a | O15: n/a | P15: n/a
E16: Asset Class 10 | G16: Old SWER ACRs | J16: 14.51341062 | L16: n/a | M16: n/a | N16: 0 | O16: n/a | P16: n/a
E17: Asset Class 11 | G17: Land | J17: 0 | L17: n/a | M17: n/a | N17: 9.732019572 | O17: n/a | P17: n/a
E18: Asset Class 12
E19: Asset Class 13
E20: Asset Class 14
E21: Asset Class 15
E22: Asset Class 16
E23: Asset Class 17
E24: Asset Class 18
E25: Asset Class 19
E26: Asset Class 20
E27: Asset Class 21
E28: Asset Class 22
E29: Asset Class 23
E30: Asset Class 24
E31: Asset Class 25
E32: Asset Class 26
E33: Asset Class 27
E34: Asset Class 28
E35: Asset Class 29
E36: Asset Class 30 | G36: Equity raising costs | J36: 5.52374353 | L36: n/a | M36: =SUMPRODUCT(M7:M14,U143:U150)/SUM(U143:U150) -> 42.28237599 | N36: 0 | O36: n/a | P36: 5
E37: Total | J37: =SUM(J7:J36)+K37 -> 3307.003575 | K37: =SUM(K7:K36) -> 0 | N37: =SUM(N7:N36) -> 2359.538589
E39: ="Forecast Capital Expenditure – As Incurred ($m Real "&$F$241&")" -> Forecast Capital Expenditure – As Incurred ($m Real 2015)
E40: Year | G40: =Q7 -> 2016 | H40: =(LEFT(G40,4)+1&IF(MID(G40,5,1)="","","-"&TEXT(MOD(MID(G40,6,2)+1,100),"00"))) -> 2017 | I40: =(LEFT(H40,4)+1&IF(MID(H40,5,1)="","","-"&TEXT(MOD(MID(H40,6,2)+1,100),"00"))) -> 2018 | J40: 2019 | K40: 2020 | L40: 2021 | M40: 2022 | N40: 2023 | O40: 2024 | P40: 2025
E41: =Asset1 -> Subtransmission | G41: 47.08180685 | H41: 50.25891348 | I41: 46.45105215 | J41: 47.68636505 | K41: 48.11750923
E42: =Asset2 -> Distribution system assets | G42: 293.5060655 | H42: 327.7155798 | I42: 331.8402386 | J42: 302.927171 | K42: 282.4914298
E43: =Asset3 -> Standard metering | G43: 0 | H43: 0 | I43: 0 | J43: 0 | K43: 0
E44: =Asset4 -> Public lighting | G44: 0 | H44: 0 | I44: 0 | J44: 0 | K44: 0
E45: =Asset5 -> SCADA/Network control | G45: 5.946197503 | H45: 18.20338987 | I45: 45.74607386 | J45: 31.60682683 | K45: 8.168937264
E46: =Asset6 -> Non-network general assets - IT | G46: 39.83637356 | H46: 39.69014974 | I46: 33.49357566 | J46: 24.92936031 | K46: 19.08848044
E47: =Asset7 -> Non-network general assets - Other | G47: 17.11382749 | H47: 17.10297621 | I47: 17.12536585 | J47: 17.18195728 | K47: 17.25272332
E48: =Asset8 -> VBRC | G48: 11.76940979 | H48: 13.07266799 | I48: 10.15564358 | J48: 13.22905907 | K48: 13.18110407
E49: =Asset9 -> Supervisory cables | G49: 0 | H49: 0 | I49: 0 | J49: 0 | K49: 0
E50: =Asset10 -> Old SWER ACRs | G50: 0 | H50: 0 | I50: 0 | J50: 0 | K50: 0
E51: =Asset11 -> Land | G51: 0.06847406544 | H51: 0.1844212153 | I51: 0.2359064313 | J51: 0.2164308197 | K51: 0.2961164653
E52: =Asset12 -> 0
E53: =Asset13 -> 0
E54: =Asset14 -> 0
E55: =Asset15 -> 0
E56: =Asset16 -> 0
E57: =Asset17 -> 0
E58: =Asset18 -> 0
E59: =Asset19 -> 0
E60: =Asset20 -> 0
E61: =Asset21 -> 0
E62: =Asset22 -> 0
E63: =Asset23 -> 0
E64: =Asset24 -> 0
E65: =Asset25 -> 0
E66: =Asset26 -> 0
E67: =Asset27 -> 0
E68: =Asset28 -> 0
E69: =Asset29 -> 0
E70: =Asset30 -> Equity raising costs | G70: 12.95252056
E71: Total | G71: =SUM(G41:G70) -> 428.2746754 | H71: 466.2280983 | I71: 485.0478561 | J71: 437.7771704 | K71: 388.5963006 | L71: 0 | M71: =SUM(M41:M70) -> 0 | N71: 0 | O71: 0 | P71: 0
Q72: =SUM(OFFSET(G71,0,0,1,$R$7)) -> 2205.924101
E73: ="Forecast Asset Disposal – as incurred ($m Real "&$F$241&")" -> Forecast Asset Disposal – as incurred ($m Real 2015)
E74: =E40 -> Year | G74: =G40 -> 2016 | H74: =H40 -> 2017 | I74: 2018 | J74: 2019 | K74: 2020 | L74: 2021 | M74: 2022 | N74: 2023 | O74: 2024 | P74: 2025
E75: =Asset1 -> Subtransmission | G75: 0 | H75: 0 | I75: 0 | J75: 0 | K75: 0
E76: =Asset2 -> Distribution system assets | G76: 0 | H76: 0 | I76: 0 | J76: 0 | K76: 0
E77: =Asset3 -> Standard metering | G77: 0 | H77: 0 | I77: 0 | J77: 0 | K77: 0
E78: =Asset4 -> Public lighting | G78: 0 | H78: 0 | I78: 0 | J78: 0 | K78: 0
E79: =Asset5 -> SCADA/Network control | G79: 0 | H79: 0 | I79: 0 | J79: 0 | K79: 0
E80: =Asset6 -> Non-network general assets - IT | G80: 0 | H80: 0 | I80: 0 | J80: 0 | K80: 0
E81: =Asset7 -> Non-network general assets - Other | G81: 2.070342 | H81: 2.070342 | I81: 2.070342 | J81: 2.070342 | K81: 2.070342
E82: =Asset8 -> VBRC | G82: 0 | H82: 0 | I82: 0 | J82: 0 | K82: 0
E83: =Asset9 -> Supervisory cables | G83: 0 | H83: 0 | I83: 0 | J83: 0 | K83: 0
E84: =Asset10 -> Old SWER ACRs | G84: 0 | H84: 0 | I84: 0 | J84: 0 | K84: 0
E85: =Asset11 -> Land | G85: 0 | H85: 0 | I85: 0 | J85: 0 | K85: 0
E86: =Asset12 -> 0
E87: =Asset13 -> 0
E88: =Asset14 -> 0
E89: =Asset15 -> 0
E90: =Asset16 -> 0
E91: =Asset17 -> 0
E92: =Asset18 -> 0
E93: =Asset19 -> 0
E94: =Asset20 -> 0
E95: =Asset21 -> 0
E96: =Asset22 -> 0
E97: =Asset23 -> 0
E98: =Asset24 -> 0
E99: =Asset25 -> 0
E100: =Asset26 -> 0
E101: =Asset27 -> 0
E102: =Asset28 -> 0
E103: =Asset29 -> 0
E104: =Asset30 -> Equity raising costs
E105: Total | G105: =SUM(G75:G104) -> 2.070342 | H105: 2.070342 | I105: 2.070342 | J105: =SUM(J75:J104) -> 2.070342 | K105: 2.070342 | L105: 0 | M105: 0 | N105: 0 | O105: 0 | P105: 0
Q106: =SUM(OFFSET(G105,0,0,1,$R$7)) -> 10.35171
E107: ="Forecast Customer Contributions – As Incurred ($m Real "&$F$241&")" -> Forecast Customer Contributions – As Incurred ($m Real 2015)
E108: =E40 -> Year | G108: =G74 -> 2016 | H108: =H74 -> 2017 | I108: 2018 | J108: 2019 | K108: 2020 | L108: 2021 | M108: 2022 | N108: 2023 | O108: 2024 | P108: 2025
E109: =Asset1 -> Subtransmission | G109: 11.6381315 | H109: 12.59084505 | I109: 11.317995 | J109: 11.05363828 | K109: 11.04830685
E110: =Asset2 -> Distribution system assets | G110: 65.4229586 | H110: 70.77857252 | I110: 63.62333321 | J110: 62.13727 | K110: 62.10729973
E111: =Asset3 -> Standard metering | G111: 0 | H111: 0 | I111: 0 | J111: 0 | K111: 0
E112: =Asset4 -> Public lighting | G112: 0 | H112: 0 | I112: 0 | J112: 0 | K112: 0
E113: =Asset5 -> SCADA/Network control | G113: 0 | H113: 0 | I113: 0 | J113: 0 | K113: 0
E114: =Asset6 -> Non-network general assets - IT | G114: 0 | H114: 0 | I114: 0 | J114: 0 | K114: 0
E115: =Asset7 -> Non-network general assets - Other | G115: 0 | H115: 0 | I115: 0 | J115: 0 | K115: 0
E116: =Asset8 -> VBRC | G116: 0 | H116: 0 | I116: 0 | J116: 0 | K116: 0
E117: =Asset9 -> Supervisory cables | G117: 0 | H117: 0 | I117: 0 | J117: 0 | K117: 0
E118: =Asset10 -> Old SWER ACRs | G118: 0 | H118: 0 | I118: 0 | J118: 0 | K118: 0
E119: =Asset11 -> Land | G119: 0 | H119: 0 | I119: 0 | J119: 0 | K119: 0
E120: =Asset12 -> 0
E121: =Asset13 -> 0
E122: =Asset14 -> 0
E123: =Asset15 -> 0
E124: =Asset16 -> 0
E125: =Asset17 -> 0
E126: =Asset18 -> 0
E127: =Asset19 -> 0
E128: =Asset20 -> 0
E129: =Asset21 -> 0
E130: =Asset22 -> 0
E131: =Asset23 -> 0
E132: =Asset24 -> 0
E133: =Asset25 -> 0
E134: =Asset26 -> 0
E135: =Asset27 -> 0
E136: =Asset28 -> 0
E137: =Asset29 -> 0
E138: =Asset30 -> Equity raising costs
E139: Total | G139: =SUM(G109:G138) -> 77.0610901 | H139: 83.36941757 | I139: 74.94132821 | J139: 73.19090827 | K139: 73.15560658 | L139: 0 | M139: 0 | N139: 0 | O139: 0 | P139: 0
Q140: =SUM(OFFSET(G139,0,0,1,$R$7)) -> 381.7183507
E141: ="Forecast Net Capital Expenditure – As Incurred ($m Real "&$F$241&")" -> Forecast Net Capital Expenditure – As Incurred ($m Real 2015)
E142: =E40 -> Year | G142: =G40 -> 2016 | H142: =H40 -> 2017 | I142: 2018 | J142: 2019 | K142: 2020 | L142: 2021 | M142: 2022 | N142: 2023 | O142: 2024 | P142: 2025
E143: =Asset1 -> Subtransmission | G143: =G41-G75-G109 -> 35.44367535 | H143: =H41-H75-H109 -> 37.66806843 | I143: 35.13305715 | J143: 36.63272677 | K143: 37.06920238 | L143: 0 | M143: 0 | N143: 0 | O143: 0 | P143: 0 | U143: =SUM(G143:K143) -> 181.9467301
E144: =Asset2 -> Distribution system assets | G144: =G42-G76-G110 -> 228.0831069 | H144: 256.9370073 | I144: 268.2169054 | J144: 240.789901 | K144: 220.38413 | L144: 0 | M144: 0 | N144: 0 | O144: 0 | P144: 0 | U144: =SUM(G144:K144) -> 1214.411051
E145: =Asset3 -> Standard metering | G145: =G43-G77-G111 -> 0 | H145: 0 | I145: 0 | J145: 0 | K145: 0 | L145: 0 | M145: 0 | N145: 0 | O145: 0 | P145: 0 | U145: 0
E146: =Asset4 -> Public lighting | G146: =G44-G78-G112 -> 0 | H146: 0 | I146: 0 | J146: 0 | K146: 0 | L146: 0 | M146: 0 | N146: 0 | O146: 0 | P146: 0 | U146: 0
E147: =Asset5 -> SCADA/Network control | G147: =G45-G79-G113 -> 5.946197503 | H147: 18.20338987 | I147: 45.74607386 | J147: 31.60682683 | K147: 8.168937264 | L147: 0 | M147: 0 | N147: 0 | O147: 0 | P147: 0 | U147: 109.6714253
E148: =Asset6 -> Non-network general assets - IT | G148: =G46-G80-G114 -> 39.83637356 | H148: 39.69014974 | I148: 33.49357566 | J148: =J46-J80-J114 -> 24.92936031 | K148: 19.08848044 | L148: 0 | M148: 0 | N148: 0 | O148: 0 | P148: 0 | U148: 157.0379397
E149: =Asset7 -> Non-network general assets - Other | G149: =G47-G81-G115 -> 15.04348549 | H149: 15.03263421 | I149: 15.05502385 | J149: 15.11161528 | K149: 15.18238132 | L149: 0 | M149: 0 | N149: 0 | O149: 0 | P149: 0 | U149: 75.42514015
E150: =Asset8 -> VBRC | G150: =G48-G82-G116 -> 11.76940979 | H150: 13.07266799 | I150: 10.15564358 | J150: 13.22905907 | K150: 13.18110407 | L150: 0 | M150: 0 | N150: 0 | O150: 0 | P150: 0 | U150: 61.4078845
E151: =Asset9 -> Supervisory cables | G151: =G49-G83-G117 -> 0 | H151: 0 | I151: 0 | J151: 0 | K151: 0 | L151: 0 | M151: 0 | N151: 0 | O151: 0 | P151: 0
E152: =Asset10 -> Old SWER ACRs | G152: =G50-G84-G118 -> 0 | H152: 0 | I152: 0 | J152: 0 | K152: 0 | L152: 0 | M152: 0 | N152: 0 | O152: 0 | P152: 0
E153: =Asset11 -> Land | G153: =G51-G85-G119 -> 0.06847406544 | H153: 0.1844212153 | I153: 0.2359064313 | J153: 0.2164308197 | K153: 0.2961164653 | L153: 0 | M153: 0 | N153: 0 | O153: 0 | P153: 0
E154: =Asset12 -> 0 | G154: =G52-G86-G120 -> 0 | H154: 0 | I154: 0 | J154: 0 | K154: 0 | L154: 0 | M154: 0 | N154: 0 | O154: 0 | P154: 0
E155: =Asset13 -> 0 | G155: =G53-G87-G121 -> 0 | H155: 0 | I155: 0 | J155: 0 | K155: 0 | L155: 0 | M155: 0 | N155: 0 | O155: 0 | P155: 0
E156: =Asset14 -> 0 | G156: =G54-G88-G122 -> 0 | H156: 0 | I156: 0 | J156: 0 | K156: 0 | L156: 0 | M156: 0 | N156: 0 | O156: 0 | P156: 0
E157: =Asset15 -> 0 | G157: =G55-G89-G123 -> 0 | H157: 0 | I157: 0 | J157: 0 | K157: 0 | L157: 0 | M157: 0 | N157: 0 | O157: 0 | P157: 0
E158: =Asset16 -> 0 | G158: =G56-G90-G124 -> 0 | H158: 0 | I158: 0 | J158: 0 | K158: 0 | L158: 0 | M158: 0 | N158: 0 | O158: 0 | P158: 0
E159: =Asset17 -> 0 | G159: =G57-G91-G125 -> 0 | H159: 0 | I159: 0 | J159: 0 | K159: 0 | L159: 0 | M159: 0 | N159: 0 | O159: 0 | P159: 0
E160: =Asset18 -> 0 | G160: =G58-G92-G126 -> 0 | H160: 0 | I160: 0 | J160: 0 | K160: 0 | L160: 0 | M160: 0 | N160: 0 | O160: 0 | P160: 0
E161: =Asset19 -> 0 | G161: =G59-G93-G127 -> 0 | H161: 0 | I161: 0 | J161: 0 | K161: 0 | L161: 0 | M161: 0 | N161: 0 | O161: 0 | P161: 0
E162: =Asset20 -> 0 | G162: =G60-G94-G128 -> 0 | H162: 0 | I162: 0 | J162: 0 | K162: 0 | L162: 0 | M162: 0 | N162: 0 | O162: 0 | P162: 0
E163: =Asset21 -> 0 | G163: =G61-G95-G129 -> 0 | H163: 0 | I163: 0 | J163: 0 | K163: 0 | L163: 0 | M163: 0 | N163: 0 | O163: 0 | P163: 0
E164: =Asset22 -> 0 | G164: =G62-G96-G130 -> 0 | H164: 0 | I164: 0 | J164: 0 | K164: 0 | L164: 0 | M164: 0 | N164: 0 | O164: 0 | P164: 0
E165: =Asset23 -> 0 | G165: =G63-G97-G131 -> 0 | H165: 0 | I165: 0 | J165: 0 | K165: 0 | L165: 0 | M165: 0 | N165: 0 | O165: 0 | P165: 0
E166: =Asset24 -> 0 | G166: =G64-G98-G132 -> 0 | H166: 0 | I166: 0 | J166: 0 | K166: 0 | L166: 0 | M166: 0 | N166: 0 | O166: 0 | P166: 0
E167: =Asset25 -> 0 | G167: =G65-G99-G133 -> 0 | H167: 0 | I167: 0 | J167: 0 | K167: 0 | L167: 0 | M167: 0 | N167: 0 | O167: 0 | P167: 0
E168: =Asset26 -> 0 | G168: =G66-G100-G134 -> 0 | H168: 0 | I168: 0 | J168: 0 | K168: 0 | L168: 0 | M168: 0 | N168: 0 | O168: 0 | P168: 0
E169: =Asset27 -> 0 | G169: =G67-G101-G135 -> 0 | H169: 0 | I169: 0 | J169: 0 | K169: 0 | L169: 0 | M169: 0 | N169: 0 | O169: 0 | P169: 0
E170: =Asset28 -> 0 | G170: =G68-G102-G136 -> 0 | H170: 0 | I170: 0 | J170: 0 | K170: 0 | L170: 0 | M170: 0 | N170: 0 | O170: 0 | P170: 0
E171: =Asset29 -> 0 | G171: =G69-G103-G137 -> 0 | H171: 0 | I171: 0 | J171: 0 | K171: 0 | L171: 0 | M171: 0 | N171: 0 | O171: 0 | P171: 0
E172: =Asset30 -> Equity raising costs | G172: =G70-G104-G138 -> 12.95252056 | H172: 0 | I172: 0 | J172: 0 | K172: 0 | L172: 0 | M172: 0 | N172: 0 | O172: 0 | P172: 0
E173: Total | G173: =SUM(G143:G172) -> 349.1432433 | H173: 380.7883388 | I173: =SUM(I143:I172) -> 408.0361859 | J173: 362.5159201 | K173: 313.370352 | L173: 0 | M173: 0 | N173: 0 | O173: 0 | P173: 0
Q174: =SUM(OFFSET(G173,0,0,1,$R$7)) -> 1813.85404
E175: ="Forecast Operating and Maintenance Expenditure ($m Real "&$F$241&")" -> Forecast Operating and Maintenance Expenditure ($m Real 2015)
E176: =E40 -> Year | G176: =G40 -> 2016 | H176: =H40 -> 2017 | I176: 2018 | J176: 2019 | K176: 2020 | L176: 2021 | M176: 2022 | N176: 2023 | O176: 2024 | P176: 2025
E177: Total opex ex. debt raising costs | G177: 225.5465637 | H177: 231.413243 | I177: 241.2425129 | J177: 243.7584405 | K177: 249.1378023
E186: Debt raising costs | G186: =(Drc*Dv*Assets!G475)/Assets!G7 -> 1.662010291 | H186: =IF(COUNT($G186:G186)>='PTRM input'!$R$7,0,(Drc*Dv*Assets!H475)/Assets!H7) -> 1.748713329 | I186: =IF(COUNT($G186:H186)>='PTRM input'!$R$7,0,(Drc*Dv*Assets!I475)/Assets!I7) -> 1.856164972 | J186: =IF(COUNT($G186:I186)>='PTRM input'!$R$7,0,(Drc*Dv*Assets!J475)/Assets!J7) -> 1.970873975 | K186: =IF(COUNT($G186:J186)>='PTRM input'!$R$7,0,(Drc*Dv*Assets!K475)/Assets!K7) -> 2.053301978 | L186: =IF(COUNT($G186:K186)>='PTRM input'!$R$7,0,(Drc*Dv*Assets!L475)/Assets!L7) -> 0 | M186: =IF(COUNT($G186:L186)>='PTRM input'!$R$7,0,(Drc*Dv*Assets!M475)/Assets!M7) -> 0 | N186: =IF(COUNT($G186:M186)>='PTRM input'!$R$7,0,(Drc*Dv*Assets!N475)/Assets!N7) -> 0 | O186: =IF(COUNT($G186:N186)>='PTRM input'!$R$7,0,(Drc*Dv*Assets!O475)/Assets!O7) -> 0 | P186: =IF(COUNT($G186:O186)>='PTRM input'!$R$7,0,(Drc*Dv*Assets!P475)/Assets!P7) -> 0
E187: Total | G187: =SUM(G177:G186) -> 227.208574 | H187: 233.1619564 | I187: 243.0986778 | J187: 245.7293145 | K187: 251.1911042 | L187: 0 | M187: 0 | N187: 0 | O187: 0 | P187: 0
Q188: =SUM(OFFSET(G187,0,0,1,$R$7)) -> 1200.389627
E189: ="Revenue Adjustments ($m Real "&$F$241&")" -> Revenue Adjustments ($m Real 2015)
E190: =E40 -> Year | G190: =G40 -> 2016 | H190: 2017 | I190: 2018 | J190: 2019 | K190: 2020 | L190: 2021 | M190: 2022 | N190: 2023 | O190: 2024 | P190: 2025 | R190: Tax income? | S190: Tax Expense?
E191: EBSS increments as per NER 6.4.3(a)(5) & 6.5.8 | G191: 12.55696448 | H191: -3.21895452 | I191: 2.529634142 | J191: 9.864392967 | K191: 0 | R191: Yes | S191: Yes | T191: =IF(AND(R191="No",S191="Yes"),"Caution - there appears to be an error, if an adjustment is not included as tax income, it should not be a tax expense.","") -> 
E192: CESS increments as per NER 6.4.3(a)(5) & 6.5.8A | R192: Yes | S192: No | T192: =IF(AND(R192="No",S192="Yes"),"Caution - there appears to be an error, if an adjustment is not included as tax income, it should not be a tax expense.","") -> 
E193: S-Factor scheme finalisation as per NER 6.4.3(a)(6) and 6.4.3(b)(6) | G193: -8.983702377 | R193: Yes | S193: Yes
E194: Shared asset decrements as per NER 6.4.3(a)(6A) & 6.4.4 | G194: 0 | H194: 0 | I194: 0 | J194: 0 | K194: 0 | R194: Yes | S194: No
E195: DMIA | G195: 0.6 | H195: 0.6 | I195: 0.6 | J195: 0.6 | K195: 0.6 | R195: Yes | S195: Yes
E201: Total Adjustments Included as Tax Income | G201: =SUMIF($R$191:$R$200,"Yes",G191:G200) -> 4.173262108 | H201: =SUMIF($R$191:$R$200,"Yes",H191:H200) -> -2.61895452 | I201: 3.129634142 | J201: 10.46439297 | K201: 0.6 | L201: 0 | M201: 0 | N201: 0 | O201: 0 | P201: 0
E202: Total Adjustments Included as Non-tax Income | G202: =SUMIF($R$191:$R$200,"No",G191:G200) -> 0 | H202: =SUMIF($R$191:$R$200,"No",H191:H200) -> 0 | I202: 0 | J202: 0 | K202: 0 | L202: 0 | M202: 0 | N202: 0 | O202: 0 | P202: 0
E203: Total Adjustments Included as Tax Expense | G203: =SUMIF($S$191:$S$200,"Yes",G191:G200) -> 4.173262108 | H203: =SUMIF($S$191:$S$200,"Yes",H191:H200) -> -2.61895452 | I203: 3.129634142 | J203: 10.46439297 | K203: 0.6 | L203: 0 | M203: 0 | N203: 0 | O203: 0 | P203: 0
E204: Total Adjustments Included as Non-tax Expense | G204: =SUMIF($S$191:$S$200,"No",G191:G200) -> 0 | H204: =SUMIF($S$191:$S$200,"No",H191:H200) -> 0 | I204: 0 | J204: 0 | K204: 0 | L204: 0 | M204: 0 | N204: 0 | O204: 0 | P204: 0
E205: Total Adjustments | G205: =SUM(G191:G200) -> 4.173262108 | H205: -2.61895452 | I205: 3.129634142 | J205: 10.46439297 | K205: 0.6 | L205: 0 | M205: 0 | N205: 0 | O205: 0 | P205: 0
Q206: =SUM(OFFSET(G205,0,0,1,$R$7)) -> 15.7483347
E207: Tax
E208: =E40 -> Year | G208: =G40 -> 2016 | H208: 2017 | I208: 2018 | J208: 2019 | K208: 2020 | L208: 2021 | M208: 2022 | N208: 2023 | O208: 2024 | P208: 2025
E209: Expected Corporate Tax Rate | G209: 0.3 | H209: 0.3 | I209: 0.3 | J209: 0.3 | K209: 0.3
E211: Year | F211: =F241 -> 2015
E212: Tax Loss Carried Forward From Previous Period | F212: 0 | G212: =IF(F212>0,"Caution - The tax loss carried forward should be a negative number.","") -> 
E214: Cost of Capital
E215: =E40 -> Year | G215: =CONCATENATE(LEFT(G40,4),"-",RIGHT(OFFSET(G40,0,R7-1,1,1),2)) -> 2016-20
E216: Inflation Rate | F216: f | G216: 0.02349497251
E217: Return on Equity | F217: Re | G217: 0.07 | H217: =IF(ROUND(G217,3)=G217,"","Caution - This Re appears to depart from the AER's Guideline, which states that Re is rounded to one decimal place (as a percentage). The PTRM will not automatically round the figure you have entered.") -> 
E218: Value of Imputation Credits (gamma) | F218: γ | G218: 0.4
E219: Proportion of Debt Funding | F219: D/V | G219: 0.6
... 429 more rows

Sheet WACC
B2: ='DMS input'!$C$16&" - Cost of Capital Parameters"&" - DNSP PTRM - version "&Intro!$L$4 -> Powercor - Cost of Capital Parameters - DNSP PTRM - version 3
B4: Year | G4: ='PTRM input'!G40 -> 2016 | H4: ='PTRM input'!H40 -> 2017 | I4: ='PTRM input'!I40 -> 2018 | J4: ='PTRM input'!J40 -> 2019 | K4: ='PTRM input'!K40 -> 2020 | L4: ='PTRM input'!L40 -> 2021 | M4: ='PTRM input'!M40 -> 2022 | N4: ='PTRM input'!N40 -> 2023 | O4: ='PTRM input'!O40 -> 2024 | P4: ='PTRM input'!P40 -> 2025 | R4: Final decision checks
R5: This column contains calculations that presume a constant WACC. They are therefore to be used at the start of the regulatory period (prior to any annual debt updates).
B6: Inflation Rate | D6: f | F6: Constant | G6: =f -> 0.02349497251 | H6: =f -> 0.02349497251 | I6: 0.02349497251 | J6: 0.02349497251 | K6: 0.02349497251 | L6: 0.02349497251 | M6: 0.02349497251 | N6: 0.02349497251 | O6: 0.02349497251 | P6: 0.02349497251
B7: Value of Imputation Credits (gamma) | D7: γ | F7: Constant | G7: =g -> 0.4 | H7: 0.4 | I7: 0.4 | J7: 0.4 | K7: 0.4 | L7: 0.4 | M7: 0.4 | N7: 0.4 | O7: 0.4 | P7: 0.4
B8: Proportion of Equity Funding | D8: E/V | F8: Constant | G8: =1-G9 -> 0.4 | H8: =1-H9 -> 0.4 | I8: =1-I9 -> 0.4 | J8: 0.4 | K8: 0.4 | L8: 0.4 | M8: 0.4 | N8: 0.4 | O8: 0.4 | P8: =1-P9 -> 0.4
B9: Proportion of Debt Funding | D9: D/V | F9: Constant | G9: =Dv -> 0.6 | H9: 0.6 | I9: 0.6 | J9: 0.6 | K9: 0.6 | L9: 0.6 | M9: 0.6 | N9: 0.6 | O9: 0.6 | P9: 0.6
B10: Post-tax Nominal Return on Equity | D10: Re | F10: Constant | G10: ='PTRM input'!$G$217 -> 0.07 | H10: ='PTRM input'!$G$217 -> 0.07 | I10: ='PTRM input'!$G$217 -> 0.07 | J10: ='PTRM input'!$G$217 -> 0.07 | K10: ='PTRM input'!$G$217 -> 0.07 | L10: ='PTRM input'!$G$217 -> 0.07 | M10: ='PTRM input'!$G$217 -> 0.07 | N10: ='PTRM input'!$G$217 -> 0.07 | O10: ='PTRM input'!$G$217 -> 0.07 | P10: ='PTRM input'!$G$217 -> 0.07 | R10: =Analysis!$E$111 -> 0.07
B11: Post-tax Real Return on Equity | D11: Rre | F11: Constant | G11: =(1+G10)/(1+G6)-1 -> 0.04543747526 | H11: 0.04543747526 | I11: 0.04543747526 | J11: 0.04543747526 | K11: 0.04543747526 | L11: 0.04543747526 | M11: 0.04543747526 | N11: 0.04543747526 | O11: 0.04543747526 | P11: 0.04543747526 | R11: =Analysis!$E$115 -> 0.04543747526
B13: Corporate Tax Rate | D13: T | F13: Varying | G13: ='PTRM input'!G209 -> 0.3 | H13: =IF(OR(ISBLANK('PTRM input'!H209),'PTRM input'!H209=0),G13,'PTRM input'!H209) -> 0.3 | I13: =IF(OR(ISBLANK('PTRM input'!I209),'PTRM input'!I209=0),H13,'PTRM input'!I209) -> 0.3 | J13: =IF(OR(ISBLANK('PTRM input'!J209),'PTRM input'!J209=0),I13,'PTRM input'!J209) -> 0.3 | K13: =IF(OR(ISBLANK('PTRM input'!K209),'PTRM input'!K209=0),J13,'PTRM input'!K209) -> 0.3 | L13: =IF(OR(ISBLANK('PTRM input'!L209),'PTRM input'!L209=0),K13,'PTRM input'!L209) -> 0.3 | M13: =IF(OR(ISBLANK('PTRM input'!M209),'PTRM input'!M209=0),L13,'PTRM input'!M209) -> 0.3 | N13: =IF(OR(ISBLANK('PTRM input'!N209),'PTRM input'!N209=0),M13,'PTRM input'!N209) -> 0.3 | O13: =IF(OR(ISBLANK('PTRM input'!O209),'PTRM input'!O209=0),N13,'PTRM input'!O209) -> 0.3 | P13: =IF(OR(ISBLANK('PTRM input'!P209),'PTRM input'!P209=0),O13,'PTRM input'!P209) -> 0.3
B14: Nominal Pre-tax Return on Debt | D14: Rd | F14: Varying | G14: ='PTRM input'!G222 -> 0.05509543779 | H14: =IF(OR(ISBLANK('PTRM input'!H222),'PTRM input'!H222=0),G14,'PTRM input'!H222) -> 0.05411892927 | I14: =IF(OR(ISBLANK('PTRM input'!I222),'PTRM input'!I222=0),H14,'PTRM input'!I222) -> 0.05327098081 | J14: =IF(OR(ISBLANK('PTRM input'!J222),'PTRM input'!J222=0),I14,'PTRM input'!J222) -> 0.05233277008 | K14: =IF(OR(ISBLANK('PTRM input'!K222),'PTRM input'!K222=0),J14,'PTRM input'!K222) -> 0.04984323694 | L14: =IF(OR(ISBLANK('PTRM input'!L222),'PTRM input'!L222=0),K14,'PTRM input'!L222) -> 0.04984323694 | M14: =IF(OR(ISBLANK('PTRM input'!M222),'PTRM input'!M222=0),L14,'PTRM input'!M222) -> 0.04984323694 | N14: =IF(OR(ISBLANK('PTRM input'!N222),'PTRM input'!N222=0),M14,'PTRM input'!N222) -> 0.04984323694 | O14: =IF(OR(ISBLANK('PTRM input'!O222),'PTRM input'!O222=0),N14,'PTRM input'!O222) -> 0.04984323694 | P14: =IF(OR(ISBLANK('PTRM input'!P222),'PTRM input'!P222=0),O14,'PTRM input'!P222) -> 0.04984323694
B15: Real Pre-tax Return on Debt | D15: Rrd | F15: Varying | G15: =(1+G14)/(1+G6)-1 -> 0.03087505667 | H15: 0.02992096452 | I15: 0.02909248125 | J15: 0.02817580774 | K15: 0.0257434234 | L15: 0.0257434234 | M15: 0.0257434234 | N15: 0.0257434234 | O15: 0.0257434234 | P15: 0.0257434234
G17: Formula approximations of WACC | R17: Cashflow derivations of WACC
B18: Nominal Vanilla WACC | F18: Varying | G18: =G8*G10+G9*G14 -> 0.06105726267 | H18: 0.06047135756 | I18: 0.05996258848 | J18: 0.05939966205 | K18: 0.05790594216 | L18: 0.05790594216 | M18: 0.05790594216 | N18: 0.05790594216 | O18: 0.05790594216 | P18: 0.05790594216 | R18: =Analysis!$E$126 -> 0.05844339059
B19: Real Vanilla WACC | F19: Varying | G19: =G8*G11+G9*G15 -> 0.0367000241 | H19: 0.03612756881 | I19: 0.03563047885 | J19: 0.03508047475 | K19: 0.03362104414 | L19: 0.03362104414 | M19: 0.03362104414 | N19: 0.03362104414 | O19: 0.03362104414 | P19: 0.03362104414 | R19: =Analysis!$E$127 -> 0.03414615511
B20: Post-tax Nominal WACC | F20: Varying | G20: =G10*G8+G14*G9*(1-G28*(1-G7)) -> 0.05511474897 | H20: 0.05463416865 | I20: 0.05421685806 | J20: 0.05375512566 | K20: 0.0525299232 | L20: 0.0525299232 | M20: 0.0525299232 | N20: 0.0525299232 | O20: 0.0525299232 | P20: 0.0525299232 | R20: =Analysis!$E$123 -> 0.05409369593
B21: Post-tax Real WACC | F21: Varying | G21: =(1+G20)/(1+G6)-1 -> 0.03089392455 | H21: 0.03042437625 | I21: 0.03001664529 | J21: 0.02956551226 | K21: 0.02836843508 | L21: 0.02836843508 | M21: 0.02836843508 | N21: 0.02836843508 | O21: 0.02836843508 | P21: 0.02836843508 | R21: =Analysis!$E$125 -> 0.02989631043
B22: Pre-tax Nominal WACC | F22: Varying | G22: =G10*(1/(1-G27*(1-G7)))*G8+G14*G9 -> 0.06771154992 | H22: 0.06712564481 | I22: 0.06661687573 | J22: 0.0660539493 | K22: 0.06456022941 | L22: 0.06456022941 | M22: 0.06456022941 | N22: 0.06456022941 | O22: 0.06456022941 | P22: 0.06456022941 | R22: =Analysis!$E$122 -> 0.0649435247
B23: Pre-tax Real WACC | F23: Varying | G23: =(1+G22)/(1+G6)-1 -> 0.04320155799 | H23: 0.04262910271 | I23: 0.04213201274 | J23: 0.04158200864 | K23: 0.04012257803 | L23: 0.04012257803 | M23: 0.04012257803 | N23: 0.04012257803 | O23: 0.04012257803 | P23: 0.04012257803 | R23: =Analysis!$E$124 -> 0.04049707453
B24: Nominal Tax Allowance | F24: Varying | G24: =G22-G20 -> 0.01259680095 | H24: =H22-H20 -> 0.01249147616 | I24: 0.01240001768 | J24: 0.01229882364 | K24: 0.01203030622 | L24: 0.01203030622 | M24: 0.01203030622 | N24: 0.01203030622 | O24: 0.01203030622 | P24: 0.01203030622 | R24: =$R$22-$R$20 -> 0.01084982876
B25: Real Tax Allowance | F25: Varying | G25: =G23-G21 -> 0.01230763344 | H25: =H23-H21 -> 0.01220472645 | I25: 0.01211536745 | J25: 0.01201649638 | K25: 0.01175414295 | L25: 0.01175414295 | M25: 0.01175414295 | N25: 0.01175414295 | O25: 0.01175414295 | P25: 0.01175414295 | R25: =$R$23-$R$21 -> 0.0106007641
B27: Effective Tax Rate for Equity (from relevant cashflows) | D27: Te | G27: 0.3200319392 | H27: =G27 -> 0.3200319392 | I27: =H27 -> 0.3200319392 | J27: 0.3200319392 | K27: 0.3200319392 | L27: 0.3200319392 | M27: 0.3200319392 | N27: 0.3200319392 | O27: 0.3200319392 | P27: 0.3200319392 | R27: =Analysis!$D$109 -> 0.3137641165
B28: Effective Tax Rate for Debt (effective debt shield) | D28: Td | G28: 0.2996070666 | H28: =G28 -> 0.2996070666 | I28: =H28 -> 0.2996070666 | J28: 0.2996070666 | K28: 0.2996070666 | L28: 0.2996070666 | M28: 0.2996070666 | N28: 0.2996070666 | O28: 0.2996070666 | P28: 0.2996070666 | R28: =Analysis!$D$120 -> 0.3014594989
H30: At the start of the regulatory control period, use this button to copy across the cashflow-calculated Te and Td.
H31: However, these calculations presume a constant WACC so Te/Td should not be updated during a regulatory control period
H32: when annually updating the return on debt - just use the same Te/Td from the final decision.
G34: Numbers in White cells are calculated on this sheet from input parameters.
G35: Numbers in Orange cells are transferred from relevant sheets

Sheet Assets
B2: ='DMS input'!$C$16&" - Asset Roll Forward"&" - DNSP PTRM - version "&Intro!$L$4 -> Powercor - Asset Roll Forward - DNSP PTRM - version 3
F3: 0 | G3: =F3+1 -> 1 | H3: 2 | I3: 3 | J3: 4 | K3: 5 | L3: 6 | M3: 7 | N3: 8 | O3: 9 | P3: 10 | Q3: 11 | R3: 12 | S3: 13 | T3: 14 | U3: 15 | V3: 16 | W3: 17 | X3: 18 | Y3: 19 | Z3: 20 | AA3: 21 | AB3: 22 | AC3: 23 | AD3: 24 | AE3: 25 | AF3: 26 | AG3: 27 | AH3: 28 | AI3: 29 | AJ3: 30 | AK3: 31 | AL3: 32 | AM3: =AL3+1 -> 33 | AN3: 34 | AO3: 35 | AP3: 36 | AQ3: 37 | AR3: 38 | AS3: 39 | AT3: 40 | AU3: 41 | AV3: 42 | AW3: 43 | AX3: 44 | AY3: 45 | AZ3: 46 | BA3: 47 | BB3: 48 | BC3: 49 | BD3: 50 | BE3: 51 | BF3: 52 | BG3: 53 | BH3: 54 | BI3: 55
B4: Year | F4: ='PTRM input'!F241 -> 2015 | G4: ='PTRM input'!G40 -> 2016 | H4: ='PTRM input'!H40 -> 2017 | I4: ='PTRM input'!I40 -> 2018 | J4: ='PTRM input'!J40 -> 2019 | K4: ='PTRM input'!K40 -> 2020 | L4: ='PTRM input'!L40 -> 2021 | M4: ='PTRM input'!M40 -> 2022 | N4: ='PTRM input'!N40 -> 2023 | O4: ='PTRM input'!O40 -> 2024 | P4: ='PTRM input'!P40 -> 2025 | Q4: =(LEFT(P4,4)+1&IF(MID(P4,5,1)="","","-"&TEXT(MID(P4,6,2)+1,"00"))) -> 2026 | R4: =(LEFT(Q4,4)+1&IF(MID(Q4,5,1)="","","-"&TEXT(MID(Q4,6,2)+1,"00"))) -> 2027 | S4: 2028 | T4: 2029 | U4: 2030 | V4: 2031 | W4: 2032 | X4: 2033 | Y4: 2034 | Z4: 2035 | AA4: 2036 | AB4: 2037 | AC4: 2038 | AD4: 2039 | AE4: 2040 | AF4: 2041 | AG4: 2042 | AH4: 2043 | AI4: 2044 | AJ4: 2045 | AK4: 2046 | AL4: 2047 | AM4: 2048 | AN4: 2049 | AO4: 2050 | AP4: 2051 | AQ4: 2052 | AR4: 2053 | AS4: 2054 | AT4: 2055 | AU4: 2056 | AV4: 2057 | AW4: 2058 | AX4: 2059 | AY4: 2060 | AZ4: 2061 | BA4: 2062 | BB4: 2063 | BC4: 2064 | BD4: 2065 | BE4: 2066 | BF4: 2067 | BG4: 2068 | BH4: 2069 | BI4: 2070
B6: Inflation Assumption (CPI % increase) | D6: =f -> 0.02349497251 | G6: =$D$6 -> 0.02349497251 | H6: =$D$6 -> 0.02349497251 | I6: 0.02349497251 | J6: 0.02349497251 | K6: 0.02349497251 | L6: 0.02349497251 | M6: 0.02349497251 | N6: 0.02349497251 | O6: 0.02349497251 | P6: 0.02349497251 | Q6: 0.02349497251 | R6: 0.02349497251 | S6: 0.02349497251 | T6: 0.02349497251 | U6: 0.02349497251 | V6: 0.02349497251 | W6: 0.02349497251 | X6: 0.02349497251 | Y6: 0.02349497251 | Z6: 0.02349497251 | AA6: 0.02349497251 | AB6: 0.02349497251 | AC6: 0.02349497251 | AD6: 0.02349497251 | AE6: 0.02349497251 | AF6: 0.02349497251 | AG6: 0.02349497251 | AH6: 0.02349497251 | AI6: 0.02349497251 | AJ6: 0.02349497251 | AK6: 0.02349497251 | AL6: 0.02349497251 | AM6: 0.02349497251 | AN6: 0.02349497251 | AO6: 0.02349497251 | AP6: 0.02349497251 | AQ6: 0.02349497251 | AR6: 0.02349497251 | AS6: 0.02349497251 | AT6: 0.02349497251 | AU6: 0.02349497251 | AV6: 0.02349497251 | AW6: 0.02349497251 | AX6: 0.02349497251 | AY6: 0.02349497251 | AZ6: 0.02349497251 | BA6: 0.02349497251 | BB6: 0.02349497251 | BC6: 0.02349497251 | BD6: 0.02349497251 | BE6: 0.02349497251 | BF6: 0.02349497251 | BG6: 0.02349497251 | BH6: 0.02349497251 | BI6: 0.02349497251
B7: Cumulative Inflation Index (CPI end period) | F7: 1 | G7: =F7*(1+G6) -> 1.023494973 | H7: =G7*(1+H6) -> 1.047541959 | I7: =H7*(1+I6) -> 1.072153928 | J7: =I7*(1+J6) -> 1.097344155 | K7: 1.123126226 | L7: 1.149514046 | M7: 1.176521847 | N7: 1.204164195 | O7: 1.232456 | P7: =O7*(1+P6) -> 1.26141252 | Q7: 1.291049372 | R7: 1.321382542 | S7: 1.352428388 | T7: 1.384203656 | U7: 1.416725483 | V7: 1.450011409 | W7: 1.484079387 | X7: 1.518947792 | Y7: 1.554635428 | Z7: 1.591161545 | AA7: 1.628545842 | AB7: 1.666808482 | AC7: 1.705970101 | AD7: 1.746051822 | AE7: 1.787075261 | AF7: 1.829062545 | AG7: 1.87203632 | AH7: 1.916019762 | AI7: 1.961036593 | AJ7: 2.007111094 | AK7: 2.054268114 | AL7: 2.102533087 | AM7: 2.151932044 | AN7: 2.202491628 | AO7: 2.254239108 | AP7: 2.307202394 | AQ7: 2.361410051 | AR7: 2.416891315 | AS7: 2.47367611 | AT7: 2.531795063 | AU7: 2.591279518 | AV7: 2.652161559 | AW7: 2.714474022 | AX7: 2.778250514 | AY7: 2.843525434 | AZ7: 2.910333986 | BA7: 2.978712203 | BB7: 3.048696964 | BC7: 3.120326016 | BD7: 3.193637989 | BE7: 3.268672426 | BF7: 3.345469795 | BG7: 3.424071516 | BH7: 3.504519982 | BI7: 3.586858583
B9: Opening Regulatory Asset Base (RAB) | F9: =RAB -> 3307.003575
B10: Real Net Capital Expenditure (capex) | G10: =SUM(G11:G40) -> 355.4922983 | H10: =SUM(H11:H40) -> 387.605789 | I10: =SUM(I11:I40) -> 415.2418249 | J10: 368.8197268 | K10: 318.594722 | L10: 0 | M10: 0 | N10: 0 | O10: 0 | P10: 0
C11: =Asset1 -> Subtransmission | G11: ='PTRM input'!G143*(1+rvanilla01)^0.5 -> 36.08820692 | H11: ='PTRM input'!H143*(1+rvanilla02)^0.5 -> 38.34245931 | I11: ='PTRM input'!I143*(1+rvanilla03)^0.5 -> 35.75348283 | J11: ='PTRM input'!J143*(1+rvanilla04)^0.5 -> 37.26973501 | K11: ='PTRM input'!K143*(1+rvanilla05)^0.5 -> 37.68720351 | L11: ='PTRM input'!L143*(1+rvanilla06)^0.5 -> 0 | M11: ='PTRM input'!M143*(1+rvanilla07)^0.5 -> 0 | N11: ='PTRM input'!N143*(1+rvanilla08)^0.5 -> 0 | O11: ='PTRM input'!O143*(1+rvanilla09)^0.5 -> 0 | P11: ='PTRM input'!P143*(1+rvanilla10)^0.5 -> 0
C12: =Asset2 -> Distribution system assets | G12: ='PTRM input'!G144*(1+rvanilla01)^0.5 -> 232.2307232 | H12: ='PTRM input'!H144*(1+rvanilla02)^0.5 -> 261.5370832 | I12: ='PTRM input'!I144*(1+rvanilla03)^0.5 -> 272.9534319 | J12: ='PTRM input'!J144*(1+rvanilla04)^0.5 -> 244.9770081 | K12: ='PTRM input'!K144*(1+rvanilla05)^0.5 -> 224.0582755 | L12: ='PTRM input'!L144*(1+rvanilla06)^0.5 -> 0 | M12: ='PTRM input'!M144*(1+rvanilla07)^0.5 -> 0 | N12: ='PTRM input'!N144*(1+rvanilla08)^0.5 -> 0 | O12: ='PTRM input'!O144*(1+rvanilla09)^0.5 -> 0 | P12: ='PTRM input'!P144*(1+rvanilla10)^0.5 -> 0
C13: =Asset3 -> Standard metering | G13: ='PTRM input'!G145*(1+rvanilla01)^0.5 -> 0 | H13: ='PTRM input'!H145*(1+rvanilla02)^0.5 -> 0 | I13: ='PTRM input'!I145*(1+rvanilla03)^0.5 -> 0 | J13: ='PTRM input'!J145*(1+rvanilla04)^0.5 -> 0 | K13: ='PTRM input'!K145*(1+rvanilla05)^0.5 -> 0 | L13: ='PTRM input'!L145*(1+rvanilla06)^0.5 -> 0 | M13: ='PTRM input'!M145*(1+rvanilla07)^0.5 -> 0 | N13: ='PTRM input'!N145*(1+rvanilla08)^0.5 -> 0 | O13: ='PTRM input'!O145*(1+rvanilla09)^0.5 -> 0 | P13: ='PTRM input'!P145*(1+rvanilla10)^0.5 -> 0
C14: =Asset4 -> Public lighting | G14: ='PTRM input'!G146*(1+rvanilla01)^0.5 -> 0 | H14: ='PTRM input'!H146*(1+rvanilla02)^0.5 -> 0 | I14: ='PTRM input'!I146*(1+rvanilla03)^0.5 -> 0 | J14: ='PTRM input'!J146*(1+rvanilla04)^0.5 -> 0 | K14: ='PTRM input'!K146*(1+rvanilla05)^0.5 -> 0 | L14: ='PTRM input'!L146*(1+rvanilla06)^0.5 -> 0 | M14: ='PTRM input'!M146*(1+rvanilla07)^0.5 -> 0 | N14: ='PTRM input'!N146*(1+rvanilla08)^0.5 -> 0 | O14: ='PTRM input'!O146*(1+rvanilla09)^0.5 -> 0 | P14: ='PTRM input'!P146*(1+rvanilla10)^0.5 -> 0
C15: =Asset5 -> SCADA/Network control | G15: ='PTRM input'!G147*(1+rvanilla01)^0.5 -> 6.054327148 | H15: ='PTRM input'!H147*(1+rvanilla02)^0.5 -> 18.52929456 | I15: ='PTRM input'!I147*(1+rvanilla03)^0.5 -> 46.55391813 | J15: ='PTRM input'!J147*(1+rvanilla04)^0.5 -> 32.15643946 | K15: ='PTRM input'!K147*(1+rvanilla05)^0.5 -> 8.305126124 | L15: ='PTRM input'!L147*(1+rvanilla06)^0.5 -> 0 | M15: ='PTRM input'!M147*(1+rvanilla07)^0.5 -> 0 | N15: ='PTRM input'!N147*(1+rvanilla08)^0.5 -> 0 | O15: ='PTRM input'!O147*(1+rvanilla09)^0.5 -> 0 | P15: ='PTRM input'!P147*(1+rvanilla10)^0.5 -> 0
C16: =Asset6 -> Non-network general assets - IT | G16: ='PTRM input'!G148*(1+rvanilla01)^0.5 -> 40.5607849 | H16: ='PTRM input'!H148*(1+rvanilla02)^0.5 -> 40.40074299 | I16: ='PTRM input'!I148*(1+rvanilla03)^0.5 -> 34.08504922 | J16: ='PTRM input'!J148*(1+rvanilla04)^0.5 -> 25.36285815 | K16: ='PTRM input'!K148*(1+rvanilla05)^0.5 -> 19.40671503 | L16: ='PTRM input'!L148*(1+rvanilla06)^0.5 -> 0 | M16: ='PTRM input'!M148*(1+rvanilla07)^0.5 -> 0 | N16: ='PTRM input'!N148*(1+rvanilla08)^0.5 -> 0 | O16: ='PTRM input'!O148*(1+rvanilla09)^0.5 -> 0 | P16: ='PTRM input'!P148*(1+rvanilla10)^0.5 -> 0
C17: =Asset7 -> Non-network general assets - Other | G17: ='PTRM input'!G149*(1+rvanilla01)^0.5 -> 15.31704633 | H17: ='PTRM input'!H149*(1+rvanilla02)^0.5 -> 15.30177123 | I17: ='PTRM input'!I149*(1+rvanilla03)^0.5 -> 15.32088524 | J17: ='PTRM input'!J149*(1+rvanilla04)^0.5 -> 15.37439188 | K17: ='PTRM input'!K149*(1+rvanilla05)^0.5 -> 15.43549517 | L17: ='PTRM input'!L149*(1+rvanilla06)^0.5 -> 0 | M17: ='PTRM input'!M149*(1+rvanilla07)^0.5 -> 0 | N17: ='PTRM input'!N149*(1+rvanilla08)^0.5 -> 0 | O17: ='PTRM input'!O149*(1+rvanilla09)^0.5 -> 0 | P17: ='PTRM input'!P149*(1+rvanilla10)^0.5 -> 0
C18: =Asset8 -> VBRC | G18: ='PTRM input'!G150*(1+rvanilla01)^0.5 -> 11.98343264 | H18: ='PTRM input'!H150*(1+rvanilla02)^0.5 -> 13.30671472 | I18: ='PTRM input'!I150*(1+rvanilla03)^0.5 -> 10.33498527 | J18: ='PTRM input'!J150*(1+rvanilla04)^0.5 -> 13.45909981 | K18: ='PTRM input'!K150*(1+rvanilla05)^0.5 -> 13.40085353 | L18: ='PTRM input'!L150*(1+rvanilla06)^0.5 -> 0 | M18: ='PTRM input'!M150*(1+rvanilla07)^0.5 -> 0 | N18: ='PTRM input'!N150*(1+rvanilla08)^0.5 -> 0 | O18: ='PTRM input'!O150*(1+rvanilla09)^0.5 -> 0 | P18: ='PTRM input'!P150*(1+rvanilla10)^0.5 -> 0
C19: =Asset9 -> Supervisory cables | G19: ='PTRM input'!G151*(1+rvanilla01)^0.5 -> 0 | H19: ='PTRM input'!H151*(1+rvanilla02)^0.5 -> 0 | I19: ='PTRM input'!I151*(1+rvanilla03)^0.5 -> 0 | J19: ='PTRM input'!J151*(1+rvanilla04)^0.5 -> 0 | K19: ='PTRM input'!K151*(1+rvanilla05)^0.5 -> 0 | L19: ='PTRM input'!L151*(1+rvanilla06)^0.5 -> 0 | M19: ='PTRM input'!M151*(1+rvanilla07)^0.5 -> 0 | N19: ='PTRM input'!N151*(1+rvanilla08)^0.5 -> 0 | O19: ='PTRM input'!O151*(1+rvanilla09)^0.5 -> 0 | P19: ='PTRM input'!P151*(1+rvanilla10)^0.5 -> 0
C20: =Asset10 -> Old SWER ACRs | G20: ='PTRM input'!G152*(1+rvanilla01)^0.5 -> 0 | H20: ='PTRM input'!H152*(1+rvanilla02)^0.5 -> 0 | I20: ='PTRM input'!I152*(1+rvanilla03)^0.5 -> 0 | J20: ='PTRM input'!J152*(1+rvanilla04)^0.5 -> 0 | K20: ='PTRM input'!K152*(1+rvanilla05)^0.5 -> 0 | L20: ='PTRM input'!L152*(1+rvanilla06)^0.5 -> 0 | M20: ='PTRM input'!M152*(1+rvanilla07)^0.5 -> 0 | N20: ='PTRM input'!N152*(1+rvanilla08)^0.5 -> 0 | O20: ='PTRM input'!O152*(1+rvanilla09)^0.5 -> 0 | P20: ='PTRM input'!P152*(1+rvanilla10)^0.5 -> 0
C21: =Asset11 -> Land | G21: ='PTRM input'!G153*(1+rvanilla01)^0.5 -> 0.06971924379 | H21: ='PTRM input'!H153*(1+rvanilla02)^0.5 -> 0.1877230036 | I21: ='PTRM input'!I153*(1+rvanilla03)^0.5 -> 0.240072377 | J21: ='PTRM input'!J153*(1+rvanilla04)^0.5 -> 0.2201943456 | K21: ='PTRM input'!K153*(1+rvanilla05)^0.5 -> 0.3010531863 | L21: ='PTRM input'!L153*(1+rvanilla06)^0.5 -> 0 | M21: ='PTRM input'!M153*(1+rvanilla07)^0.5 -> 0 | N21: ='PTRM input'!N153*(1+rvanilla08)^0.5 -> 0 | O21: ='PTRM input'!O153*(1+rvanilla09)^0.5 -> 0 | P21: ='PTRM input'!P153*(1+rvanilla10)^0.5 -> 0
C22: =Asset12 -> 0 | G22: ='PTRM input'!G154*(1+rvanilla01)^0.5 -> 0 | H22: ='PTRM input'!H154*(1+rvanilla02)^0.5 -> 0 | I22: ='PTRM input'!I154*(1+rvanilla03)^0.5 -> 0 | J22: ='PTRM input'!J154*(1+rvanilla04)^0.5 -> 0 | K22: ='PTRM input'!K154*(1+rvanilla05)^0.5 -> 0 | L22: ='PTRM input'!L154*(1+rvanilla06)^0.5 -> 0 | M22: ='PTRM input'!M154*(1+rvanilla07)^0.5 -> 0 | N22: ='PTRM input'!N154*(1+rvanilla08)^0.5 -> 0 | O22: ='PTRM input'!O154*(1+rvanilla09)^0.5 -> 0 | P22: ='PTRM input'!P154*(1+rvanilla10)^0.5 -> 0
C23: =Asset13 -> 0 | G23: ='PTRM input'!G155*(1+rvanilla01)^0.5 -> 0 | H23: ='PTRM input'!H155*(1+rvanilla02)^0.5 -> 0 | I23: ='PTRM input'!I155*(1+rvanilla03)^0.5 -> 0 | J23: ='PTRM input'!J155*(1+rvanilla04)^0.5 -> 0 | K23: ='PTRM input'!K155*(1+rvanilla05)^0.5 -> 0 | L23: ='PTRM input'!L155*(1+rvanilla06)^0.5 -> 0 | M23: ='PTRM input'!M155*(1+rvanilla07)^0.5 -> 0 | N23: ='PTRM input'!N155*(1+rvanilla08)^0.5 -> 0 | O23: ='PTRM input'!O155*(1+rvanilla09)^0.5 -> 0 | P23: ='PTRM input'!P155*(1+rvanilla10)^0.5 -> 0
C24: =Asset14 -> 0 | G24: ='PTRM input'!G156*(1+rvanilla01)^0.5 -> 0 | H24: ='PTRM input'!H156*(1+rvanilla02)^0.5 -> 0 | I24: ='PTRM input'!I156*(1+rvanilla03)^0.5 -> 0 | J24: ='PTRM input'!J156*(1+rvanilla04)^0.5 -> 0 | K24: ='PTRM input'!K156*(1+rvanilla05)^0.5 -> 0 | L24: ='PTRM input'!L156*(1+rvanilla06)^0.5 -> 0 | M24: ='PTRM input'!M156*(1+rvanilla07)^0.5 -> 0 | N24: ='PTRM input'!N156*(1+rvanilla08)^0.5 -> 0 | O24: ='PTRM input'!O156*(1+rvanilla09)^0.5 -> 0 | P24: ='PTRM input'!P156*(1+rvanilla10)^0.5 -> 0
C25: =Asset15 -> 0 | G25: ='PTRM input'!G157*(1+rvanilla01)^0.5 -> 0 | H25: ='PTRM input'!H157*(1+rvanilla02)^0.5 -> 0 | I25: ='PTRM input'!I157*(1+rvanilla03)^0.5 -> 0 | J25: ='PTRM input'!J157*(1+rvanilla04)^0.5 -> 0 | K25: ='PTRM input'!K157*(1+rvanilla05)^0.5 -> 0 | L25: ='PTRM input'!L157*(1+rvanilla06)^0.5 -> 0 | M25: ='PTRM input'!M157*(1+rvanilla07)^0.5 -> 0 | N25: ='PTRM input'!N157*(1+rvanilla08)^0.5 -> 0 | O25: ='PTRM input'!O157*(1+rvanilla09)^0.5 -> 0 | P25: ='PTRM input'!P157*(1+rvanilla10)^0.5 -> 0
C26: =Asset16 -> 0 | G26: ='PTRM input'!G158*(1+rvanilla01)^0.5 -> 0 | H26: ='PTRM input'!H158*(1+rvanilla02)^0.5 -> 0 | I26: ='PTRM input'!I158*(1+rvanilla03)^0.5 -> 0 | J26: ='PTRM input'!J158*(1+rvanilla04)^0.5 -> 0 | K26: ='PTRM input'!K158*(1+rvanilla05)^0.5 -> 0 | L26: ='PTRM input'!L158*(1+rvanilla06)^0.5 -> 0 | M26: ='PTRM input'!M158*(1+rvanilla07)^0.5 -> 0 | N26: ='PTRM input'!N158*(1+rvanilla08)^0.5 -> 0 | O26: ='PTRM input'!O158*(1+rvanilla09)^0.5 -> 0 | P26: ='PTRM input'!P158*(1+rvanilla10)^0.5 -> 0
C27: =Asset17 -> 0 | G27: ='PTRM input'!G159*(1+rvanilla01)^0.5 -> 0 | H27: ='PTRM input'!H159*(1+rvanilla02)^0.5 -> 0 | I27: ='PTRM input'!I159*(1+rvanilla03)^0.5 -> 0 | J27: ='PTRM input'!J159*(1+rvanilla04)^0.5 -> 0 | K27: ='PTRM input'!K159*(1+rvanilla05)^0.5 -> 0 | L27: ='PTRM input'!L159*(1+rvanilla06)^0.5 -> 0 | M27: ='PTRM input'!M159*(1+rvanilla07)^0.5 -> 0 | N27: ='PTRM input'!N159*(1+rvanilla08)^0.5 -> 0 | O27: ='PTRM input'!O159*(1+rvanilla09)^0.5 -> 0 | P27: ='PTRM input'!P159*(1+rvanilla10)^0.5 -> 0
C28: =Asset18 -> 0 | G28: ='PTRM input'!G160*(1+rvanilla01)^0.5 -> 0 | H28: ='PTRM input'!H160*(1+rvanilla02)^0.5 -> 0 | I28: ='PTRM input'!I160*(1+rvanilla03)^0.5 -> 0 | J28: ='PTRM input'!J160*(1+rvanilla04)^0.5 -> 0 | K28: ='PTRM input'!K160*(1+rvanilla05)^0.5 -> 0 | L28: ='PTRM input'!L160*(1+rvanilla06)^0.5 -> 0 | M28: ='PTRM input'!M160*(1+rvanilla07)^0.5 -> 0 | N28: ='PTRM input'!N160*(1+rvanilla08)^0.5 -> 0 | O28: ='PTRM input'!O160*(1+rvanilla09)^0.5 -> 0 | P28: ='PTRM input'!P160*(1+rvanilla10)^0.5 -> 0
C29: =Asset19 -> 0 | G29: ='PTRM input'!G161*(1+rvanilla01)^0.5 -> 0 | H29: ='PTRM input'!H161*(1+rvanilla02)^0.5 -> 0 | I29: ='PTRM input'!I161*(1+rvanilla03)^0.5 -> 0 | J29: ='PTRM input'!J161*(1+rvanilla04)^0.5 -> 0 | K29: ='PTRM input'!K161*(1+rvanilla05)^0.5 -> 0 | L29: ='PTRM input'!L161*(1+rvanilla06)^0.5 -> 0 | M29: ='PTRM input'!M161*(1+rvanilla07)^0.5 -> 0 | N29: ='PTRM input'!N161*(1+rvanilla08)^0.5 -> 0 | O29: ='PTRM input'!O161*(1+rvanilla09)^0.5 -> 0 | P29: ='PTRM input'!P161*(1+rvanilla10)^0.5 -> 0
C30: =Asset20 -> 0 | G30: ='PTRM input'!G162*(1+rvanilla01)^0.5 -> 0 | H30: ='PTRM input'!H162*(1+rvanilla02)^0.5 -> 0 | I30: ='PTRM input'!I162*(1+rvanilla03)^0.5 -> 0 | J30: ='PTRM input'!J162*(1+rvanilla04)^0.5 -> 0 | K30: ='PTRM input'!K162*(1+rvanilla05)^0.5 -> 0 | L30: ='PTRM input'!L162*(1+rvanilla06)^0.5 -> 0 | M30: ='PTRM input'!M162*(1+rvanilla07)^0.5 -> 0 | N30: ='PTRM input'!N162*(1+rvanilla08)^0.5 -> 0 | O30: ='PTRM input'!O162*(1+rvanilla09)^0.5 -> 0 | P30: ='PTRM input'!P162*(1+rvanilla10)^0.5 -> 0
C31: =Asset21 -> 0 | G31: ='PTRM input'!G163*(1+rvanilla01)^0.5 -> 0 | H31: ='PTRM input'!H163*(1+rvanilla02)^0.5 -> 0 | I31: ='PTRM input'!I163*(1+rvanilla03)^0.5 -> 0 | J31: ='PTRM input'!J163*(1+rvanilla04)^0.5 -> 0 | K31: ='PTRM input'!K163*(1+rvanilla05)^0.5 -> 0 | L31: ='PTRM input'!L163*(1+rvanilla06)^0.5 -> 0 | M31: ='PTRM input'!M163*(1+rvanilla07)^0.5 -> 0 | N31: ='PTRM input'!N163*(1+rvanilla08)^0.5 -> 0 | O31: ='PTRM input'!O163*(1+rvanilla09)^0.5 -> 0 | P31: ='PTRM input'!P163*(1+rvanilla10)^0.5 -> 0
C32: =Asset22 -> 0 | G32: ='PTRM input'!G164*(1+rvanilla01)^0.5 -> 0 | H32: ='PTRM input'!H164*(1+rvanilla02)^0.5 -> 0 | I32: ='PTRM input'!I164*(1+rvanilla03)^0.5 -> 0 | J32: ='PTRM input'!J164*(1+rvanilla04)^0.5 -> 0 | K32: ='PTRM input'!K164*(1+rvanilla05)^0.5 -> 0 | L32: ='PTRM input'!L164*(1+rvanilla06)^0.5 -> 0 | M32: ='PTRM input'!M164*(1+rvanilla07)^0.5 -> 0 | N32: ='PTRM input'!N164*(1+rvanilla08)^0.5 -> 0 | O32: ='PTRM input'!O164*(1+rvanilla09)^0.5 -> 0 | P32: ='PTRM input'!P164*(1+rvanilla10)^0.5 -> 0
C33: =Asset23 -> 0 | G33: ='PTRM input'!G165*(1+rvanilla01)^0.5 -> 0 | H33: ='PTRM input'!H165*(1+rvanilla02)^0.5 -> 0 | I33: ='PTRM input'!I165*(1+rvanilla03)^0.5 -> 0 | J33: ='PTRM input'!J165*(1+rvanilla04)^0.5 -> 0 | K33: ='PTRM input'!K165*(1+rvanilla05)^0.5 -> 0 | L33: ='PTRM input'!L165*(1+rvanilla06)^0.5 -> 0 | M33: ='PTRM input'!M165*(1+rvanilla07)^0.5 -> 0 | N33: ='PTRM input'!N165*(1+rvanilla08)^0.5 -> 0 | O33: ='PTRM input'!O165*(1+rvanilla09)^0.5 -> 0 | P33: ='PTRM input'!P165*(1+rvanilla10)^0.5 -> 0
C34: =Asset24 -> 0 | G34: ='PTRM input'!G166*(1+rvanilla01)^0.5 -> 0 | H34: ='PTRM input'!H166*(1+rvanilla02)^0.5 -> 0 | I34: ='PTRM input'!I166*(1+rvanilla03)^0.5 -> 0 | J34: ='PTRM input'!J166*(1+rvanilla04)^0.5 -> 0 | K34: ='PTRM input'!K166*(1+rvanilla05)^0.5 -> 0 | L34: ='PTRM input'!L166*(1+rvanilla06)^0.5 -> 0 | M34: ='PTRM input'!M166*(1+rvanilla07)^0.5 -> 0 | N34: ='PTRM input'!N166*(1+rvanilla08)^0.5 -> 0 | O34: ='PTRM input'!O166*(1+rvanilla09)^0.5 -> 0 | P34: ='PTRM input'!P166*(1+rvanilla10)^0.5 -> 0
C35: =Asset25 -> 0 | G35: ='PTRM input'!G167*(1+rvanilla01)^0.5 -> 0 | H35: ='PTRM input'!H167*(1+rvanilla02)^0.5 -> 0 | I35: ='PTRM input'!I167*(1+rvanilla03)^0.5 -> 0 | J35: ='PTRM input'!J167*(1+rvanilla04)^0.5 -> 0 | K35: ='PTRM input'!K167*(1+rvanilla05)^0.5 -> 0 | L35: ='PTRM input'!L167*(1+rvanilla06)^0.5 -> 0 | M35: ='PTRM input'!M167*(1+rvanilla07)^0.5 -> 0 | N35: ='PTRM input'!N167*(1+rvanilla08)^0.5 -> 0 | O35: ='PTRM input'!O167*(1+rvanilla09)^0.5 -> 0 | P35: ='PTRM input'!P167*(1+rvanilla10)^0.5 -> 0
C36: =Asset26 -> 0 | G36: ='PTRM input'!G168*(1+rvanilla01)^0.5 -> 0 | H36: ='PTRM input'!H168*(1+rvanilla02)^0.5 -> 0 | I36: ='PTRM input'!I168*(1+rvanilla03)^0.5 -> 0 | J36: ='PTRM input'!J168*(1+rvanilla04)^0.5 -> 0 | K36: ='PTRM input'!K168*(1+rvanilla05)^0.5 -> 0 | L36: ='PTRM input'!L168*(1+rvanilla06)^0.5 -> 0 | M36: ='PTRM input'!M168*(1+rvanilla07)^0.5 -> 0 | N36: ='PTRM input'!N168*(1+rvanilla08)^0.5 -> 0 | O36: ='PTRM input'!O168*(1+rvanilla09)^0.5 -> 0 | P36: ='PTRM input'!P168*(1+rvanilla10)^0.5 -> 0
C37: =Asset27 -> 0 | G37: ='PTRM input'!G169*(1+rvanilla01)^0.5 -> 0 | H37: ='PTRM input'!H169*(1+rvanilla02)^0.5 -> 0 | I37: ='PTRM input'!I169*(1+rvanilla03)^0.5 -> 0 | J37: ='PTRM input'!J169*(1+rvanilla04)^0.5 -> 0 | K37: ='PTRM input'!K169*(1+rvanilla05)^0.5 -> 0 | L37: ='PTRM input'!L169*(1+rvanilla06)^0.5 -> 0 | M37: ='PTRM input'!M169*(1+rvanilla07)^0.5 -> 0 | N37: ='PTRM input'!N169*(1+rvanilla08)^0.5 -> 0 | O37: ='PTRM input'!O169*(1+rvanilla09)^0.5 -> 0 | P37: ='PTRM input'!P169*(1+rvanilla10)^0.5 -> 0
C38: =Asset28 -> 0 | G38: ='PTRM input'!G170*(1+rvanilla01)^0.5 -> 0 | H38: ='PTRM input'!H170*(1+rvanilla02)^0.5 -> 0 | I38: ='PTRM input'!I170*(1+rvanilla03)^0.5 -> 0 | J38: ='PTRM input'!J170*(1+rvanilla04)^0.5 -> 0 | K38: ='PTRM input'!K170*(1+rvanilla05)^0.5 -> 0 | L38: ='PTRM input'!L170*(1+rvanilla06)^0.5 -> 0 | M38: ='PTRM input'!M170*(1+rvanilla07)^0.5 -> 0 | N38: ='PTRM input'!N170*(1+rvanilla08)^0.5 -> 0 | O38: ='PTRM input'!O170*(1+rvanilla09)^0.5 -> 0 | P38: ='PTRM input'!P170*(1+rvanilla10)^0.5 -> 0
C39: =Asset29 -> 0 | G39: ='PTRM input'!G171*(1+rvanilla01)^0.5 -> 0 | H39: ='PTRM input'!H171*(1+rvanilla02)^0.5 -> 0 | I39: ='PTRM input'!I171*(1+rvanilla03)^0.5 -> 0 | J39: ='PTRM input'!J171*(1+rvanilla04)^0.5 -> 0 | K39: ='PTRM input'!K171*(1+rvanilla05)^0.5 -> 0 | L39: ='PTRM input'!L171*(1+rvanilla06)^0.5 -> 0 | M39: ='PTRM input'!M171*(1+rvanilla07)^0.5 -> 0 | N39: ='PTRM input'!N171*(1+rvanilla08)^0.5 -> 0 | O39: ='PTRM input'!O171*(1+rvanilla09)^0.5 -> 0 | P39: ='PTRM input'!P171*(1+rvanilla10)^0.5 -> 0
C40: =Asset30 -> Equity raising costs | G40: ='PTRM input'!G172*(1+rvanilla01)^0.5 -> 13.18805789 | H40: ='PTRM input'!H172*(1+rvanilla02)^0.5 -> 0 | I40: ='PTRM input'!I172*(1+rvanilla03)^0.5 -> 0 | J40: ='PTRM input'!J172*(1+rvanilla04)^0.5 -> 0 | K40: ='PTRM input'!K172*(1+rvanilla05)^0.5 -> 0 | L40: ='PTRM input'!L172*(1+rvanilla06)^0.5 -> 0 | M40: ='PTRM input'!M172*(1+rvanilla07)^0.5 -> 0 | N40: ='PTRM input'!N172*(1+rvanilla08)^0.5 -> 0 | O40: ='PTRM input'!O172*(1+rvanilla09)^0.5 -> 0 | P40: ='PTRM input'!P172*(1+rvanilla10)^0.5 -> 0
B41: Nominal Net Capex | G41: =SUM(G42:G71) -> 363.84458 | H41: =SUM(H42:H71) -> 406.0333275 | I41: 445.2031538 | J41: 404.7221716 | K41: 357.8220878 | L41: 0 | M41: 0 | N41: 0 | O41: 0 | P41: 0
C42: =Asset1 -> Subtransmission | G42: =G11*G$7 -> 36.93609835 | H42: =H11*H$7 -> 40.16533493 | I42: 38.33323706 | J42: 40.89772588 | K42: 42.32748665 | L42: 0 | M42: 0 | N42: 0 | O42: 0 | P42: 0
C43: =Asset2 -> Distribution system assets | G43: 237.6869776 | H43: =H12*H$7 -> 273.9710685 | I43: 292.6480942 | J43: 268.8240881 | K43: 251.6457254 | L43: 0 | M43: 0 | N43: 0 | O43: 0 | P43: 0
C44: =Asset3 -> Standard metering | G44: 0 | H44: =H13*H$7 -> 0 | I44: 0 | J44: =J13*J$7 -> 0 | K44: 0 | L44: 0 | M44: 0 | N44: 0 | O44: 0 | P44: 0
C45: =Asset4 -> Public lighting | G45: 0 | H45: =H14*H$7 -> 0 | I45: =I14*I$7 -> 0 | J45: 0 | K45: 0 | L45: 0 | M45: 0 | N45: 0 | O45: 0 | P45: 0
C46: =Asset5 -> SCADA/Network control | G46: 6.196573398 | H46: =H15*H$7 -> 19.41021352 | I46: 49.9129662 | J46: 35.2866809 | K46: 9.327704961 | L46: 0 | M46: 0 | N46: 0 | O46: 0 | P46: 0
C47: =Asset6 -> Non-network general assets - IT | G47: 41.51375943 | H47: =H16*H$7 -> 42.32147344 | I47: 36.54441941 | J47: 27.83178415 | K47: 21.79619061 | L47: 0 | M47: 0 | N47: 0 | O47: 0 | P47: 0
C48: =Asset7 -> Non-network general assets - Other | G48: 15.67691991 | H48: =H17*H$7 -> 16.0292474 | I48: 16.4263473 | J48: 16.87099907 | K48: 17.33600944 | L48: 0 | M48: 0 | N48: 0 | O48: 0 | P48: 0
C49: =Asset8 -> VBRC | G49: 12.26498306 | H49: =H18*H$7 -> 13.939342 | I49: 11.08069506 | J49: 14.76926451 | K49: 15.05085005 | L49: 0 | M49: 0 | N49: 0 | O49: 0 | P49: 0
C50: =Asset9 -> Supervisory cables | G50: 0 | H50: =H19*H$7 -> 0 | I50: 0 | J50: 0 | K50: 0 | L50: 0 | M50: 0 | N50: 0 | O50: 0 | P50: 0
C51: =Asset10 -> Old SWER ACRs | G51: 0 | H51: =H20*H$7 -> 0 | I51: 0 | J51: 0 | K51: 0 | L51: 0 | M51: 0 | N51: 0 | O51: 0 | P51: 0
C52: =Asset11 -> Land | G52: 0.07135729551 | H52: =H21*H$7 -> 0.1966477229 | I52: 0.2573945421 | J52: 0.2416289781 | K52: 0.338120729 | L52: 0 | M52: 0 | N52: 0 | O52: 0 | P52: 0
C53: =Asset12 -> 0 | G53: 0 | H53: =H22*H$7 -> 0 | I53: 0 | J53: 0 | K53: 0 | L53: 0 | M53: 0 | N53: 0 | O53: 0 | P53: 0
C54: =Asset13 -> 0 | G54: 0 | H54: =H23*H$7 -> 0 | I54: 0 | J54: 0 | K54: 0 | L54: 0 | M54: 0 | N54: 0 | O54: 0 | P54: 0
C55: =Asset14 -> 0 | G55: 0 | H55: =H24*H$7 -> 0 | I55: 0 | J55: 0 | K55: 0 | L55: 0 | M55: 0 | N55: 0 | O55: 0 | P55: 0
C56: =Asset15 -> 0 | G56: 0 | H56: =H25*H$7 -> 0 | I56: 0 | J56: 0 | K56: 0 | L56: 0 | M56: 0 | N56: 0 | O56: 0 | P56: 0
C57: =Asset16 -> 0 | G57: 0 | H57: =H26*H$7 -> 0 | I57: 0 | J57: 0 | K57: =K26*K$7 -> 0 | L57: 0 | M57: 0 | N57: 0 | O57: 0 | P57: 0
C58: =Asset17 -> 0 | G58: 0 | H58: =H27*H$7 -> 0 | I58: 0 | J58: 0 | K58: 0 | L58: 0 | M58: 0 | N58: 0 | O58: 0 | P58: 0
C59: =Asset18 -> 0 | G59: 0 | H59: =H28*H$7 -> 0 | I59: 0 | J59: 0 | K59: 0 | L59: 0 | M59: 0 | N59: 0 | O59: 0 | P59: 0
C60: =Asset19 -> 0 | G60: 0 | H60: =H29*H$7 -> 0 | I60: 0 | J60: 0 | K60: 0 | L60: 0 | M60: 0 | N60: 0 | O60: 0 | P60: 0
C61: =Asset20 -> 0 | G61: 0 | H61: =H30*H$7 -> 0 | I61: 0 | J61: 0 | K61: 0 | L61: 0 | M61: 0 | N61: 0 | O61: 0 | P61: 0
C62: =Asset21 -> 0 | G62: 0 | H62: =H31*H$7 -> 0 | I62: 0 | J62: 0 | K62: 0 | L62: 0 | M62: 0 | N62: 0 | O62: 0 | P62: 0
C63: =Asset22 -> 0 | G63: 0 | H63: =H32*H$7 -> 0 | I63: 0 | J63: 0 | K63: 0 | L63: 0 | M63: 0 | N63: 0 | O63: 0 | P63: 0
C64: =Asset23 -> 0 | G64: 0 | H64: =H33*H$7 -> 0 | I64: 0 | J64: 0 | K64: 0 | L64: 0 | M64: 0 | N64: 0 | O64: 0 | P64: 0
C65: =Asset24 -> 0 | G65: 0 | H65: =H34*H$7 -> 0 | I65: 0 | J65: 0 | K65: 0 | L65: 0 | M65: 0 | N65: 0 | O65: 0 | P65: 0
C66: =Asset25 -> 0 | G66: 0 | H66: =H35*H$7 -> 0 | I66: 0 | J66: 0 | K66: 0 | L66: 0 | M66: 0 | N66: 0 | O66: 0 | P66: 0
C67: =Asset26 -> 0 | G67: 0 | H67: =H36*H$7 -> 0 | I67: 0 | J67: 0 | K67: 0 | L67: 0 | M67: 0 | N67: 0 | O67: 0 | P67: 0
C68: =Asset27 -> 0 | G68: 0 | H68: =H37*H$7 -> 0 | I68: 0 | J68: 0 | K68: 0 | L68: 0 | M68: 0 | N68: 0 | O68: 0 | P68: 0
C69: =Asset28 -> 0 | G69: 0 | H69: =H38*H$7 -> 0 | I69: 0 | J69: 0 | K69: 0 | L69: 0 | M69: 0 | N69: 0 | O69: 0 | P69: 0
C70: =Asset29 -> 0 | G70: =G39*G$7 -> 0 | H70: 0 | I70: 0 | J70: 0 | K70: 0 | L70: 0 | M70: 0 | N70: 0 | O70: 0 | P70: 0
C71: =Asset30 -> Equity raising costs | G71: =G40*G$7 -> 13.49791095 | H71: 0 | I71: 0 | J71: 0 | K71: 0 | L71: 0 | M71: 0 | N71: 0 | O71: 0 | P71: 0
B73: ="Asset Values ($m Real "&F4&")" -> Asset Values ($m Real 2015)
B75: Real Straight-line Depreciation | G75: =G88+G101+G114+G127+G140+G153+G166+G179+G192+G205+G218+G231+G244+G257+G270+G283+G296+G309+G322+G335+G348+G361+G374+G387+G400+G413+G426+G439+G452+G465 -> 182.9739581 | H75: =H88+H101+H114+H127+H140+H153+H166+H179+H192+H205+H218+H231+H244+H257+H270+H283+H296+H309+H322+H335+H348+H361+H374+H387+H400+H413+H426+H439+H452+H465 -> 173.8026785 | I75: =I88+I101+I114+I127+I140+I153+I166+I179+I192+I205+I218+I231+I244+I257+I270+I283+I296+I309+I322+I335+I348+I361+I374+I387+I400+I413+I426+I439+I452+I465 -> 186.9983029 | J75: 204.8076866 | K75: 211.2216606 | L75: 198.3933939 | M75: 190.6214126 | N75: 183.8612818 | O75: 175.9685787 | P75: 169.7357226 | Q75: 166.1336641 | R75: 161.6491246 | S75: 160.8764182 | T75: 159.9223649 | U75: 157.507392 | V75: 154.1836893 | W75: 149.5814823 | X75: 146.0877919 | Y75: 144.4275437 | Z75: 143.4025843 | AA75: 112.4313266 | AB75: 61.95770552 | AC75: 58.2866403 | AD75: 57.64514471 | AE75: 56.33010978 | AF75: 54.85264483 | AG75: 54.09987418 | AH75: 53.6115336 | AI75: 53.13756869 | AJ75: 52.68590963 | AK75: 52.16118656 | AL75: 51.8439369 | AM75: 51.8439369 | AN75: 51.8439369 | AO75: 51.8439369 | AP75: 51.8439369 | AQ75: 51.8439369 | AR75: 51.8439369 | AS75: 51.8439369 | AT75: 51.8439369 | AU75: 51.8439369 | AV75: 51.73488002 | AW75: 51.7098226 | AX75: 51.48599254 | AY75: 51.39791823 | AZ75: 51.77479609 | BA75: 50.60889293 | BB75: 46.77053751 | BC75: 40.51069534 | BD75: 36.91721764 | BE75: 31.53816249 | BF75: 27.21157765 | BG75: 21.89118487 | BH75: 16.04793711 | BI75: 9.950514337
B76: =C88 -> Subtransmission | D76: Initial Asset Base | G76: 12.65508639 | H76: 12.65508639 | I76: 12.65508639 | J76: 12.65508639 | K76: 12.65508639 | L76: 12.65508639 | M76: 12.65508639 | N76: 12.65508639 | O76: 12.65508639 | P76: 12.65508639 | Q76: 12.65508639 | R76: 12.65508639 | S76: 12.65508639 | T76: 12.65508639 | U76: 12.65508639 | V76: 12.65508639 | W76: 12.65508639 | X76: 12.65508639 | Y76: 12.65508639 | Z76: 12.65508639 | AA76: 12.65508639 | AB76: 8.272754362 | AC76: 4.767264611 | AD76: 4.767264611 | AE76: 4.767264611 | AF76: 4.767264611 | AG76: 4.767264611 | AH76: 4.767264611 | AI76: 4.767264611 | AJ76: 4.767264611 | AK76: 4.767264611 | AL76: 4.767264611 | AM76: 4.767264611 | AN76: 4.767264611 | AO76: 4.767264611 | AP76: 4.767264611 | AQ76: 4.767264611 | AR76: 4.767264611 | AS76: 4.767264611 | AT76: 4.767264611 | AU76: 4.767264611 | AV76: 4.767264611 | AW76: 4.767264611 | AX76: 4.767264611 | AY76: 4.767264611 | AZ76: 5.144142475 | BA76: 3.900161249 | BB76: 3.188799412 | BC76: 1.184595679 | BD76: 0.7732825787 | BE76: 0 | BF76: 0 | BG76: 0 | BH76: 0 | BI76: 0
D77: Capex in year | E77: 0
E78: 1 | H78: =IF(A1stdlife="n/a","n/a",IF(H$3>(A1stdlife+$E78),('PTRM input'!$G$143*(1+rvanilla01)^0.5)-SUM($G78:G78),('PTRM input'!$G$143*(1+rvanilla01)^0.5)/A1stdlife)) -> 0.7217641384 | I78: =IF(A1stdlife="n/a","n/a",IF(I$3>(A1stdlife+$E78),('PTRM input'!$G$143*(1+rvanilla01)^0.5)-SUM($G78:H78),('PTRM input'!$G$143*(1+rvanilla01)^0.5)/A1stdlife)) -> 0.7217641384 | J78: =IF(A1stdlife="n/a","n/a",IF(J$3>(A1stdlife+$E78),('PTRM input'!$G$143*(1+rvanilla01)^0.5)-SUM($G78:I78),('PTRM input'!$G$143*(1+rvanilla01)^0.5)/A1stdlife)) -> 0.7217641384 | K78: =IF(A1stdlife="n/a","n/a",IF(K$3>(A1stdlife+$E78),('PTRM input'!$G$143*(1+rvanilla01)^0.5)-SUM($G78:J78),('PTRM input'!$G$143*(1+rvanilla01)^0.5)/A1stdlife)) -> 0.7217641384 | L78: =IF(A1stdlife="n/a","n/a",IF(L$3>(A1stdlife+$E78),('PTRM input'!$G$143*(1+rvanilla01)^0.5)-SUM($G78:K78),('PTRM input'!$G$143*(1+rvanilla01)^0.5)/A1stdlife)) -> 0.7217641384 | M78: =IF(A1stdlife="n/a","n/a",IF(M$3>(A1stdlife+$E78),('PTRM input'!$G$143*(1+rvanilla01)^0.5)-SUM($G78:L78),('PTRM input'!$G$143*(1+rvanilla01)^0.5)/A1stdlife)) -> 0.7217641384 | N78: =IF(A1stdlife="n/a","n/a",IF(N$3>(A1stdlife+$E78),('PTRM input'!$G$143*(1+rvanilla01)^0.5)-SUM($G78:M78),('PTRM input'!$G$143*(1+rvanilla01)^0.5)/A1stdlife)) -> 0.7217641384 | O78: =IF(A1stdlife="n/a","n/a",IF(O$3>(A1stdlife+$E78),('PTRM input'!$G$143*(1+rvanilla01)^0.5)-SUM($G78:N78),('PTRM input'!$G$143*(1+rvanilla01)^0.5)/A1stdlife)) -> 0.7217641384 | P78: =IF(A1stdlife="n/a","n/a",IF(P$3>(A1stdlife+$E78),('PTRM input'!$G$143*(1+rvanilla01)^0.5)-SUM($G78:O78),('PTRM input'!$G$143*(1+rvanilla01)^0.5)/A1stdlife)) -> 0.7217641384 | Q78: =IF(A1stdlife="n/a","n/a",IF(Q$3>(A1stdlife+$E78),('PTRM input'!$G$143*(1+rvanilla01)^0.5)-SUM($G78:P78),('PTRM input'!$G$143*(1+rvanilla01)^0.5)/A1stdlife)) -> 0.7217641384 | R78: =IF(A1stdlife="n/a","n/a",IF(R$3>(A1stdlife+$E78),('PTRM input'!$G$143*(1+rvanilla01)^0.5)-SUM($G78:Q78),('PTRM input'!$G$143*(1+rvanilla01)^0.5)/A1stdlife)) -> 0.7217641384 | S78: =IF(A1stdlife="n/a","n/a",IF(S$3>(A1stdlife+$E78),('PTRM input'!$G$143*(1+rvanilla01)^0.5)-SUM($G78:R78),('PTRM input'!$G$143*(1+rvanilla01)^0.5)/A1stdlife)) -> 0.7217641384 | T78: =IF(A1stdlife="n/a","n/a",IF(T$3>(A1stdlife+$E78),('PTRM input'!$G$143*(1+rvanilla01)^0.5)-SUM($G78:S78),('PTRM input'!$G$143*(1+rvanilla01)^0.5)/A1stdlife)) -> 0.7217641384 | U78: =IF(A1stdlife="n/a","n/a",IF(U$3>(A1stdlife+$E78),('PTRM input'!$G$143*(1+rvanilla01)^0.5)-SUM($G78:T78),('PTRM input'!$G$143*(1+rvanilla01)^0.5)/A1stdlife)) -> 0.7217641384 | V78: =IF(A1stdlife="n/a","n/a",IF(V$3>(A1stdlife+$E78),('PTRM input'!$G$143*(1+rvanilla01)^0.5)-SUM($G78:U78),('PTRM input'!$G$143*(1+rvanilla01)^0.5)/A1stdlife)) -> 0.7217641384 | W78: =IF(A1stdlife="n/a","n/a",IF(W$3>(A1stdlife+$E78),('PTRM input'!$G$143*(1+rvanilla01)^0.5)-SUM($G78:V78),('PTRM input'!$G$143*(1+rvanilla01)^0.5)/A1stdlife)) -> 0.7217641384 | X78: =IF(A1stdlife="n/a","n/a",IF(X$3>(A1stdlife+$E78),('PTRM input'!$G$143*(1+rvanilla01)^0.5)-SUM($G78:W78),('PTRM input'!$G$143*(1+rvanilla01)^0.5)/A1stdlife)) -> 0.7217641384 | Y78: =IF(A1stdlife="n/a","n/a",IF(Y$3>(A1stdlife+$E78),('PTRM input'!$G$143*(1+rvanilla01)^0.5)-SUM($G78:X78),('PTRM input'!$G$143*(1+rvanilla01)^0.5)/A1stdlife)) -> 0.7217641384 | Z78: =IF(A1stdlife="n/a","n/a",IF(Z$3>(A1stdlife+$E78),('PTRM input'!$G$143*(1+rvanilla01)^0.5)-SUM($G78:Y78),('PTRM input'!$G$143*(1+rvanilla01)^0.5)/A1stdlife)) -> 0.7217641384 | AA78: =IF(A1stdlife="n/a","n/a",IF(AA$3>(A1stdlife+$E78),('PTRM input'!$G$143*(1+rvanilla01)^0.5)-SUM($G78:Z78),('PTRM input'!$G$143*(1+rvanilla01)^0.5)/A1stdlife)) -> 0.7217641384 | AB78: =IF(A1stdlife="n/a","n/a",IF(AB$3>(A1stdlife+$E78),('PTRM input'!$G$143*(1+rvanilla01)^0.5)-SUM($G78:AA78),('PTRM input'!$G$143*(1+rvanilla01)^0.5)/A1stdlife)) -> 0.7217641384 | AC78: =IF(A1stdlife="n/a","n/a",IF(AC$3>(A1stdlife+$E78),('PTRM input'!$G$143*(1+rvanilla01)^0.5)-SUM($G78:AB78),('PTRM input'!$G$143*(1+rvanilla01)^0.5)/A1stdlife)) -> 0.7217641384 | AD78: =IF(A1stdlife="n/a","n/a",IF(AD$3>(A1stdlife+$E78),('PTRM input'!$G$143*(1+rvanilla01)^0.5)-SUM($G78:AC78),('PTRM input'!$G$143*(1+rvanilla01)^0.5)/A1stdlife)) -> 0.7217641384 | AE78: =IF(A1stdlife="n/a","n/a",IF(AE$3>(A1stdlife+$E78),('PTRM input'!$G$143*(1+rvanilla01)^0.5)-SUM($G78:AD78),('PTRM input'!$G$143*(1+rvanilla01)^0.5)/A1stdlife)) -> 0.7217641384 | AF78: =IF(A1stdlife="n/a","n/a",IF(AF$3>(A1stdlife+$E78),('PTRM input'!$G$143*(1+rvanilla01)^0.5)-SUM($G78:AE78),('PTRM input'!$G$143*(1+rvanilla01)^0.5)/A1stdlife)) -> 0.7217641384 | AG78: =IF(A1stdlife="n/a","n/a",IF(AG$3>(A1stdlife+$E78),('PTRM input'!$G$143*(1+rvanilla01)^0.5)-SUM($G78:AF78),('PTRM input'!$G$143*(1+rvanilla01)^0.5)/A1stdlife)) -> 0.7217641384 | AH78: =IF(A1stdlife="n/a","n/a",IF(AH$3>(A1stdlife+$E78),('PTRM input'!$G$143*(1+rvanilla01)^0.5)-SUM($G78:AG78),('PTRM input'!$G$143*(1+rvanilla01)^0.5)/A1stdlife)) -> 0.7217641384 | AI78: =IF(A1stdlife="n/a","n/a",IF(AI$3>(A1stdlife+$E78),('PTRM input'!$G$143*(1+rvanilla01)^0.5)-SUM($G78:AH78),('PTRM input'!$G$143*(1+rvanilla01)^0.5)/A1stdlife)) -> 0.7217641384 | AJ78: =IF(A1stdlife="n/a","n/a",IF(AJ$3>(A1stdlife+$E78),('PTRM input'!$G$143*(1+rvanilla01)^0.5)-SUM($G78:AI78),('PTRM input'!$G$143*(1+rvanilla01)^0.5)/A1stdlife)) -> 0.7217641384 | AK78: =IF(A1stdlife="n/a","n/a",IF(AK$3>(A1stdlife+$E78),('PTRM input'!$G$143*(1+rvanilla01)^0.5)-SUM($G78:AJ78),('PTRM input'!$G$143*(1+rvanilla01)^0.5)/A1stdlife)) -> 0.7217641384 | AL78: =IF(A1stdlife="n/a","n/a",IF(AL$3>(A1stdlife+$E78),('PTRM input'!$G$143*(1+rvanilla01)^0.5)-SUM($G78:AK78),('PTRM input'!$G$143*(1+rvanilla01)^0.5)/A1stdlife)) -> 0.7217641384 | AM78: =IF(A1stdlife="n/a","n/a",IF(AM$3>(A1stdlife+$E78),('PTRM input'!$G$143*(1+rvanilla01)^0.5)-SUM($G78:AL78),('PTRM input'!$G$143*(1+rvanilla01)^0.5)/A1stdlife)) -> 0.7217641384 | AN78: =IF(A1stdlife="n/a","n/a",IF(AN$3>(A1stdlife+$E78),('PTRM input'!$G$143*(1+rvanilla01)^0.5)-SUM($G78:AM78),('PTRM input'!$G$143*(1+rvanilla01)^0.5)/A1stdlife)) -> 0.7217641384 | AO78: =IF(A1stdlife="n/a","n/a",IF(AO$3>(A1stdlife+$E78),('PTRM input'!$G$143*(1+rvanilla01)^0.5)-SUM($G78:AN78),('PTRM input'!$G$143*(1+rvanilla01)^0.5)/A1stdlife)) -> 0.7217641384 | AP78: =IF(A1stdlife="n/a","n/a",IF(AP$3>(A1stdlife+$E78),('PTRM input'!$G$143*(1+rvanilla01)^0.5)-SUM($G78:AO78),('PTRM input'!$G$143*(1+rvanilla01)^0.5)/A1stdlife)) -> 0.7217641384 | AQ78: =IF(A1stdlife="n/a","n/a",IF(AQ$3>(A1stdlife+$E78),('PTRM input'!$G$143*(1+rvanilla01)^0.5)-SUM($G78:AP78),('PTRM input'!$G$143*(1+rvanilla01)^0.5)/A1stdlife)) -> 0.7217641384 | AR78: =IF(A1stdlife="n/a","n/a",IF(AR$3>(A1stdlife+$E78),('PTRM input'!$G$143*(1+rvanilla01)^0.5)-SUM($G78:AQ78),('PTRM input'!$G$143*(1+rvanilla01)^0.5)/A1stdlife)) -> 0.7217641384 | AS78: =IF(A1stdlife="n/a","n/a",IF(AS$3>(A1stdlife+$E78),('PTRM input'!$G$143*(1+rvanilla01)^0.5)-SUM($G78:AR78),('PTRM input'!$G$143*(1+rvanilla01)^0.5)/A1stdlife)) -> 0.7217641384 | AT78: =IF(A1stdlife="n/a","n/a",IF(AT$3>(A1stdlife+$E78),('PTRM input'!$G$143*(1+rvanilla01)^0.5)-SUM($G78:AS78),('PTRM input'!$G$143*(1+rvanilla01)^0.5)/A1stdlife)) -> 0.7217641384 | AU78: =IF(A1stdlife="n/a","n/a",IF(AU$3>(A1stdlife+$E78),('PTRM input'!$G$143*(1+rvanilla01)^0.5)-SUM($G78:AT78),('PTRM input'!$G$143*(1+rvanilla01)^0.5)/A1stdlife)) -> 0.7217641384 | AV78: =IF(A1stdlife="n/a","n/a",IF(AV$3>(A1stdlife+$E78),('PTRM input'!$G$143*(1+rvanilla01)^0.5)-SUM($G78:AU78),('PTRM input'!$G$143*(1+rvanilla01)^0.5)/A1stdlife)) -> 0.7217641384 | AW78: =IF(A1stdlife="n/a","n/a",IF(AW$3>(A1stdlife+$E78),('PTRM input'!$G$143*(1+rvanilla01)^0.5)-SUM($G78:AV78),('PTRM input'!$G$143*(1+rvanilla01)^0.5)/A1stdlife)) -> 0.7217641384 | AX78: =IF(A1stdlife="n/a","n/a",IF(AX$3>(A1stdlife+$E78),('PTRM input'!$G$143*(1+rvanilla01)^0.5)-SUM($G78:AW78),('PTRM input'!$G$143*(1+rvanilla01)^0.5)/A1stdlife)) -> 0.7217641384 | AY78: =IF(A1stdlife="n/a","n/a",IF(AY$3>(A1stdlife+$E78),('PTRM input'!$G$143*(1+rvanilla01)^0.5)-SUM($G78:AX78),('PTRM input'!$G$143*(1+rvanilla01)^0.5)/A1stdlife)) -> 0.7217641384 | AZ78: =IF(A1stdlife="n/a","n/a",IF(AZ$3>(A1stdlife+$E78),('PTRM input'!$G$143*(1+rvanilla01)^0.5)-SUM($G78:AY78),('PTRM input'!$G$143*(1+rvanilla01)^0.5)/A1stdlife)) -> 0.7217641384 | BA78: =IF(A1stdlife="n/a","n/a",IF(BA$3>(A1stdlife+$E78),('PTRM input'!$G$143*(1+rvanilla01)^0.5)-SUM($G78:AZ78),('PTRM input'!$G$143*(1+rvanilla01)^0.5)/A1stdlife)) -> 0.7217641384 | BB78: =IF(A1stdlife="n/a","n/a",IF(BB$3>(A1stdlife+$E78),('PTRM input'!$G$143*(1+rvanilla01)^0.5)-SUM($G78:BA78),('PTRM input'!$G$143*(1+rvanilla01)^0.5)/A1stdlife)) -> 0.7217641384 | BC78: =IF(A1stdlife="n/a","n/a",IF(BC$3>(A1stdlife+$E78),('PTRM input'!$G$143*(1+rvanilla01)^0.5)-SUM($G78:BB78),('PTRM input'!$G$143*(1+rvanilla01)^0.5)/A1stdlife)) -> 0.7217641384 | BD78: =IF(A1stdlife="n/a","n/a",IF(BD$3>(A1stdlife+$E78),('PTRM input'!$G$143*(1+rvanilla01)^0.5)-SUM($G78:BC78),('PTRM input'!$G$143*(1+rvanilla01)^0.5)/A1stdlife)) -> 0.7217641384 | BE78: =IF(A1stdlife="n/a","n/a",IF(BE$3>(A1stdlife+$E78),('PTRM input'!$G$143*(1+rvanilla01)^0.5)-SUM($G78:BD78),('PTRM input'!$G$143*(1+rvanilla01)^0.5)/A1stdlife)) -> 0.7217641384 | BF78: =IF(A1stdlife="n/a","n/a",IF(BF$3>(A1stdlife+$E78),('PTRM input'!$G$143*(1+rvanilla01)^0.5)-SUM($G78:BE78),('PTRM input'!$G$143*(1+rvanilla01)^0.5)/A1stdlife)) -> 1.421085472e-14 | BG78: =IF(A1stdlife="n/a","n/a",IF(BG$3>(A1stdlife+$E78),('PTRM input'!$G$143*(1+rvanilla01)^0.5)-SUM($G78:BF78),('PTRM input'!$G$143*(1+rvanilla01)^0.5)/A1stdlife)) -> 0 | BH78: =IF(A1stdlife="n/a","n/a",IF(BH$3>(A1stdlife+$E78),('PTRM input'!$G$143*(1+rvanilla01)^0.5)-SUM($G78:BG78),('PTRM input'!$G$143*(1+rvanilla01)^0.5)/A1stdlife)) -> 0 | BI78: =IF(A1stdlife="n/a","n/a",IF(BI$3>(A1stdlife+$E78),('PTRM input'!$G$143*(1+rvanilla01)^0.5)-SUM($G78:BH78),('PTRM input'!$G$143*(1+rvanilla01)^0.5)/A1stdlife)) -> 0
E79: 2 | I79: =IF(A1stdlife="n/a","n/a",IF(I$3>(A1stdlife+$E79),('PTRM input'!$H$143*(1+rvanilla02)^0.5)-SUM($H79:H79),('PTRM input'!$H$143*(1+rvanilla02)^0.5)/A1stdlife)) -> 0.7668491863 | J79: =IF(A1stdlife="n/a","n/a",IF(J$3>(A1stdlife+$E79),('PTRM input'!$H$143*(1+rvanilla02)^0.5)-SUM($H79:I79),('PTRM input'!$H$143*(1+rvanilla02)^0.5)/A1stdlife)) -> 0.7668491863 | K79: =IF(A1stdlife="n/a","n/a",IF(K$3>(A1stdlife+$E79),('PTRM input'!$H$143*(1+rvanilla02)^0.5)-SUM($H79:J79),('PTRM input'!$H$143*(1+rvanilla02)^0.5)/A1stdlife)) -> 0.7668491863 | L79: =IF(A1stdlife="n/a","n/a",IF(L$3>(A1stdlife+$E79),('PTRM input'!$H$143*(1+rvanilla02)^0.5)-SUM($H79:K79),('PTRM input'!$H$143*(1+rvanilla02)^0.5)/A1stdlife)) -> 0.7668491863 | M79: =IF(A1stdlife="n/a","n/a",IF(M$3>(A1stdlife+$E79),('PTRM input'!$H$143*(1+rvanilla02)^0.5)-SUM($H79:L79),('PTRM input'!$H$143*(1+rvanilla02)^0.5)/A1stdlife)) -> 0.7668491863 | N79: =IF(A1stdlife="n/a","n/a",IF(N$3>(A1stdlife+$E79),('PTRM input'!$H$143*(1+rvanilla02)^0.5)-SUM($H79:M79),('PTRM input'!$H$143*(1+rvanilla02)^0.5)/A1stdlife)) -> 0.7668491863 | O79: =IF(A1stdlife="n/a","n/a",IF(O$3>(A1stdlife+$E79),('PTRM input'!$H$143*(1+rvanilla02)^0.5)-SUM($H79:N79),('PTRM input'!$H$143*(1+rvanilla02)^0.5)/A1stdlife)) -> 0.7668491863 | P79: =IF(A1stdlife="n/a","n/a",IF(P$3>(A1stdlife+$E79),('PTRM input'!$H$143*(1+rvanilla02)^0.5)-SUM($H79:O79),('PTRM input'!$H$143*(1+rvanilla02)^0.5)/A1stdlife)) -> 0.7668491863 | Q79: =IF(A1stdlife="n/a","n/a",IF(Q$3>(A1stdlife+$E79),('PTRM input'!$H$143*(1+rvanilla02)^0.5)-SUM($H79:P79),('PTRM input'!$H$143*(1+rvanilla02)^0.5)/A1stdlife)) -> 0.7668491863 | R79: =IF(A1stdlife="n/a","n/a",IF(R$3>(A1stdlife+$E79),('PTRM input'!$H$143*(1+rvanilla02)^0.5)-SUM($H79:Q79),('PTRM input'!$H$143*(1+rvanilla02)^0.5)/A1stdlife)) -> 0.7668491863 | S79: =IF(A1stdlife="n/a","n/a",IF(S$3>(A1stdlife+$E79),('PTRM input'!$H$143*(1+rvanilla02)^0.5)-SUM($H79:R79),('PTRM input'!$H$143*(1+rvanilla02)^0.5)/A1stdlife)) -> 0.7668491863 | T79: =IF(A1stdlife="n/a","n/a",IF(T$3>(A1stdlife+$E79),('PTRM input'!$H$143*(1+rvanilla02)^0.5)-SUM($H79:S79),('PTRM input'!$H$143*(1+rvanilla02)^0.5)/A1stdlife)) -> 0.7668491863 | U79: =IF(A1stdlife="n/a","n/a",IF(U$3>(A1stdlife+$E79),('PTRM input'!$H$143*(1+rvanilla02)^0.5)-SUM($H79:T79),('PTRM input'!$H$143*(1+rvanilla02)^0.5)/A1stdlife)) -> 0.7668491863 | V79: =IF(A1stdlife="n/a","n/a",IF(V$3>(A1stdlife+$E79),('PTRM input'!$H$143*(1+rvanilla02)^0.5)-SUM($H79:U79),('PTRM input'!$H$143*(1+rvanilla02)^0.5)/A1stdlife)) -> 0.7668491863 | W79: =IF(A1stdlife="n/a","n/a",IF(W$3>(A1stdlife+$E79),('PTRM input'!$H$143*(1+rvanilla02)^0.5)-SUM($H79:V79),('PTRM input'!$H$143*(1+rvanilla02)^0.5)/A1stdlife)) -> 0.7668491863 | X79: =IF(A1stdlife="n/a","n/a",IF(X$3>(A1stdlife+$E79),('PTRM input'!$H$143*(1+rvanilla02)^0.5)-SUM($H79:W79),('PTRM input'!$H$143*(1+rvanilla02)^0.5)/A1stdlife)) -> 0.7668491863 | Y79: =IF(A1stdlife="n/a","n/a",IF(Y$3>(A1stdlife+$E79),('PTRM input'!$H$143*(1+rvanilla02)^0.5)-SUM($H79:X79),('PTRM input'!$H$143*(1+rvanilla02)^0.5)/A1stdlife)) -> 0.7668491863 | Z79: =IF(A1stdlife="n/a","n/a",IF(Z$3>(A1stdlife+$E79),('PTRM input'!$H$143*(1+rvanilla02)^0.5)-SUM($H79:Y79),('PTRM input'!$H$143*(1+rvanilla02)^0.5)/A1stdlife)) -> 0.7668491863 | AA79: =IF(A1stdlife="n/a","n/a",IF(AA$3>(A1stdlife+$E79),('PTRM input'!$H$143*(1+rvanilla02)^0.5)-SUM($H79:Z79),('PTRM input'!$H$143*(1+rvanilla02)^0.5)/A1stdlife)) -> 0.7668491863 | AB79: =IF(A1stdlife="n/a","n/a",IF(AB$3>(A1stdlife+$E79),('PTRM input'!$H$143*(1+rvanilla02)^0.5)-SUM($H79:AA79),('PTRM input'!$H$143*(1+rvanilla02)^0.5)/A1stdlife)) -> 0.7668491863 | AC79: =IF(A1stdlife="n/a","n/a",IF(AC$3>(A1stdlife+$E79),('PTRM input'!$H$143*(1+rvanilla02)^0.5)-SUM($H79:AB79),('PTRM input'!$H$143*(1+rvanilla02)^0.5)/A1stdlife)) -> 0.7668491863 | AD79: =IF(A1stdlife="n/a","n/a",IF(AD$3>(A1stdlife+$E79),('PTRM input'!$H$143*(1+rvanilla02)^0.5)-SUM($H79:AC79),('PTRM input'!$H$143*(1+rvanilla02)^0.5)/A1stdlife)) -> 0.7668491863 | AE79: =IF(A1stdlife="n/a","n/a",IF(AE$3>(A1stdlife+$E79),('PTRM input'!$H$143*(1+rvanilla02)^0.5)-SUM($H79:AD79),('PTRM input'!$H$143*(1+rvanilla02)^0.5)/A1stdlife)) -> 0.7668491863 | AF79: =IF(A1stdlife="n/a","n/a",IF(AF$3>(A1stdlife+$E79),('PTRM input'!$H$143*(1+rvanilla02)^0.5)-SUM($H79:AE79),('PTRM input'!$H$143*(1+rvanilla02)^0.5)/A1stdlife)) -> 0.7668491863 | AG79: =IF(A1stdlife="n/a","n/a",IF(AG$3>(A1stdlife+$E79),('PTRM input'!$H$143*(1+rvanilla02)^0.5)-SUM($H79:AF79),('PTRM input'!$H$143*(1+rvanilla02)^0.5)/A1stdlife)) -> 0.7668491863 | AH79: =IF(A1stdlife="n/a","n/a",IF(AH$3>(A1stdlife+$E79),('PTRM input'!$H$143*(1+rvanilla02)^0.5)-SUM($H79:AG79),('PTRM input'!$H$143*(1+rvanilla02)^0.5)/A1stdlife)) -> 0.7668491863 | AI79: =IF(A1stdlife="n/a","n/a",IF(AI$3>(A1stdlife+$E79),('PTRM input'!$H$143*(1+rvanilla02)^0.5)-SUM($H79:AH79),('PTRM input'!$H$143*(1+rvanilla02)^0.5)/A1stdlife)) -> 0.7668491863 | AJ79: =IF(A1stdlife="n/a","n/a",IF(AJ$3>(A1stdlife+$E79),('PTRM input'!$H$143*(1+rvanilla02)^0.5)-SUM($H79:AI79),('PTRM input'!$H$143*(1+rvanilla02)^0.5)/A1stdlife)) -> 0.7668491863 | AK79: =IF(A1stdlife="n/a","n/a",IF(AK$3>(A1stdlife+$E79),('PTRM input'!$H$143*(1+rvanilla02)^0.5)-SUM($H79:AJ79),('PTRM input'!$H$143*(1+rvanilla02)^0.5)/A1stdlife)) -> 0.7668491863 | AL79: =IF(A1stdlife="n/a","n/a",IF(AL$3>(A1stdlife+$E79),('PTRM input'!$H$143*(1+rvanilla02)^0.5)-SUM($H79:AK79),('PTRM input'!$H$143*(1+rvanilla02)^0.5)/A1stdlife)) -> 0.7668491863 | AM79: =IF(A1stdlife="n/a","n/a",IF(AM$3>(A1stdlife+$E79),('PTRM input'!$H$143*(1+rvanilla02)^0.5)-SUM($H79:AL79),('PTRM input'!$H$143*(1+rvanilla02)^0.5)/A1stdlife)) -> 0.7668491863 | AN79: =IF(A1stdlife="n/a","n/a",IF(AN$3>(A1stdlife+$E79),('PTRM input'!$H$143*(1+rvanilla02)^0.5)-SUM($H79:AM79),('PTRM input'!$H$143*(1+rvanilla02)^0.5)/A1stdlife)) -> 0.7668491863 | AO79: =IF(A1stdlife="n/a","n/a",IF(AO$3>(A1stdlife+$E79),('PTRM input'!$H$143*(1+rvanilla02)^0.5)-SUM($H79:AN79),('PTRM input'!$H$143*(1+rvanilla02)^0.5)/A1stdlife)) -> 0.7668491863 | AP79: =IF(A1stdlife="n/a","n/a",IF(AP$3>(A1stdlife+$E79),('PTRM input'!$H$143*(1+rvanilla02)^0.5)-SUM($H79:AO79),('PTRM input'!$H$143*(1+rvanilla02)^0.5)/A1stdlife)) -> 0.7668491863 | AQ79: =IF(A1stdlife="n/a","n/a",IF(AQ$3>(A1stdlife+$E79),('PTRM input'!$H$143*(1+rvanilla02)^0.5)-SUM($H79:AP79),('PTRM input'!$H$143*(1+rvanilla02)^0.5)/A1stdlife)) -> 0.7668491863 | AR79: =IF(A1stdlife="n/a","n/a",IF(AR$3>(A1stdlife+$E79),('PTRM input'!$H$143*(1+rvanilla02)^0.5)-SUM($H79:AQ79),('PTRM input'!$H$143*(1+rvanilla02)^0.5)/A1stdlife)) -> 0.7668491863 | AS79: =IF(A1stdlife="n/a","n/a",IF(AS$3>(A1stdlife+$E79),('PTRM input'!$H$143*(1+rvanilla02)^0.5)-SUM($H79:AR79),('PTRM input'!$H$143*(1+rvanilla02)^0.5)/A1stdlife)) -> 0.7668491863 | AT79: =IF(A1stdlife="n/a","n/a",IF(AT$3>(A1stdlife+$E79),('PTRM input'!$H$143*(1+rvanilla02)^0.5)-SUM($H79:AS79),('PTRM input'!$H$143*(1+rvanilla02)^0.5)/A1stdlife)) -> 0.7668491863 | AU79: =IF(A1stdlife="n/a","n/a",IF(AU$3>(A1stdlife+$E79),('PTRM input'!$H$143*(1+rvanilla02)^0.5)-SUM($H79:AT79),('PTRM input'!$H$143*(1+rvanilla02)^0.5)/A1stdlife)) -> 0.7668491863 | AV79: =IF(A1stdlife="n/a","n/a",IF(AV$3>(A1stdlife+$E79),('PTRM input'!$H$143*(1+rvanilla02)^0.5)-SUM($H79:AU79),('PTRM input'!$H$143*(1+rvanilla02)^0.5)/A1stdlife)) -> 0.7668491863 | AW79: =IF(A1stdlife="n/a","n/a",IF(AW$3>(A1stdlife+$E79),('PTRM input'!$H$143*(1+rvanilla02)^0.5)-SUM($H79:AV79),('PTRM input'!$H$143*(1+rvanilla02)^0.5)/A1stdlife)) -> 0.7668491863 | AX79: =IF(A1stdlife="n/a","n/a",IF(AX$3>(A1stdlife+$E79),('PTRM input'!$H$143*(1+rvanilla02)^0.5)-SUM($H79:AW79),('PTRM input'!$H$143*(1+rvanilla02)^0.5)/A1stdlife)) -> 0.7668491863 | AY79: =IF(A1stdlife="n/a","n/a",IF(AY$3>(A1stdlife+$E79),('PTRM input'!$H$143*(1+rvanilla02)^0.5)-SUM($H79:AX79),('PTRM input'!$H$143*(1+rvanilla02)^0.5)/A1stdlife)) -> 0.7668491863 | AZ79: =IF(A1stdlife="n/a","n/a",IF(AZ$3>(A1stdlife+$E79),('PTRM input'!$H$143*(1+rvanilla02)^0.5)-SUM($H79:AY79),('PTRM input'!$H$143*(1+rvanilla02)^0.5)/A1stdlife)) -> 0.7668491863 | BA79: =IF(A1stdlife="n/a","n/a",IF(BA$3>(A1stdlife+$E79),('PTRM input'!$H$143*(1+rvanilla02)^0.5)-SUM($H79:AZ79),('PTRM input'!$H$143*(1+rvanilla02)^0.5)/A1stdlife)) -> 0.7668491863 | BB79: =IF(A1stdlife="n/a","n/a",IF(BB$3>(A1stdlife+$E79),('PTRM input'!$H$143*(1+rvanilla02)^0.5)-SUM($H79:BA79),('PTRM input'!$H$143*(1+rvanilla02)^0.5)/A1stdlife)) -> 0.7668491863 | BC79: =IF(A1stdlife="n/a","n/a",IF(BC$3>(A1stdlife+$E79),('PTRM input'!$H$143*(1+rvanilla02)^0.5)-SUM($H79:BB79),('PTRM input'!$H$143*(1+rvanilla02)^0.5)/A1stdlife)) -> 0.7668491863 | BD79: =IF(A1stdlife="n/a","n/a",IF(BD$3>(A1stdlife+$E79),('PTRM input'!$H$143*(1+rvanilla02)^0.5)-SUM($H79:BC79),('PTRM input'!$H$143*(1+rvanilla02)^0.5)/A1stdlife)) -> 0.7668491863 | BE79: =IF(A1stdlife="n/a","n/a",IF(BE$3>(A1stdlife+$E79),('PTRM input'!$H$143*(1+rvanilla02)^0.5)-SUM($H79:BD79),('PTRM input'!$H$143*(1+rvanilla02)^0.5)/A1stdlife)) -> 0.7668491863 | BF79: =IF(A1stdlife="n/a","n/a",IF(BF$3>(A1stdlife+$E79),('PTRM input'!$H$143*(1+rvanilla02)^0.5)-SUM($H79:BE79),('PTRM input'!$H$143*(1+rvanilla02)^0.5)/A1stdlife)) -> 0.7668491863 | BG79: =IF(A1stdlife="n/a","n/a",IF(BG$3>(A1stdlife+$E79),('PTRM input'!$H$143*(1+rvanilla02)^0.5)-SUM($H79:BF79),('PTRM input'!$H$143*(1+rvanilla02)^0.5)/A1stdlife)) -> 2.842170943e-14 | BH79: =IF(A1stdlife="n/a","n/a",IF(BH$3>(A1stdlife+$E79),('PTRM input'!$H$143*(1+rvanilla02)^0.5)-SUM($H79:BG79),('PTRM input'!$H$143*(1+rvanilla02)^0.5)/A1stdlife)) -> 0 | BI79: =IF(A1stdlife="n/a","n/a",IF(BI$3>(A1stdlife+$E79),('PTRM input'!$H$143*(1+rvanilla02)^0.5)-SUM($H79:BH79),('PTRM input'!$H$143*(1+rvanilla02)^0.5)/A1stdlife)) -> 0
E80: 3 | J80: =IF(A1stdlife="n/a","n/a",IF(J$3>(A1stdlife+$E80),('PTRM input'!$I$143*(1+rvanilla03)^0.5)-SUM($I80:I80),('PTRM input'!$I$143*(1+rvanilla03)^0.5)/A1stdlife)) -> 0.7150696565 | K80: =IF(A1stdlife="n/a","n/a",IF(K$3>(A1stdlife+$E80),('PTRM input'!$I$143*(1+rvanilla03)^0.5)-SUM($I80:J80),('PTRM input'!$I$143*(1+rvanilla03)^0.5)/A1stdlife)) -> 0.7150696565 | L80: =IF(A1stdlife="n/a","n/a",IF(L$3>(A1stdlife+$E80),('PTRM input'!$I$143*(1+rvanilla03)^0.5)-SUM($I80:K80),('PTRM input'!$I$143*(1+rvanilla03)^0.5)/A1stdlife)) -> 0.7150696565 | M80: =IF(A1stdlife="n/a","n/a",IF(M$3>(A1stdlife+$E80),('PTRM input'!$I$143*(1+rvanilla03)^0.5)-SUM($I80:L80),('PTRM input'!$I$143*(1+rvanilla03)^0.5)/A1stdlife)) -> 0.7150696565 | N80: =IF(A1stdlife="n/a","n/a",IF(N$3>(A1stdlife+$E80),('PTRM input'!$I$143*(1+rvanilla03)^0.5)-SUM($I80:M80),('PTRM input'!$I$143*(1+rvanilla03)^0.5)/A1stdlife)) -> 0.7150696565 | O80: =IF(A1stdlife="n/a","n/a",IF(O$3>(A1stdlife+$E80),('PTRM input'!$I$143*(1+rvanilla03)^0.5)-SUM($I80:N80),('PTRM input'!$I$143*(1+rvanilla03)^0.5)/A1stdlife)) -> 0.7150696565 | P80: =IF(A1stdlife="n/a","n/a",IF(P$3>(A1stdlife+$E80),('PTRM input'!$I$143*(1+rvanilla03)^0.5)-SUM($I80:O80),('PTRM input'!$I$143*(1+rvanilla03)^0.5)/A1stdlife)) -> 0.7150696565 | Q80: =IF(A1stdlife="n/a","n/a",IF(Q$3>(A1stdlife+$E80),('PTRM input'!$I$143*(1+rvanilla03)^0.5)-SUM($I80:P80),('PTRM input'!$I$143*(1+rvanilla03)^0.5)/A1stdlife)) -> 0.7150696565 | R80: =IF(A1stdlife="n/a","n/a",IF(R$3>(A1stdlife+$E80),('PTRM input'!$I$143*(1+rvanilla03)^0.5)-SUM($I80:Q80),('PTRM input'!$I$143*(1+rvanilla03)^0.5)/A1stdlife)) -> 0.7150696565 | S80: =IF(A1stdlife="n/a","n/a",IF(S$3>(A1stdlife+$E80),('PTRM input'!$I$143*(1+rvanilla03)^0.5)-SUM($I80:R80),('PTRM input'!$I$143*(1+rvanilla03)^0.5)/A1stdlife)) -> 0.7150696565 | T80: =IF(A1stdlife="n/a","n/a",IF(T$3>(A1stdlife+$E80),('PTRM input'!$I$143*(1+rvanilla03)^0.5)-SUM($I80:S80),('PTRM input'!$I$143*(1+rvanilla03)^0.5)/A1stdlife)) -> 0.7150696565 | U80: =IF(A1stdlife="n/a","n/a",IF(U$3>(A1stdlife+$E80),('PTRM input'!$I$143*(1+rvanilla03)^0.5)-SUM($I80:T80),('PTRM input'!$I$143*(1+rvanilla03)^0.5)/A1stdlife)) -> 0.7150696565 | V80: =IF(A1stdlife="n/a","n/a",IF(V$3>(A1stdlife+$E80),('PTRM input'!$I$143*(1+rvanilla03)^0.5)-SUM($I80:U80),('PTRM input'!$I$143*(1+rvanilla03)^0.5)/A1stdlife)) -> 0.7150696565 | W80: =IF(A1stdlife="n/a","n/a",IF(W$3>(A1stdlife+$E80),('PTRM input'!$I$143*(1+rvanilla03)^0.5)-SUM($I80:V80),('PTRM input'!$I$143*(1+rvanilla03)^0.5)/A1stdlife)) -> 0.7150696565 | X80: =IF(A1stdlife="n/a","n/a",IF(X$3>(A1stdlife+$E80),('PTRM input'!$I$143*(1+rvanilla03)^0.5)-SUM($I80:W80),('PTRM input'!$I$143*(1+rvanilla03)^0.5)/A1stdlife)) -> 0.7150696565 | Y80: =IF(A1stdlife="n/a","n/a",IF(Y$3>(A1stdlife+$E80),('PTRM input'!$I$143*(1+rvanilla03)^0.5)-SUM($I80:X80),('PTRM input'!$I$143*(1+rvanilla03)^0.5)/A1stdlife)) -> 0.7150696565 | Z80: =IF(A1stdlife="n/a","n/a",IF(Z$3>(A1stdlife+$E80),('PTRM input'!$I$143*(1+rvanilla03)^0.5)-SUM($I80:Y80),('PTRM input'!$I$143*(1+rvanilla03)^0.5)/A1stdlife)) -> 0.7150696565 | AA80: =IF(A1stdlife="n/a","n/a",IF(AA$3>(A1stdlife+$E80),('PTRM input'!$I$143*(1+rvanilla03)^0.5)-SUM($I80:Z80),('PTRM input'!$I$143*(1+rvanilla03)^0.5)/A1stdlife)) -> 0.7150696565 | AB80: =IF(A1stdlife="n/a","n/a",IF(AB$3>(A1stdlife+$E80),('PTRM input'!$I$143*(1+rvanilla03)^0.5)-SUM($I80:AA80),('PTRM input'!$I$143*(1+rvanilla03)^0.5)/A1stdlife)) -> 0.7150696565 | AC80: =IF(A1stdlife="n/a","n/a",IF(AC$3>(A1stdlife+$E80),('PTRM input'!$I$143*(1+rvanilla03)^0.5)-SUM($I80:AB80),('PTRM input'!$I$143*(1+rvanilla03)^0.5)/A1stdlife)) -> 0.7150696565 | AD80: =IF(A1stdlife="n/a","n/a",IF(AD$3>(A1stdlife+$E80),('PTRM input'!$I$143*(1+rvanilla03)^0.5)-SUM($I80:AC80),('PTRM input'!$I$143*(1+rvanilla03)^0.5)/A1stdlife)) -> 0.7150696565 | AE80: =IF(A1stdlife="n/a","n/a",IF(AE$3>(A1stdlife+$E80),('PTRM input'!$I$143*(1+rvanilla03)^0.5)-SUM($I80:AD80),('PTRM input'!$I$143*(1+rvanilla03)^0.5)/A1stdlife)) -> 0.7150696565 | AF80: =IF(A1stdlife="n/a","n/a",IF(AF$3>(A1stdlife+$E80),('PTRM input'!$I$143*(1+rvanilla03)^0.5)-SUM($I80:AE80),('PTRM input'!$I$143*(1+rvanilla03)^0.5)/A1stdlife)) -> 0.7150696565 | AG80: =IF(A1stdlife="n/a","n/a",IF(AG$3>(A1stdlife+$E80),('PTRM input'!$I$143*(1+rvanilla03)^0.5)-SUM($I80:AF80),('PTRM input'!$I$143*(1+rvanilla03)^0.5)/A1stdlife)) -> 0.7150696565 | AH80: =IF(A1stdlife="n/a","n/a",IF(AH$3>(A1stdlife+$E80),('PTRM input'!$I$143*(1+rvanilla03)^0.5)-SUM($I80:AG80),('PTRM input'!$I$143*(1+rvanilla03)^0.5)/A1stdlife)) -> 0.7150696565 | AI80: =IF(A1stdlife="n/a","n/a",IF(AI$3>(A1stdlife+$E80),('PTRM input'!$I$143*(1+rvanilla03)^0.5)-SUM($I80:AH80),('PTRM input'!$I$143*(1+rvanilla03)^0.5)/A1stdlife)) -> 0.7150696565 | AJ80: =IF(A1stdlife="n/a","n/a",IF(AJ$3>(A1stdlife+$E80),('PTRM input'!$I$143*(1+rvanilla03)^0.5)-SUM($I80:AI80),('PTRM input'!$I$143*(1+rvanilla03)^0.5)/A1stdlife)) -> 0.7150696565 | AK80: =IF(A1stdlife="n/a","n/a",IF(AK$3>(A1stdlife+$E80),('PTRM input'!$I$143*(1+rvanilla03)^0.5)-SUM($I80:AJ80),('PTRM input'!$I$143*(1+rvanilla03)^0.5)/A1stdlife)) -> 0.7150696565 | AL80: =IF(A1stdlife="n/a","n/a",IF(AL$3>(A1stdlife+$E80),('PTRM input'!$I$143*(1+rvanilla03)^0.5)-SUM($I80:AK80),('PTRM input'!$I$143*(1+rvanilla03)^0.5)/A1stdlife)) -> 0.7150696565 | AM80: =IF(A1stdlife="n/a","n/a",IF(AM$3>(A1stdlife+$E80),('PTRM input'!$I$143*(1+rvanilla03)^0.5)-SUM($I80:AL80),('PTRM input'!$I$143*(1+rvanilla03)^0.5)/A1stdlife)) -> 0.7150696565 | AN80: =IF(A1stdlife="n/a","n/a",IF(AN$3>(A1stdlife+$E80),('PTRM input'!$I$143*(1+rvanilla03)^0.5)-SUM($I80:AM80),('PTRM input'!$I$143*(1+rvanilla03)^0.5)/A1stdlife)) -> 0.7150696565 | AO80: =IF(A1stdlife="n/a","n/a",IF(AO$3>(A1stdlife+$E80),('PTRM input'!$I$143*(1+rvanilla03)^0.5)-SUM($I80:AN80),('PTRM input'!$I$143*(1+rvanilla03)^0.5)/A1stdlife)) -> 0.7150696565 | AP80: =IF(A1stdlife="n/a","n/a",IF(AP$3>(A1stdlife+$E80),('PTRM input'!$I$143*(1+rvanilla03)^0.5)-SUM($I80:AO80),('PTRM input'!$I$143*(1+rvanilla03)^0.5)/A1stdlife)) -> 0.7150696565 | AQ80: =IF(A1stdlife="n/a","n/a",IF(AQ$3>(A1stdlife+$E80),('PTRM input'!$I$143*(1+rvanilla03)^0.5)-SUM($I80:AP80),('PTRM input'!$I$143*(1+rvanilla03)^0.5)/A1stdlife)) -> 0.7150696565 | AR80: =IF(A1stdlife="n/a","n/a",IF(AR$3>(A1stdlife+$E80),('PTRM input'!$I$143*(1+rvanilla03)^0.5)-SUM($I80:AQ80),('PTRM input'!$I$143*(1+rvanilla03)^0.5)/A1stdlife)) -> 0.7150696565 | AS80: =IF(A1stdlife="n/a","n/a",IF(AS$3>(A1stdlife+$E80),('PTRM input'!$I$143*(1+rvanilla03)^0.5)-SUM($I80:AR80),('PTRM input'!$I$143*(1+rvanilla03)^0.5)/A1stdlife)) -> 0.7150696565 | AT80: =IF(A1stdlife="n/a","n/a",IF(AT$3>(A1stdlife+$E80),('PTRM input'!$I$143*(1+rvanilla03)^0.5)-SUM($I80:AS80),('PTRM input'!$I$143*(1+rvanilla03)^0.5)/A1stdlife)) -> 0.7150696565 | AU80: =IF(A1stdlife="n/a","n/a",IF(AU$3>(A1stdlife+$E80),('PTRM input'!$I$143*(1+rvanilla03)^0.5)-SUM($I80:AT80),('PTRM input'!$I$143*(1+rvanilla03)^0.5)/A1stdlife)) -> 0.7150696565 | AV80: =IF(A1stdlife="n/a","n/a",IF(AV$3>(A1stdlife+$E80),('PTRM input'!$I$143*(1+rvanilla03)^0.5)-SUM($I80:AU80),('PTRM input'!$I$143*(1+rvanilla03)^0.5)/A1stdlife)) -> 0.7150696565 | AW80: =IF(A1stdlife="n/a","n/a",IF(AW$3>(A1stdlife+$E80),('PTRM input'!$I$143*(1+rvanilla03)^0.5)-SUM($I80:AV80),('PTRM input'!$I$143*(1+rvanilla03)^0.5)/A1stdlife)) -> 0.7150696565 | AX80: =IF(A1stdlife="n/a","n/a",IF(AX$3>(A1stdlife+$E80),('PTRM input'!$I$143*(1+rvanilla03)^0.5)-SUM($I80:AW80),('PTRM input'!$I$143*(1+rvanilla03)^0.5)/A1stdlife)) -> 0.7150696565 | AY80: =IF(A1stdlife="n/a","n/a",IF(AY$3>(A1stdlife+$E80),('PTRM input'!$I$143*(1+rvanilla03)^0.5)-SUM($I80:AX80),('PTRM input'!$I$143*(1+rvanilla03)^0.5)/A1stdlife)) -> 0.7150696565 | AZ80: =IF(A1stdlife="n/a","n/a",IF(AZ$3>(A1stdlife+$E80),('PTRM input'!$I$143*(1+rvanilla03)^0.5)-SUM($I80:AY80),('PTRM input'!$I$143*(1+rvanilla03)^0.5)/A1stdlife)) -> 0.7150696565 | BA80: =IF(A1stdlife="n/a","n/a",IF(BA$3>(A1stdlife+$E80),('PTRM input'!$I$143*(1+rvanilla03)^0.5)-SUM($I80:AZ80),('PTRM input'!$I$143*(1+rvanilla03)^0.5)/A1stdlife)) -> 0.7150696565 | BB80: =IF(A1stdlife="n/a","n/a",IF(BB$3>(A1stdlife+$E80),('PTRM input'!$I$143*(1+rvanilla03)^0.5)-SUM($I80:BA80),('PTRM input'!$I$143*(1+rvanilla03)^0.5)/A1stdlife)) -> 0.7150696565 | BC80: =IF(A1stdlife="n/a","n/a",IF(BC$3>(A1stdlife+$E80),('PTRM input'!$I$143*(1+rvanilla03)^0.5)-SUM($I80:BB80),('PTRM input'!$I$143*(1+rvanilla03)^0.5)/A1stdlife)) -> 0.7150696565 | BD80: =IF(A1stdlife="n/a","n/a",IF(BD$3>(A1stdlife+$E80),('PTRM input'!$I$143*(1+rvanilla03)^0.5)-SUM($I80:BC80),('PTRM input'!$I$143*(1+rvanilla03)^0.5)/A1stdlife)) -> 0.7150696565 | BE80: =IF(A1stdlife="n/a","n/a",IF(BE$3>(A1stdlife+$E80),('PTRM input'!$I$143*(1+rvanilla03)^0.5)-SUM($I80:BD80),('PTRM input'!$I$143*(1+rvanilla03)^0.5)/A1stdlife)) -> 0.7150696565 | BF80: =IF(A1stdlife="n/a","n/a",IF(BF$3>(A1stdlife+$E80),('PTRM input'!$I$143*(1+rvanilla03)^0.5)-SUM($I80:BE80),('PTRM input'!$I$143*(1+rvanilla03)^0.5)/A1stdlife)) -> 0.7150696565 | BG80: =IF(A1stdlife="n/a","n/a",IF(BG$3>(A1stdlife+$E80),('PTRM input'!$I$143*(1+rvanilla03)^0.5)-SUM($I80:BF80),('PTRM input'!$I$143*(1+rvanilla03)^0.5)/A1stdlife)) -> 0.7150696565 | BH80: =IF(A1stdlife="n/a","n/a",IF(BH$3>(A1stdlife+$E80),('PTRM input'!$I$143*(1+rvanilla03)^0.5)-SUM($I80:BG80),('PTRM input'!$I$143*(1+rvanilla03)^0.5)/A1stdlife)) -> 3.552713679e-14 | BI80: =IF(A1stdlife="n/a","n/a",IF(BI$3>(A1stdlife+$E80),('PTRM input'!$I$143*(1+rvanilla03)^0.5)-SUM($I80:BH80),('PTRM input'!$I$143*(1+rvanilla03)^0.5)/A1stdlife)) -> 0
E81: 4 | K81: =IF(A1stdlife="n/a","n/a",IF(K$3>(A1stdlife+$E81),('PTRM input'!$J$143*(1+rvanilla04)^0.5)-SUM($J81:J81),('PTRM input'!$J$143*(1+rvanilla04)^0.5)/A1stdlife)) -> 0.7453947002 | L81: =IF(A1stdlife="n/a","n/a",IF(L$3>(A1stdlife+$E81),('PTRM input'!$J$143*(1+rvanilla04)^0.5)-SUM($J81:K81),('PTRM input'!$J$143*(1+rvanilla04)^0.5)/A1stdlife)) -> 0.7453947002 | M81: =IF(A1stdlife="n/a","n/a",IF(M$3>(A1stdlife+$E81),('PTRM input'!$J$143*(1+rvanilla04)^0.5)-SUM($J81:L81),('PTRM input'!$J$143*(1+rvanilla04)^0.5)/A1stdlife)) -> 0.7453947002 | N81: =IF(A1stdlife="n/a","n/a",IF(N$3>(A1stdlife+$E81),('PTRM input'!$J$143*(1+rvanilla04)^0.5)-SUM($J81:M81),('PTRM input'!$J$143*(1+rvanilla04)^0.5)/A1stdlife)) -> 0.7453947002 | O81: =IF(A1stdlife="n/a","n/a",IF(O$3>(A1stdlife+$E81),('PTRM input'!$J$143*(1+rvanilla04)^0.5)-SUM($J81:N81),('PTRM input'!$J$143*(1+rvanilla04)^0.5)/A1stdlife)) -> 0.7453947002 | P81: =IF(A1stdlife="n/a","n/a",IF(P$3>(A1stdlife+$E81),('PTRM input'!$J$143*(1+rvanilla04)^0.5)-SUM($J81:O81),('PTRM input'!$J$143*(1+rvanilla04)^0.5)/A1stdlife)) -> 0.7453947002 | Q81: =IF(A1stdlife="n/a","n/a",IF(Q$3>(A1stdlife+$E81),('PTRM input'!$J$143*(1+rvanilla04)^0.5)-SUM($J81:P81),('PTRM input'!$J$143*(1+rvanilla04)^0.5)/A1stdlife)) -> 0.7453947002 | R81: =IF(A1stdlife="n/a","n/a",IF(R$3>(A1stdlife+$E81),('PTRM input'!$J$143*(1+rvanilla04)^0.5)-SUM($J81:Q81),('PTRM input'!$J$143*(1+rvanilla04)^0.5)/A1stdlife)) -> 0.7453947002 | S81: =IF(A1stdlife="n/a","n/a",IF(S$3>(A1stdlife+$E81),('PTRM input'!$J$143*(1+rvanilla04)^0.5)-SUM($J81:R81),('PTRM input'!$J$143*(1+rvanilla04)^0.5)/A1stdlife)) -> 0.7453947002 | T81: =IF(A1stdlife="n/a","n/a",IF(T$3>(A1stdlife+$E81),('PTRM input'!$J$143*(1+rvanilla04)^0.5)-SUM($J81:S81),('PTRM input'!$J$143*(1+rvanilla04)^0.5)/A1stdlife)) -> 0.7453947002 | U81: =IF(A1stdlife="n/a","n/a",IF(U$3>(A1stdlife+$E81),('PTRM input'!$J$143*(1+rvanilla04)^0.5)-SUM($J81:T81),('PTRM input'!$J$143*(1+rvanilla04)^0.5)/A1stdlife)) -> 0.7453947002 | V81: =IF(A1stdlife="n/a","n/a",IF(V$3>(A1stdlife+$E81),('PTRM input'!$J$143*(1+rvanilla04)^0.5)-SUM($J81:U81),('PTRM input'!$J$143*(1+rvanilla04)^0.5)/A1stdlife)) -> 0.7453947002 | W81: =IF(A1stdlife="n/a","n/a",IF(W$3>(A1stdlife+$E81),('PTRM input'!$J$143*(1+rvanilla04)^0.5)-SUM($J81:V81),('PTRM input'!$J$143*(1+rvanilla04)^0.5)/A1stdlife)) -> 0.7453947002 | X81: =IF(A1stdlife="n/a","n/a",IF(X$3>(A1stdlife+$E81),('PTRM input'!$J$143*(1+rvanilla04)^0.5)-SUM($J81:W81),('PTRM input'!$J$143*(1+rvanilla04)^0.5)/A1stdlife)) -> 0.7453947002 | Y81: =IF(A1stdlife="n/a","n/a",IF(Y$3>(A1stdlife+$E81),('PTRM input'!$J$143*(1+rvanilla04)^0.5)-SUM($J81:X81),('PTRM input'!$J$143*(1+rvanilla04)^0.5)/A1stdlife)) -> 0.7453947002 | Z81: =IF(A1stdlife="n/a","n/a",IF(Z$3>(A1stdlife+$E81),('PTRM input'!$J$143*(1+rvanilla04)^0.5)-SUM($J81:Y81),('PTRM input'!$J$143*(1+rvanilla04)^0.5)/A1stdlife)) -> 0.7453947002 | AA81: =IF(A1stdlife="n/a","n/a",IF(AA$3>(A1stdlife+$E81),('PTRM input'!$J$143*(1+rvanilla04)^0.5)-SUM($J81:Z81),('PTRM input'!$J$143*(1+rvanilla04)^0.5)/A1stdlife)) -> 0.7453947002 | AB81: =IF(A1stdlife="n/a","n/a",IF(AB$3>(A1stdlife+$E81),('PTRM input'!$J$143*(1+rvanilla04)^0.5)-SUM($J81:AA81),('PTRM input'!$J$143*(1+rvanilla04)^0.5)/A1stdlife)) -> 0.7453947002 | AC81: =IF(A1stdlife="n/a","n/a",IF(AC$3>(A1stdlife+$E81),('PTRM input'!$J$143*(1+rvanilla04)^0.5)-SUM($J81:AB81),('PTRM input'!$J$143*(1+rvanilla04)^0.5)/A1stdlife)) -> 0.7453947002 | AD81: =IF(A1stdlife="n/a","n/a",IF(AD$3>(A1stdlife+$E81),('PTRM input'!$J$143*(1+rvanilla04)^0.5)-SUM($J81:AC81),('PTRM input'!$J$143*(1+rvanilla04)^0.5)/A1stdlife)) -> 0.7453947002 | AE81: =IF(A1stdlife="n/a","n/a",IF(AE$3>(A1stdlife+$E81),('PTRM input'!$J$143*(1+rvanilla04)^0.5)-SUM($J81:AD81),('PTRM input'!$J$143*(1+rvanilla04)^0.5)/A1stdlife)) -> 0.7453947002 | AF81: =IF(A1stdlife="n/a","n/a",IF(AF$3>(A1stdlife+$E81),('PTRM input'!$J$143*(1+rvanilla04)^0.5)-SUM($J81:AE81),('PTRM input'!$J$143*(1+rvanilla04)^0.5)/A1stdlife)) -> 0.7453947002 | AG81: =IF(A1stdlife="n/a","n/a",IF(AG$3>(A1stdlife+$E81),('PTRM input'!$J$143*(1+rvanilla04)^0.5)-SUM($J81:AF81),('PTRM input'!$J$143*(1+rvanilla04)^0.5)/A1stdlife)) -> 0.7453947002 | AH81: =IF(A1stdlife="n/a","n/a",IF(AH$3>(A1stdlife+$E81),('PTRM input'!$J$143*(1+rvanilla04)^0.5)-SUM($J81:AG81),('PTRM input'!$J$143*(1+rvanilla04)^0.5)/A1stdlife)) -> 0.7453947002 | AI81: =IF(A1stdlife="n/a","n/a",IF(AI$3>(A1stdlife+$E81),('PTRM input'!$J$143*(1+rvanilla04)^0.5)-SUM($J81:AH81),('PTRM input'!$J$143*(1+rvanilla04)^0.5)/A1stdlife)) -> 0.7453947002 | AJ81: =IF(A1stdlife="n/a","n/a",IF(AJ$3>(A1stdlife+$E81),('PTRM input'!$J$143*(1+rvanilla04)^0.5)-SUM($J81:AI81),('PTRM input'!$J$143*(1+rvanilla04)^0.5)/A1stdlife)) -> 0.7453947002 | AK81: =IF(A1stdlife="n/a","n/a",IF(AK$3>(A1stdlife+$E81),('PTRM input'!$J$143*(1+rvanilla04)^0.5)-SUM($J81:AJ81),('PTRM input'!$J$143*(1+rvanilla04)^0.5)/A1stdlife)) -> 0.7453947002 | AL81: =IF(A1stdlife="n/a","n/a",IF(AL$3>(A1stdlife+$E81),('PTRM input'!$J$143*(1+rvanilla04)^0.5)-SUM($J81:AK81),('PTRM input'!$J$143*(1+rvanilla04)^0.5)/A1stdlife)) -> 0.7453947002 | AM81: =IF(A1stdlife="n/a","n/a",IF(AM$3>(A1stdlife+$E81),('PTRM input'!$J$143*(1+rvanilla04)^0.5)-SUM($J81:AL81),('PTRM input'!$J$143*(1+rvanilla04)^0.5)/A1stdlife)) -> 0.7453947002 | AN81: =IF(A1stdlife="n/a","n/a",IF(AN$3>(A1stdlife+$E81),('PTRM input'!$J$143*(1+rvanilla04)^0.5)-SUM($J81:AM81),('PTRM input'!$J$143*(1+rvanilla04)^0.5)/A1stdlife)) -> 0.7453947002 | AO81: =IF(A1stdlife="n/a","n/a",IF(AO$3>(A1stdlife+$E81),('PTRM input'!$J$143*(1+rvanilla04)^0.5)-SUM($J81:AN81),('PTRM input'!$J$143*(1+rvanilla04)^0.5)/A1stdlife)) -> 0.7453947002 | AP81: =IF(A1stdlife="n/a","n/a",IF(AP$3>(A1stdlife+$E81),('PTRM input'!$J$143*(1+rvanilla04)^0.5)-SUM($J81:AO81),('PTRM input'!$J$143*(1+rvanilla04)^0.5)/A1stdlife)) -> 0.7453947002 | AQ81: =IF(A1stdlife="n/a","n/a",IF(AQ$3>(A1stdlife+$E81),('PTRM input'!$J$143*(1+rvanilla04)^0.5)-SUM($J81:AP81),('PTRM input'!$J$143*(1+rvanilla04)^0.5)/A1stdlife)) -> 0.7453947002 | AR81: =IF(A1stdlife="n/a","n/a",IF(AR$3>(A1stdlife+$E81),('PTRM input'!$J$143*(1+rvanilla04)^0.5)-SUM($J81:AQ81),('PTRM input'!$J$143*(1+rvanilla04)^0.5)/A1stdlife)) -> 0.7453947002 | AS81: =IF(A1stdlife="n/a","n/a",IF(AS$3>(A1stdlife+$E81),('PTRM input'!$J$143*(1+rvanilla04)^0.5)-SUM($J81:AR81),('PTRM input'!$J$143*(1+rvanilla04)^0.5)/A1stdlife)) -> 0.7453947002 | AT81: =IF(A1stdlife="n/a","n/a",IF(AT$3>(A1stdlife+$E81),('PTRM input'!$J$143*(1+rvanilla04)^0.5)-SUM($J81:AS81),('PTRM input'!$J$143*(1+rvanilla04)^0.5)/A1stdlife)) -> 0.7453947002 | AU81: =IF(A1stdlife="n/a","n/a",IF(AU$3>(A1stdlife+$E81),('PTRM input'!$J$143*(1+rvanilla04)^0.5)-SUM($J81:AT81),('PTRM input'!$J$143*(1+rvanilla04)^0.5)/A1stdlife)) -> 0.7453947002 | AV81: =IF(A1stdlife="n/a","n/a",IF(AV$3>(A1stdlife+$E81),('PTRM input'!$J$143*(1+rvanilla04)^0.5)-SUM($J81:AU81),('PTRM input'!$J$143*(1+rvanilla04)^0.5)/A1stdlife)) -> 0.7453947002 | AW81: =IF(A1stdlife="n/a","n/a",IF(AW$3>(A1stdlife+$E81),('PTRM input'!$J$143*(1+rvanilla04)^0.5)-SUM($J81:AV81),('PTRM input'!$J$143*(1+rvanilla04)^0.5)/A1stdlife)) -> 0.7453947002 | AX81: =IF(A1stdlife="n/a","n/a",IF(AX$3>(A1stdlife+$E81),('PTRM input'!$J$143*(1+rvanilla04)^0.5)-SUM($J81:AW81),('PTRM input'!$J$143*(1+rvanilla04)^0.5)/A1stdlife)) -> 0.7453947002 | AY81: =IF(A1stdlife="n/a","n/a",IF(AY$3>(A1stdlife+$E81),('PTRM input'!$J$143*(1+rvanilla04)^0.5)-SUM($J81:AX81),('PTRM input'!$J$143*(1+rvanilla04)^0.5)/A1stdlife)) -> 0.7453947002 | AZ81: =IF(A1stdlife="n/a","n/a",IF(AZ$3>(A1stdlife+$E81),('PTRM input'!$J$143*(1+rvanilla04)^0.5)-SUM($J81:AY81),('PTRM input'!$J$143*(1+rvanilla04)^0.5)/A1stdlife)) -> 0.7453947002 | BA81: =IF(A1stdlife="n/a","n/a",IF(BA$3>(A1stdlife+$E81),('PTRM input'!$J$143*(1+rvanilla04)^0.5)-SUM($J81:AZ81),('PTRM input'!$J$143*(1+rvanilla04)^0.5)/A1stdlife)) -> 0.7453947002 | BB81: =IF(A1stdlife="n/a","n/a",IF(BB$3>(A1stdlife+$E81),('PTRM input'!$J$143*(1+rvanilla04)^0.5)-SUM($J81:BA81),('PTRM input'!$J$143*(1+rvanilla04)^0.5)/A1stdlife)) -> 0.7453947002 | BC81: =IF(A1stdlife="n/a","n/a",IF(BC$3>(A1stdlife+$E81),('PTRM input'!$J$143*(1+rvanilla04)^0.5)-SUM($J81:BB81),('PTRM input'!$J$143*(1+rvanilla04)^0.5)/A1stdlife)) -> 0.7453947002 | BD81: =IF(A1stdlife="n/a","n/a",IF(BD$3>(A1stdlife+$E81),('PTRM input'!$J$143*(1+rvanilla04)^0.5)-SUM($J81:BC81),('PTRM input'!$J$143*(1+rvanilla04)^0.5)/A1stdlife)) -> 0.7453947002 | BE81: =IF(A1stdlife="n/a","n/a",IF(BE$3>(A1stdlife+$E81),('PTRM input'!$J$143*(1+rvanilla04)^0.5)-SUM($J81:BD81),('PTRM input'!$J$143*(1+rvanilla04)^0.5)/A1stdlife)) -> 0.7453947002 | BF81: =IF(A1stdlife="n/a","n/a",IF(BF$3>(A1stdlife+$E81),('PTRM input'!$J$143*(1+rvanilla04)^0.5)-SUM($J81:BE81),('PTRM input'!$J$143*(1+rvanilla04)^0.5)/A1stdlife)) -> 0.7453947002 | BG81: =IF(A1stdlife="n/a","n/a",IF(BG$3>(A1stdlife+$E81),('PTRM input'!$J$143*(1+rvanilla04)^0.5)-SUM($J81:BF81),('PTRM input'!$J$143*(1+rvanilla04)^0.5)/A1stdlife)) -> 0.7453947002 | BH81: =IF(A1stdlife="n/a","n/a",IF(BH$3>(A1stdlife+$E81),('PTRM input'!$J$143*(1+rvanilla04)^0.5)-SUM($J81:BG81),('PTRM input'!$J$143*(1+rvanilla04)^0.5)/A1stdlife)) -> 0.7453947002 | BI81: =IF(A1stdlife="n/a","n/a",IF(BI$3>(A1stdlife+$E81),('PTRM input'!$J$143*(1+rvanilla04)^0.5)-SUM($J81:BH81),('PTRM input'!$J$143*(1+rvanilla04)^0.5)/A1stdlife)) -> 7.105427358e-15
E82: 5 | L82: =IF(A1stdlife="n/a","n/a",IF(L$3>(A1stdlife+$E82),('PTRM input'!$K$143*(1+rvanilla05)^0.5)-SUM($K82:K82),('PTRM input'!$K$143*(1+rvanilla05)^0.5)/A1stdlife)) -> 0.7537440701 | M82: =IF(A1stdlife="n/a","n/a",IF(M$3>(A1stdlife+$E82),('PTRM input'!$K$143*(1+rvanilla05)^0.5)-SUM($K82:L82),('PTRM input'!$K$143*(1+rvanilla05)^0.5)/A1stdlife)) -> 0.7537440701 | N82: =IF(A1stdlife="n/a","n/a",IF(N$3>(A1stdlife+$E82),('PTRM input'!$K$143*(1+rvanilla05)^0.5)-SUM($K82:M82),('PTRM input'!$K$143*(1+rvanilla05)^0.5)/A1stdlife)) -> 0.7537440701 | O82: =IF(A1stdlife="n/a","n/a",IF(O$3>(A1stdlife+$E82),('PTRM input'!$K$143*(1+rvanilla05)^0.5)-SUM($K82:N82),('PTRM input'!$K$143*(1+rvanilla05)^0.5)/A1stdlife)) -> 0.7537440701 | P82: =IF(A1stdlife="n/a","n/a",IF(P$3>(A1stdlife+$E82),('PTRM input'!$K$143*(1+rvanilla05)^0.5)-SUM($K82:O82),('PTRM input'!$K$143*(1+rvanilla05)^0.5)/A1stdlife)) -> 0.7537440701 | Q82: =IF(A1stdlife="n/a","n/a",IF(Q$3>(A1stdlife+$E82),('PTRM input'!$K$143*(1+rvanilla05)^0.5)-SUM($K82:P82),('PTRM input'!$K$143*(1+rvanilla05)^0.5)/A1stdlife)) -> 0.7537440701 | R82: =IF(A1stdlife="n/a","n/a",IF(R$3>(A1stdlife+$E82),('PTRM input'!$K$143*(1+rvanilla05)^0.5)-SUM($K82:Q82),('PTRM input'!$K$143*(1+rvanilla05)^0.5)/A1stdlife)) -> 0.7537440701 | S82: =IF(A1stdlife="n/a","n/a",IF(S$3>(A1stdlife+$E82),('PTRM input'!$K$143*(1+rvanilla05)^0.5)-SUM($K82:R82),('PTRM input'!$K$143*(1+rvanilla05)^0.5)/A1stdlife)) -> 0.7537440701 | T82: =IF(A1stdlife="n/a","n/a",IF(T$3>(A1stdlife+$E82),('PTRM input'!$K$143*(1+rvanilla05)^0.5)-SUM($K82:S82),('PTRM input'!$K$143*(1+rvanilla05)^0.5)/A1stdlife)) -> 0.7537440701 | U82: =IF(A1stdlife="n/a","n/a",IF(U$3>(A1stdlife+$E82),('PTRM input'!$K$143*(1+rvanilla05)^0.5)-SUM($K82:T82),('PTRM input'!$K$143*(1+rvanilla05)^0.5)/A1stdlife)) -> 0.7537440701 | V82: =IF(A1stdlife="n/a","n/a",IF(V$3>(A1stdlife+$E82),('PTRM input'!$K$143*(1+rvanilla05)^0.5)-SUM($K82:U82),('PTRM input'!$K$143*(1+rvanilla05)^0.5)/A1stdlife)) -> 0.7537440701 | W82: =IF(A1stdlife="n/a","n/a",IF(W$3>(A1stdlife+$E82),('PTRM input'!$K$143*(1+rvanilla05)^0.5)-SUM($K82:V82),('PTRM input'!$K$143*(1+rvanilla05)^0.5)/A1stdlife)) -> 0.7537440701 | X82: =IF(A1stdlife="n/a","n/a",IF(X$3>(A1stdlife+$E82),('PTRM input'!$K$143*(1+rvanilla05)^0.5)-SUM($K82:W82),('PTRM input'!$K$143*(1+rvanilla05)^0.5)/A1stdlife)) -> 0.7537440701 | Y82: =IF(A1stdlife="n/a","n/a",IF(Y$3>(A1stdlife+$E82),('PTRM input'!$K$143*(1+rvanilla05)^0.5)-SUM($K82:X82),('PTRM input'!$K$143*(1+rvanilla05)^0.5)/A1stdlife)) -> 0.7537440701 | Z82: =IF(A1stdlife="n/a","n/a",IF(Z$3>(A1stdlife+$E82),('PTRM input'!$K$143*(1+rvanilla05)^0.5)-SUM($K82:Y82),('PTRM input'!$K$143*(1+rvanilla05)^0.5)/A1stdlife)) -> 0.7537440701 | AA82: =IF(A1stdlife="n/a","n/a",IF(AA$3>(A1stdlife+$E82),('PTRM input'!$K$143*(1+rvanilla05)^0.5)-SUM($K82:Z82),('PTRM input'!$K$143*(1+rvanilla05)^0.5)/A1stdlife)) -> 0.7537440701 | AB82: =IF(A1stdlife="n/a","n/a",IF(AB$3>(A1stdlife+$E82),('PTRM input'!$K$143*(1+rvanilla05)^0.5)-SUM($K82:AA82),('PTRM input'!$K$143*(1+rvanilla05)^0.5)/A1stdlife)) -> 0.7537440701 | AC82: =IF(A1stdlife="n/a","n/a",IF(AC$3>(A1stdlife+$E82),('PTRM input'!$K$143*(1+rvanilla05)^0.5)-SUM($K82:AB82),('PTRM input'!$K$143*(1+rvanilla05)^0.5)/A1stdlife)) -> 0.7537440701 | AD82: =IF(A1stdlife="n/a","n/a",IF(AD$3>(A1stdlife+$E82),('PTRM input'!$K$143*(1+rvanilla05)^0.5)-SUM($K82:AC82),('PTRM input'!$K$143*(1+rvanilla05)^0.5)/A1stdlife)) -> 0.7537440701 | AE82: =IF(A1stdlife="n/a","n/a",IF(AE$3>(A1stdlife+$E82),('PTRM input'!$K$143*(1+rvanilla05)^0.5)-SUM($K82:AD82),('PTRM input'!$K$143*(1+rvanilla05)^0.5)/A1stdlife)) -> 0.7537440701 | AF82: =IF(A1stdlife="n/a","n/a",IF(AF$3>(A1stdlife+$E82),('PTRM input'!$K$143*(1+rvanilla05)^0.5)-SUM($K82:AE82),('PTRM input'!$K$143*(1+rvanilla05)^0.5)/A1stdlife)) -> 0.7537440701 | AG82: =IF(A1stdlife="n/a","n/a",IF(AG$3>(A1stdlife+$E82),('PTRM input'!$K$143*(1+rvanilla05)^0.5)-SUM($K82:AF82),('PTRM input'!$K$143*(1+rvanilla05)^0.5)/A1stdlife)) -> 0.7537440701 | AH82: =IF(A1stdlife="n/a","n/a",IF(AH$3>(A1stdlife+$E82),('PTRM input'!$K$143*(1+rvanilla05)^0.5)-SUM($K82:AG82),('PTRM input'!$K$143*(1+rvanilla05)^0.5)/A1stdlife)) -> 0.7537440701 | AI82: =IF(A1stdlife="n/a","n/a",IF(AI$3>(A1stdlife+$E82),('PTRM input'!$K$143*(1+rvanilla05)^0.5)-SUM($K82:AH82),('PTRM input'!$K$143*(1+rvanilla05)^0.5)/A1stdlife)) -> 0.7537440701 | AJ82: =IF(A1stdlife="n/a","n/a",IF(AJ$3>(A1stdlife+$E82),('PTRM input'!$K$143*(1+rvanilla05)^0.5)-SUM($K82:AI82),('PTRM input'!$K$143*(1+rvanilla05)^0.5)/A1stdlife)) -> 0.7537440701 | AK82: =IF(A1stdlife="n/a","n/a",IF(AK$3>(A1stdlife+$E82),('PTRM input'!$K$143*(1+rvanilla05)^0.5)-SUM($K82:AJ82),('PTRM input'!$K$143*(1+rvanilla05)^0.5)/A1stdlife)) -> 0.7537440701 | AL82: =IF(A1stdlife="n/a","n/a",IF(AL$3>(A1stdlife+$E82),('PTRM input'!$K$143*(1+rvanilla05)^0.5)-SUM($K82:AK82),('PTRM input'!$K$143*(1+rvanilla05)^0.5)/A1stdlife)) -> 0.7537440701 | AM82: =IF(A1stdlife="n/a","n/a",IF(AM$3>(A1stdlife+$E82),('PTRM input'!$K$143*(1+rvanilla05)^0.5)-SUM($K82:AL82),('PTRM input'!$K$143*(1+rvanilla05)^0.5)/A1stdlife)) -> 0.7537440701 | AN82: =IF(A1stdlife="n/a","n/a",IF(AN$3>(A1stdlife+$E82),('PTRM input'!$K$143*(1+rvanilla05)^0.5)-SUM($K82:AM82),('PTRM input'!$K$143*(1+rvanilla05)^0.5)/A1stdlife)) -> 0.7537440701 | AO82: =IF(A1stdlife="n/a","n/a",IF(AO$3>(A1stdlife+$E82),('PTRM input'!$K$143*(1+rvanilla05)^0.5)-SUM($K82:AN82),('PTRM input'!$K$143*(1+rvanilla05)^0.5)/A1stdlife)) -> 0.7537440701 | AP82: =IF(A1stdlife="n/a","n/a",IF(AP$3>(A1stdlife+$E82),('PTRM input'!$K$143*(1+rvanilla05)^0.5)-SUM($K82:AO82),('PTRM input'!$K$143*(1+rvanilla05)^0.5)/A1stdlife)) -> 0.7537440701 | AQ82: =IF(A1stdlife="n/a","n/a",IF(AQ$3>(A1stdlife+$E82),('PTRM input'!$K$143*(1+rvanilla05)^0.5)-SUM($K82:AP82),('PTRM input'!$K$143*(1+rvanilla05)^0.5)/A1stdlife)) -> 0.7537440701 | AR82: =IF(A1stdlife="n/a","n/a",IF(AR$3>(A1stdlife+$E82),('PTRM input'!$K$143*(1+rvanilla05)^0.5)-SUM($K82:AQ82),('PTRM input'!$K$143*(1+rvanilla05)^0.5)/A1stdlife)) -> 0.7537440701 | AS82: =IF(A1stdlife="n/a","n/a",IF(AS$3>(A1stdlife+$E82),('PTRM input'!$K$143*(1+rvanilla05)^0.5)-SUM($K82:AR82),('PTRM input'!$K$143*(1+rvanilla05)^0.5)/A1stdlife)) -> 0.7537440701 | AT82: =IF(A1stdlife="n/a","n/a",IF(AT$3>(A1stdlife+$E82),('PTRM input'!$K$143*(1+rvanilla05)^0.5)-SUM($K82:AS82),('PTRM input'!$K$143*(1+rvanilla05)^0.5)/A1stdlife)) -> 0.7537440701 | AU82: =IF(A1stdlife="n/a","n/a",IF(AU$3>(A1stdlife+$E82),('PTRM input'!$K$143*(1+rvanilla05)^0.5)-SUM($K82:AT82),('PTRM input'!$K$143*(1+rvanilla05)^0.5)/A1stdlife)) -> 0.7537440701 | AV82: =IF(A1stdlife="n/a","n/a",IF(AV$3>(A1stdlife+$E82),('PTRM input'!$K$143*(1+rvanilla05)^0.5)-SUM($K82:AU82),('PTRM input'!$K$143*(1+rvanilla05)^0.5)/A1stdlife)) -> 0.7537440701 | AW82: =IF(A1stdlife="n/a","n/a",IF(AW$3>(A1stdlife+$E82),('PTRM input'!$K$143*(1+rvanilla05)^0.5)-SUM($K82:AV82),('PTRM input'!$K$143*(1+rvanilla05)^0.5)/A1stdlife)) -> 0.7537440701 | AX82: =IF(A1stdlife="n/a","n/a",IF(AX$3>(A1stdlife+$E82),('PTRM input'!$K$143*(1+rvanilla05)^0.5)-SUM($K82:AW82),('PTRM input'!$K$143*(1+rvanilla05)^0.5)/A1stdlife)) -> 0.7537440701 | AY82: =IF(A1stdlife="n/a","n/a",IF(AY$3>(A1stdlife+$E82),('PTRM input'!$K$143*(1+rvanilla05)^0.5)-SUM($K82:AX82),('PTRM input'!$K$143*(1+rvanilla05)^0.5)/A1stdlife)) -> 0.7537440701 | AZ82: =IF(A1stdlife="n/a","n/a",IF(AZ$3>(A1stdlife+$E82),('PTRM input'!$K$143*(1+rvanilla05)^0.5)-SUM($K82:AY82),('PTRM input'!$K$143*(1+rvanilla05)^0.5)/A1stdlife)) -> 0.7537440701 | BA82: =IF(A1stdlife="n/a","n/a",IF(BA$3>(A1stdlife+$E82),('PTRM input'!$K$143*(1+rvanilla05)^0.5)-SUM($K82:AZ82),('PTRM input'!$K$143*(1+rvanilla05)^0.5)/A1stdlife)) -> 0.7537440701 | BB82: =IF(A1stdlife="n/a","n/a",IF(BB$3>(A1stdlife+$E82),('PTRM input'!$K$143*(1+rvanilla05)^0.5)-SUM($K82:BA82),('PTRM input'!$K$143*(1+rvanilla05)^0.5)/A1stdlife)) -> 0.7537440701 | BC82: =IF(A1stdlife="n/a","n/a",IF(BC$3>(A1stdlife+$E82),('PTRM input'!$K$143*(1+rvanilla05)^0.5)-SUM($K82:BB82),('PTRM input'!$K$143*(1+rvanilla05)^0.5)/A1stdlife)) -> 0.7537440701 | BD82: =IF(A1stdlife="n/a","n/a",IF(BD$3>(A1stdlife+$E82),('PTRM input'!$K$143*(1+rvanilla05)^0.5)-SUM($K82:BC82),('PTRM input'!$K$143*(1+rvanilla05)^0.5)/A1stdlife)) -> 0.7537440701 | BE82: =IF(A1stdlife="n/a","n/a",IF(BE$3>(A1stdlife+$E82),('PTRM input'!$K$143*(1+rvanilla05)^0.5)-SUM($K82:BD82),('PTRM input'!$K$143*(1+rvanilla05)^0.5)/A1stdlife)) -> 0.7537440701 | BF82: =IF(A1stdlife="n/a","n/a",IF(BF$3>(A1stdlife+$E82),('PTRM input'!$K$143*(1+rvanilla05)^0.5)-SUM($K82:BE82),('PTRM input'!$K$143*(1+rvanilla05)^0.5)/A1stdlife)) -> 0.7537440701 | BG82: =IF(A1stdlife="n/a","n/a",IF(BG$3>(A1stdlife+$E82),('PTRM input'!$K$143*(1+rvanilla05)^0.5)-SUM($K82:BF82),('PTRM input'!$K$143*(1+rvanilla05)^0.5)/A1stdlife)) -> 0.7537440701 | BH82: =IF(A1stdlife="n/a","n/a",IF(BH$3>(A1stdlife+$E82),('PTRM input'!$K$143*(1+rvanilla05)^0.5)-SUM($K82:BG82),('PTRM input'!$K$143*(1+rvanilla05)^0.5)/A1stdlife)) -> 0.7537440701 | BI82: =IF(A1stdlife="n/a","n/a",IF(BI$3>(A1stdlife+$E82),('PTRM input'!$K$143*(1+rvanilla05)^0.5)-SUM($K82:BH82),('PTRM input'!$K$143*(1+rvanilla05)^0.5)/A1stdlife)) -> 0.7537440701
E83: 6 | M83: =IF(A1stdlife="n/a","n/a",IF(M$3>(A1stdlife+$E83),('PTRM input'!$L$143*(1+rvanilla06)^0.5)-SUM($L83:L83),('PTRM input'!$L$143*(1+rvanilla06)^0.5)/A1stdlife)) -> 0 | N83: =IF(A1stdlife="n/a","n/a",IF(N$3>(A1stdlife+$E83),('PTRM input'!$L$143*(1+rvanilla06)^0.5)-SUM($L83:M83),('PTRM input'!$L$143*(1+rvanilla06)^0.5)/A1stdlife)) -> 0 | O83: =IF(A1stdlife="n/a","n/a",IF(O$3>(A1stdlife+$E83),('PTRM input'!$L$143*(1+rvanilla06)^0.5)-SUM($L83:N83),('PTRM input'!$L$143*(1+rvanilla06)^0.5)/A1stdlife)) -> 0 | P83: =IF(A1stdlife="n/a","n/a",IF(P$3>(A1stdlife+$E83),('PTRM input'!$L$143*(1+rvanilla06)^0.5)-SUM($L83:O83),('PTRM input'!$L$143*(1+rvanilla06)^0.5)/A1stdlife)) -> 0 | Q83: =IF(A1stdlife="n/a","n/a",IF(Q$3>(A1stdlife+$E83),('PTRM input'!$L$143*(1+rvanilla06)^0.5)-SUM($L83:P83),('PTRM input'!$L$143*(1+rvanilla06)^0.5)/A1stdlife)) -> 0 | R83: =IF(A1stdlife="n/a","n/a",IF(R$3>(A1stdlife+$E83),('PTRM input'!$L$143*(1+rvanilla06)^0.5)-SUM($L83:Q83),('PTRM input'!$L$143*(1+rvanilla06)^0.5)/A1stdlife)) -> 0 | S83: =IF(A1stdlife="n/a","n/a",IF(S$3>(A1stdlife+$E83),('PTRM input'!$L$143*(1+rvanilla06)^0.5)-SUM($L83:R83),('PTRM input'!$L$143*(1+rvanilla06)^0.5)/A1stdlife)) -> 0 | T83: =IF(A1stdlife="n/a","n/a",IF(T$3>(A1stdlife+$E83),('PTRM input'!$L$143*(1+rvanilla06)^0.5)-SUM($L83:S83),('PTRM input'!$L$143*(1+rvanilla06)^0.5)/A1stdlife)) -> 0 | U83: =IF(A1stdlife="n/a","n/a",IF(U$3>(A1stdlife+$E83),('PTRM input'!$L$143*(1+rvanilla06)^0.5)-SUM($L83:T83),('PTRM input'!$L$143*(1+rvanilla06)^0.5)/A1stdlife)) -> 0 | V83: =IF(A1stdlife="n/a","n/a",IF(V$3>(A1stdlife+$E83),('PTRM input'!$L$143*(1+rvanilla06)^0.5)-SUM($L83:U83),('PTRM input'!$L$143*(1+rvanilla06)^0.5)/A1stdlife)) -> 0 | W83: =IF(A1stdlife="n/a","n/a",IF(W$3>(A1stdlife+$E83),('PTRM input'!$L$143*(1+rvanilla06)^0.5)-SUM($L83:V83),('PTRM input'!$L$143*(1+rvanilla06)^0.5)/A1stdlife)) -> 0 | X83: =IF(A1stdlife="n/a","n/a",IF(X$3>(A1stdlife+$E83),('PTRM input'!$L$143*(1+rvanilla06)^0.5)-SUM($L83:W83),('PTRM input'!$L$143*(1+rvanilla06)^0.5)/A1stdlife)) -> 0 | Y83: =IF(A1stdlife="n/a","n/a",IF(Y$3>(A1stdlife+$E83),('PTRM input'!$L$143*(1+rvanilla06)^0.5)-SUM($L83:X83),('PTRM input'!$L$143*(1+rvanilla06)^0.5)/A1stdlife)) -> 0 | Z83: =IF(A1stdlife="n/a","n/a",IF(Z$3>(A1stdlife+$E83),('PTRM input'!$L$143*(1+rvanilla06)^0.5)-SUM($L83:Y83),('PTRM input'!$L$143*(1+rvanilla06)^0.5)/A1stdlife)) -> 0 | AA83: =IF(A1stdlife="n/a","n/a",IF(AA$3>(A1stdlife+$E83),('PTRM input'!$L$143*(1+rvanilla06)^0.5)-SUM($L83:Z83),('PTRM input'!$L$143*(1+rvanilla06)^0.5)/A1stdlife)) -> 0 | AB83: =IF(A1stdlife="n/a","n/a",IF(AB$3>(A1stdlife+$E83),('PTRM input'!$L$143*(1+rvanilla06)^0.5)-SUM($L83:AA83),('PTRM input'!$L$143*(1+rvanilla06)^0.5)/A1stdlife)) -> 0 | AC83: =IF(A1stdlife="n/a","n/a",IF(AC$3>(A1stdlife+$E83),('PTRM input'!$L$143*(1+rvanilla06)^0.5)-SUM($L83:AB83),('PTRM input'!$L$143*(1+rvanilla06)^0.5)/A1stdlife)) -> 0 | AD83: =IF(A1stdlife="n/a","n/a",IF(AD$3>(A1stdlife+$E83),('PTRM input'!$L$143*(1+rvanilla06)^0.5)-SUM($L83:AC83),('PTRM input'!$L$143*(1+rvanilla06)^0.5)/A1stdlife)) -> 0 | AE83: =IF(A1stdlife="n/a","n/a",IF(AE$3>(A1stdlife+$E83),('PTRM input'!$L$143*(1+rvanilla06)^0.5)-SUM($L83:AD83),('PTRM input'!$L$143*(1+rvanilla06)^0.5)/A1stdlife)) -> 0 | AF83: =IF(A1stdlife="n/a","n/a",IF(AF$3>(A1stdlife+$E83),('PTRM input'!$L$143*(1+rvanilla06)^0.5)-SUM($L83:AE83),('PTRM input'!$L$143*(1+rvanilla06)^0.5)/A1stdlife)) -> 0 | AG83: =IF(A1stdlife="n/a","n/a",IF(AG$3>(A1stdlife+$E83),('PTRM input'!$L$143*(1+rvanilla06)^0.5)-SUM($L83:AF83),('PTRM input'!$L$143*(1+rvanilla06)^0.5)/A1stdlife)) -> 0 | AH83: =IF(A1stdlife="n/a","n/a",IF(AH$3>(A1stdlife+$E83),('PTRM input'!$L$143*(1+rvanilla06)^0.5)-SUM($L83:AG83),('PTRM input'!$L$143*(1+rvanilla06)^0.5)/A1stdlife)) -> 0 | AI83: =IF(A1stdlife="n/a","n/a",IF(AI$3>(A1stdlife+$E83),('PTRM input'!$L$143*(1+rvanilla06)^0.5)-SUM($L83:AH83),('PTRM input'!$L$143*(1+rvanilla06)^0.5)/A1stdlife)) -> 0 | AJ83: =IF(A1stdlife="n/a","n/a",IF(AJ$3>(A1stdlife+$E83),('PTRM input'!$L$143*(1+rvanilla06)^0.5)-SUM($L83:AI83),('PTRM input'!$L$143*(1+rvanilla06)^0.5)/A1stdlife)) -> 0 | AK83: =IF(A1stdlife="n/a","n/a",IF(AK$3>(A1stdlife+$E83),('PTRM input'!$L$143*(1+rvanilla06)^0.5)-SUM($L83:AJ83),('PTRM input'!$L$143*(1+rvanilla06)^0.5)/A1stdlife)) -> 0 | AL83: =IF(A1stdlife="n/a","n/a",IF(AL$3>(A1stdlife+$E83),('PTRM input'!$L$143*(1+rvanilla06)^0.5)-SUM($L83:AK83),('PTRM input'!$L$143*(1+rvanilla06)^0.5)/A1stdlife)) -> 0 | AM83: =IF(A1stdlife="n/a","n/a",IF(AM$3>(A1stdlife+$E83),('PTRM input'!$L$143*(1+rvanilla06)^0.5)-SUM($L83:AL83),('PTRM input'!$L$143*(1+rvanilla06)^0.5)/A1stdlife)) -> 0 | AN83: =IF(A1stdlife="n/a","n/a",IF(AN$3>(A1stdlife+$E83),('PTRM input'!$L$143*(1+rvanilla06)^0.5)-SUM($L83:AM83),('PTRM input'!$L$143*(1+rvanilla06)^0.5)/A1stdlife)) -> 0 | AO83: =IF(A1stdlife="n/a","n/a",IF(AO$3>(A1stdlife+$E83),('PTRM input'!$L$143*(1+rvanilla06)^0.5)-SUM($L83:AN83),('PTRM input'!$L$143*(1+rvanilla06)^0.5)/A1stdlife)) -> 0 | AP83: =IF(A1stdlife="n/a","n/a",IF(AP$3>(A1stdlife+$E83),('PTRM input'!$L$143*(1+rvanilla06)^0.5)-SUM($L83:AO83),('PTRM input'!$L$143*(1+rvanilla06)^0.5)/A1stdlife)) -> 0 | AQ83: =IF(A1stdlife="n/a","n/a",IF(AQ$3>(A1stdlife+$E83),('PTRM input'!$L$143*(1+rvanilla06)^0.5)-SUM($L83:AP83),('PTRM input'!$L$143*(1+rvanilla06)^0.5)/A1stdlife)) -> 0 | AR83: =IF(A1stdlife="n/a","n/a",IF(AR$3>(A1stdlife+$E83),('PTRM input'!$L$143*(1+rvanilla06)^0.5)-SUM($L83:AQ83),('PTRM input'!$L$143*(1+rvanilla06)^0.5)/A1stdlife)) -> 0 | AS83: =IF(A1stdlife="n/a","n/a",IF(AS$3>(A1stdlife+$E83),('PTRM input'!$L$143*(1+rvanilla06)^0.5)-SUM($L83:AR83),('PTRM input'!$L$143*(1+rvanilla06)^0.5)/A1stdlife)) -> 0 | AT83: =IF(A1stdlife="n/a","n/a",IF(AT$3>(A1stdlife+$E83),('PTRM input'!$L$143*(1+rvanilla06)^0.5)-SUM($L83:AS83),('PTRM input'!$L$143*(1+rvanilla06)^0.5)/A1stdlife)) -> 0 | AU83: =IF(A1stdlife="n/a","n/a",IF(AU$3>(A1stdlife+$E83),('PTRM input'!$L$143*(1+rvanilla06)^0.5)-SUM($L83:AT83),('PTRM input'!$L$143*(1+rvanilla06)^0.5)/A1stdlife)) -> 0 | AV83: =IF(A1stdlife="n/a","n/a",IF(AV$3>(A1stdlife+$E83),('PTRM input'!$L$143*(1+rvanilla06)^0.5)-SUM($L83:AU83),('PTRM input'!$L$143*(1+rvanilla06)^0.5)/A1stdlife)) -> 0 | AW83: =IF(A1stdlife="n/a","n/a",IF(AW$3>(A1stdlife+$E83),('PTRM input'!$L$143*(1+rvanilla06)^0.5)-SUM($L83:AV83),('PTRM input'!$L$143*(1+rvanilla06)^0.5)/A1stdlife)) -> 0 | AX83: =IF(A1stdlife="n/a","n/a",IF(AX$3>(A1stdlife+$E83),('PTRM input'!$L$143*(1+rvanilla06)^0.5)-SUM($L83:AW83),('PTRM input'!$L$143*(1+rvanilla06)^0.5)/A1stdlife)) -> 0 | AY83: =IF(A1stdlife="n/a","n/a",IF(AY$3>(A1stdlife+$E83),('PTRM input'!$L$143*(1+rvanilla06)^0.5)-SUM($L83:AX83),('PTRM input'!$L$143*(1+rvanilla06)^0.5)/A1stdlife)) -> 0 | AZ83: =IF(A1stdlife="n/a","n/a",IF(AZ$3>(A1stdlife+$E83),('PTRM input'!$L$143*(1+rvanilla06)^0.5)-SUM($L83:AY83),('PTRM input'!$L$143*(1+rvanilla06)^0.5)/A1stdlife)) -> 0 | BA83: =IF(A1stdlife="n/a","n/a",IF(BA$3>(A1stdlife+$E83),('PTRM input'!$L$143*(1+rvanilla06)^0.5)-SUM($L83:AZ83),('PTRM input'!$L$143*(1+rvanilla06)^0.5)/A1stdlife)) -> 0 | BB83: =IF(A1stdlife="n/a","n/a",IF(BB$3>(A1stdlife+$E83),('PTRM input'!$L$143*(1+rvanilla06)^0.5)-SUM($L83:BA83),('PTRM input'!$L$143*(1+rvanilla06)^0.5)/A1stdlife)) -> 0 | BC83: =IF(A1stdlife="n/a","n/a",IF(BC$3>(A1stdlife+$E83),('PTRM input'!$L$143*(1+rvanilla06)^0.5)-SUM($L83:BB83),('PTRM input'!$L$143*(1+rvanilla06)^0.5)/A1stdlife)) -> 0 | BD83: =IF(A1stdlife="n/a","n/a",IF(BD$3>(A1stdlife+$E83),('PTRM input'!$L$143*(1+rvanilla06)^0.5)-SUM($L83:BC83),('PTRM input'!$L$143*(1+rvanilla06)^0.5)/A1stdlife)) -> 0 | BE83: =IF(A1stdlife="n/a","n/a",IF(BE$3>(A1stdlife+$E83),('PTRM input'!$L$143*(1+rvanilla06)^0.5)-SUM($L83:BD83),('PTRM input'!$L$143*(1+rvanilla06)^0.5)/A1stdlife)) -> 0 | BF83: =IF(A1stdlife="n/a","n/a",IF(BF$3>(A1stdlife+$E83),('PTRM input'!$L$143*(1+rvanilla06)^0.5)-SUM($L83:BE83),('PTRM input'!$L$143*(1+rvanilla06)^0.5)/A1stdlife)) -> 0 | BG83: =IF(A1stdlife="n/a","n/a",IF(BG$3>(A1stdlife+$E83),('PTRM input'!$L$143*(1+rvanilla06)^0.5)-SUM($L83:BF83),('PTRM input'!$L$143*(1+rvanilla06)^0.5)/A1stdlife)) -> 0 | BH83: =IF(A1stdlife="n/a","n/a",IF(BH$3>(A1stdlife+$E83),('PTRM input'!$L$143*(1+rvanilla06)^0.5)-SUM($L83:BG83),('PTRM input'!$L$143*(1+rvanilla06)^0.5)/A1stdlife)) -> 0 | BI83: =IF(A1stdlife="n/a","n/a",IF(BI$3>(A1stdlife+$E83),('PTRM input'!$L$143*(1+rvanilla06)^0.5)-SUM($L83:BH83),('PTRM input'!$L$143*(1+rvanilla06)^0.5)/A1stdlife)) -> 0
E84: 7 | N84: =IF(A1stdlife="n/a","n/a",IF(N$3>(A1stdlife+$E84),('PTRM input'!$M$143*(1+rvanilla07)^0.5)-SUM($M84:M84),('PTRM input'!$M$143*(1+rvanilla07)^0.5)/A1stdlife)) -> 0 | O84: =IF(A1stdlife="n/a","n/a",IF(O$3>(A1stdlife+$E84),('PTRM input'!$M$143*(1+rvanilla07)^0.5)-SUM($M84:N84),('PTRM input'!$M$143*(1+rvanilla07)^0.5)/A1stdlife)) -> 0 | P84: =IF(A1stdlife="n/a","n/a",IF(P$3>(A1stdlife+$E84),('PTRM input'!$M$143*(1+rvanilla07)^0.5)-SUM($M84:O84),('PTRM input'!$M$143*(1+rvanilla07)^0.5)/A1stdlife)) -> 0 | Q84: =IF(A1stdlife="n/a","n/a",IF(Q$3>(A1stdlife+$E84),('PTRM input'!$M$143*(1+rvanilla07)^0.5)-SUM($M84:P84),('PTRM input'!$M$143*(1+rvanilla07)^0.5)/A1stdlife)) -> 0 | R84: =IF(A1stdlife="n/a","n/a",IF(R$3>(A1stdlife+$E84),('PTRM input'!$M$143*(1+rvanilla07)^0.5)-SUM($M84:Q84),('PTRM input'!$M$143*(1+rvanilla07)^0.5)/A1stdlife)) -> 0 | S84: =IF(A1stdlife="n/a","n/a",IF(S$3>(A1stdlife+$E84),('PTRM input'!$M$143*(1+rvanilla07)^0.5)-SUM($M84:R84),('PTRM input'!$M$143*(1+rvanilla07)^0.5)/A1stdlife)) -> 0 | T84: =IF(A1stdlife="n/a","n/a",IF(T$3>(A1stdlife+$E84),('PTRM input'!$M$143*(1+rvanilla07)^0.5)-SUM($M84:S84),('PTRM input'!$M$143*(1+rvanilla07)^0.5)/A1stdlife)) -> 0 | U84: =IF(A1stdlife="n/a","n/a",IF(U$3>(A1stdlife+$E84),('PTRM input'!$M$143*(1+rvanilla07)^0.5)-SUM($M84:T84),('PTRM input'!$M$143*(1+rvanilla07)^0.5)/A1stdlife)) -> 0 | V84: =IF(A1stdlife="n/a","n/a",IF(V$3>(A1stdlife+$E84),('PTRM input'!$M$143*(1+rvanilla07)^0.5)-SUM($M84:U84),('PTRM input'!$M$143*(1+rvanilla07)^0.5)/A1stdlife)) -> 0 | W84: =IF(A1stdlife="n/a","n/a",IF(W$3>(A1stdlife+$E84),('PTRM input'!$M$143*(1+rvanilla07)^0.5)-SUM($M84:V84),('PTRM input'!$M$143*(1+rvanilla07)^0.5)/A1stdlife)) -> 0 | X84: =IF(A1stdlife="n/a","n/a",IF(X$3>(A1stdlife+$E84),('PTRM input'!$M$143*(1+rvanilla07)^0.5)-SUM($M84:W84),('PTRM input'!$M$143*(1+rvanilla07)^0.5)/A1stdlife)) -> 0 | Y84: =IF(A1stdlife="n/a","n/a",IF(Y$3>(A1stdlife+$E84),('PTRM input'!$M$143*(1+rvanilla07)^0.5)-SUM($M84:X84),('PTRM input'!$M$143*(1+rvanilla07)^0.5)/A1stdlife)) -> 0 | Z84: =IF(A1stdlife="n/a","n/a",IF(Z$3>(A1stdlife+$E84),('PTRM input'!$M$143*(1+rvanilla07)^0.5)-SUM($M84:Y84),('PTRM input'!$M$143*(1+rvanilla07)^0.5)/A1stdlife)) -> 0 | AA84: =IF(A1stdlife="n/a","n/a",IF(AA$3>(A1stdlife+$E84),('PTRM input'!$M$143*(1+rvanilla07)^0.5)-SUM($M84:Z84),('PTRM input'!$M$143*(1+rvanilla07)^0.5)/A1stdlife)) -> 0 | AB84: =IF(A1stdlife="n/a","n/a",IF(AB$3>(A1stdlife+$E84),('PTRM input'!$M$143*(1+rvanilla07)^0.5)-SUM($M84:AA84),('PTRM input'!$M$143*(1+rvanilla07)^0.5)/A1stdlife)) -> 0 | AC84: =IF(A1stdlife="n/a","n/a",IF(AC$3>(A1stdlife+$E84),('PTRM input'!$M$143*(1+rvanilla07)^0.5)-SUM($M84:AB84),('PTRM input'!$M$143*(1+rvanilla07)^0.5)/A1stdlife)) -> 0 | AD84: =IF(A1stdlife="n/a","n/a",IF(AD$3>(A1stdlife+$E84),('PTRM input'!$M$143*(1+rvanilla07)^0.5)-SUM($M84:AC84),('PTRM input'!$M$143*(1+rvanilla07)^0.5)/A1stdlife)) -> 0 | AE84: =IF(A1stdlife="n/a","n/a",IF(AE$3>(A1stdlife+$E84),('PTRM input'!$M$143*(1+rvanilla07)^0.5)-SUM($M84:AD84),('PTRM input'!$M$143*(1+rvanilla07)^0.5)/A1stdlife)) -> 0 | AF84: =IF(A1stdlife="n/a","n/a",IF(AF$3>(A1stdlife+$E84),('PTRM input'!$M$143*(1+rvanilla07)^0.5)-SUM($M84:AE84),('PTRM input'!$M$143*(1+rvanilla07)^0.5)/A1stdlife)) -> 0 | AG84: =IF(A1stdlife="n/a","n/a",IF(AG$3>(A1stdlife+$E84),('PTRM input'!$M$143*(1+rvanilla07)^0.5)-SUM($M84:AF84),('PTRM input'!$M$143*(1+rvanilla07)^0.5)/A1stdlife)) -> 0 | AH84: =IF(A1stdlife="n/a","n/a",IF(AH$3>(A1stdlife+$E84),('PTRM input'!$M$143*(1+rvanilla07)^0.5)-SUM($M84:AG84),('PTRM input'!$M$143*(1+rvanilla07)^0.5)/A1stdlife)) -> 0 | AI84: =IF(A1stdlife="n/a","n/a",IF(AI$3>(A1stdlife+$E84),('PTRM input'!$M$143*(1+rvanilla07)^0.5)-SUM($M84:AH84),('PTRM input'!$M$143*(1+rvanilla07)^0.5)/A1stdlife)) -> 0 | AJ84: =IF(A1stdlife="n/a","n/a",IF(AJ$3>(A1stdlife+$E84),('PTRM input'!$M$143*(1+rvanilla07)^0.5)-SUM($M84:AI84),('PTRM input'!$M$143*(1+rvanilla07)^0.5)/A1stdlife)) -> 0 | AK84: =IF(A1stdlife="n/a","n/a",IF(AK$3>(A1stdlife+$E84),('PTRM input'!$M$143*(1+rvanilla07)^0.5)-SUM($M84:AJ84),('PTRM input'!$M$143*(1+rvanilla07)^0.5)/A1stdlife)) -> 0 | AL84: =IF(A1stdlife="n/a","n/a",IF(AL$3>(A1stdlife+$E84),('PTRM input'!$M$143*(1+rvanilla07)^0.5)-SUM($M84:AK84),('PTRM input'!$M$143*(1+rvanilla07)^0.5)/A1stdlife)) -> 0 | AM84: =IF(A1stdlife="n/a","n/a",IF(AM$3>(A1stdlife+$E84),('PTRM input'!$M$143*(1+rvanilla07)^0.5)-SUM($M84:AL84),('PTRM input'!$M$143*(1+rvanilla07)^0.5)/A1stdlife)) -> 0 | AN84: =IF(A1stdlife="n/a","n/a",IF(AN$3>(A1stdlife+$E84),('PTRM input'!$M$143*(1+rvanilla07)^0.5)-SUM($M84:AM84),('PTRM input'!$M$143*(1+rvanilla07)^0.5)/A1stdlife)) -> 0 | AO84: =IF(A1stdlife="n/a","n/a",IF(AO$3>(A1stdlife+$E84),('PTRM input'!$M$143*(1+rvanilla07)^0.5)-SUM($M84:AN84),('PTRM input'!$M$143*(1+rvanilla07)^0.5)/A1stdlife)) -> 0 | AP84: =IF(A1stdlife="n/a","n/a",IF(AP$3>(A1stdlife+$E84),('PTRM input'!$M$143*(1+rvanilla07)^0.5)-SUM($M84:AO84),('PTRM input'!$M$143*(1+rvanilla07)^0.5)/A1stdlife)) -> 0 | AQ84: =IF(A1stdlife="n/a","n/a",IF(AQ$3>(A1stdlife+$E84),('PTRM input'!$M$143*(1+rvanilla07)^0.5)-SUM($M84:AP84),('PTRM input'!$M$143*(1+rvanilla07)^0.5)/A1stdlife)) -> 0 | AR84: =IF(A1stdlife="n/a","n/a",IF(AR$3>(A1stdlife+$E84),('PTRM input'!$M$143*(1+rvanilla07)^0.5)-SUM($M84:AQ84),('PTRM input'!$M$143*(1+rvanilla07)^0.5)/A1stdlife)) -> 0 | AS84: =IF(A1stdlife="n/a","n/a",IF(AS$3>(A1stdlife+$E84),('PTRM input'!$M$143*(1+rvanilla07)^0.5)-SUM($M84:AR84),('PTRM input'!$M$143*(1+rvanilla07)^0.5)/A1stdlife)) -> 0 | AT84: =IF(A1stdlife="n/a","n/a",IF(AT$3>(A1stdlife+$E84),('PTRM input'!$M$143*(1+rvanilla07)^0.5)-SUM($M84:AS84),('PTRM input'!$M$143*(1+rvanilla07)^0.5)/A1stdlife)) -> 0 | AU84: =IF(A1stdlife="n/a","n/a",IF(AU$3>(A1stdlife+$E84),('PTRM input'!$M$143*(1+rvanilla07)^0.5)-SUM($M84:AT84),('PTRM input'!$M$143*(1+rvanilla07)^0.5)/A1stdlife)) -> 0 | AV84: =IF(A1stdlife="n/a","n/a",IF(AV$3>(A1stdlife+$E84),('PTRM input'!$M$143*(1+rvanilla07)^0.5)-SUM($M84:AU84),('PTRM input'!$M$143*(1+rvanilla07)^0.5)/A1stdlife)) -> 0 | AW84: =IF(A1stdlife="n/a","n/a",IF(AW$3>(A1stdlife+$E84),('PTRM input'!$M$143*(1+rvanilla07)^0.5)-SUM($M84:AV84),('PTRM input'!$M$143*(1+rvanilla07)^0.5)/A1stdlife)) -> 0 | AX84: =IF(A1stdlife="n/a","n/a",IF(AX$3>(A1stdlife+$E84),('PTRM input'!$M$143*(1+rvanilla07)^0.5)-SUM($M84:AW84),('PTRM input'!$M$143*(1+rvanilla07)^0.5)/A1stdlife)) -> 0 | AY84: =IF(A1stdlife="n/a","n/a",IF(AY$3>(A1stdlife+$E84),('PTRM input'!$M$143*(1+rvanilla07)^0.5)-SUM($M84:AX84),('PTRM input'!$M$143*(1+rvanilla07)^0.5)/A1stdlife)) -> 0 | AZ84: =IF(A1stdlife="n/a","n/a",IF(AZ$3>(A1stdlife+$E84),('PTRM input'!$M$143*(1+rvanilla07)^0.5)-SUM($M84:AY84),('PTRM input'!$M$143*(1+rvanilla07)^0.5)/A1stdlife)) -> 0 | BA84: =IF(A1stdlife="n/a","n/a",IF(BA$3>(A1stdlife+$E84),('PTRM input'!$M$143*(1+rvanilla07)^0.5)-SUM($M84:AZ84),('PTRM input'!$M$143*(1+rvanilla07)^0.5)/A1stdlife)) -> 0 | BB84: =IF(A1stdlife="n/a","n/a",IF(BB$3>(A1stdlife+$E84),('PTRM input'!$M$143*(1+rvanilla07)^0.5)-SUM($M84:BA84),('PTRM input'!$M$143*(1+rvanilla07)^0.5)/A1stdlife)) -> 0 | BC84: =IF(A1stdlife="n/a","n/a",IF(BC$3>(A1stdlife+$E84),('PTRM input'!$M$143*(1+rvanilla07)^0.5)-SUM($M84:BB84),('PTRM input'!$M$143*(1+rvanilla07)^0.5)/A1stdlife)) -> 0 | BD84: =IF(A1stdlife="n/a","n/a",IF(BD$3>(A1stdlife+$E84),('PTRM input'!$M$143*(1+rvanilla07)^0.5)-SUM($M84:BC84),('PTRM input'!$M$143*(1+rvanilla07)^0.5)/A1stdlife)) -> 0 | BE84: =IF(A1stdlife="n/a","n/a",IF(BE$3>(A1stdlife+$E84),('PTRM input'!$M$143*(1+rvanilla07)^0.5)-SUM($M84:BD84),('PTRM input'!$M$143*(1+rvanilla07)^0.5)/A1stdlife)) -> 0 | BF84: =IF(A1stdlife="n/a","n/a",IF(BF$3>(A1stdlife+$E84),('PTRM input'!$M$143*(1+rvanilla07)^0.5)-SUM($M84:BE84),('PTRM input'!$M$143*(1+rvanilla07)^0.5)/A1stdlife)) -> 0 | BG84: =IF(A1stdlife="n/a","n/a",IF(BG$3>(A1stdlife+$E84),('PTRM input'!$M$143*(1+rvanilla07)^0.5)-SUM($M84:BF84),('PTRM input'!$M$143*(1+rvanilla07)^0.5)/A1stdlife)) -> 0 | BH84: =IF(A1stdlife="n/a","n/a",IF(BH$3>(A1stdlife+$E84),('PTRM input'!$M$143*(1+rvanilla07)^0.5)-SUM($M84:BG84),('PTRM input'!$M$143*(1+rvanilla07)^0.5)/A1stdlife)) -> 0 | BI84: =IF(A1stdlife="n/a","n/a",IF(BI$3>(A1stdlife+$E84),('PTRM input'!$M$143*(1+rvanilla07)^0.5)-SUM($M84:BH84),('PTRM input'!$M$143*(1+rvanilla07)^0.5)/A1stdlife)) -> 0
E85: 8 | O85: =IF(A1stdlife="n/a","n/a",IF(O$3>(A1stdlife+$E85),('PTRM input'!$N$143*(1+rvanilla08)^0.5)-SUM($N85:N85),('PTRM input'!$N$143*(1+rvanilla08)^0.5)/A1stdlife)) -> 0 | P85: =IF(A1stdlife="n/a","n/a",IF(P$3>(A1stdlife+$E85),('PTRM input'!$N$143*(1+rvanilla08)^0.5)-SUM($N85:O85),('PTRM input'!$N$143*(1+rvanilla08)^0.5)/A1stdlife)) -> 0 | Q85: =IF(A1stdlife="n/a","n/a",IF(Q$3>(A1stdlife+$E85),('PTRM input'!$N$143*(1+rvanilla08)^0.5)-SUM($N85:P85),('PTRM input'!$N$143*(1+rvanilla08)^0.5)/A1stdlife)) -> 0 | R85: =IF(A1stdlife="n/a","n/a",IF(R$3>(A1stdlife+$E85),('PTRM input'!$N$143*(1+rvanilla08)^0.5)-SUM($N85:Q85),('PTRM input'!$N$143*(1+rvanilla08)^0.5)/A1stdlife)) -> 0 | S85: =IF(A1stdlife="n/a","n/a",IF(S$3>(A1stdlife+$E85),('PTRM input'!$N$143*(1+rvanilla08)^0.5)-SUM($N85:R85),('PTRM input'!$N$143*(1+rvanilla08)^0.5)/A1stdlife)) -> 0 | T85: =IF(A1stdlife="n/a","n/a",IF(T$3>(A1stdlife+$E85),('PTRM input'!$N$143*(1+rvanilla08)^0.5)-SUM($N85:S85),('PTRM input'!$N$143*(1+rvanilla08)^0.5)/A1stdlife)) -> 0 | U85: =IF(A1stdlife="n/a","n/a",IF(U$3>(A1stdlife+$E85),('PTRM input'!$N$143*(1+rvanilla08)^0.5)-SUM($N85:T85),('PTRM input'!$N$143*(1+rvanilla08)^0.5)/A1stdlife)) -> 0 | V85: =IF(A1stdlife="n/a","n/a",IF(V$3>(A1stdlife+$E85),('PTRM input'!$N$143*(1+rvanilla08)^0.5)-SUM($N85:U85),('PTRM input'!$N$143*(1+rvanilla08)^0.5)/A1stdlife)) -> 0 | W85: =IF(A1stdlife="n/a","n/a",IF(W$3>(A1stdlife+$E85),('PTRM input'!$N$143*(1+rvanilla08)^0.5)-SUM($N85:V85),('PTRM input'!$N$143*(1+rvanilla08)^0.5)/A1stdlife)) -> 0 | X85: =IF(A1stdlife="n/a","n/a",IF(X$3>(A1stdlife+$E85),('PTRM input'!$N$143*(1+rvanilla08)^0.5)-SUM($N85:W85),('PTRM input'!$N$143*(1+rvanilla08)^0.5)/A1stdlife)) -> 0 | Y85: =IF(A1stdlife="n/a","n/a",IF(Y$3>(A1stdlife+$E85),('PTRM input'!$N$143*(1+rvanilla08)^0.5)-SUM($N85:X85),('PTRM input'!$N$143*(1+rvanilla08)^0.5)/A1stdlife)) -> 0 | Z85: =IF(A1stdlife="n/a","n/a",IF(Z$3>(A1stdlife+$E85),('PTRM input'!$N$143*(1+rvanilla08)^0.5)-SUM($N85:Y85),('PTRM input'!$N$143*(1+rvanilla08)^0.5)/A1stdlife)) -> 0 | AA85: =IF(A1stdlife="n/a","n/a",IF(AA$3>(A1stdlife+$E85),('PTRM input'!$N$143*(1+rvanilla08)^0.5)-SUM($N85:Z85),('PTRM input'!$N$143*(1+rvanilla08)^0.5)/A1stdlife)) -> 0 | AB85: =IF(A1stdlife="n/a","n/a",IF(AB$3>(A1stdlife+$E85),('PTRM input'!$N$143*(1+rvanilla08)^0.5)-SUM($N85:AA85),('PTRM input'!$N$143*(1+rvanilla08)^0.5)/A1stdlife)) -> 0 | AC85: =IF(A1stdlife="n/a","n/a",IF(AC$3>(A1stdlife+$E85),('PTRM input'!$N$143*(1+rvanilla08)^0.5)-SUM($N85:AB85),('PTRM input'!$N$143*(1+rvanilla08)^0.5)/A1stdlife)) -> 0 | AD85: =IF(A1stdlife="n/a","n/a",IF(AD$3>(A1stdlife+$E85),('PTRM input'!$N$143*(1+rvanilla08)^0.5)-SUM($N85:AC85),('PTRM input'!$N$143*(1+rvanilla08)^0.5)/A1stdlife)) -> 0 | AE85: =IF(A1stdlife="n/a","n/a",IF(AE$3>(A1stdlife+$E85),('PTRM input'!$N$143*(1+rvanilla08)^0.5)-SUM($N85:AD85),('PTRM input'!$N$143*(1+rvanilla08)^0.5)/A1stdlife)) -> 0 | AF85: =IF(A1stdlife="n/a","n/a",IF(AF$3>(A1stdlife+$E85),('PTRM input'!$N$143*(1+rvanilla08)^0.5)-SUM($N85:AE85),('PTRM input'!$N$143*(1+rvanilla08)^0.5)/A1stdlife)) -> 0 | AG85: =IF(A1stdlife="n/a","n/a",IF(AG$3>(A1stdlife+$E85),('PTRM input'!$N$143*(1+rvanilla08)^0.5)-SUM($N85:AF85),('PTRM input'!$N$143*(1+rvanilla08)^0.5)/A1stdlife)) -> 0 | AH85: =IF(A1stdlife="n/a","n/a",IF(AH$3>(A1stdlife+$E85),('PTRM input'!$N$143*(1+rvanilla08)^0.5)-SUM($N85:AG85),('PTRM input'!$N$143*(1+rvanilla08)^0.5)/A1stdlife)) -> 0 | AI85: =IF(A1stdlife="n/a","n/a",IF(AI$3>(A1stdlife+$E85),('PTRM input'!$N$143*(1+rvanilla08)^0.5)-SUM($N85:AH85),('PTRM input'!$N$143*(1+rvanilla08)^0.5)/A1stdlife)) -> 0 | AJ85: =IF(A1stdlife="n/a","n/a",IF(AJ$3>(A1stdlife+$E85),('PTRM input'!$N$143*(1+rvanilla08)^0.5)-SUM($N85:AI85),('PTRM input'!$N$143*(1+rvanilla08)^0.5)/A1stdlife)) -> 0 | AK85: =IF(A1stdlife="n/a","n/a",IF(AK$3>(A1stdlife+$E85),('PTRM input'!$N$143*(1+rvanilla08)^0.5)-SUM($N85:AJ85),('PTRM input'!$N$143*(1+rvanilla08)^0.5)/A1stdlife)) -> 0 | AL85: =IF(A1stdlife="n/a","n/a",IF(AL$3>(A1stdlife+$E85),('PTRM input'!$N$143*(1+rvanilla08)^0.5)-SUM($N85:AK85),('PTRM input'!$N$143*(1+rvanilla08)^0.5)/A1stdlife)) -> 0 | AM85: =IF(A1stdlife="n/a","n/a",IF(AM$3>(A1stdlife+$E85),('PTRM input'!$N$143*(1+rvanilla08)^0.5)-SUM($N85:AL85),('PTRM input'!$N$143*(1+rvanilla08)^0.5)/A1stdlife)) -> 0 | AN85: =IF(A1stdlife="n/a","n/a",IF(AN$3>(A1stdlife+$E85),('PTRM input'!$N$143*(1+rvanilla08)^0.5)-SUM($N85:AM85),('PTRM input'!$N$143*(1+rvanilla08)^0.5)/A1stdlife)) -> 0 | AO85: =IF(A1stdlife="n/a","n/a",IF(AO$3>(A1stdlife+$E85),('PTRM input'!$N$143*(1+rvanilla08)^0.5)-SUM($N85:AN85),('PTRM input'!$N$143*(1+rvanilla08)^0.5)/A1stdlife)) -> 0 | AP85: =IF(A1stdlife="n/a","n/a",IF(AP$3>(A1stdlife+$E85),('PTRM input'!$N$143*(1+rvanilla08)^0.5)-SUM($N85:AO85),('PTRM input'!$N$143*(1+rvanilla08)^0.5)/A1stdlife)) -> 0 | AQ85: =IF(A1stdlife="n/a","n/a",IF(AQ$3>(A1stdlife+$E85),('PTRM input'!$N$143*(1+rvanilla08)^0.5)-SUM($N85:AP85),('PTRM input'!$N$143*(1+rvanilla08)^0.5)/A1stdlife)) -> 0 | AR85: =IF(A1stdlife="n/a","n/a",IF(AR$3>(A1stdlife+$E85),('PTRM input'!$N$143*(1+rvanilla08)^0.5)-SUM($N85:AQ85),('PTRM input'!$N$143*(1+rvanilla08)^0.5)/A1stdlife)) -> 0 | AS85: =IF(A1stdlife="n/a","n/a",IF(AS$3>(A1stdlife+$E85),('PTRM input'!$N$143*(1+rvanilla08)^0.5)-SUM($N85:AR85),('PTRM input'!$N$143*(1+rvanilla08)^0.5)/A1stdlife)) -> 0 | AT85: =IF(A1stdlife="n/a","n/a",IF(AT$3>(A1stdlife+$E85),('PTRM input'!$N$143*(1+rvanilla08)^0.5)-SUM($N85:AS85),('PTRM input'!$N$143*(1+rvanilla08)^0.5)/A1stdlife)) -> 0 | AU85: =IF(A1stdlife="n/a","n/a",IF(AU$3>(A1stdlife+$E85),('PTRM input'!$N$143*(1+rvanilla08)^0.5)-SUM($N85:AT85),('PTRM input'!$N$143*(1+rvanilla08)^0.5)/A1stdlife)) -> 0 | AV85: =IF(A1stdlife="n/a","n/a",IF(AV$3>(A1stdlife+$E85),('PTRM input'!$N$143*(1+rvanilla08)^0.5)-SUM($N85:AU85),('PTRM input'!$N$143*(1+rvanilla08)^0.5)/A1stdlife)) -> 0 | AW85: =IF(A1stdlife="n/a","n/a",IF(AW$3>(A1stdlife+$E85),('PTRM input'!$N$143*(1+rvanilla08)^0.5)-SUM($N85:AV85),('PTRM input'!$N$143*(1+rvanilla08)^0.5)/A1stdlife)) -> 0 | AX85: =IF(A1stdlife="n/a","n/a",IF(AX$3>(A1stdlife+$E85),('PTRM input'!$N$143*(1+rvanilla08)^0.5)-SUM($N85:AW85),('PTRM input'!$N$143*(1+rvanilla08)^0.5)/A1stdlife)) -> 0 | AY85: =IF(A1stdlife="n/a","n/a",IF(AY$3>(A1stdlife+$E85),('PTRM input'!$N$143*(1+rvanilla08)^0.5)-SUM($N85:AX85),('PTRM input'!$N$143*(1+rvanilla08)^0.5)/A1stdlife)) -> 0 | AZ85: =IF(A1stdlife="n/a","n/a",IF(AZ$3>(A1stdlife+$E85),('PTRM input'!$N$143*(1+rvanilla08)^0.5)-SUM($N85:AY85),('PTRM input'!$N$143*(1+rvanilla08)^0.5)/A1stdlife)) -> 0 | BA85: =IF(A1stdlife="n/a","n/a",IF(BA$3>(A1stdlife+$E85),('PTRM input'!$N$143*(1+rvanilla08)^0.5)-SUM($N85:AZ85),('PTRM input'!$N$143*(1+rvanilla08)^0.5)/A1stdlife)) -> 0 | BB85: =IF(A1stdlife="n/a","n/a",IF(BB$3>(A1stdlife+$E85),('PTRM input'!$N$143*(1+rvanilla08)^0.5)-SUM($N85:BA85),('PTRM input'!$N$143*(1+rvanilla08)^0.5)/A1stdlife)) -> 0 | BC85: =IF(A1stdlife="n/a","n/a",IF(BC$3>(A1stdlife+$E85),('PTRM input'!$N$143*(1+rvanilla08)^0.5)-SUM($N85:BB85),('PTRM input'!$N$143*(1+rvanilla08)^0.5)/A1stdlife)) -> 0 | BD85: =IF(A1stdlife="n/a","n/a",IF(BD$3>(A1stdlife+$E85),('PTRM input'!$N$143*(1+rvanilla08)^0.5)-SUM($N85:BC85),('PTRM input'!$N$143*(1+rvanilla08)^0.5)/A1stdlife)) -> 0 | BE85: =IF(A1stdlife="n/a","n/a",IF(BE$3>(A1stdlife+$E85),('PTRM input'!$N$143*(1+rvanilla08)^0.5)-SUM($N85:BD85),('PTRM input'!$N$143*(1+rvanilla08)^0.5)/A1stdlife)) -> 0 | BF85: =IF(A1stdlife="n/a","n/a",IF(BF$3>(A1stdlife+$E85),('PTRM input'!$N$143*(1+rvanilla08)^0.5)-SUM($N85:BE85),('PTRM input'!$N$143*(1+rvanilla08)^0.5)/A1stdlife)) -> 0 | BG85: =IF(A1stdlife="n/a","n/a",IF(BG$3>(A1stdlife+$E85),('PTRM input'!$N$143*(1+rvanilla08)^0.5)-SUM($N85:BF85),('PTRM input'!$N$143*(1+rvanilla08)^0.5)/A1stdlife)) -> 0 | BH85: =IF(A1stdlife="n/a","n/a",IF(BH$3>(A1stdlife+$E85),('PTRM input'!$N$143*(1+rvanilla08)^0.5)-SUM($N85:BG85),('PTRM input'!$N$143*(1+rvanilla08)^0.5)/A1stdlife)) -> 0 | BI85: =IF(A1stdlife="n/a","n/a",IF(BI$3>(A1stdlife+$E85),('PTRM input'!$N$143*(1+rvanilla08)^0.5)-SUM($N85:BH85),('PTRM input'!$N$143*(1+rvanilla08)^0.5)/A1stdlife)) -> 0
E86: 9 | P86: =IF(A1stdlife="n/a","n/a",IF(P$3>(A1stdlife+$E86),('PTRM input'!$O$143*(1+rvanilla09)^0.5)-SUM($O86:O86),('PTRM input'!$O$143*(1+rvanilla09)^0.5)/A1stdlife)) -> 0 | Q86: =IF(A1stdlife="n/a","n/a",IF(Q$3>(A1stdlife+$E86),('PTRM input'!$O$143*(1+rvanilla09)^0.5)-SUM($O86:P86),('PTRM input'!$O$143*(1+rvanilla09)^0.5)/A1stdlife)) -> 0 | R86: =IF(A1stdlife="n/a","n/a",IF(R$3>(A1stdlife+$E86),('PTRM input'!$O$143*(1+rvanilla09)^0.5)-SUM($O86:Q86),('PTRM input'!$O$143*(1+rvanilla09)^0.5)/A1stdlife)) -> 0 | S86: =IF(A1stdlife="n/a","n/a",IF(S$3>(A1stdlife+$E86),('PTRM input'!$O$143*(1+rvanilla09)^0.5)-SUM($O86:R86),('PTRM input'!$O$143*(1+rvanilla09)^0.5)/A1stdlife)) -> 0 | T86: =IF(A1stdlife="n/a","n/a",IF(T$3>(A1stdlife+$E86),('PTRM input'!$O$143*(1+rvanilla09)^0.5)-SUM($O86:S86),('PTRM input'!$O$143*(1+rvanilla09)^0.5)/A1stdlife)) -> 0 | U86: =IF(A1stdlife="n/a","n/a",IF(U$3>(A1stdlife+$E86),('PTRM input'!$O$143*(1+rvanilla09)^0.5)-SUM($O86:T86),('PTRM input'!$O$143*(1+rvanilla09)^0.5)/A1stdlife)) -> 0 | V86: =IF(A1stdlife="n/a","n/a",IF(V$3>(A1stdlife+$E86),('PTRM input'!$O$143*(1+rvanilla09)^0.5)-SUM($O86:U86),('PTRM input'!$O$143*(1+rvanilla09)^0.5)/A1stdlife)) -> 0 | W86: =IF(A1stdlife="n/a","n/a",IF(W$3>(A1stdlife+$E86),('PTRM input'!$O$143*(1+rvanilla09)^0.5)-SUM($O86:V86),('PTRM input'!$O$143*(1+rvanilla09)^0.5)/A1stdlife)) -> 0 | X86: =IF(A1stdlife="n/a","n/a",IF(X$3>(A1stdlife+$E86),('PTRM input'!$O$143*(1+rvanilla09)^0.5)-SUM($O86:W86),('PTRM input'!$O$143*(1+rvanilla09)^0.5)/A1stdlife)) -> 0 | Y86: =IF(A1stdlife="n/a","n/a",IF(Y$3>(A1stdlife+$E86),('PTRM input'!$O$143*(1+rvanilla09)^0.5)-SUM($O86:X86),('PTRM input'!$O$143*(1+rvanilla09)^0.5)/A1stdlife)) -> 0 | Z86: =IF(A1stdlife="n/a","n/a",IF(Z$3>(A1stdlife+$E86),('PTRM input'!$O$143*(1+rvanilla09)^0.5)-SUM($O86:Y86),('PTRM input'!$O$143*(1+rvanilla09)^0.5)/A1stdlife)) -> 0 | AA86: =IF(A1stdlife="n/a","n/a",IF(AA$3>(A1stdlife+$E86),('PTRM input'!$O$143*(1+rvanilla09)^0.5)-SUM($O86:Z86),('PTRM input'!$O$143*(1+rvanilla09)^0.5)/A1stdlife)) -> 0 | AB86: =IF(A1stdlife="n/a","n/a",IF(AB$3>(A1stdlife+$E86),('PTRM input'!$O$143*(1+rvanilla09)^0.5)-SUM($O86:AA86),('PTRM input'!$O$143*(1+rvanilla09)^0.5)/A1stdlife)) -> 0 | AC86: =IF(A1stdlife="n/a","n/a",IF(AC$3>(A1stdlife+$E86),('PTRM input'!$O$143*(1+rvanilla09)^0.5)-SUM($O86:AB86),('PTRM input'!$O$143*(1+rvanilla09)^0.5)/A1stdlife)) -> 0 | AD86: =IF(A1stdlife="n/a","n/a",IF(AD$3>(A1stdlife+$E86),('PTRM input'!$O$143*(1+rvanilla09)^0.5)-SUM($O86:AC86),('PTRM input'!$O$143*(1+rvanilla09)^0.5)/A1stdlife)) -> 0 | AE86: =IF(A1stdlife="n/a","n/a",IF(AE$3>(A1stdlife+$E86),('PTRM input'!$O$143*(1+rvanilla09)^0.5)-SUM($O86:AD86),('PTRM input'!$O$143*(1+rvanilla09)^0.5)/A1stdlife)) -> 0 | AF86: =IF(A1stdlife="n/a","n/a",IF(AF$3>(A1stdlife+$E86),('PTRM input'!$O$143*(1+rvanilla09)^0.5)-SUM($O86:AE86),('PTRM input'!$O$143*(1+rvanilla09)^0.5)/A1stdlife)) -> 0 | AG86: =IF(A1stdlife="n/a","n/a",IF(AG$3>(A1stdlife+$E86),('PTRM input'!$O$143*(1+rvanilla09)^0.5)-SUM($O86:AF86),('PTRM input'!$O$143*(1+rvanilla09)^0.5)/A1stdlife)) -> 0 | AH86: =IF(A1stdlife="n/a","n/a",IF(AH$3>(A1stdlife+$E86),('PTRM input'!$O$143*(1+rvanilla09)^0.5)-SUM($O86:AG86),('PTRM input'!$O$143*(1+rvanilla09)^0.5)/A1stdlife)) -> 0 | AI86: =IF(A1stdlife="n/a","n/a",IF(AI$3>(A1stdlife+$E86),('PTRM input'!$O$143*(1+rvanilla09)^0.5)-SUM($O86:AH86),('PTRM input'!$O$143*(1+rvanilla09)^0.5)/A1stdlife)) -> 0 | AJ86: =IF(A1stdlife="n/a","n/a",IF(AJ$3>(A1stdlife+$E86),('PTRM input'!$O$143*(1+rvanilla09)^0.5)-SUM($O86:AI86),('PTRM input'!$O$143*(1+rvanilla09)^0.5)/A1stdlife)) -> 0 | AK86: =IF(A1stdlife="n/a","n/a",IF(AK$3>(A1stdlife+$E86),('PTRM input'!$O$143*(1+rvanilla09)^0.5)-SUM($O86:AJ86),('PTRM input'!$O$143*(1+rvanilla09)^0.5)/A1stdlife)) -> 0 | AL86: =IF(A1stdlife="n/a","n/a",IF(AL$3>(A1stdlife+$E86),('PTRM input'!$O$143*(1+rvanilla09)^0.5)-SUM($O86:AK86),('PTRM input'!$O$143*(1+rvanilla09)^0.5)/A1stdlife)) -> 0 | AM86: =IF(A1stdlife="n/a","n/a",IF(AM$3>(A1stdlife+$E86),('PTRM input'!$O$143*(1+rvanilla09)^0.5)-SUM($O86:AL86),('PTRM input'!$O$143*(1+rvanilla09)^0.5)/A1stdlife)) -> 0 | AN86: =IF(A1stdlife="n/a","n/a",IF(AN$3>(A1stdlife+$E86),('PTRM input'!$O$143*(1+rvanilla09)^0.5)-SUM($O86:AM86),('PTRM input'!$O$143*(1+rvanilla09)^0.5)/A1stdlife)) -> 0 | AO86: =IF(A1stdlife="n/a","n/a",IF(AO$3>(A1stdlife+$E86),('PTRM input'!$O$143*(1+rvanilla09)^0.5)-SUM($O86:AN86),('PTRM input'!$O$143*(1+rvanilla09)^0.5)/A1stdlife)) -> 0 | AP86: =IF(A1stdlife="n/a","n/a",IF(AP$3>(A1stdlife+$E86),('PTRM input'!$O$143*(1+rvanilla09)^0.5)-SUM($O86:AO86),('PTRM input'!$O$143*(1+rvanilla09)^0.5)/A1stdlife)) -> 0 | AQ86: =IF(A1stdlife="n/a","n/a",IF(AQ$3>(A1stdlife+$E86),('PTRM input'!$O$143*(1+rvanilla09)^0.5)-SUM($O86:AP86),('PTRM input'!$O$143*(1+rvanilla09)^0.5)/A1stdlife)) -> 0 | AR86: =IF(A1stdlife="n/a","n/a",IF(AR$3>(A1stdlife+$E86),('PTRM input'!$O$143*(1+rvanilla09)^0.5)-SUM($O86:AQ86),('PTRM input'!$O$143*(1+rvanilla09)^0.5)/A1stdlife)) -> 0 | AS86: =IF(A1stdlife="n/a","n/a",IF(AS$3>(A1stdlife+$E86),('PTRM input'!$O$143*(1+rvanilla09)^0.5)-SUM($O86:AR86),('PTRM input'!$O$143*(1+rvanilla09)^0.5)/A1stdlife)) -> 0 | AT86: =IF(A1stdlife="n/a","n/a",IF(AT$3>(A1stdlife+$E86),('PTRM input'!$O$143*(1+rvanilla09)^0.5)-SUM($O86:AS86),('PTRM input'!$O$143*(1+rvanilla09)^0.5)/A1stdlife)) -> 0 | AU86: =IF(A1stdlife="n/a","n/a",IF(AU$3>(A1stdlife+$E86),('PTRM input'!$O$143*(1+rvanilla09)^0.5)-SUM($O86:AT86),('PTRM input'!$O$143*(1+rvanilla09)^0.5)/A1stdlife)) -> 0 | AV86: =IF(A1stdlife="n/a","n/a",IF(AV$3>(A1stdlife+$E86),('PTRM input'!$O$143*(1+rvanilla09)^0.5)-SUM($O86:AU86),('PTRM input'!$O$143*(1+rvanilla09)^0.5)/A1stdlife)) -> 0 | AW86: =IF(A1stdlife="n/a","n/a",IF(AW$3>(A1stdlife+$E86),('PTRM input'!$O$143*(1+rvanilla09)^0.5)-SUM($O86:AV86),('PTRM input'!$O$143*(1+rvanilla09)^0.5)/A1stdlife)) -> 0 | AX86: =IF(A1stdlife="n/a","n/a",IF(AX$3>(A1stdlife+$E86),('PTRM input'!$O$143*(1+rvanilla09)^0.5)-SUM($O86:AW86),('PTRM input'!$O$143*(1+rvanilla09)^0.5)/A1stdlife)) -> 0 | AY86: =IF(A1stdlife="n/a","n/a",IF(AY$3>(A1stdlife+$E86),('PTRM input'!$O$143*(1+rvanilla09)^0.5)-SUM($O86:AX86),('PTRM input'!$O$143*(1+rvanilla09)^0.5)/A1stdlife)) -> 0 | AZ86: =IF(A1stdlife="n/a","n/a",IF(AZ$3>(A1stdlife+$E86),('PTRM input'!$O$143*(1+rvanilla09)^0.5)-SUM($O86:AY86),('PTRM input'!$O$143*(1+rvanilla09)^0.5)/A1stdlife)) -> 0 | BA86: =IF(A1stdlife="n/a","n/a",IF(BA$3>(A1stdlife+$E86),('PTRM input'!$O$143*(1+rvanilla09)^0.5)-SUM($O86:AZ86),('PTRM input'!$O$143*(1+rvanilla09)^0.5)/A1stdlife)) -> 0 | BB86: =IF(A1stdlife="n/a","n/a",IF(BB$3>(A1stdlife+$E86),('PTRM input'!$O$143*(1+rvanilla09)^0.5)-SUM($O86:BA86),('PTRM input'!$O$143*(1+rvanilla09)^0.5)/A1stdlife)) -> 0 | BC86: =IF(A1stdlife="n/a","n/a",IF(BC$3>(A1stdlife+$E86),('PTRM input'!$O$143*(1+rvanilla09)^0.5)-SUM($O86:BB86),('PTRM input'!$O$143*(1+rvanilla09)^0.5)/A1stdlife)) -> 0 | BD86: =IF(A1stdlife="n/a","n/a",IF(BD$3>(A1stdlife+$E86),('PTRM input'!$O$143*(1+rvanilla09)^0.5)-SUM($O86:BC86),('PTRM input'!$O$143*(1+rvanilla09)^0.5)/A1stdlife)) -> 0 | BE86: =IF(A1stdlife="n/a","n/a",IF(BE$3>(A1stdlife+$E86),('PTRM input'!$O$143*(1+rvanilla09)^0.5)-SUM($O86:BD86),('PTRM input'!$O$143*(1+rvanilla09)^0.5)/A1stdlife)) -> 0 | BF86: =IF(A1stdlife="n/a","n/a",IF(BF$3>(A1stdlife+$E86),('PTRM input'!$O$143*(1+rvanilla09)^0.5)-SUM($O86:BE86),('PTRM input'!$O$143*(1+rvanilla09)^0.5)/A1stdlife)) -> 0 | BG86: =IF(A1stdlife="n/a","n/a",IF(BG$3>(A1stdlife+$E86),('PTRM input'!$O$143*(1+rvanilla09)^0.5)-SUM($O86:BF86),('PTRM input'!$O$143*(1+rvanilla09)^0.5)/A1stdlife)) -> 0 | BH86: =IF(A1stdlife="n/a","n/a",IF(BH$3>(A1stdlife+$E86),('PTRM input'!$O$143*(1+rvanilla09)^0.5)-SUM($O86:BG86),('PTRM input'!$O$143*(1+rvanilla09)^0.5)/A1stdlife)) -> 0 | BI86: =IF(A1stdlife="n/a","n/a",IF(BI$3>(A1stdlife+$E86),('PTRM input'!$O$143*(1+rvanilla09)^0.5)-SUM($O86:BH86),('PTRM input'!$O$143*(1+rvanilla09)^0.5)/A1stdlife)) -> 0
E87: 10 | Q87: =IF(A1stdlife="n/a","n/a",IF(Q$3>(A1stdlife+$E87),('PTRM input'!$P$143*(1+rvanilla10)^0.5)-SUM($P87:P87),('PTRM input'!$P$143*(1+rvanilla10)^0.5)/A1stdlife)) -> 0 | R87: =IF(A1stdlife="n/a","n/a",IF(R$3>(A1stdlife+$E87),('PTRM input'!$P$143*(1+rvanilla10)^0.5)-SUM($P87:Q87),('PTRM input'!$P$143*(1+rvanilla10)^0.5)/A1stdlife)) -> 0 | S87: =IF(A1stdlife="n/a","n/a",IF(S$3>(A1stdlife+$E87),('PTRM input'!$P$143*(1+rvanilla10)^0.5)-SUM($P87:R87),('PTRM input'!$P$143*(1+rvanilla10)^0.5)/A1stdlife)) -> 0 | T87: =IF(A1stdlife="n/a","n/a",IF(T$3>(A1stdlife+$E87),('PTRM input'!$P$143*(1+rvanilla10)^0.5)-SUM($P87:S87),('PTRM input'!$P$143*(1+rvanilla10)^0.5)/A1stdlife)) -> 0 | U87: =IF(A1stdlife="n/a","n/a",IF(U$3>(A1stdlife+$E87),('PTRM input'!$P$143*(1+rvanilla10)^0.5)-SUM($P87:T87),('PTRM input'!$P$143*(1+rvanilla10)^0.5)/A1stdlife)) -> 0 | V87: =IF(A1stdlife="n/a","n/a",IF(V$3>(A1stdlife+$E87),('PTRM input'!$P$143*(1+rvanilla10)^0.5)-SUM($P87:U87),('PTRM input'!$P$143*(1+rvanilla10)^0.5)/A1stdlife)) -> 0 | W87: =IF(A1stdlife="n/a","n/a",IF(W$3>(A1stdlife+$E87),('PTRM input'!$P$143*(1+rvanilla10)^0.5)-SUM($P87:V87),('PTRM input'!$P$143*(1+rvanilla10)^0.5)/A1stdlife)) -> 0 | X87: =IF(A1stdlife="n/a","n/a",IF(X$3>(A1stdlife+$E87),('PTRM input'!$P$143*(1+rvanilla10)^0.5)-SUM($P87:W87),('PTRM input'!$P$143*(1+rvanilla10)^0.5)/A1stdlife)) -> 0 | Y87: =IF(A1stdlife="n/a","n/a",IF(Y$3>(A1stdlife+$E87),('PTRM input'!$P$143*(1+rvanilla10)^0.5)-SUM($P87:X87),('PTRM input'!$P$143*(1+rvanilla10)^0.5)/A1stdlife)) -> 0 | Z87: =IF(A1stdlife="n/a","n/a",IF(Z$3>(A1stdlife+$E87),('PTRM input'!$P$143*(1+rvanilla10)^0.5)-SUM($P87:Y87),('PTRM input'!$P$143*(1+rvanilla10)^0.5)/A1stdlife)) -> 0 | AA87: =IF(A1stdlife="n/a","n/a",IF(AA$3>(A1stdlife+$E87),('PTRM input'!$P$143*(1+rvanilla10)^0.5)-SUM($P87:Z87),('PTRM input'!$P$143*(1+rvanilla10)^0.5)/A1stdlife)) -> 0 | AB87: =IF(A1stdlife="n/a","n/a",IF(AB$3>(A1stdlife+$E87),('PTRM input'!$P$143*(1+rvanilla10)^0.5)-SUM($P87:AA87),('PTRM input'!$P$143*(1+rvanilla10)^0.5)/A1stdlife)) -> 0 | AC87: =IF(A1stdlife="n/a","n/a",IF(AC$3>(A1stdlife+$E87),('PTRM input'!$P$143*(1+rvanilla10)^0.5)-SUM($P87:AB87),('PTRM input'!$P$143*(1+rvanilla10)^0.5)/A1stdlife)) -> 0 | AD87: =IF(A1stdlife="n/a","n/a",IF(AD$3>(A1stdlife+$E87),('PTRM input'!$P$143*(1+rvanilla10)^0.5)-SUM($P87:AC87),('PTRM input'!$P$143*(1+rvanilla10)^0.5)/A1stdlife)) -> 0 | AE87: =IF(A1stdlife="n/a","n/a",IF(AE$3>(A1stdlife+$E87),('PTRM input'!$P$143*(1+rvanilla10)^0.5)-SUM($P87:AD87),('PTRM input'!$P$143*(1+rvanilla10)^0.5)/A1stdlife)) -> 0 | AF87: =IF(A1stdlife="n/a","n/a",IF(AF$3>(A1stdlife+$E87),('PTRM input'!$P$143*(1+rvanilla10)^0.5)-SUM($P87:AE87),('PTRM input'!$P$143*(1+rvanilla10)^0.5)/A1stdlife)) -> 0 | AG87: =IF(A1stdlife="n/a","n/a",IF(AG$3>(A1stdlife+$E87),('PTRM input'!$P$143*(1+rvanilla10)^0.5)-SUM($P87:AF87),('PTRM input'!$P$143*(1+rvanilla10)^0.5)/A1stdlife)) -> 0 | AH87: =IF(A1stdlife="n/a","n/a",IF(AH$3>(A1stdlife+$E87),('PTRM input'!$P$143*(1+rvanilla10)^0.5)-SUM($P87:AG87),('PTRM input'!$P$143*(1+rvanilla10)^0.5)/A1stdlife)) -> 0 | AI87: =IF(A1stdlife="n/a","n/a",IF(AI$3>(A1stdlife+$E87),('PTRM input'!$P$143*(1+rvanilla10)^0.5)-SUM($P87:AH87),('PTRM input'!$P$143*(1+rvanilla10)^0.5)/A1stdlife)) -> 0 | AJ87: =IF(A1stdlife="n/a","n/a",IF(AJ$3>(A1stdlife+$E87),('PTRM input'!$P$143*(1+rvanilla10)^0.5)-SUM($P87:AI87),('PTRM input'!$P$143*(1+rvanilla10)^0.5)/A1stdlife)) -> 0 | AK87: =IF(A1stdlife="n/a","n/a",IF(AK$3>(A1stdlife+$E87),('PTRM input'!$P$143*(1+rvanilla10)^0.5)-SUM($P87:AJ87),('PTRM input'!$P$143*(1+rvanilla10)^0.5)/A1stdlife)) -> 0 | AL87: =IF(A1stdlife="n/a","n/a",IF(AL$3>(A1stdlife+$E87),('PTRM input'!$P$143*(1+rvanilla10)^0.5)-SUM($P87:AK87),('PTRM input'!$P$143*(1+rvanilla10)^0.5)/A1stdlife)) -> 0 | AM87: =IF(A1stdlife="n/a","n/a",IF(AM$3>(A1stdlife+$E87),('PTRM input'!$P$143*(1+rvanilla10)^0.5)-SUM($P87:AL87),('PTRM input'!$P$143*(1+rvanilla10)^0.5)/A1stdlife)) -> 0 | AN87: =IF(A1stdlife="n/a","n/a",IF(AN$3>(A1stdlife+$E87),('PTRM input'!$P$143*(1+rvanilla10)^0.5)-SUM($P87:AM87),('PTRM input'!$P$143*(1+rvanilla10)^0.5)/A1stdlife)) -> 0 | AO87: =IF(A1stdlife="n/a","n/a",IF(AO$3>(A1stdlife+$E87),('PTRM input'!$P$143*(1+rvanilla10)^0.5)-SUM($P87:AN87),('PTRM input'!$P$143*(1+rvanilla10)^0.5)/A1stdlife)) -> 0 | AP87: =IF(A1stdlife="n/a","n/a",IF(AP$3>(A1stdlife+$E87),('PTRM input'!$P$143*(1+rvanilla10)^0.5)-SUM($P87:AO87),('PTRM input'!$P$143*(1+rvanilla10)^0.5)/A1stdlife)) -> 0 | AQ87: =IF(A1stdlife="n/a","n/a",IF(AQ$3>(A1stdlife+$E87),('PTRM input'!$P$143*(1+rvanilla10)^0.5)-SUM($P87:AP87),('PTRM input'!$P$143*(1+rvanilla10)^0.5)/A1stdlife)) -> 0 | AR87: =IF(A1stdlife="n/a","n/a",IF(AR$3>(A1stdlife+$E87),('PTRM input'!$P$143*(1+rvanilla10)^0.5)-SUM($P87:AQ87),('PTRM input'!$P$143*(1+rvanilla10)^0.5)/A1stdlife)) -> 0 | AS87: =IF(A1stdlife="n/a","n/a",IF(AS$3>(A1stdlife+$E87),('PTRM input'!$P$143*(1+rvanilla10)^0.5)-SUM($P87:AR87),('PTRM input'!$P$143*(1+rvanilla10)^0.5)/A1stdlife)) -> 0 | AT87: =IF(A1stdlife="n/a","n/a",IF(AT$3>(A1stdlife+$E87),('PTRM input'!$P$143*(1+rvanilla10)^0.5)-SUM($P87:AS87),('PTRM input'!$P$143*(1+rvanilla10)^0.5)/A1stdlife)) -> 0 | AU87: =IF(A1stdlife="n/a","n/a",IF(AU$3>(A1stdlife+$E87),('PTRM input'!$P$143*(1+rvanilla10)^0.5)-SUM($P87:AT87),('PTRM input'!$P$143*(1+rvanilla10)^0.5)/A1stdlife)) -> 0 | AV87: =IF(A1stdlife="n/a","n/a",IF(AV$3>(A1stdlife+$E87),('PTRM input'!$P$143*(1+rvanilla10)^0.5)-SUM($P87:AU87),('PTRM input'!$P$143*(1+rvanilla10)^0.5)/A1stdlife)) -> 0 | AW87: =IF(A1stdlife="n/a","n/a",IF(AW$3>(A1stdlife+$E87),('PTRM input'!$P$143*(1+rvanilla10)^0.5)-SUM($P87:AV87),('PTRM input'!$P$143*(1+rvanilla10)^0.5)/A1stdlife)) -> 0 | AX87: =IF(A1stdlife="n/a","n/a",IF(AX$3>(A1stdlife+$E87),('PTRM input'!$P$143*(1+rvanilla10)^0.5)-SUM($P87:AW87),('PTRM input'!$P$143*(1+rvanilla10)^0.5)/A1stdlife)) -> 0 | AY87: =IF(A1stdlife="n/a","n/a",IF(AY$3>(A1stdlife+$E87),('PTRM input'!$P$143*(1+rvanilla10)^0.5)-SUM($P87:AX87),('PTRM input'!$P$143*(1+rvanilla10)^0.5)/A1stdlife)) -> 0 | AZ87: =IF(A1stdlife="n/a","n/a",IF(AZ$3>(A1stdlife+$E87),('PTRM input'!$P$143*(1+rvanilla10)^0.5)-SUM($P87:AY87),('PTRM input'!$P$143*(1+rvanilla10)^0.5)/A1stdlife)) -> 0 | BA87: =IF(A1stdlife="n/a","n/a",IF(BA$3>(A1stdlife+$E87),('PTRM input'!$P$143*(1+rvanilla10)^0.5)-SUM($P87:AZ87),('PTRM input'!$P$143*(1+rvanilla10)^0.5)/A1stdlife)) -> 0 | BB87: =IF(A1stdlife="n/a","n/a",IF(BB$3>(A1stdlife+$E87),('PTRM input'!$P$143*(1+rvanilla10)^0.5)-SUM($P87:BA87),('PTRM input'!$P$143*(1+rvanilla10)^0.5)/A1stdlife)) -> 0 | BC87: =IF(A1stdlife="n/a","n/a",IF(BC$3>(A1stdlife+$E87),('PTRM input'!$P$143*(1+rvanilla10)^0.5)-SUM($P87:BB87),('PTRM input'!$P$143*(1+rvanilla10)^0.5)/A1stdlife)) -> 0 | BD87: =IF(A1stdlife="n/a","n/a",IF(BD$3>(A1stdlife+$E87),('PTRM input'!$P$143*(1+rvanilla10)^0.5)-SUM($P87:BC87),('PTRM input'!$P$143*(1+rvanilla10)^0.5)/A1stdlife)) -> 0 | BE87: =IF(A1stdlife="n/a","n/a",IF(BE$3>(A1stdlife+$E87),('PTRM input'!$P$143*(1+rvanilla10)^0.5)-SUM($P87:BD87),('PTRM input'!$P$143*(1+rvanilla10)^0.5)/A1stdlife)) -> 0 | BF87: =IF(A1stdlife="n/a","n/a",IF(BF$3>(A1stdlife+$E87),('PTRM input'!$P$143*(1+rvanilla10)^0.5)-SUM($P87:BE87),('PTRM input'!$P$143*(1+rvanilla10)^0.5)/A1stdlife)) -> 0 | BG87: =IF(A1stdlife="n/a","n/a",IF(BG$3>(A1stdlife+$E87),('PTRM input'!$P$143*(1+rvanilla10)^0.5)-SUM($P87:BF87),('PTRM input'!$P$143*(1+rvanilla10)^0.5)/A1stdlife)) -> 0 | BH87: =IF(A1stdlife="n/a","n/a",IF(BH$3>(A1stdlife+$E87),('PTRM input'!$P$143*(1+rvanilla10)^0.5)-SUM($P87:BG87),('PTRM input'!$P$143*(1+rvanilla10)^0.5)/A1stdlife)) -> 0 | BI87: =IF(A1stdlife="n/a","n/a",IF(BI$3>(A1stdlife+$E87),('PTRM input'!$P$143*(1+rvanilla10)^0.5)-SUM($P87:BH87),('PTRM input'!$P$143*(1+rvanilla10)^0.5)/A1stdlife)) -> 0
C88: =Asset1 -> Subtransmission | G88: =SUM(G76:G87) -> 12.65508639 | H88: =SUM(H76:H87) -> 13.37685053 | I88: =SUM(I76:I87) -> 14.14369972 | J88: 14.85876938 | K88: 15.60416408 | L88: 16.35790815 | M88: 16.35790815 | N88: 16.35790815 | O88: 16.35790815 | P88: 16.35790815 | Q88: 16.35790815 | R88: 16.35790815 | S88: 16.35790815 | T88: 16.35790815 | U88: 16.35790815 | V88: 16.35790815 | W88: 16.35790815 | X88: 16.35790815 | Y88: 16.35790815 | Z88: 16.35790815 | AA88: 16.35790815 | AB88: 11.97557611 | AC88: 8.470086363 | AD88: 8.470086363 | AE88: 8.470086363 | AF88: 8.470086363 | AG88: 8.470086363 | AH88: 8.470086363 | AI88: 8.470086363 | AJ88: 8.470086363 | AK88: 8.470086363 | AL88: 8.470086363 | AM88: 8.470086363 | AN88: 8.470086363 | AO88: 8.470086363 | AP88: 8.470086363 | AQ88: 8.470086363 | AR88: 8.470086363 | AS88: 8.470086363 | AT88: 8.470086363 | AU88: 8.470086363 | AV88: 8.470086363 | AW88: 8.470086363 | AX88: 8.470086363 | AY88: 8.470086363 | AZ88: 8.846964227 | BA88: 7.602983001 | BB88: 6.891621164 | BC88: 4.88741743 | BD88: 4.47610433 | BE88: 3.702821752 | BF88: 2.981057613 | BG88: 2.214208427 | BH88: 1.49913877 | BI88: 0.7537440701
B89: =C101 -> Distribution system assets | D89: Initial Asset Base | G89: 95.49672755 | H89: 95.49672755 | I89: 97.13521178 | J89: 100.6538944 | K89: 100.6538944 | L89: 94.73082553 | M89: 94.73082553 | N89: 94.73082553 | O89: 94.73082553 | P89: 94.73082553 | Q89: 94.73082553 | R89: 94.73082553 | S89: 94.73082553 | T89: 94.73082553 | U89: 94.73082553 | V89: 94.73082553 | W89: 94.73082553 | X89: 94.73082553 | Y89: 94.73082553 | Z89: 94.73082553 | AA89: 64.78860084 | AB89: 18.69731183 | AC89: 18.69731183 | AD89: 18.69731183 | AE89: 18.69731183 | AF89: 18.69731183 | AG89: 18.69731183 | AH89: 18.69731183 | AI89: 18.69731183 | AJ89: 18.69731183 | AK89: 18.69731183 | AL89: 18.69731183 | AM89: 18.69731183 | AN89: 18.69731183 | AO89: 18.69731183 | AP89: 18.69731183 | AQ89: 18.69731183 | AR89: 18.69731183 | AS89: 18.69731183 | AT89: 18.69731183 | AU89: 18.69731183 | AV89: 18.69731183 | AW89: 18.69731183 | AX89: 18.69731183 | AY89: 18.69731183 | AZ89: 18.69731183 | BA89: 18.77538989 | BB89: 15.64839631 | BC89: 11.39275787 | BD89: 8.210593275 | BE89: 3.604820702 | BF89: 0 | BG89: 0 | BH89: 0 | BI89: 0
D90: Capex in year | E90: 0
E91: 1 | H91: =IF(A2stdlife="n/a","n/a",IF(H$3>(A2stdlife+$E91),('PTRM input'!$G$144*(1+rvanilla01)^0.5)-SUM($G91:G91),('PTRM input'!$G$144*(1+rvanilla01)^0.5)/A2stdlife)) -> 4.553543592 | I91: =IF(A2stdlife="n/a","n/a",IF(I$3>(A2stdlife+$E91),('PTRM input'!$G$144*(1+rvanilla01)^0.5)-SUM($G91:H91),('PTRM input'!$G$144*(1+rvanilla01)^0.5)/A2stdlife)) -> 4.553543592 | J91: =IF(A2stdlife="n/a","n/a",IF(J$3>(A2stdlife+$E91),('PTRM input'!$G$144*(1+rvanilla01)^0.5)-SUM($G91:I91),('PTRM input'!$G$144*(1+rvanilla01)^0.5)/A2stdlife)) -> 4.553543592 | K91: =IF(A2stdlife="n/a","n/a",IF(K$3>(A2stdlife+$E91),('PTRM input'!$G$144*(1+rvanilla01)^0.5)-SUM($G91:J91),('PTRM input'!$G$144*(1+rvanilla01)^0.5)/A2stdlife)) -> 4.553543592 | L91: =IF(A2stdlife="n/a","n/a",IF(L$3>(A2stdlife+$E91),('PTRM input'!$G$144*(1+rvanilla01)^0.5)-SUM($G91:K91),('PTRM input'!$G$144*(1+rvanilla01)^0.5)/A2stdlife)) -> 4.553543592 | M91: =IF(A2stdlife="n/a","n/a",IF(M$3>(A2stdlife+$E91),('PTRM input'!$G$144*(1+rvanilla01)^0.5)-SUM($G91:L91),('PTRM input'!$G$144*(1+rvanilla01)^0.5)/A2stdlife)) -> 4.553543592 | N91: =IF(A2stdlife="n/a","n/a",IF(N$3>(A2stdlife+$E91),('PTRM input'!$G$144*(1+rvanilla01)^0.5)-SUM($G91:M91),('PTRM input'!$G$144*(1+rvanilla01)^0.5)/A2stdlife)) -> 4.553543592 | O91: =IF(A2stdlife="n/a","n/a",IF(O$3>(A2stdlife+$E91),('PTRM input'!$G$144*(1+rvanilla01)^0.5)-SUM($G91:N91),('PTRM input'!$G$144*(1+rvanilla01)^0.5)/A2stdlife)) -> 4.553543592 | P91: =IF(A2stdlife="n/a","n/a",IF(P$3>(A2stdlife+$E91),('PTRM input'!$G$144*(1+rvanilla01)^0.5)-SUM($G91:O91),('PTRM input'!$G$144*(1+rvanilla01)^0.5)/A2stdlife)) -> 4.553543592 | Q91: =IF(A2stdlife="n/a","n/a",IF(Q$3>(A2stdlife+$E91),('PTRM input'!$G$144*(1+rvanilla01)^0.5)-SUM($G91:P91),('PTRM input'!$G$144*(1+rvanilla01)^0.5)/A2stdlife)) -> 4.553543592 | R91: =IF(A2stdlife="n/a","n/a",IF(R$3>(A2stdlife+$E91),('PTRM input'!$G$144*(1+rvanilla01)^0.5)-SUM($G91:Q91),('PTRM input'!$G$144*(1+rvanilla01)^0.5)/A2stdlife)) -> 4.553543592 | S91: =IF(A2stdlife="n/a","n/a",IF(S$3>(A2stdlife+$E91),('PTRM input'!$G$144*(1+rvanilla01)^0.5)-SUM($G91:R91),('PTRM input'!$G$144*(1+rvanilla01)^0.5)/A2stdlife)) -> 4.553543592 | T91: =IF(A2stdlife="n/a","n/a",IF(T$3>(A2stdlife+$E91),('PTRM input'!$G$144*(1+rvanilla01)^0.5)-SUM($G91:S91),('PTRM input'!$G$144*(1+rvanilla01)^0.5)/A2stdlife)) -> 4.553543592 | U91: =IF(A2stdlife="n/a","n/a",IF(U$3>(A2stdlife+$E91),('PTRM input'!$G$144*(1+rvanilla01)^0.5)-SUM($G91:T91),('PTRM input'!$G$144*(1+rvanilla01)^0.5)/A2stdlife)) -> 4.553543592 | V91: =IF(A2stdlife="n/a","n/a",IF(V$3>(A2stdlife+$E91),('PTRM input'!$G$144*(1+rvanilla01)^0.5)-SUM($G91:U91),('PTRM input'!$G$144*(1+rvanilla01)^0.5)/A2stdlife)) -> 4.553543592 | W91: =IF(A2stdlife="n/a","n/a",IF(W$3>(A2stdlife+$E91),('PTRM input'!$G$144*(1+rvanilla01)^0.5)-SUM($G91:V91),('PTRM input'!$G$144*(1+rvanilla01)^0.5)/A2stdlife)) -> 4.553543592 | X91: =IF(A2stdlife="n/a","n/a",IF(X$3>(A2stdlife+$E91),('PTRM input'!$G$144*(1+rvanilla01)^0.5)-SUM($G91:W91),('PTRM input'!$G$144*(1+rvanilla01)^0.5)/A2stdlife)) -> 4.553543592 | Y91: =IF(A2stdlife="n/a","n/a",IF(Y$3>(A2stdlife+$E91),('PTRM input'!$G$144*(1+rvanilla01)^0.5)-SUM($G91:X91),('PTRM input'!$G$144*(1+rvanilla01)^0.5)/A2stdlife)) -> 4.553543592 | Z91: =IF(A2stdlife="n/a","n/a",IF(Z$3>(A2stdlife+$E91),('PTRM input'!$G$144*(1+rvanilla01)^0.5)-SUM($G91:Y91),('PTRM input'!$G$144*(1+rvanilla01)^0.5)/A2stdlife)) -> 4.553543592 | AA91: =IF(A2stdlife="n/a","n/a",IF(AA$3>(A2stdlife+$E91),('PTRM input'!$G$144*(1+rvanilla01)^0.5)-SUM($G91:Z91),('PTRM input'!$G$144*(1+rvanilla01)^0.5)/A2stdlife)) -> 4.553543592 | AB91: =IF(A2stdlife="n/a","n/a",IF(AB$3>(A2stdlife+$E91),('PTRM input'!$G$144*(1+rvanilla01)^0.5)-SUM($G91:AA91),('PTRM input'!$G$144*(1+rvanilla01)^0.5)/A2stdlife)) -> 4.553543592 | AC91: =IF(A2stdlife="n/a","n/a",IF(AC$3>(A2stdlife+$E91),('PTRM input'!$G$144*(1+rvanilla01)^0.5)-SUM($G91:AB91),('PTRM input'!$G$144*(1+rvanilla01)^0.5)/A2stdlife)) -> 4.553543592 | AD91: =IF(A2stdlife="n/a","n/a",IF(AD$3>(A2stdlife+$E91),('PTRM input'!$G$144*(1+rvanilla01)^0.5)-SUM($G91:AC91),('PTRM input'!$G$144*(1+rvanilla01)^0.5)/A2stdlife)) -> 4.553543592 | AE91: =IF(A2stdlife="n/a","n/a",IF(AE$3>(A2stdlife+$E91),('PTRM input'!$G$144*(1+rvanilla01)^0.5)-SUM($G91:AD91),('PTRM input'!$G$144*(1+rvanilla01)^0.5)/A2stdlife)) -> 4.553543592 | AF91: =IF(A2stdlife="n/a","n/a",IF(AF$3>(A2stdlife+$E91),('PTRM input'!$G$144*(1+rvanilla01)^0.5)-SUM($G91:AE91),('PTRM input'!$G$144*(1+rvanilla01)^0.5)/A2stdlife)) -> 4.553543592 | AG91: =IF(A2stdlife="n/a","n/a",IF(AG$3>(A2stdlife+$E91),('PTRM input'!$G$144*(1+rvanilla01)^0.5)-SUM($G91:AF91),('PTRM input'!$G$144*(1+rvanilla01)^0.5)/A2stdlife)) -> 4.553543592 | AH91: =IF(A2stdlife="n/a","n/a",IF(AH$3>(A2stdlife+$E91),('PTRM input'!$G$144*(1+rvanilla01)^0.5)-SUM($G91:AG91),('PTRM input'!$G$144*(1+rvanilla01)^0.5)/A2stdlife)) -> 4.553543592 | AI91: =IF(A2stdlife="n/a","n/a",IF(AI$3>(A2stdlife+$E91),('PTRM input'!$G$144*(1+rvanilla01)^0.5)-SUM($G91:AH91),('PTRM input'!$G$144*(1+rvanilla01)^0.5)/A2stdlife)) -> 4.553543592 | AJ91: =IF(A2stdlife="n/a","n/a",IF(AJ$3>(A2stdlife+$E91),('PTRM input'!$G$144*(1+rvanilla01)^0.5)-SUM($G91:AI91),('PTRM input'!$G$144*(1+rvanilla01)^0.5)/A2stdlife)) -> 4.553543592 | AK91: =IF(A2stdlife="n/a","n/a",IF(AK$3>(A2stdlife+$E91),('PTRM input'!$G$144*(1+rvanilla01)^0.5)-SUM($G91:AJ91),('PTRM input'!$G$144*(1+rvanilla01)^0.5)/A2stdlife)) -> 4.553543592 | AL91: =IF(A2stdlife="n/a","n/a",IF(AL$3>(A2stdlife+$E91),('PTRM input'!$G$144*(1+rvanilla01)^0.5)-SUM($G91:AK91),('PTRM input'!$G$144*(1+rvanilla01)^0.5)/A2stdlife)) -> 4.553543592 | AM91: =IF(A2stdlife="n/a","n/a",IF(AM$3>(A2stdlife+$E91),('PTRM input'!$G$144*(1+rvanilla01)^0.5)-SUM($G91:AL91),('PTRM input'!$G$144*(1+rvanilla01)^0.5)/A2stdlife)) -> 4.553543592 | AN91: =IF(A2stdlife="n/a","n/a",IF(AN$3>(A2stdlife+$E91),('PTRM input'!$G$144*(1+rvanilla01)^0.5)-SUM($G91:AM91),('PTRM input'!$G$144*(1+rvanilla01)^0.5)/A2stdlife)) -> 4.553543592 | AO91: =IF(A2stdlife="n/a","n/a",IF(AO$3>(A2stdlife+$E91),('PTRM input'!$G$144*(1+rvanilla01)^0.5)-SUM($G91:AN91),('PTRM input'!$G$144*(1+rvanilla01)^0.5)/A2stdlife)) -> 4.553543592 | AP91: =IF(A2stdlife="n/a","n/a",IF(AP$3>(A2stdlife+$E91),('PTRM input'!$G$144*(1+rvanilla01)^0.5)-SUM($G91:AO91),('PTRM input'!$G$144*(1+rvanilla01)^0.5)/A2stdlife)) -> 4.553543592 | AQ91: =IF(A2stdlife="n/a","n/a",IF(AQ$3>(A2stdlife+$E91),('PTRM input'!$G$144*(1+rvanilla01)^0.5)-SUM($G91:AP91),('PTRM input'!$G$144*(1+rvanilla01)^0.5)/A2stdlife)) -> 4.553543592 | AR91: =IF(A2stdlife="n/a","n/a",IF(AR$3>(A2stdlife+$E91),('PTRM input'!$G$144*(1+rvanilla01)^0.5)-SUM($G91:AQ91),('PTRM input'!$G$144*(1+rvanilla01)^0.5)/A2stdlife)) -> 4.553543592 | AS91: =IF(A2stdlife="n/a","n/a",IF(AS$3>(A2stdlife+$E91),('PTRM input'!$G$144*(1+rvanilla01)^0.5)-SUM($G91:AR91),('PTRM input'!$G$144*(1+rvanilla01)^0.5)/A2stdlife)) -> 4.553543592 | AT91: =IF(A2stdlife="n/a","n/a",IF(AT$3>(A2stdlife+$E91),('PTRM input'!$G$144*(1+rvanilla01)^0.5)-SUM($G91:AS91),('PTRM input'!$G$144*(1+rvanilla01)^0.5)/A2stdlife)) -> 4.553543592 | AU91: =IF(A2stdlife="n/a","n/a",IF(AU$3>(A2stdlife+$E91),('PTRM input'!$G$144*(1+rvanilla01)^0.5)-SUM($G91:AT91),('PTRM input'!$G$144*(1+rvanilla01)^0.5)/A2stdlife)) -> 4.553543592 | AV91: =IF(A2stdlife="n/a","n/a",IF(AV$3>(A2stdlife+$E91),('PTRM input'!$G$144*(1+rvanilla01)^0.5)-SUM($G91:AU91),('PTRM input'!$G$144*(1+rvanilla01)^0.5)/A2stdlife)) -> 4.553543592 | AW91: =IF(A2stdlife="n/a","n/a",IF(AW$3>(A2stdlife+$E91),('PTRM input'!$G$144*(1+rvanilla01)^0.5)-SUM($G91:AV91),('PTRM input'!$G$144*(1+rvanilla01)^0.5)/A2stdlife)) -> 4.553543592 | AX91: =IF(A2stdlife="n/a","n/a",IF(AX$3>(A2stdlife+$E91),('PTRM input'!$G$144*(1+rvanilla01)^0.5)-SUM($G91:AW91),('PTRM input'!$G$144*(1+rvanilla01)^0.5)/A2stdlife)) -> 4.553543592 | AY91: =IF(A2stdlife="n/a","n/a",IF(AY$3>(A2stdlife+$E91),('PTRM input'!$G$144*(1+rvanilla01)^0.5)-SUM($G91:AX91),('PTRM input'!$G$144*(1+rvanilla01)^0.5)/A2stdlife)) -> 4.553543592 | AZ91: =IF(A2stdlife="n/a","n/a",IF(AZ$3>(A2stdlife+$E91),('PTRM input'!$G$144*(1+rvanilla01)^0.5)-SUM($G91:AY91),('PTRM input'!$G$144*(1+rvanilla01)^0.5)/A2stdlife)) -> 4.553543592 | BA91: =IF(A2stdlife="n/a","n/a",IF(BA$3>(A2stdlife+$E91),('PTRM input'!$G$144*(1+rvanilla01)^0.5)-SUM($G91:AZ91),('PTRM input'!$G$144*(1+rvanilla01)^0.5)/A2stdlife)) -> 4.553543592 | BB91: =IF(A2stdlife="n/a","n/a",IF(BB$3>(A2stdlife+$E91),('PTRM input'!$G$144*(1+rvanilla01)^0.5)-SUM($G91:BA91),('PTRM input'!$G$144*(1+rvanilla01)^0.5)/A2stdlife)) -> 4.553543592 | BC91: =IF(A2stdlife="n/a","n/a",IF(BC$3>(A2stdlife+$E91),('PTRM input'!$G$144*(1+rvanilla01)^0.5)-SUM($G91:BB91),('PTRM input'!$G$144*(1+rvanilla01)^0.5)/A2stdlife)) -> 4.553543592 | BD91: =IF(A2stdlife="n/a","n/a",IF(BD$3>(A2stdlife+$E91),('PTRM input'!$G$144*(1+rvanilla01)^0.5)-SUM($G91:BC91),('PTRM input'!$G$144*(1+rvanilla01)^0.5)/A2stdlife)) -> 4.553543592 | BE91: =IF(A2stdlife="n/a","n/a",IF(BE$3>(A2stdlife+$E91),('PTRM input'!$G$144*(1+rvanilla01)^0.5)-SUM($G91:BD91),('PTRM input'!$G$144*(1+rvanilla01)^0.5)/A2stdlife)) -> 4.553543592 | BF91: =IF(A2stdlife="n/a","n/a",IF(BF$3>(A2stdlife+$E91),('PTRM input'!$G$144*(1+rvanilla01)^0.5)-SUM($G91:BE91),('PTRM input'!$G$144*(1+rvanilla01)^0.5)/A2stdlife)) -> 4.553543592 | BG91: =IF(A2stdlife="n/a","n/a",IF(BG$3>(A2stdlife+$E91),('PTRM input'!$G$144*(1+rvanilla01)^0.5)-SUM($G91:BF91),('PTRM input'!$G$144*(1+rvanilla01)^0.5)/A2stdlife)) -> 3.126388037e-13 | BH91: =IF(A2stdlife="n/a","n/a",IF(BH$3>(A2stdlife+$E91),('PTRM input'!$G$144*(1+rvanilla01)^0.5)-SUM($G91:BG91),('PTRM input'!$G$144*(1+rvanilla01)^0.5)/A2stdlife)) -> 0 | BI91: =IF(A2stdlife="n/a","n/a",IF(BI$3>(A2stdlife+$E91),('PTRM input'!$G$144*(1+rvanilla01)^0.5)-SUM($G91:BH91),('PTRM input'!$G$144*(1+rvanilla01)^0.5)/A2stdlife)) -> 0
E92: 2 | I92: =IF(A2stdlife="n/a","n/a",IF(I$3>(A2stdlife+$E92),('PTRM input'!$H$144*(1+rvanilla02)^0.5)-SUM($H92:H92),('PTRM input'!$H$144*(1+rvanilla02)^0.5)/A2stdlife)) -> 5.128178103 | J92: =IF(A2stdlife="n/a","n/a",IF(J$3>(A2stdlife+$E92),('PTRM input'!$H$144*(1+rvanilla02)^0.5)-SUM($H92:I92),('PTRM input'!$H$144*(1+rvanilla02)^0.5)/A2stdlife)) -> 5.128178103 | K92: =IF(A2stdlife="n/a","n/a",IF(K$3>(A2stdlife+$E92),('PTRM input'!$H$144*(1+rvanilla02)^0.5)-SUM($H92:J92),('PTRM input'!$H$144*(1+rvanilla02)^0.5)/A2stdlife)) -> 5.128178103 | L92: =IF(A2stdlife="n/a","n/a",IF(L$3>(A2stdlife+$E92),('PTRM input'!$H$144*(1+rvanilla02)^0.5)-SUM($H92:K92),('PTRM input'!$H$144*(1+rvanilla02)^0.5)/A2stdlife)) -> 5.128178103 | M92: =IF(A2stdlife="n/a","n/a",IF(M$3>(A2stdlife+$E92),('PTRM input'!$H$144*(1+rvanilla02)^0.5)-SUM($H92:L92),('PTRM input'!$H$144*(1+rvanilla02)^0.5)/A2stdlife)) -> 5.128178103 | N92: =IF(A2stdlife="n/a","n/a",IF(N$3>(A2stdlife+$E92),('PTRM input'!$H$144*(1+rvanilla02)^0.5)-SUM($H92:M92),('PTRM input'!$H$144*(1+rvanilla02)^0.5)/A2stdlife)) -> 5.128178103 | O92: =IF(A2stdlife="n/a","n/a",IF(O$3>(A2stdlife+$E92),('PTRM input'!$H$144*(1+rvanilla02)^0.5)-SUM($H92:N92),('PTRM input'!$H$144*(1+rvanilla02)^0.5)/A2stdlife)) -> 5.128178103 | P92: =IF(A2stdlife="n/a","n/a",IF(P$3>(A2stdlife+$E92),('PTRM input'!$H$144*(1+rvanilla02)^0.5)-SUM($H92:O92),('PTRM input'!$H$144*(1+rvanilla02)^0.5)/A2stdlife)) -> 5.128178103 | Q92: =IF(A2stdlife="n/a","n/a",IF(Q$3>(A2stdlife+$E92),('PTRM input'!$H$144*(1+rvanilla02)^0.5)-SUM($H92:P92),('PTRM input'!$H$144*(1+rvanilla02)^0.5)/A2stdlife)) -> 5.128178103 | R92: =IF(A2stdlife="n/a","n/a",IF(R$3>(A2stdlife+$E92),('PTRM input'!$H$144*(1+rvanilla02)^0.5)-SUM($H92:Q92),('PTRM input'!$H$144*(1+rvanilla02)^0.5)/A2stdlife)) -> 5.128178103 | S92: =IF(A2stdlife="n/a","n/a",IF(S$3>(A2stdlife+$E92),('PTRM input'!$H$144*(1+rvanilla02)^0.5)-SUM($H92:R92),('PTRM input'!$H$144*(1+rvanilla02)^0.5)/A2stdlife)) -> 5.128178103 | T92: =IF(A2stdlife="n/a","n/a",IF(T$3>(A2stdlife+$E92),('PTRM input'!$H$144*(1+rvanilla02)^0.5)-SUM($H92:S92),('PTRM input'!$H$144*(1+rvanilla02)^0.5)/A2stdlife)) -> 5.128178103 | U92: =IF(A2stdlife="n/a","n/a",IF(U$3>(A2stdlife+$E92),('PTRM input'!$H$144*(1+rvanilla02)^0.5)-SUM($H92:T92),('PTRM input'!$H$144*(1+rvanilla02)^0.5)/A2stdlife)) -> 5.128178103 | V92: =IF(A2stdlife="n/a","n/a",IF(V$3>(A2stdlife+$E92),('PTRM input'!$H$144*(1+rvanilla02)^0.5)-SUM($H92:U92),('PTRM input'!$H$144*(1+rvanilla02)^0.5)/A2stdlife)) -> 5.128178103 | W92: =IF(A2stdlife="n/a","n/a",IF(W$3>(A2stdlife+$E92),('PTRM input'!$H$144*(1+rvanilla02)^0.5)-SUM($H92:V92),('PTRM input'!$H$144*(1+rvanilla02)^0.5)/A2stdlife)) -> 5.128178103 | X92: =IF(A2stdlife="n/a","n/a",IF(X$3>(A2stdlife+$E92),('PTRM input'!$H$144*(1+rvanilla02)^0.5)-SUM($H92:W92),('PTRM input'!$H$144*(1+rvanilla02)^0.5)/A2stdlife)) -> 5.128178103 | Y92: =IF(A2stdlife="n/a","n/a",IF(Y$3>(A2stdlife+$E92),('PTRM input'!$H$144*(1+rvanilla02)^0.5)-SUM($H92:X92),('PTRM input'!$H$144*(1+rvanilla02)^0.5)/A2stdlife)) -> 5.128178103 | Z92: =IF(A2stdlife="n/a","n/a",IF(Z$3>(A2stdlife+$E92),('PTRM input'!$H$144*(1+rvanilla02)^0.5)-SUM($H92:Y92),('PTRM input'!$H$144*(1+rvanilla02)^0.5)/A2stdlife)) -> 5.128178103 | AA92: =IF(A2stdlife="n/a","n/a",IF(AA$3>(A2stdlife+$E92),('PTRM input'!$H$144*(1+rvanilla02)^0.5)-SUM($H92:Z92),('PTRM input'!$H$144*(1+rvanilla02)^0.5)/A2stdlife)) -> 5.128178103 | AB92: =IF(A2stdlife="n/a","n/a",IF(AB$3>(A2stdlife+$E92),('PTRM input'!$H$144*(1+rvanilla02)^0.5)-SUM($H92:AA92),('PTRM input'!$H$144*(1+rvanilla02)^0.5)/A2stdlife)) -> 5.128178103 | AC92: =IF(A2stdlife="n/a","n/a",IF(AC$3>(A2stdlife+$E92),('PTRM input'!$H$144*(1+rvanilla02)^0.5)-SUM($H92:AB92),('PTRM input'!$H$144*(1+rvanilla02)^0.5)/A2stdlife)) -> 5.128178103 | AD92: =IF(A2stdlife="n/a","n/a",IF(AD$3>(A2stdlife+$E92),('PTRM input'!$H$144*(1+rvanilla02)^0.5)-SUM($H92:AC92),('PTRM input'!$H$144*(1+rvanilla02)^0.5)/A2stdlife)) -> 5.128178103 | AE92: =IF(A2stdlife="n/a","n/a",IF(AE$3>(A2stdlife+$E92),('PTRM input'!$H$144*(1+rvanilla02)^0.5)-SUM($H92:AD92),('PTRM input'!$H$144*(1+rvanilla02)^0.5)/A2stdlife)) -> 5.128178103 | AF92: =IF(A2stdlife="n/a","n/a",IF(AF$3>(A2stdlife+$E92),('PTRM input'!$H$144*(1+rvanilla02)^0.5)-SUM($H92:AE92),('PTRM input'!$H$144*(1+rvanilla02)^0.5)/A2stdlife)) -> 5.128178103 | AG92: =IF(A2stdlife="n/a","n/a",IF(AG$3>(A2stdlife+$E92),('PTRM input'!$H$144*(1+rvanilla02)^0.5)-SUM($H92:AF92),('PTRM input'!$H$144*(1+rvanilla02)^0.5)/A2stdlife)) -> 5.128178103 | AH92: =IF(A2stdlife="n/a","n/a",IF(AH$3>(A2stdlife+$E92),('PTRM input'!$H$144*(1+rvanilla02)^0.5)-SUM($H92:AG92),('PTRM input'!$H$144*(1+rvanilla02)^0.5)/A2stdlife)) -> 5.128178103 | AI92: =IF(A2stdlife="n/a","n/a",IF(AI$3>(A2stdlife+$E92),('PTRM input'!$H$144*(1+rvanilla02)^0.5)-SUM($H92:AH92),('PTRM input'!$H$144*(1+rvanilla02)^0.5)/A2stdlife)) -> 5.128178103 | AJ92: =IF(A2stdlife="n/a","n/a",IF(AJ$3>(A2stdlife+$E92),('PTRM input'!$H$144*(1+rvanilla02)^0.5)-SUM($H92:AI92),('PTRM input'!$H$144*(1+rvanilla02)^0.5)/A2stdlife)) -> 5.128178103 | AK92: =IF(A2stdlife="n/a","n/a",IF(AK$3>(A2stdlife+$E92),('PTRM input'!$H$144*(1+rvanilla02)^0.5)-SUM($H92:AJ92),('PTRM input'!$H$144*(1+rvanilla02)^0.5)/A2stdlife)) -> 5.128178103 | AL92: =IF(A2stdlife="n/a","n/a",IF(AL$3>(A2stdlife+$E92),('PTRM input'!$H$144*(1+rvanilla02)^0.5)-SUM($H92:AK92),('PTRM input'!$H$144*(1+rvanilla02)^0.5)/A2stdlife)) -> 5.128178103 | AM92: =IF(A2stdlife="n/a","n/a",IF(AM$3>(A2stdlife+$E92),('PTRM input'!$H$144*(1+rvanilla02)^0.5)-SUM($H92:AL92),('PTRM input'!$H$144*(1+rvanilla02)^0.5)/A2stdlife)) -> 5.128178103 | AN92: =IF(A2stdlife="n/a","n/a",IF(AN$3>(A2stdlife+$E92),('PTRM input'!$H$144*(1+rvanilla02)^0.5)-SUM($H92:AM92),('PTRM input'!$H$144*(1+rvanilla02)^0.5)/A2stdlife)) -> 5.128178103 | AO92: =IF(A2stdlife="n/a","n/a",IF(AO$3>(A2stdlife+$E92),('PTRM input'!$H$144*(1+rvanilla02)^0.5)-SUM($H92:AN92),('PTRM input'!$H$144*(1+rvanilla02)^0.5)/A2stdlife)) -> 5.128178103 | AP92: =IF(A2stdlife="n/a","n/a",IF(AP$3>(A2stdlife+$E92),('PTRM input'!$H$144*(1+rvanilla02)^0.5)-SUM($H92:AO92),('PTRM input'!$H$144*(1+rvanilla02)^0.5)/A2stdlife)) -> 5.128178103 | AQ92: =IF(A2stdlife="n/a","n/a",IF(AQ$3>(A2stdlife+$E92),('PTRM input'!$H$144*(1+rvanilla02)^0.5)-SUM($H92:AP92),('PTRM input'!$H$144*(1+rvanilla02)^0.5)/A2stdlife)) -> 5.128178103 | AR92: =IF(A2stdlife="n/a","n/a",IF(AR$3>(A2stdlife+$E92),('PTRM input'!$H$144*(1+rvanilla02)^0.5)-SUM($H92:AQ92),('PTRM input'!$H$144*(1+rvanilla02)^0.5)/A2stdlife)) -> 5.128178103 | AS92: =IF(A2stdlife="n/a","n/a",IF(AS$3>(A2stdlife+$E92),('PTRM input'!$H$144*(1+rvanilla02)^0.5)-SUM($H92:AR92),('PTRM input'!$H$144*(1+rvanilla02)^0.5)/A2stdlife)) -> 5.128178103 | AT92: =IF(A2stdlife="n/a","n/a",IF(AT$3>(A2stdlife+$E92),('PTRM input'!$H$144*(1+rvanilla02)^0.5)-SUM($H92:AS92),('PTRM input'!$H$144*(1+rvanilla02)^0.5)/A2stdlife)) -> 5.128178103 | AU92: =IF(A2stdlife="n/a","n/a",IF(AU$3>(A2stdlife+$E92),('PTRM input'!$H$144*(1+rvanilla02)^0.5)-SUM($H92:AT92),('PTRM input'!$H$144*(1+rvanilla02)^0.5)/A2stdlife)) -> 5.128178103 | AV92: =IF(A2stdlife="n/a","n/a",IF(AV$3>(A2stdlife+$E92),('PTRM input'!$H$144*(1+rvanilla02)^0.5)-SUM($H92:AU92),('PTRM input'!$H$144*(1+rvanilla02)^0.5)/A2stdlife)) -> 5.128178103 | AW92: =IF(A2stdlife="n/a","n/a",IF(AW$3>(A2stdlife+$E92),('PTRM input'!$H$144*(1+rvanilla02)^0.5)-SUM($H92:AV92),('PTRM input'!$H$144*(1+rvanilla02)^0.5)/A2stdlife)) -> 5.128178103 | AX92: =IF(A2stdlife="n/a","n/a",IF(AX$3>(A2stdlife+$E92),('PTRM input'!$H$144*(1+rvanilla02)^0.5)-SUM($H92:AW92),('PTRM input'!$H$144*(1+rvanilla02)^0.5)/A2stdlife)) -> 5.128178103 | AY92: =IF(A2stdlife="n/a","n/a",IF(AY$3>(A2stdlife+$E92),('PTRM input'!$H$144*(1+rvanilla02)^0.5)-SUM($H92:AX92),('PTRM input'!$H$144*(1+rvanilla02)^0.5)/A2stdlife)) -> 5.128178103 | AZ92: =IF(A2stdlife="n/a","n/a",IF(AZ$3>(A2stdlife+$E92),('PTRM input'!$H$144*(1+rvanilla02)^0.5)-SUM($H92:AY92),('PTRM input'!$H$144*(1+rvanilla02)^0.5)/A2stdlife)) -> 5.128178103 | BA92: =IF(A2stdlife="n/a","n/a",IF(BA$3>(A2stdlife+$E92),('PTRM input'!$H$144*(1+rvanilla02)^0.5)-SUM($H92:AZ92),('PTRM input'!$H$144*(1+rvanilla02)^0.5)/A2stdlife)) -> 5.128178103 | BB92: =IF(A2stdlife="n/a","n/a",IF(BB$3>(A2stdlife+$E92),('PTRM input'!$H$144*(1+rvanilla02)^0.5)-SUM($H92:BA92),('PTRM input'!$H$144*(1+rvanilla02)^0.5)/A2stdlife)) -> 5.128178103 | BC92: =IF(A2stdlife="n/a","n/a",IF(BC$3>(A2stdlife+$E92),('PTRM input'!$H$144*(1+rvanilla02)^0.5)-SUM($H92:BB92),('PTRM input'!$H$144*(1+rvanilla02)^0.5)/A2stdlife)) -> 5.128178103 | BD92: =IF(A2stdlife="n/a","n/a",IF(BD$3>(A2stdlife+$E92),('PTRM input'!$H$144*(1+rvanilla02)^0.5)-SUM($H92:BC92),('PTRM input'!$H$144*(1+rvanilla02)^0.5)/A2stdlife)) -> 5.128178103 | BE92: =IF(A2stdlife="n/a","n/a",IF(BE$3>(A2stdlife+$E92),('PTRM input'!$H$144*(1+rvanilla02)^0.5)-SUM($H92:BD92),('PTRM input'!$H$144*(1+rvanilla02)^0.5)/A2stdlife)) -> 5.128178103 | BF92: =IF(A2stdlife="n/a","n/a",IF(BF$3>(A2stdlife+$E92),('PTRM input'!$H$144*(1+rvanilla02)^0.5)-SUM($H92:BE92),('PTRM input'!$H$144*(1+rvanilla02)^0.5)/A2stdlife)) -> 5.128178103 | BG92: =IF(A2stdlife="n/a","n/a",IF(BG$3>(A2stdlife+$E92),('PTRM input'!$H$144*(1+rvanilla02)^0.5)-SUM($H92:BF92),('PTRM input'!$H$144*(1+rvanilla02)^0.5)/A2stdlife)) -> 5.128178103 | BH92: =IF(A2stdlife="n/a","n/a",IF(BH$3>(A2stdlife+$E92),('PTRM input'!$H$144*(1+rvanilla02)^0.5)-SUM($H92:BG92),('PTRM input'!$H$144*(1+rvanilla02)^0.5)/A2stdlife)) -> 3.97903932e-13 | BI92: =IF(A2stdlife="n/a","n/a",IF(BI$3>(A2stdlife+$E92),('PTRM input'!$H$144*(1+rvanilla02)^0.5)-SUM($H92:BH92),('PTRM input'!$H$144*(1+rvanilla02)^0.5)/A2stdlife)) -> 0
E93: 3 | J93: =IF(A2stdlife="n/a","n/a",IF(J$3>(A2stdlife+$E93),('PTRM input'!$I$144*(1+rvanilla03)^0.5)-SUM($I93:I93),('PTRM input'!$I$144*(1+rvanilla03)^0.5)/A2stdlife)) -> 5.352028076 | K93: =IF(A2stdlife="n/a","n/a",IF(K$3>(A2stdlife+$E93),('PTRM input'!$I$144*(1+rvanilla03)^0.5)-SUM($I93:J93),('PTRM input'!$I$144*(1+rvanilla03)^0.5)/A2stdlife)) -> 5.352028076 | L93: =IF(A2stdlife="n/a","n/a",IF(L$3>(A2stdlife+$E93),('PTRM input'!$I$144*(1+rvanilla03)^0.5)-SUM($I93:K93),('PTRM input'!$I$144*(1+rvanilla03)^0.5)/A2stdlife)) -> 5.352028076 | M93: =IF(A2stdlife="n/a","n/a",IF(M$3>(A2stdlife+$E93),('PTRM input'!$I$144*(1+rvanilla03)^0.5)-SUM($I93:L93),('PTRM input'!$I$144*(1+rvanilla03)^0.5)/A2stdlife)) -> 5.352028076 | N93: =IF(A2stdlife="n/a","n/a",IF(N$3>(A2stdlife+$E93),('PTRM input'!$I$144*(1+rvanilla03)^0.5)-SUM($I93:M93),('PTRM input'!$I$144*(1+rvanilla03)^0.5)/A2stdlife)) -> 5.352028076 | O93: =IF(A2stdlife="n/a","n/a",IF(O$3>(A2stdlife+$E93),('PTRM input'!$I$144*(1+rvanilla03)^0.5)-SUM($I93:N93),('PTRM input'!$I$144*(1+rvanilla03)^0.5)/A2stdlife)) -> 5.352028076 | P93: =IF(A2stdlife="n/a","n/a",IF(P$3>(A2stdlife+$E93),('PTRM input'!$I$144*(1+rvanilla03)^0.5)-SUM($I93:O93),('PTRM input'!$I$144*(1+rvanilla03)^0.5)/A2stdlife)) -> 5.352028076 | Q93: =IF(A2stdlife="n/a","n/a",IF(Q$3>(A2stdlife+$E93),('PTRM input'!$I$144*(1+rvanilla03)^0.5)-SUM($I93:P93),('PTRM input'!$I$144*(1+rvanilla03)^0.5)/A2stdlife)) -> 5.352028076 | R93: =IF(A2stdlife="n/a","n/a",IF(R$3>(A2stdlife+$E93),('PTRM input'!$I$144*(1+rvanilla03)^0.5)-SUM($I93:Q93),('PTRM input'!$I$144*(1+rvanilla03)^0.5)/A2stdlife)) -> 5.352028076 | S93: =IF(A2stdlife="n/a","n/a",IF(S$3>(A2stdlife+$E93),('PTRM input'!$I$144*(1+rvanilla03)^0.5)-SUM($I93:R93),('PTRM input'!$I$144*(1+rvanilla03)^0.5)/A2stdlife)) -> 5.352028076 | T93: =IF(A2stdlife="n/a","n/a",IF(T$3>(A2stdlife+$E93),('PTRM input'!$I$144*(1+rvanilla03)^0.5)-SUM($I93:S93),('PTRM input'!$I$144*(1+rvanilla03)^0.5)/A2stdlife)) -> 5.352028076 | U93: =IF(A2stdlife="n/a","n/a",IF(U$3>(A2stdlife+$E93),('PTRM input'!$I$144*(1+rvanilla03)^0.5)-SUM($I93:T93),('PTRM input'!$I$144*(1+rvanilla03)^0.5)/A2stdlife)) -> 5.352028076 | V93: =IF(A2stdlife="n/a","n/a",IF(V$3>(A2stdlife+$E93),('PTRM input'!$I$144*(1+rvanilla03)^0.5)-SUM($I93:U93),('PTRM input'!$I$144*(1+rvanilla03)^0.5)/A2stdlife)) -> 5.352028076 | W93: =IF(A2stdlife="n/a","n/a",IF(W$3>(A2stdlife+$E93),('PTRM input'!$I$144*(1+rvanilla03)^0.5)-SUM($I93:V93),('PTRM input'!$I$144*(1+rvanilla03)^0.5)/A2stdlife)) -> 5.352028076 | X93: =IF(A2stdlife="n/a","n/a",IF(X$3>(A2stdlife+$E93),('PTRM input'!$I$144*(1+rvanilla03)^0.5)-SUM($I93:W93),('PTRM input'!$I$144*(1+rvanilla03)^0.5)/A2stdlife)) -> 5.352028076 | Y93: =IF(A2stdlife="n/a","n/a",IF(Y$3>(A2stdlife+$E93),('PTRM input'!$I$144*(1+rvanilla03)^0.5)-SUM($I93:X93),('PTRM input'!$I$144*(1+rvanilla03)^0.5)/A2stdlife)) -> 5.352028076 | Z93: =IF(A2stdlife="n/a","n/a",IF(Z$3>(A2stdlife+$E93),('PTRM input'!$I$144*(1+rvanilla03)^0.5)-SUM($I93:Y93),('PTRM input'!$I$144*(1+rvanilla03)^0.5)/A2stdlife)) -> 5.352028076 | AA93: =IF(A2stdlife="n/a","n/a",IF(AA$3>(A2stdlife+$E93),('PTRM input'!$I$144*(1+rvanilla03)^0.5)-SUM($I93:Z93),('PTRM input'!$I$144*(1+rvanilla03)^0.5)/A2stdlife)) -> 5.352028076 | AB93: =IF(A2stdlife="n/a","n/a",IF(AB$3>(A2stdlife+$E93),('PTRM input'!$I$144*(1+rvanilla03)^0.5)-SUM($I93:AA93),('PTRM input'!$I$144*(1+rvanilla03)^0.5)/A2stdlife)) -> 5.352028076 | AC93: =IF(A2stdlife="n/a","n/a",IF(AC$3>(A2stdlife+$E93),('PTRM input'!$I$144*(1+rvanilla03)^0.5)-SUM($I93:AB93),('PTRM input'!$I$144*(1+rvanilla03)^0.5)/A2stdlife)) -> 5.352028076 | AD93: =IF(A2stdlife="n/a","n/a",IF(AD$3>(A2stdlife+$E93),('PTRM input'!$I$144*(1+rvanilla03)^0.5)-SUM($I93:AC93),('PTRM input'!$I$144*(1+rvanilla03)^0.5)/A2stdlife)) -> 5.352028076 | AE93: =IF(A2stdlife="n/a","n/a",IF(AE$3>(A2stdlife+$E93),('PTRM input'!$I$144*(1+rvanilla03)^0.5)-SUM($I93:AD93),('PTRM input'!$I$144*(1+rvanilla03)^0.5)/A2stdlife)) -> 5.352028076 | AF93: =IF(A2stdlife="n/a","n/a",IF(AF$3>(A2stdlife+$E93),('PTRM input'!$I$144*(1+rvanilla03)^0.5)-SUM($I93:AE93),('PTRM input'!$I$144*(1+rvanilla03)^0.5)/A2stdlife)) -> 5.352028076 | AG93: =IF(A2stdlife="n/a","n/a",IF(AG$3>(A2stdlife+$E93),('PTRM input'!$I$144*(1+rvanilla03)^0.5)-SUM($I93:AF93),('PTRM input'!$I$144*(1+rvanilla03)^0.5)/A2stdlife)) -> 5.352028076 | AH93: =IF(A2stdlife="n/a","n/a",IF(AH$3>(A2stdlife+$E93),('PTRM input'!$I$144*(1+rvanilla03)^0.5)-SUM($I93:AG93),('PTRM input'!$I$144*(1+rvanilla03)^0.5)/A2stdlife)) -> 5.352028076 | AI93: =IF(A2stdlife="n/a","n/a",IF(AI$3>(A2stdlife+$E93),('PTRM input'!$I$144*(1+rvanilla03)^0.5)-SUM($I93:AH93),('PTRM input'!$I$144*(1+rvanilla03)^0.5)/A2stdlife)) -> 5.352028076 | AJ93: =IF(A2stdlife="n/a","n/a",IF(AJ$3>(A2stdlife+$E93),('PTRM input'!$I$144*(1+rvanilla03)^0.5)-SUM($I93:AI93),('PTRM input'!$I$144*(1+rvanilla03)^0.5)/A2stdlife)) -> 5.352028076 | AK93: =IF(A2stdlife="n/a","n/a",IF(AK$3>(A2stdlife+$E93),('PTRM input'!$I$144*(1+rvanilla03)^0.5)-SUM($I93:AJ93),('PTRM input'!$I$144*(1+rvanilla03)^0.5)/A2stdlife)) -> 5.352028076 | AL93: =IF(A2stdlife="n/a","n/a",IF(AL$3>(A2stdlife+$E93),('PTRM input'!$I$144*(1+rvanilla03)^0.5)-SUM($I93:AK93),('PTRM input'!$I$144*(1+rvanilla03)^0.5)/A2stdlife)) -> 5.352028076 | AM93: =IF(A2stdlife="n/a","n/a",IF(AM$3>(A2stdlife+$E93),('PTRM input'!$I$144*(1+rvanilla03)^0.5)-SUM($I93:AL93),('PTRM input'!$I$144*(1+rvanilla03)^0.5)/A2stdlife)) -> 5.352028076 | AN93: =IF(A2stdlife="n/a","n/a",IF(AN$3>(A2stdlife+$E93),('PTRM input'!$I$144*(1+rvanilla03)^0.5)-SUM($I93:AM93),('PTRM input'!$I$144*(1+rvanilla03)^0.5)/A2stdlife)) -> 5.352028076 | AO93: =IF(A2stdlife="n/a","n/a",IF(AO$3>(A2stdlife+$E93),('PTRM input'!$I$144*(1+rvanilla03)^0.5)-SUM($I93:AN93),('PTRM input'!$I$144*(1+rvanilla03)^0.5)/A2stdlife)) -> 5.352028076 | AP93: =IF(A2stdlife="n/a","n/a",IF(AP$3>(A2stdlife+$E93),('PTRM input'!$I$144*(1+rvanilla03)^0.5)-SUM($I93:AO93),('PTRM input'!$I$144*(1+rvanilla03)^0.5)/A2stdlife)) -> 5.352028076 | AQ93: =IF(A2stdlife="n/a","n/a",IF(AQ$3>(A2stdlife+$E93),('PTRM input'!$I$144*(1+rvanilla03)^0.5)-SUM($I93:AP93),('PTRM input'!$I$144*(1+rvanilla03)^0.5)/A2stdlife)) -> 5.352028076 | AR93: =IF(A2stdlife="n/a","n/a",IF(AR$3>(A2stdlife+$E93),('PTRM input'!$I$144*(1+rvanilla03)^0.5)-SUM($I93:AQ93),('PTRM input'!$I$144*(1+rvanilla03)^0.5)/A2stdlife)) -> 5.352028076 | AS93: =IF(A2stdlife="n/a","n/a",IF(AS$3>(A2stdlife+$E93),('PTRM input'!$I$144*(1+rvanilla03)^0.5)-SUM($I93:AR93),('PTRM input'!$I$144*(1+rvanilla03)^0.5)/A2stdlife)) -> 5.352028076 | AT93: =IF(A2stdlife="n/a","n/a",IF(AT$3>(A2stdlife+$E93),('PTRM input'!$I$144*(1+rvanilla03)^0.5)-SUM($I93:AS93),('PTRM input'!$I$144*(1+rvanilla03)^0.5)/A2stdlife)) -> 5.352028076 | AU93: =IF(A2stdlife="n/a","n/a",IF(AU$3>(A2stdlife+$E93),('PTRM input'!$I$144*(1+rvanilla03)^0.5)-SUM($I93:AT93),('PTRM input'!$I$144*(1+rvanilla03)^0.5)/A2stdlife)) -> 5.352028076 | AV93: =IF(A2stdlife="n/a","n/a",IF(AV$3>(A2stdlife+$E93),('PTRM input'!$I$144*(1+rvanilla03)^0.5)-SUM($I93:AU93),('PTRM input'!$I$144*(1+rvanilla03)^0.5)/A2stdlife)) -> 5.352028076 | AW93: =IF(A2stdlife="n/a","n/a",IF(AW$3>(A2stdlife+$E93),('PTRM input'!$I$144*(1+rvanilla03)^0.5)-SUM($I93:AV93),('PTRM input'!$I$144*(1+rvanilla03)^0.5)/A2stdlife)) -> 5.352028076 | AX93: =IF(A2stdlife="n/a","n/a",IF(AX$3>(A2stdlife+$E93),('PTRM input'!$I$144*(1+rvanilla03)^0.5)-SUM($I93:AW93),('PTRM input'!$I$144*(1+rvanilla03)^0.5)/A2stdlife)) -> 5.352028076 | AY93: =IF(A2stdlife="n/a","n/a",IF(AY$3>(A2stdlife+$E93),('PTRM input'!$I$144*(1+rvanilla03)^0.5)-SUM($I93:AX93),('PTRM input'!$I$144*(1+rvanilla03)^0.5)/A2stdlife)) -> 5.352028076 | AZ93: =IF(A2stdlife="n/a","n/a",IF(AZ$3>(A2stdlife+$E93),('PTRM input'!$I$144*(1+rvanilla03)^0.5)-SUM($I93:AY93),('PTRM input'!$I$144*(1+rvanilla03)^0.5)/A2stdlife)) -> 5.352028076 | BA93: =IF(A2stdlife="n/a","n/a",IF(BA$3>(A2stdlife+$E93),('PTRM input'!$I$144*(1+rvanilla03)^0.5)-SUM($I93:AZ93),('PTRM input'!$I$144*(1+rvanilla03)^0.5)/A2stdlife)) -> 5.352028076 | BB93: =IF(A2stdlife="n/a","n/a",IF(BB$3>(A2stdlife+$E93),('PTRM input'!$I$144*(1+rvanilla03)^0.5)-SUM($I93:BA93),('PTRM input'!$I$144*(1+rvanilla03)^0.5)/A2stdlife)) -> 5.352028076 | BC93: =IF(A2stdlife="n/a","n/a",IF(BC$3>(A2stdlife+$E93),('PTRM input'!$I$144*(1+rvanilla03)^0.5)-SUM($I93:BB93),('PTRM input'!$I$144*(1+rvanilla03)^0.5)/A2stdlife)) -> 5.352028076 | BD93: =IF(A2stdlife="n/a","n/a",IF(BD$3>(A2stdlife+$E93),('PTRM input'!$I$144*(1+rvanilla03)^0.5)-SUM($I93:BC93),('PTRM input'!$I$144*(1+rvanilla03)^0.5)/A2stdlife)) -> 5.352028076 | BE93: =IF(A2stdlife="n/a","n/a",IF(BE$3>(A2stdlife+$E93),('PTRM input'!$I$144*(1+rvanilla03)^0.5)-SUM($I93:BD93),('PTRM input'!$I$144*(1+rvanilla03)^0.5)/A2stdlife)) -> 5.352028076 | BF93: =IF(A2stdlife="n/a","n/a",IF(BF$3>(A2stdlife+$E93),('PTRM input'!$I$144*(1+rvanilla03)^0.5)-SUM($I93:BE93),('PTRM input'!$I$144*(1+rvanilla03)^0.5)/A2stdlife)) -> 5.352028076 | BG93: =IF(A2stdlife="n/a","n/a",IF(BG$3>(A2stdlife+$E93),('PTRM input'!$I$144*(1+rvanilla03)^0.5)-SUM($I93:BF93),('PTRM input'!$I$144*(1+rvanilla03)^0.5)/A2stdlife)) -> 5.352028076 | BH93: =IF(A2stdlife="n/a","n/a",IF(BH$3>(A2stdlife+$E93),('PTRM input'!$I$144*(1+rvanilla03)^0.5)-SUM($I93:BG93),('PTRM input'!$I$144*(1+rvanilla03)^0.5)/A2stdlife)) -> 5.352028076 | BI93: =IF(A2stdlife="n/a","n/a",IF(BI$3>(A2stdlife+$E93),('PTRM input'!$I$144*(1+rvanilla03)^0.5)-SUM($I93:BH93),('PTRM input'!$I$144*(1+rvanilla03)^0.5)/A2stdlife)) -> 2.273736754e-13
E94: 4 | K94: =IF(A2stdlife="n/a","n/a",IF(K$3>(A2stdlife+$E94),('PTRM input'!$J$144*(1+rvanilla04)^0.5)-SUM($J94:J94),('PTRM input'!$J$144*(1+rvanilla04)^0.5)/A2stdlife)) -> 4.803470748 | L94: =IF(A2stdlife="n/a","n/a",IF(L$3>(A2stdlife+$E94),('PTRM input'!$J$144*(1+rvanilla04)^0.5)-SUM($J94:K94),('PTRM input'!$J$144*(1+rvanilla04)^0.5)/A2stdlife)) -> 4.803470748 | M94: =IF(A2stdlife="n/a","n/a",IF(M$3>(A2stdlife+$E94),('PTRM input'!$J$144*(1+rvanilla04)^0.5)-SUM($J94:L94),('PTRM input'!$J$144*(1+rvanilla04)^0.5)/A2stdlife)) -> 4.803470748 | N94: =IF(A2stdlife="n/a","n/a",IF(N$3>(A2stdlife+$E94),('PTRM input'!$J$144*(1+rvanilla04)^0.5)-SUM($J94:M94),('PTRM input'!$J$144*(1+rvanilla04)^0.5)/A2stdlife)) -> 4.803470748 | O94: =IF(A2stdlife="n/a","n/a",IF(O$3>(A2stdlife+$E94),('PTRM input'!$J$144*(1+rvanilla04)^0.5)-SUM($J94:N94),('PTRM input'!$J$144*(1+rvanilla04)^0.5)/A2stdlife)) -> 4.803470748 | P94: =IF(A2stdlife="n/a","n/a",IF(P$3>(A2stdlife+$E94),('PTRM input'!$J$144*(1+rvanilla04)^0.5)-SUM($J94:O94),('PTRM input'!$J$144*(1+rvanilla04)^0.5)/A2stdlife)) -> 4.803470748 | Q94: =IF(A2stdlife="n/a","n/a",IF(Q$3>(A2stdlife+$E94),('PTRM input'!$J$144*(1+rvanilla04)^0.5)-SUM($J94:P94),('PTRM input'!$J$144*(1+rvanilla04)^0.5)/A2stdlife)) -> 4.803470748 | R94: =IF(A2stdlife="n/a","n/a",IF(R$3>(A2stdlife+$E94),('PTRM input'!$J$144*(1+rvanilla04)^0.5)-SUM($J94:Q94),('PTRM input'!$J$144*(1+rvanilla04)^0.5)/A2stdlife)) -> 4.803470748 | S94: =IF(A2stdlife="n/a","n/a",IF(S$3>(A2stdlife+$E94),('PTRM input'!$J$144*(1+rvanilla04)^0.5)-SUM($J94:R94),('PTRM input'!$J$144*(1+rvanilla04)^0.5)/A2stdlife)) -> 4.803470748 | T94: =IF(A2stdlife="n/a","n/a",IF(T$3>(A2stdlife+$E94),('PTRM input'!$J$144*(1+rvanilla04)^0.5)-SUM($J94:S94),('PTRM input'!$J$144*(1+rvanilla04)^0.5)/A2stdlife)) -> 4.803470748 | U94: =IF(A2stdlife="n/a","n/a",IF(U$3>(A2stdlife+$E94),('PTRM input'!$J$144*(1+rvanilla04)^0.5)-SUM($J94:T94),('PTRM input'!$J$144*(1+rvanilla04)^0.5)/A2stdlife)) -> 4.803470748 | V94: =IF(A2stdlife="n/a","n/a",IF(V$3>(A2stdlife+$E94),('PTRM input'!$J$144*(1+rvanilla04)^0.5)-SUM($J94:U94),('PTRM input'!$J$144*(1+rvanilla04)^0.5)/A2stdlife)) -> 4.803470748 | W94: =IF(A2stdlife="n/a","n/a",IF(W$3>(A2stdlife+$E94),('PTRM input'!$J$144*(1+rvanilla04)^0.5)-SUM($J94:V94),('PTRM input'!$J$144*(1+rvanilla04)^0.5)/A2stdlife)) -> 4.803470748 | X94: =IF(A2stdlife="n/a","n/a",IF(X$3>(A2stdlife+$E94),('PTRM input'!$J$144*(1+rvanilla04)^0.5)-SUM($J94:W94),('PTRM input'!$J$144*(1+rvanilla04)^0.5)/A2stdlife)) -> 4.803470748 | Y94: =IF(A2stdlife="n/a","n/a",IF(Y$3>(A2stdlife+$E94),('PTRM input'!$J$144*(1+rvanilla04)^0.5)-SUM($J94:X94),('PTRM input'!$J$144*(1+rvanilla04)^0.5)/A2stdlife)) -> 4.803470748 | Z94: =IF(A2stdlife="n/a","n/a",IF(Z$3>(A2stdlife+$E94),('PTRM input'!$J$144*(1+rvanilla04)^0.5)-SUM($J94:Y94),('PTRM input'!$J$144*(1+rvanilla04)^0.5)/A2stdlife)) -> 4.803470748 | AA94: =IF(A2stdlife="n/a","n/a",IF(AA$3>(A2stdlife+$E94),('PTRM input'!$J$144*(1+rvanilla04)^0.5)-SUM($J94:Z94),('PTRM input'!$J$144*(1+rvanilla04)^0.5)/A2stdlife)) -> 4.803470748 | AB94: =IF(A2stdlife="n/a","n/a",IF(AB$3>(A2stdlife+$E94),('PTRM input'!$J$144*(1+rvanilla04)^0.5)-SUM($J94:AA94),('PTRM input'!$J$144*(1+rvanilla04)^0.5)/A2stdlife)) -> 4.803470748 | AC94: =IF(A2stdlife="n/a","n/a",IF(AC$3>(A2stdlife+$E94),('PTRM input'!$J$144*(1+rvanilla04)^0.5)-SUM($J94:AB94),('PTRM input'!$J$144*(1+rvanilla04)^0.5)/A2stdlife)) -> 4.803470748 | AD94: =IF(A2stdlife="n/a","n/a",IF(AD$3>(A2stdlife+$E94),('PTRM input'!$J$144*(1+rvanilla04)^0.5)-SUM($J94:AC94),('PTRM input'!$J$144*(1+rvanilla04)^0.5)/A2stdlife)) -> 4.803470748 | AE94: =IF(A2stdlife="n/a","n/a",IF(AE$3>(A2stdlife+$E94),('PTRM input'!$J$144*(1+rvanilla04)^0.5)-SUM($J94:AD94),('PTRM input'!$J$144*(1+rvanilla04)^0.5)/A2stdlife)) -> 4.803470748 | AF94: =IF(A2stdlife="n/a","n/a",IF(AF$3>(A2stdlife+$E94),('PTRM input'!$J$144*(1+rvanilla04)^0.5)-SUM($J94:AE94),('PTRM input'!$J$144*(1+rvanilla04)^0.5)/A2stdlife)) -> 4.803470748 | AG94: =IF(A2stdlife="n/a","n/a",IF(AG$3>(A2stdlife+$E94),('PTRM input'!$J$144*(1+rvanilla04)^0.5)-SUM($J94:AF94),('PTRM input'!$J$144*(1+rvanilla04)^0.5)/A2stdlife)) -> 4.803470748 | AH94: =IF(A2stdlife="n/a","n/a",IF(AH$3>(A2stdlife+$E94),('PTRM input'!$J$144*(1+rvanilla04)^0.5)-SUM($J94:AG94),('PTRM input'!$J$144*(1+rvanilla04)^0.5)/A2stdlife)) -> 4.803470748 | AI94: =IF(A2stdlife="n/a","n/a",IF(AI$3>(A2stdlife+$E94),('PTRM input'!$J$144*(1+rvanilla04)^0.5)-SUM($J94:AH94),('PTRM input'!$J$144*(1+rvanilla04)^0.5)/A2stdlife)) -> 4.803470748 | AJ94: =IF(A2stdlife="n/a","n/a",IF(AJ$3>(A2stdlife+$E94),('PTRM input'!$J$144*(1+rvanilla04)^0.5)-SUM($J94:AI94),('PTRM input'!$J$144*(1+rvanilla04)^0.5)/A2stdlife)) -> 4.803470748 | AK94: =IF(A2stdlife="n/a","n/a",IF(AK$3>(A2stdlife+$E94),('PTRM input'!$J$144*(1+rvanilla04)^0.5)-SUM($J94:AJ94),('PTRM input'!$J$144*(1+rvanilla04)^0.5)/A2stdlife)) -> 4.803470748 | AL94: =IF(A2stdlife="n/a","n/a",IF(AL$3>(A2stdlife+$E94),('PTRM input'!$J$144*(1+rvanilla04)^0.5)-SUM($J94:AK94),('PTRM input'!$J$144*(1+rvanilla04)^0.5)/A2stdlife)) -> 4.803470748 | AM94: =IF(A2stdlife="n/a","n/a",IF(AM$3>(A2stdlife+$E94),('PTRM input'!$J$144*(1+rvanilla04)^0.5)-SUM($J94:AL94),('PTRM input'!$J$144*(1+rvanilla04)^0.5)/A2stdlife)) -> 4.803470748 | AN94: =IF(A2stdlife="n/a","n/a",IF(AN$3>(A2stdlife+$E94),('PTRM input'!$J$144*(1+rvanilla04)^0.5)-SUM($J94:AM94),('PTRM input'!$J$144*(1+rvanilla04)^0.5)/A2stdlife)) -> 4.803470748 | AO94: =IF(A2stdlife="n/a","n/a",IF(AO$3>(A2stdlife+$E94),('PTRM input'!$J$144*(1+rvanilla04)^0.5)-SUM($J94:AN94),('PTRM input'!$J$144*(1+rvanilla04)^0.5)/A2stdlife)) -> 4.803470748 | AP94: =IF(A2stdlife="n/a","n/a",IF(AP$3>(A2stdlife+$E94),('PTRM input'!$J$144*(1+rvanilla04)^0.5)-SUM($J94:AO94),('PTRM input'!$J$144*(1+rvanilla04)^0.5)/A2stdlife)) -> 4.803470748 | AQ94: =IF(A2stdlife="n/a","n/a",IF(AQ$3>(A2stdlife+$E94),('PTRM input'!$J$144*(1+rvanilla04)^0.5)-SUM($J94:AP94),('PTRM input'!$J$144*(1+rvanilla04)^0.5)/A2stdlife)) -> 4.803470748 | AR94: =IF(A2stdlife="n/a","n/a",IF(AR$3>(A2stdlife+$E94),('PTRM input'!$J$144*(1+rvanilla04)^0.5)-SUM($J94:AQ94),('PTRM input'!$J$144*(1+rvanilla04)^0.5)/A2stdlife)) -> 4.803470748 | AS94: =IF(A2stdlife="n/a","n/a",IF(AS$3>(A2stdlife+$E94),('PTRM input'!$J$144*(1+rvanilla04)^0.5)-SUM($J94:AR94),('PTRM input'!$J$144*(1+rvanilla04)^0.5)/A2stdlife)) -> 4.803470748 | AT94: =IF(A2stdlife="n/a","n/a",IF(AT$3>(A2stdlife+$E94),('PTRM input'!$J$144*(1+rvanilla04)^0.5)-SUM($J94:AS94),('PTRM input'!$J$144*(1+rvanilla04)^0.5)/A2stdlife)) -> 4.803470748 | AU94: =IF(A2stdlife="n/a","n/a",IF(AU$3>(A2stdlife+$E94),('PTRM input'!$J$144*(1+rvanilla04)^0.5)-SUM($J94:AT94),('PTRM input'!$J$144*(1+rvanilla04)^0.5)/A2stdlife)) -> 4.803470748 | AV94: =IF(A2stdlife="n/a","n/a",IF(AV$3>(A2stdlife+$E94),('PTRM input'!$J$144*(1+rvanilla04)^0.5)-SUM($J94:AU94),('PTRM input'!$J$144*(1+rvanilla04)^0.5)/A2stdlife)) -> 4.803470748 | AW94: =IF(A2stdlife="n/a","n/a",IF(AW$3>(A2stdlife+$E94),('PTRM input'!$J$144*(1+rvanilla04)^0.5)-SUM($J94:AV94),('PTRM input'!$J$144*(1+rvanilla04)^0.5)/A2stdlife)) -> 4.803470748 | AX94: =IF(A2stdlife="n/a","n/a",IF(AX$3>(A2stdlife+$E94),('PTRM input'!$J$144*(1+rvanilla04)^0.5)-SUM($J94:AW94),('PTRM input'!$J$144*(1+rvanilla04)^0.5)/A2stdlife)) -> 4.803470748 | AY94: =IF(A2stdlife="n/a","n/a",IF(AY$3>(A2stdlife+$E94),('PTRM input'!$J$144*(1+rvanilla04)^0.5)-SUM($J94:AX94),('PTRM input'!$J$144*(1+rvanilla04)^0.5)/A2stdlife)) -> 4.803470748 | AZ94: =IF(A2stdlife="n/a","n/a",IF(AZ$3>(A2stdlife+$E94),('PTRM input'!$J$144*(1+rvanilla04)^0.5)-SUM($J94:AY94),('PTRM input'!$J$144*(1+rvanilla04)^0.5)/A2stdlife)) -> 4.803470748 | BA94: =IF(A2stdlife="n/a","n/a",IF(BA$3>(A2stdlife+$E94),('PTRM input'!$J$144*(1+rvanilla04)^0.5)-SUM($J94:AZ94),('PTRM input'!$J$144*(1+rvanilla04)^0.5)/A2stdlife)) -> 4.803470748 | BB94: =IF(A2stdlife="n/a","n/a",IF(BB$3>(A2stdlife+$E94),('PTRM input'!$J$144*(1+rvanilla04)^0.5)-SUM($J94:BA94),('PTRM input'!$J$144*(1+rvanilla04)^0.5)/A2stdlife)) -> 4.803470748 | BC94: =IF(A2stdlife="n/a","n/a",IF(BC$3>(A2stdlife+$E94),('PTRM input'!$J$144*(1+rvanilla04)^0.5)-SUM($J94:BB94),('PTRM input'!$J$144*(1+rvanilla04)^0.5)/A2stdlife)) -> 4.803470748 | BD94: =IF(A2stdlife="n/a","n/a",IF(BD$3>(A2stdlife+$E94),('PTRM input'!$J$144*(1+rvanilla04)^0.5)-SUM($J94:BC94),('PTRM input'!$J$144*(1+rvanilla04)^0.5)/A2stdlife)) -> 4.803470748 | BE94: =IF(A2stdlife="n/a","n/a",IF(BE$3>(A2stdlife+$E94),('PTRM input'!$J$144*(1+rvanilla04)^0.5)-SUM($J94:BD94),('PTRM input'!$J$144*(1+rvanilla04)^0.5)/A2stdlife)) -> 4.803470748 | BF94: =IF(A2stdlife="n/a","n/a",IF(BF$3>(A2stdlife+$E94),('PTRM input'!$J$144*(1+rvanilla04)^0.5)-SUM($J94:BE94),('PTRM input'!$J$144*(1+rvanilla04)^0.5)/A2stdlife)) -> 4.803470748 | BG94: =IF(A2stdlife="n/a","n/a",IF(BG$3>(A2stdlife+$E94),('PTRM input'!$J$144*(1+rvanilla04)^0.5)-SUM($J94:BF94),('PTRM input'!$J$144*(1+rvanilla04)^0.5)/A2stdlife)) -> 4.803470748 | BH94: =IF(A2stdlife="n/a","n/a",IF(BH$3>(A2stdlife+$E94),('PTRM input'!$J$144*(1+rvanilla04)^0.5)-SUM($J94:BG94),('PTRM input'!$J$144*(1+rvanilla04)^0.5)/A2stdlife)) -> 4.803470748 | BI94: =IF(A2stdlife="n/a","n/a",IF(BI$3>(A2stdlife+$E94),('PTRM input'!$J$144*(1+rvanilla04)^0.5)-SUM($J94:BH94),('PTRM input'!$J$144*(1+rvanilla04)^0.5)/A2stdlife)) -> 4.803470748
E95: 5 | L95: =IF(A2stdlife="n/a","n/a",IF(L$3>(A2stdlife+$E95),('PTRM input'!$K$144*(1+rvanilla05)^0.5)-SUM($K95:K95),('PTRM input'!$K$144*(1+rvanilla05)^0.5)/A2stdlife)) -> 4.393299519 | M95: =IF(A2stdlife="n/a","n/a",IF(M$3>(A2stdlife+$E95),('PTRM input'!$K$144*(1+rvanilla05)^0.5)-SUM($K95:L95),('PTRM input'!$K$144*(1+rvanilla05)^0.5)/A2stdlife)) -> 4.393299519 | N95: =IF(A2stdlife="n/a","n/a",IF(N$3>(A2stdlife+$E95),('PTRM input'!$K$144*(1+rvanilla05)^0.5)-SUM($K95:M95),('PTRM input'!$K$144*(1+rvanilla05)^0.5)/A2stdlife)) -> 4.393299519 | O95: =IF(A2stdlife="n/a","n/a",IF(O$3>(A2stdlife+$E95),('PTRM input'!$K$144*(1+rvanilla05)^0.5)-SUM($K95:N95),('PTRM input'!$K$144*(1+rvanilla05)^0.5)/A2stdlife)) -> 4.393299519 | P95: =IF(A2stdlife="n/a","n/a",IF(P$3>(A2stdlife+$E95),('PTRM input'!$K$144*(1+rvanilla05)^0.5)-SUM($K95:O95),('PTRM input'!$K$144*(1+rvanilla05)^0.5)/A2stdlife)) -> 4.393299519 | Q95: =IF(A2stdlife="n/a","n/a",IF(Q$3>(A2stdlife+$E95),('PTRM input'!$K$144*(1+rvanilla05)^0.5)-SUM($K95:P95),('PTRM input'!$K$144*(1+rvanilla05)^0.5)/A2stdlife)) -> 4.393299519 | R95: =IF(A2stdlife="n/a","n/a",IF(R$3>(A2stdlife+$E95),('PTRM input'!$K$144*(1+rvanilla05)^0.5)-SUM($K95:Q95),('PTRM input'!$K$144*(1+rvanilla05)^0.5)/A2stdlife)) -> 4.393299519 | S95: =IF(A2stdlife="n/a","n/a",IF(S$3>(A2stdlife+$E95),('PTRM input'!$K$144*(1+rvanilla05)^0.5)-SUM($K95:R95),('PTRM input'!$K$144*(1+rvanilla05)^0.5)/A2stdlife)) -> 4.393299519 | T95: =IF(A2stdlife="n/a","n/a",IF(T$3>(A2stdlife+$E95),('PTRM input'!$K$144*(1+rvanilla05)^0.5)-SUM($K95:S95),('PTRM input'!$K$144*(1+rvanilla05)^0.5)/A2stdlife)) -> 4.393299519 | U95: =IF(A2stdlife="n/a","n/a",IF(U$3>(A2stdlife+$E95),('PTRM input'!$K$144*(1+rvanilla05)^0.5)-SUM($K95:T95),('PTRM input'!$K$144*(1+rvanilla05)^0.5)/A2stdlife)) -> 4.393299519 | V95: =IF(A2stdlife="n/a","n/a",IF(V$3>(A2stdlife+$E95),('PTRM input'!$K$144*(1+rvanilla05)^0.5)-SUM($K95:U95),('PTRM input'!$K$144*(1+rvanilla05)^0.5)/A2stdlife)) -> 4.393299519 | W95: =IF(A2stdlife="n/a","n/a",IF(W$3>(A2stdlife+$E95),('PTRM input'!$K$144*(1+rvanilla05)^0.5)-SUM($K95:V95),('PTRM input'!$K$144*(1+rvanilla05)^0.5)/A2stdlife)) -> 4.393299519 | X95: =IF(A2stdlife="n/a","n/a",IF(X$3>(A2stdlife+$E95),('PTRM input'!$K$144*(1+rvanilla05)^0.5)-SUM($K95:W95),('PTRM input'!$K$144*(1+rvanilla05)^0.5)/A2stdlife)) -> 4.393299519 | Y95: =IF(A2stdlife="n/a","n/a",IF(Y$3>(A2stdlife+$E95),('PTRM input'!$K$144*(1+rvanilla05)^0.5)-SUM($K95:X95),('PTRM input'!$K$144*(1+rvanilla05)^0.5)/A2stdlife)) -> 4.393299519 | Z95: =IF(A2stdlife="n/a","n/a",IF(Z$3>(A2stdlife+$E95),('PTRM input'!$K$144*(1+rvanilla05)^0.5)-SUM($K95:Y95),('PTRM input'!$K$144*(1+rvanilla05)^0.5)/A2stdlife)) -> 4.393299519 | AA95: =IF(A2stdlife="n/a","n/a",IF(AA$3>(A2stdlife+$E95),('PTRM input'!$K$144*(1+rvanilla05)^0.5)-SUM($K95:Z95),('PTRM input'!$K$144*(1+rvanilla05)^0.5)/A2stdlife)) -> 4.393299519 | AB95: =IF(A2stdlife="n/a","n/a",IF(AB$3>(A2stdlife+$E95),('PTRM input'!$K$144*(1+rvanilla05)^0.5)-SUM($K95:AA95),('PTRM input'!$K$144*(1+rvanilla05)^0.5)/A2stdlife)) -> 4.393299519 | AC95: =IF(A2stdlife="n/a","n/a",IF(AC$3>(A2stdlife+$E95),('PTRM input'!$K$144*(1+rvanilla05)^0.5)-SUM($K95:AB95),('PTRM input'!$K$144*(1+rvanilla05)^0.5)/A2stdlife)) -> 4.393299519 | AD95: =IF(A2stdlife="n/a","n/a",IF(AD$3>(A2stdlife+$E95),('PTRM input'!$K$144*(1+rvanilla05)^0.5)-SUM($K95:AC95),('PTRM input'!$K$144*(1+rvanilla05)^0.5)/A2stdlife)) -> 4.393299519 | AE95: =IF(A2stdlife="n/a","n/a",IF(AE$3>(A2stdlife+$E95),('PTRM input'!$K$144*(1+rvanilla05)^0.5)-SUM($K95:AD95),('PTRM input'!$K$144*(1+rvanilla05)^0.5)/A2stdlife)) -> 4.393299519 | AF95: =IF(A2stdlife="n/a","n/a",IF(AF$3>(A2stdlife+$E95),('PTRM input'!$K$144*(1+rvanilla05)^0.5)-SUM($K95:AE95),('PTRM input'!$K$144*(1+rvanilla05)^0.5)/A2stdlife)) -> 4.393299519 | AG95: =IF(A2stdlife="n/a","n/a",IF(AG$3>(A2stdlife+$E95),('PTRM input'!$K$144*(1+rvanilla05)^0.5)-SUM($K95:AF95),('PTRM input'!$K$144*(1+rvanilla05)^0.5)/A2stdlife)) -> 4.393299519 | AH95: =IF(A2stdlife="n/a","n/a",IF(AH$3>(A2stdlife+$E95),('PTRM input'!$K$144*(1+rvanilla05)^0.5)-SUM($K95:AG95),('PTRM input'!$K$144*(1+rvanilla05)^0.5)/A2stdlife)) -> 4.393299519 | AI95: =IF(A2stdlife="n/a","n/a",IF(AI$3>(A2stdlife+$E95),('PTRM input'!$K$144*(1+rvanilla05)^0.5)-SUM($K95:AH95),('PTRM input'!$K$144*(1+rvanilla05)^0.5)/A2stdlife)) -> 4.393299519 | AJ95: =IF(A2stdlife="n/a","n/a",IF(AJ$3>(A2stdlife+$E95),('PTRM input'!$K$144*(1+rvanilla05)^0.5)-SUM($K95:AI95),('PTRM input'!$K$144*(1+rvanilla05)^0.5)/A2stdlife)) -> 4.393299519 | AK95: =IF(A2stdlife="n/a","n/a",IF(AK$3>(A2stdlife+$E95),('PTRM input'!$K$144*(1+rvanilla05)^0.5)-SUM($K95:AJ95),('PTRM input'!$K$144*(1+rvanilla05)^0.5)/A2stdlife)) -> 4.393299519 | AL95: =IF(A2stdlife="n/a","n/a",IF(AL$3>(A2stdlife+$E95),('PTRM input'!$K$144*(1+rvanilla05)^0.5)-SUM($K95:AK95),('PTRM input'!$K$144*(1+rvanilla05)^0.5)/A2stdlife)) -> 4.393299519 | AM95: =IF(A2stdlife="n/a","n/a",IF(AM$3>(A2stdlife+$E95),('PTRM input'!$K$144*(1+rvanilla05)^0.5)-SUM($K95:AL95),('PTRM input'!$K$144*(1+rvanilla05)^0.5)/A2stdlife)) -> 4.393299519 | AN95: =IF(A2stdlife="n/a","n/a",IF(AN$3>(A2stdlife+$E95),('PTRM input'!$K$144*(1+rvanilla05)^0.5)-SUM($K95:AM95),('PTRM input'!$K$144*(1+rvanilla05)^0.5)/A2stdlife)) -> 4.393299519 | AO95: =IF(A2stdlife="n/a","n/a",IF(AO$3>(A2stdlife+$E95),('PTRM input'!$K$144*(1+rvanilla05)^0.5)-SUM($K95:AN95),('PTRM input'!$K$144*(1+rvanilla05)^0.5)/A2stdlife)) -> 4.393299519 | AP95: =IF(A2stdlife="n/a","n/a",IF(AP$3>(A2stdlife+$E95),('PTRM input'!$K$144*(1+rvanilla05)^0.5)-SUM($K95:AO95),('PTRM input'!$K$144*(1+rvanilla05)^0.5)/A2stdlife)) -> 4.393299519 | AQ95: =IF(A2stdlife="n/a","n/a",IF(AQ$3>(A2stdlife+$E95),('PTRM input'!$K$144*(1+rvanilla05)^0.5)-SUM($K95:AP95),('PTRM input'!$K$144*(1+rvanilla05)^0.5)/A2stdlife)) -> 4.393299519 | AR95: =IF(A2stdlife="n/a","n/a",IF(AR$3>(A2stdlife+$E95),('PTRM input'!$K$144*(1+rvanilla05)^0.5)-SUM($K95:AQ95),('PTRM input'!$K$144*(1+rvanilla05)^0.5)/A2stdlife)) -> 4.393299519 | AS95: =IF(A2stdlife="n/a","n/a",IF(AS$3>(A2stdlife+$E95),('PTRM input'!$K$144*(1+rvanilla05)^0.5)-SUM($K95:AR95),('PTRM input'!$K$144*(1+rvanilla05)^0.5)/A2stdlife)) -> 4.393299519 | AT95: =IF(A2stdlife="n/a","n/a",IF(AT$3>(A2stdlife+$E95),('PTRM input'!$K$144*(1+rvanilla05)^0.5)-SUM($K95:AS95),('PTRM input'!$K$144*(1+rvanilla05)^0.5)/A2stdlife)) -> 4.393299519 | AU95: =IF(A2stdlife="n/a","n/a",IF(AU$3>(A2stdlife+$E95),('PTRM input'!$K$144*(1+rvanilla05)^0.5)-SUM($K95:AT95),('PTRM input'!$K$144*(1+rvanilla05)^0.5)/A2stdlife)) -> 4.393299519 | AV95: =IF(A2stdlife="n/a","n/a",IF(AV$3>(A2stdlife+$E95),('PTRM input'!$K$144*(1+rvanilla05)^0.5)-SUM($K95:AU95),('PTRM input'!$K$144*(1+rvanilla05)^0.5)/A2stdlife)) -> 4.393299519 | AW95: =IF(A2stdlife="n/a","n/a",IF(AW$3>(A2stdlife+$E95),('PTRM input'!$K$144*(1+rvanilla05)^0.5)-SUM($K95:AV95),('PTRM input'!$K$144*(1+rvanilla05)^0.5)/A2stdlife)) -> 4.393299519 | AX95: =IF(A2stdlife="n/a","n/a",IF(AX$3>(A2stdlife+$E95),('PTRM input'!$K$144*(1+rvanilla05)^0.5)-SUM($K95:AW95),('PTRM input'!$K$144*(1+rvanilla05)^0.5)/A2stdlife)) -> 4.393299519 | AY95: =IF(A2stdlife="n/a","n/a",IF(AY$3>(A2stdlife+$E95),('PTRM input'!$K$144*(1+rvanilla05)^0.5)-SUM($K95:AX95),('PTRM input'!$K$144*(1+rvanilla05)^0.5)/A2stdlife)) -> 4.393299519 | AZ95: =IF(A2stdlife="n/a","n/a",IF(AZ$3>(A2stdlife+$E95),('PTRM input'!$K$144*(1+rvanilla05)^0.5)-SUM($K95:AY95),('PTRM input'!$K$144*(1+rvanilla05)^0.5)/A2stdlife)) -> 4.393299519 | BA95: =IF(A2stdlife="n/a","n/a",IF(BA$3>(A2stdlife+$E95),('PTRM input'!$K$144*(1+rvanilla05)^0.5)-SUM($K95:AZ95),('PTRM input'!$K$144*(1+rvanilla05)^0.5)/A2stdlife)) -> 4.393299519 | BB95: =IF(A2stdlife="n/a","n/a",IF(BB$3>(A2stdlife+$E95),('PTRM input'!$K$144*(1+rvanilla05)^0.5)-SUM($K95:BA95),('PTRM input'!$K$144*(1+rvanilla05)^0.5)/A2stdlife)) -> 4.393299519 | BC95: =IF(A2stdlife="n/a","n/a",IF(BC$3>(A2stdlife+$E95),('PTRM input'!$K$144*(1+rvanilla05)^0.5)-SUM($K95:BB95),('PTRM input'!$K$144*(1+rvanilla05)^0.5)/A2stdlife)) -> 4.393299519 | BD95: =IF(A2stdlife="n/a","n/a",IF(BD$3>(A2stdlife+$E95),('PTRM input'!$K$144*(1+rvanilla05)^0.5)-SUM($K95:BC95),('PTRM input'!$K$144*(1+rvanilla05)^0.5)/A2stdlife)) -> 4.393299519 | BE95: =IF(A2stdlife="n/a","n/a",IF(BE$3>(A2stdlife+$E95),('PTRM input'!$K$144*(1+rvanilla05)^0.5)-SUM($K95:BD95),('PTRM input'!$K$144*(1+rvanilla05)^0.5)/A2stdlife)) -> 4.393299519 | BF95: =IF(A2stdlife="n/a","n/a",IF(BF$3>(A2stdlife+$E95),('PTRM input'!$K$144*(1+rvanilla05)^0.5)-SUM($K95:BE95),('PTRM input'!$K$144*(1+rvanilla05)^0.5)/A2stdlife)) -> 4.393299519 | BG95: =IF(A2stdlife="n/a","n/a",IF(BG$3>(A2stdlife+$E95),('PTRM input'!$K$144*(1+rvanilla05)^0.5)-SUM($K95:BF95),('PTRM input'!$K$144*(1+rvanilla05)^0.5)/A2stdlife)) -> 4.393299519 | BH95: =IF(A2stdlife="n/a","n/a",IF(BH$3>(A2stdlife+$E95),('PTRM input'!$K$144*(1+rvanilla05)^0.5)-SUM($K95:BG95),('PTRM input'!$K$144*(1+rvanilla05)^0.5)/A2stdlife)) -> 4.393299519 | BI95: =IF(A2stdlife="n/a","n/a",IF(BI$3>(A2stdlife+$E95),('PTRM input'!$K$144*(1+rvanilla05)^0.5)-SUM($K95:BH95),('PTRM input'!$K$144*(1+rvanilla05)^0.5)/A2stdlife)) -> 4.393299519
E96: 6 | M96: =IF(A2stdlife="n/a","n/a",IF(M$3>(A2stdlife+$E96),('PTRM input'!$L$144*(1+rvanilla06)^0.5)-SUM($L96:L96),('PTRM input'!$L$144*(1+rvanilla06)^0.5)/A2stdlife)) -> 0 | N96: =IF(A2stdlife="n/a","n/a",IF(N$3>(A2stdlife+$E96),('PTRM input'!$L$144*(1+rvanilla06)^0.5)-SUM($L96:M96),('PTRM input'!$L$144*(1+rvanilla06)^0.5)/A2stdlife)) -> 0 | O96: =IF(A2stdlife="n/a","n/a",IF(O$3>(A2stdlife+$E96),('PTRM input'!$L$144*(1+rvanilla06)^0.5)-SUM($L96:N96),('PTRM input'!$L$144*(1+rvanilla06)^0.5)/A2stdlife)) -> 0 | P96: =IF(A2stdlife="n/a","n/a",IF(P$3>(A2stdlife+$E96),('PTRM input'!$L$144*(1+rvanilla06)^0.5)-SUM($L96:O96),('PTRM input'!$L$144*(1+rvanilla06)^0.5)/A2stdlife)) -> 0 | Q96: =IF(A2stdlife="n/a","n/a",IF(Q$3>(A2stdlife+$E96),('PTRM input'!$L$144*(1+rvanilla06)^0.5)-SUM($L96:P96),('PTRM input'!$L$144*(1+rvanilla06)^0.5)/A2stdlife)) -> 0 | R96: =IF(A2stdlife="n/a","n/a",IF(R$3>(A2stdlife+$E96),('PTRM input'!$L$144*(1+rvanilla06)^0.5)-SUM($L96:Q96),('PTRM input'!$L$144*(1+rvanilla06)^0.5)/A2stdlife)) -> 0 | S96: =IF(A2stdlife="n/a","n/a",IF(S$3>(A2stdlife+$E96),('PTRM input'!$L$144*(1+rvanilla06)^0.5)-SUM($L96:R96),('PTRM input'!$L$144*(1+rvanilla06)^0.5)/A2stdlife)) -> 0 | T96: =IF(A2stdlife="n/a","n/a",IF(T$3>(A2stdlife+$E96),('PTRM input'!$L$144*(1+rvanilla06)^0.5)-SUM($L96:S96),('PTRM input'!$L$144*(1+rvanilla06)^0.5)/A2stdlife)) -> 0 | U96: =IF(A2stdlife="n/a","n/a",IF(U$3>(A2stdlife+$E96),('PTRM input'!$L$144*(1+rvanilla06)^0.5)-SUM($L96:T96),('PTRM input'!$L$144*(1+rvanilla06)^0.5)/A2stdlife)) -> 0 | V96: =IF(A2stdlife="n/a","n/a",IF(V$3>(A2stdlife+$E96),('PTRM input'!$L$144*(1+rvanilla06)^0.5)-SUM($L96:U96),('PTRM input'!$L$144*(1+rvanilla06)^0.5)/A2stdlife)) -> 0 | W96: =IF(A2stdlife="n/a","n/a",IF(W$3>(A2stdlife+$E96),('PTRM input'!$L$144*(1+rvanilla06)^0.5)-SUM($L96:V96),('PTRM input'!$L$144*(1+rvanilla06)^0.5)/A2stdlife)) -> 0 | X96: =IF(A2stdlife="n/a","n/a",IF(X$3>(A2stdlife+$E96),('PTRM input'!$L$144*(1+rvanilla06)^0.5)-SUM($L96:W96),('PTRM input'!$L$144*(1+rvanilla06)^0.5)/A2stdlife)) -> 0 | Y96: =IF(A2stdlife="n/a","n/a",IF(Y$3>(A2stdlife+$E96),('PTRM input'!$L$144*(1+rvanilla06)^0.5)-SUM($L96:X96),('PTRM input'!$L$144*(1+rvanilla06)^0.5)/A2stdlife)) -> 0 | Z96: =IF(A2stdlife="n/a","n/a",IF(Z$3>(A2stdlife+$E96),('PTRM input'!$L$144*(1+rvanilla06)^0.5)-SUM($L96:Y96),('PTRM input'!$L$144*(1+rvanilla06)^0.5)/A2stdlife)) -> 0 | AA96: =IF(A2stdlife="n/a","n/a",IF(AA$3>(A2stdlife+$E96),('PTRM input'!$L$144*(1+rvanilla06)^0.5)-SUM($L96:Z96),('PTRM input'!$L$144*(1+rvanilla06)^0.5)/A2stdlife)) -> 0 | AB96: =IF(A2stdlife="n/a","n/a",IF(AB$3>(A2stdlife+$E96),('PTRM input'!$L$144*(1+rvanilla06)^0.5)-SUM($L96:AA96),('PTRM input'!$L$144*(1+rvanilla06)^0.5)/A2stdlife)) -> 0 | AC96: =IF(A2stdlife="n/a","n/a",IF(AC$3>(A2stdlife+$E96),('PTRM input'!$L$144*(1+rvanilla06)^0.5)-SUM($L96:AB96),('PTRM input'!$L$144*(1+rvanilla06)^0.5)/A2stdlife)) -> 0 | AD96: =IF(A2stdlife="n/a","n/a",IF(AD$3>(A2stdlife+$E96),('PTRM input'!$L$144*(1+rvanilla06)^0.5)-SUM($L96:AC96),('PTRM input'!$L$144*(1+rvanilla06)^0.5)/A2stdlife)) -> 0 | AE96: =IF(A2stdlife="n/a","n/a",IF(AE$3>(A2stdlife+$E96),('PTRM input'!$L$144*(1+rvanilla06)^0.5)-SUM($L96:AD96),('PTRM input'!$L$144*(1+rvanilla06)^0.5)/A2stdlife)) -> 0 | AF96: =IF(A2stdlife="n/a","n/a",IF(AF$3>(A2stdlife+$E96),('PTRM input'!$L$144*(1+rvanilla06)^0.5)-SUM($L96:AE96),('PTRM input'!$L$144*(1+rvanilla06)^0.5)/A2stdlife)) -> 0 | AG96: =IF(A2stdlife="n/a","n/a",IF(AG$3>(A2stdlife+$E96),('PTRM input'!$L$144*(1+rvanilla06)^0.5)-SUM($L96:AF96),('PTRM input'!$L$144*(1+rvanilla06)^0.5)/A2stdlife)) -> 0 | AH96: =IF(A2stdlife="n/a","n/a",IF(AH$3>(A2stdlife+$E96),('PTRM input'!$L$144*(1+rvanilla06)^0.5)-SUM($L96:AG96),('PTRM input'!$L$144*(1+rvanilla06)^0.5)/A2stdlife)) -> 0 | AI96: =IF(A2stdlife="n/a","n/a",IF(AI$3>(A2stdlife+$E96),('PTRM input'!$L$144*(1+rvanilla06)^0.5)-SUM($L96:AH96),('PTRM input'!$L$144*(1+rvanilla06)^0.5)/A2stdlife)) -> 0 | AJ96: =IF(A2stdlife="n/a","n/a",IF(AJ$3>(A2stdlife+$E96),('PTRM input'!$L$144*(1+rvanilla06)^0.5)-SUM($L96:AI96),('PTRM input'!$L$144*(1+rvanilla06)^0.5)/A2stdlife)) -> 0 | AK96: =IF(A2stdlife="n/a","n/a",IF(AK$3>(A2stdlife+$E96),('PTRM input'!$L$144*(1+rvanilla06)^0.5)-SUM($L96:AJ96),('PTRM input'!$L$144*(1+rvanilla06)^0.5)/A2stdlife)) -> 0 | AL96: =IF(A2stdlife="n/a","n/a",IF(AL$3>(A2stdlife+$E96),('PTRM input'!$L$144*(1+rvanilla06)^0.5)-SUM($L96:AK96),('PTRM input'!$L$144*(1+rvanilla06)^0.5)/A2stdlife)) -> 0 | AM96: =IF(A2stdlife="n/a","n/a",IF(AM$3>(A2stdlife+$E96),('PTRM input'!$L$144*(1+rvanilla06)^0.5)-SUM($L96:AL96),('PTRM input'!$L$144*(1+rvanilla06)^0.5)/A2stdlife)) -> 0 | AN96: =IF(A2stdlife="n/a","n/a",IF(AN$3>(A2stdlife+$E96),('PTRM input'!$L$144*(1+rvanilla06)^0.5)-SUM($L96:AM96),('PTRM input'!$L$144*(1+rvanilla06)^0.5)/A2stdlife)) -> 0 | AO96: =IF(A2stdlife="n/a","n/a",IF(AO$3>(A2stdlife+$E96),('PTRM input'!$L$144*(1+rvanilla06)^0.5)-SUM($L96:AN96),('PTRM input'!$L$144*(1+rvanilla06)^0.5)/A2stdlife)) -> 0 | AP96: =IF(A2stdlife="n/a","n/a",IF(AP$3>(A2stdlife+$E96),('PTRM input'!$L$144*(1+rvanilla06)^0.5)-SUM($L96:AO96),('PTRM input'!$L$144*(1+rvanilla06)^0.5)/A2stdlife)) -> 0 | AQ96: =IF(A2stdlife="n/a","n/a",IF(AQ$3>(A2stdlife+$E96),('PTRM input'!$L$144*(1+rvanilla06)^0.5)-SUM($L96:AP96),('PTRM input'!$L$144*(1+rvanilla06)^0.5)/A2stdlife)) -> 0 | AR96: =IF(A2stdlife="n/a","n/a",IF(AR$3>(A2stdlife+$E96),('PTRM input'!$L$144*(1+rvanilla06)^0.5)-SUM($L96:AQ96),('PTRM input'!$L$144*(1+rvanilla06)^0.5)/A2stdlife)) -> 0 | AS96: =IF(A2stdlife="n/a","n/a",IF(AS$3>(A2stdlife+$E96),('PTRM input'!$L$144*(1+rvanilla06)^0.5)-SUM($L96:AR96),('PTRM input'!$L$144*(1+rvanilla06)^0.5)/A2stdlife)) -> 0 | AT96: =IF(A2stdlife="n/a","n/a",IF(AT$3>(A2stdlife+$E96),('PTRM input'!$L$144*(1+rvanilla06)^0.5)-SUM($L96:AS96),('PTRM input'!$L$144*(1+rvanilla06)^0.5)/A2stdlife)) -> 0 | AU96: =IF(A2stdlife="n/a","n/a",IF(AU$3>(A2stdlife+$E96),('PTRM input'!$L$144*(1+rvanilla06)^0.5)-SUM($L96:AT96),('PTRM input'!$L$144*(1+rvanilla06)^0.5)/A2stdlife)) -> 0 | AV96: =IF(A2stdlife="n/a","n/a",IF(AV$3>(A2stdlife+$E96),('PTRM input'!$L$144*(1+rvanilla06)^0.5)-SUM($L96:AU96),('PTRM input'!$L$144*(1+rvanilla06)^0.5)/A2stdlife)) -> 0 | AW96: =IF(A2stdlife="n/a","n/a",IF(AW$3>(A2stdlife+$E96),('PTRM input'!$L$144*(1+rvanilla06)^0.5)-SUM($L96:AV96),('PTRM input'!$L$144*(1+rvanilla06)^0.5)/A2stdlife)) -> 0 | AX96: =IF(A2stdlife="n/a","n/a",IF(AX$3>(A2stdlife+$E96),('PTRM input'!$L$144*(1+rvanilla06)^0.5)-SUM($L96:AW96),('PTRM input'!$L$144*(1+rvanilla06)^0.5)/A2stdlife)) -> 0 | AY96: =IF(A2stdlife="n/a","n/a",IF(AY$3>(A2stdlife+$E96),('PTRM input'!$L$144*(1+rvanilla06)^0.5)-SUM($L96:AX96),('PTRM input'!$L$144*(1+rvanilla06)^0.5)/A2stdlife)) -> 0 | AZ96: =IF(A2stdlife="n/a","n/a",IF(AZ$3>(A2stdlife+$E96),('PTRM input'!$L$144*(1+rvanilla06)^0.5)-SUM($L96:AY96),('PTRM input'!$L$144*(1+rvanilla06)^0.5)/A2stdlife)) -> 0 | BA96: =IF(A2stdlife="n/a","n/a",IF(BA$3>(A2stdlife+$E96),('PTRM input'!$L$144*(1+rvanilla06)^0.5)-SUM($L96:AZ96),('PTRM input'!$L$144*(1+rvanilla06)^0.5)/A2stdlife)) -> 0 | BB96: =IF(A2stdlife="n/a","n/a",IF(BB$3>(A2stdlife+$E96),('PTRM input'!$L$144*(1+rvanilla06)^0.5)-SUM($L96:BA96),('PTRM input'!$L$144*(1+rvanilla06)^0.5)/A2stdlife)) -> 0 | BC96: =IF(A2stdlife="n/a","n/a",IF(BC$3>(A2stdlife+$E96),('PTRM input'!$L$144*(1+rvanilla06)^0.5)-SUM($L96:BB96),('PTRM input'!$L$144*(1+rvanilla06)^0.5)/A2stdlife)) -> 0 | BD96: =IF(A2stdlife="n/a","n/a",IF(BD$3>(A2stdlife+$E96),('PTRM input'!$L$144*(1+rvanilla06)^0.5)-SUM($L96:BC96),('PTRM input'!$L$144*(1+rvanilla06)^0.5)/A2stdlife)) -> 0 | BE96: =IF(A2stdlife="n/a","n/a",IF(BE$3>(A2stdlife+$E96),('PTRM input'!$L$144*(1+rvanilla06)^0.5)-SUM($L96:BD96),('PTRM input'!$L$144*(1+rvanilla06)^0.5)/A2stdlife)) -> 0 | BF96: =IF(A2stdlife="n/a","n/a",IF(BF$3>(A2stdlife+$E96),('PTRM input'!$L$144*(1+rvanilla06)^0.5)-SUM($L96:BE96),('PTRM input'!$L$144*(1+rvanilla06)^0.5)/A2stdlife)) -> 0 | BG96: =IF(A2stdlife="n/a","n/a",IF(BG$3>(A2stdlife+$E96),('PTRM input'!$L$144*(1+rvanilla06)^0.5)-SUM($L96:BF96),('PTRM input'!$L$144*(1+rvanilla06)^0.5)/A2stdlife)) -> 0 | BH96: =IF(A2stdlife="n/a","n/a",IF(BH$3>(A2stdlife+$E96),('PTRM input'!$L$144*(1+rvanilla06)^0.5)-SUM($L96:BG96),('PTRM input'!$L$144*(1+rvanilla06)^0.5)/A2stdlife)) -> 0 | BI96: =IF(A2stdlife="n/a","n/a",IF(BI$3>(A2stdlife+$E96),('PTRM input'!$L$144*(1+rvanilla06)^0.5)-SUM($L96:BH96),('PTRM input'!$L$144*(1+rvanilla06)^0.5)/A2stdlife)) -> 0
E97: 7 | N97: =IF(A2stdlife="n/a","n/a",IF(N$3>(A2stdlife+$E97),('PTRM input'!$M$144*(1+rvanilla07)^0.5)-SUM($M97:M97),('PTRM input'!$M$144*(1+rvanilla07)^0.5)/A2stdlife)) -> 0 | O97: =IF(A2stdlife="n/a","n/a",IF(O$3>(A2stdlife+$E97),('PTRM input'!$M$144*(1+rvanilla07)^0.5)-SUM($M97:N97),('PTRM input'!$M$144*(1+rvanilla07)^0.5)/A2stdlife)) -> 0 | P97: =IF(A2stdlife="n/a","n/a",IF(P$3>(A2stdlife+$E97),('PTRM input'!$M$144*(1+rvanilla07)^0.5)-SUM($M97:O97),('PTRM input'!$M$144*(1+rvanilla07)^0.5)/A2stdlife)) -> 0 | Q97: =IF(A2stdlife="n/a","n/a",IF(Q$3>(A2stdlife+$E97),('PTRM input'!$M$144*(1+rvanilla07)^0.5)-SUM($M97:P97),('PTRM input'!$M$144*(1+rvanilla07)^0.5)/A2stdlife)) -> 0 | R97: =IF(A2stdlife="n/a","n/a",IF(R$3>(A2stdlife+$E97),('PTRM input'!$M$144*(1+rvanilla07)^0.5)-SUM($M97:Q97),('PTRM input'!$M$144*(1+rvanilla07)^0.5)/A2stdlife)) -> 0 | S97: =IF(A2stdlife="n/a","n/a",IF(S$3>(A2stdlife+$E97),('PTRM input'!$M$144*(1+rvanilla07)^0.5)-SUM($M97:R97),('PTRM input'!$M$144*(1+rvanilla07)^0.5)/A2stdlife)) -> 0 | T97: =IF(A2stdlife="n/a","n/a",IF(T$3>(A2stdlife+$E97),('PTRM input'!$M$144*(1+rvanilla07)^0.5)-SUM($M97:S97),('PTRM input'!$M$144*(1+rvanilla07)^0.5)/A2stdlife)) -> 0 | U97: =IF(A2stdlife="n/a","n/a",IF(U$3>(A2stdlife+$E97),('PTRM input'!$M$144*(1+rvanilla07)^0.5)-SUM($M97:T97),('PTRM input'!$M$144*(1+rvanilla07)^0.5)/A2stdlife)) -> 0 | V97: =IF(A2stdlife="n/a","n/a",IF(V$3>(A2stdlife+$E97),('PTRM input'!$M$144*(1+rvanilla07)^0.5)-SUM($M97:U97),('PTRM input'!$M$144*(1+rvanilla07)^0.5)/A2stdlife)) -> 0 | W97: =IF(A2stdlife="n/a","n/a",IF(W$3>(A2stdlife+$E97),('PTRM input'!$M$144*(1+rvanilla07)^0.5)-SUM($M97:V97),('PTRM input'!$M$144*(1+rvanilla07)^0.5)/A2stdlife)) -> 0 | X97: =IF(A2stdlife="n/a","n/a",IF(X$3>(A2stdlife+$E97),('PTRM input'!$M$144*(1+rvanilla07)^0.5)-SUM($M97:W97),('PTRM input'!$M$144*(1+rvanilla07)^0.5)/A2stdlife)) -> 0 | Y97: =IF(A2stdlife="n/a","n/a",IF(Y$3>(A2stdlife+$E97),('PTRM input'!$M$144*(1+rvanilla07)^0.5)-SUM($M97:X97),('PTRM input'!$M$144*(1+rvanilla07)^0.5)/A2stdlife)) -> 0 | Z97: =IF(A2stdlife="n/a","n/a",IF(Z$3>(A2stdlife+$E97),('PTRM input'!$M$144*(1+rvanilla07)^0.5)-SUM($M97:Y97),('PTRM input'!$M$144*(1+rvanilla07)^0.5)/A2stdlife)) -> 0 | AA97: =IF(A2stdlife="n/a","n/a",IF(AA$3>(A2stdlife+$E97),('PTRM input'!$M$144*(1+rvanilla07)^0.5)-SUM($M97:Z97),('PTRM input'!$M$144*(1+rvanilla07)^0.5)/A2stdlife)) -> 0 | AB97: =IF(A2stdlife="n/a","n/a",IF(AB$3>(A2stdlife+$E97),('PTRM input'!$M$144*(1+rvanilla07)^0.5)-SUM($M97:AA97),('PTRM input'!$M$144*(1+rvanilla07)^0.5)/A2stdlife)) -> 0 | AC97: =IF(A2stdlife="n/a","n/a",IF(AC$3>(A2stdlife+$E97),('PTRM input'!$M$144*(1+rvanilla07)^0.5)-SUM($M97:AB97),('PTRM input'!$M$144*(1+rvanilla07)^0.5)/A2stdlife)) -> 0 | AD97: =IF(A2stdlife="n/a","n/a",IF(AD$3>(A2stdlife+$E97),('PTRM input'!$M$144*(1+rvanilla07)^0.5)-SUM($M97:AC97),('PTRM input'!$M$144*(1+rvanilla07)^0.5)/A2stdlife)) -> 0 | AE97: =IF(A2stdlife="n/a","n/a",IF(AE$3>(A2stdlife+$E97),('PTRM input'!$M$144*(1+rvanilla07)^0.5)-SUM($M97:AD97),('PTRM input'!$M$144*(1+rvanilla07)^0.5)/A2stdlife)) -> 0 | AF97: =IF(A2stdlife="n/a","n/a",IF(AF$3>(A2stdlife+$E97),('PTRM input'!$M$144*(1+rvanilla07)^0.5)-SUM($M97:AE97),('PTRM input'!$M$144*(1+rvanilla07)^0.5)/A2stdlife)) -> 0 | AG97: =IF(A2stdlife="n/a","n/a",IF(AG$3>(A2stdlife+$E97),('PTRM input'!$M$144*(1+rvanilla07)^0.5)-SUM($M97:AF97),('PTRM input'!$M$144*(1+rvanilla07)^0.5)/A2stdlife)) -> 0 | AH97: =IF(A2stdlife="n/a","n/a",IF(AH$3>(A2stdlife+$E97),('PTRM input'!$M$144*(1+rvanilla07)^0.5)-SUM($M97:AG97),('PTRM input'!$M$144*(1+rvanilla07)^0.5)/A2stdlife)) -> 0 | AI97: =IF(A2stdlife="n/a","n/a",IF(AI$3>(A2stdlife+$E97),('PTRM input'!$M$144*(1+rvanilla07)^0.5)-SUM($M97:AH97),('PTRM input'!$M$144*(1+rvanilla07)^0.5)/A2stdlife)) -> 0 | AJ97: =IF(A2stdlife="n/a","n/a",IF(AJ$3>(A2stdlife+$E97),('PTRM input'!$M$144*(1+rvanilla07)^0.5)-SUM($M97:AI97),('PTRM input'!$M$144*(1+rvanilla07)^0.5)/A2stdlife)) -> 0 | AK97: =IF(A2stdlife="n/a","n/a",IF(AK$3>(A2stdlife+$E97),('PTRM input'!$M$144*(1+rvanilla07)^0.5)-SUM($M97:AJ97),('PTRM input'!$M$144*(1+rvanilla07)^0.5)/A2stdlife)) -> 0 | AL97: =IF(A2stdlife="n/a","n/a",IF(AL$3>(A2stdlife+$E97),('PTRM input'!$M$144*(1+rvanilla07)^0.5)-SUM($M97:AK97),('PTRM input'!$M$144*(1+rvanilla07)^0.5)/A2stdlife)) -> 0 | AM97: =IF(A2stdlife="n/a","n/a",IF(AM$3>(A2stdlife+$E97),('PTRM input'!$M$144*(1+rvanilla07)^0.5)-SUM($M97:AL97),('PTRM input'!$M$144*(1+rvanilla07)^0.5)/A2stdlife)) -> 0 | AN97: =IF(A2stdlife="n/a","n/a",IF(AN$3>(A2stdlife+$E97),('PTRM input'!$M$144*(1+rvanilla07)^0.5)-SUM($M97:AM97),('PTRM input'!$M$144*(1+rvanilla07)^0.5)/A2stdlife)) -> 0 | AO97: =IF(A2stdlife="n/a","n/a",IF(AO$3>(A2stdlife+$E97),('PTRM input'!$M$144*(1+rvanilla07)^0.5)-SUM($M97:AN97),('PTRM input'!$M$144*(1+rvanilla07)^0.5)/A2stdlife)) -> 0 | AP97: =IF(A2stdlife="n/a","n/a",IF(AP$3>(A2stdlife+$E97),('PTRM input'!$M$144*(1+rvanilla07)^0.5)-SUM($M97:AO97),('PTRM input'!$M$144*(1+rvanilla07)^0.5)/A2stdlife)) -> 0 | AQ97: =IF(A2stdlife="n/a","n/a",IF(AQ$3>(A2stdlife+$E97),('PTRM input'!$M$144*(1+rvanilla07)^0.5)-SUM($M97:AP97),('PTRM input'!$M$144*(1+rvanilla07)^0.5)/A2stdlife)) -> 0 | AR97: =IF(A2stdlife="n/a","n/a",IF(AR$3>(A2stdlife+$E97),('PTRM input'!$M$144*(1+rvanilla07)^0.5)-SUM($M97:AQ97),('PTRM input'!$M$144*(1+rvanilla07)^0.5)/A2stdlife)) -> 0 | AS97: =IF(A2stdlife="n/a","n/a",IF(AS$3>(A2stdlife+$E97),('PTRM input'!$M$144*(1+rvanilla07)^0.5)-SUM($M97:AR97),('PTRM input'!$M$144*(1+rvanilla07)^0.5)/A2stdlife)) -> 0 | AT97: =IF(A2stdlife="n/a","n/a",IF(AT$3>(A2stdlife+$E97),('PTRM input'!$M$144*(1+rvanilla07)^0.5)-SUM($M97:AS97),('PTRM input'!$M$144*(1+rvanilla07)^0.5)/A2stdlife)) -> 0 | AU97: =IF(A2stdlife="n/a","n/a",IF(AU$3>(A2stdlife+$E97),('PTRM input'!$M$144*(1+rvanilla07)^0.5)-SUM($M97:AT97),('PTRM input'!$M$144*(1+rvanilla07)^0.5)/A2stdlife)) -> 0 | AV97: =IF(A2stdlife="n/a","n/a",IF(AV$3>(A2stdlife+$E97),('PTRM input'!$M$144*(1+rvanilla07)^0.5)-SUM($M97:AU97),('PTRM input'!$M$144*(1+rvanilla07)^0.5)/A2stdlife)) -> 0 | AW97: =IF(A2stdlife="n/a","n/a",IF(AW$3>(A2stdlife+$E97),('PTRM input'!$M$144*(1+rvanilla07)^0.5)-SUM($M97:AV97),('PTRM input'!$M$144*(1+rvanilla07)^0.5)/A2stdlife)) -> 0 | AX97: =IF(A2stdlife="n/a","n/a",IF(AX$3>(A2stdlife+$E97),('PTRM input'!$M$144*(1+rvanilla07)^0.5)-SUM($M97:AW97),('PTRM input'!$M$144*(1+rvanilla07)^0.5)/A2stdlife)) -> 0 | AY97: =IF(A2stdlife="n/a","n/a",IF(AY$3>(A2stdlife+$E97),('PTRM input'!$M$144*(1+rvanilla07)^0.5)-SUM($M97:AX97),('PTRM input'!$M$144*(1+rvanilla07)^0.5)/A2stdlife)) -> 0 | AZ97: =IF(A2stdlife="n/a","n/a",IF(AZ$3>(A2stdlife+$E97),('PTRM input'!$M$144*(1+rvanilla07)^0.5)-SUM($M97:AY97),('PTRM input'!$M$144*(1+rvanilla07)^0.5)/A2stdlife)) -> 0 | BA97: =IF(A2stdlife="n/a","n/a",IF(BA$3>(A2stdlife+$E97),('PTRM input'!$M$144*(1+rvanilla07)^0.5)-SUM($M97:AZ97),('PTRM input'!$M$144*(1+rvanilla07)^0.5)/A2stdlife)) -> 0 | BB97: =IF(A2stdlife="n/a","n/a",IF(BB$3>(A2stdlife+$E97),('PTRM input'!$M$144*(1+rvanilla07)^0.5)-SUM($M97:BA97),('PTRM input'!$M$144*(1+rvanilla07)^0.5)/A2stdlife)) -> 0 | BC97: =IF(A2stdlife="n/a","n/a",IF(BC$3>(A2stdlife+$E97),('PTRM input'!$M$144*(1+rvanilla07)^0.5)-SUM($M97:BB97),('PTRM input'!$M$144*(1+rvanilla07)^0.5)/A2stdlife)) -> 0 | BD97: =IF(A2stdlife="n/a","n/a",IF(BD$3>(A2stdlife+$E97),('PTRM input'!$M$144*(1+rvanilla07)^0.5)-SUM($M97:BC97),('PTRM input'!$M$144*(1+rvanilla07)^0.5)/A2stdlife)) -> 0 | BE97: =IF(A2stdlife="n/a","n/a",IF(BE$3>(A2stdlife+$E97),('PTRM input'!$M$144*(1+rvanilla07)^0.5)-SUM($M97:BD97),('PTRM input'!$M$144*(1+rvanilla07)^0.5)/A2stdlife)) -> 0 | BF97: =IF(A2stdlife="n/a","n/a",IF(BF$3>(A2stdlife+$E97),('PTRM input'!$M$144*(1+rvanilla07)^0.5)-SUM($M97:BE97),('PTRM input'!$M$144*(1+rvanilla07)^0.5)/A2stdlife)) -> 0 | BG97: =IF(A2stdlife="n/a","n/a",IF(BG$3>(A2stdlife+$E97),('PTRM input'!$M$144*(1+rvanilla07)^0.5)-SUM($M97:BF97),('PTRM input'!$M$144*(1+rvanilla07)^0.5)/A2stdlife)) -> 0 | BH97: =IF(A2stdlife="n/a","n/a",IF(BH$3>(A2stdlife+$E97),('PTRM input'!$M$144*(1+rvanilla07)^0.5)-SUM($M97:BG97),('PTRM input'!$M$144*(1+rvanilla07)^0.5)/A2stdlife)) -> 0 | BI97: =IF(A2stdlife="n/a","n/a",IF(BI$3>(A2stdlife+$E97),('PTRM input'!$M$144*(1+rvanilla07)^0.5)-SUM($M97:BH97),('PTRM input'!$M$144*(1+rvanilla07)^0.5)/A2stdlife)) -> 0
E98: 8 | O98: =IF(A2stdlife="n/a","n/a",IF(O$3>(A2stdlife+$E98),('PTRM input'!$N$144*(1+rvanilla08)^0.5)-SUM($N98:N98),('PTRM input'!$N$144*(1+rvanilla08)^0.5)/A2stdlife)) -> 0 | P98: =IF(A2stdlife="n/a","n/a",IF(P$3>(A2stdlife+$E98),('PTRM input'!$N$144*(1+rvanilla08)^0.5)-SUM($N98:O98),('PTRM input'!$N$144*(1+rvanilla08)^0.5)/A2stdlife)) -> 0 | Q98: =IF(A2stdlife="n/a","n/a",IF(Q$3>(A2stdlife+$E98),('PTRM input'!$N$144*(1+rvanilla08)^0.5)-SUM($N98:P98),('PTRM input'!$N$144*(1+rvanilla08)^0.5)/A2stdlife)) -> 0 | R98: =IF(A2stdlife="n/a","n/a",IF(R$3>(A2stdlife+$E98),('PTRM input'!$N$144*(1+rvanilla08)^0.5)-SUM($N98:Q98),('PTRM input'!$N$144*(1+rvanilla08)^0.5)/A2stdlife)) -> 0 | S98: =IF(A2stdlife="n/a","n/a",IF(S$3>(A2stdlife+$E98),('PTRM input'!$N$144*(1+rvanilla08)^0.5)-SUM($N98:R98),('PTRM input'!$N$144*(1+rvanilla08)^0.5)/A2stdlife)) -> 0 | T98: =IF(A2stdlife="n/a","n/a",IF(T$3>(A2stdlife+$E98),('PTRM input'!$N$144*(1+rvanilla08)^0.5)-SUM($N98:S98),('PTRM input'!$N$144*(1+rvanilla08)^0.5)/A2stdlife)) -> 0 | U98: =IF(A2stdlife="n/a","n/a",IF(U$3>(A2stdlife+$E98),('PTRM input'!$N$144*(1+rvanilla08)^0.5)-SUM($N98:T98),('PTRM input'!$N$144*(1+rvanilla08)^0.5)/A2stdlife)) -> 0 | V98: =IF(A2stdlife="n/a","n/a",IF(V$3>(A2stdlife+$E98),('PTRM input'!$N$144*(1+rvanilla08)^0.5)-SUM($N98:U98),('PTRM input'!$N$144*(1+rvanilla08)^0.5)/A2stdlife)) -> 0 | W98: =IF(A2stdlife="n/a","n/a",IF(W$3>(A2stdlife+$E98),('PTRM input'!$N$144*(1+rvanilla08)^0.5)-SUM($N98:V98),('PTRM input'!$N$144*(1+rvanilla08)^0.5)/A2stdlife)) -> 0 | X98: =IF(A2stdlife="n/a","n/a",IF(X$3>(A2stdlife+$E98),('PTRM input'!$N$144*(1+rvanilla08)^0.5)-SUM($N98:W98),('PTRM input'!$N$144*(1+rvanilla08)^0.5)/A2stdlife)) -> 0 | Y98: =IF(A2stdlife="n/a","n/a",IF(Y$3>(A2stdlife+$E98),('PTRM input'!$N$144*(1+rvanilla08)^0.5)-SUM($N98:X98),('PTRM input'!$N$144*(1+rvanilla08)^0.5)/A2stdlife)) -> 0 | Z98: =IF(A2stdlife="n/a","n/a",IF(Z$3>(A2stdlife+$E98),('PTRM input'!$N$144*(1+rvanilla08)^0.5)-SUM($N98:Y98),('PTRM input'!$N$144*(1+rvanilla08)^0.5)/A2stdlife)) -> 0 | AA98: =IF(A2stdlife="n/a","n/a",IF(AA$3>(A2stdlife+$E98),('PTRM input'!$N$144*(1+rvanilla08)^0.5)-SUM($N98:Z98),('PTRM input'!$N$144*(1+rvanilla08)^0.5)/A2stdlife)) -> 0 | AB98: =IF(A2stdlife="n/a","n/a",IF(AB$3>(A2stdlife+$E98),('PTRM input'!$N$144*(1+rvanilla08)^0.5)-SUM($N98:AA98),('PTRM input'!$N$144*(1+rvanilla08)^0.5)/A2stdlife)) -> 0 | AC98: =IF(A2stdlife="n/a","n/a",IF(AC$3>(A2stdlife+$E98),('PTRM input'!$N$144*(1+rvanilla08)^0.5)-SUM($N98:AB98),('PTRM input'!$N$144*(1+rvanilla08)^0.5)/A2stdlife)) -> 0 | AD98: =IF(A2stdlife="n/a","n/a",IF(AD$3>(A2stdlife+$E98),('PTRM input'!$N$144*(1+rvanilla08)^0.5)-SUM($N98:AC98),('PTRM input'!$N$144*(1+rvanilla08)^0.5)/A2stdlife)) -> 0 | AE98: =IF(A2stdlife="n/a","n/a",IF(AE$3>(A2stdlife+$E98),('PTRM input'!$N$144*(1+rvanilla08)^0.5)-SUM($N98:AD98),('PTRM input'!$N$144*(1+rvanilla08)^0.5)/A2stdlife)) -> 0 | AF98: =IF(A2stdlife="n/a","n/a",IF(AF$3>(A2stdlife+$E98),('PTRM input'!$N$144*(1+rvanilla08)^0.5)-SUM($N98:AE98),('PTRM input'!$N$144*(1+rvanilla08)^0.5)/A2stdlife)) -> 0 | AG98: =IF(A2stdlife="n/a","n/a",IF(AG$3>(A2stdlife+$E98),('PTRM input'!$N$144*(1+rvanilla08)^0.5)-SUM($N98:AF98),('PTRM input'!$N$144*(1+rvanilla08)^0.5)/A2stdlife)) -> 0 | AH98: =IF(A2stdlife="n/a","n/a",IF(AH$3>(A2stdlife+$E98),('PTRM input'!$N$144*(1+rvanilla08)^0.5)-SUM($N98:AG98),('PTRM input'!$N$144*(1+rvanilla08)^0.5)/A2stdlife)) -> 0 | AI98: =IF(A2stdlife="n/a","n/a",IF(AI$3>(A2stdlife+$E98),('PTRM input'!$N$144*(1+rvanilla08)^0.5)-SUM($N98:AH98),('PTRM input'!$N$144*(1+rvanilla08)^0.5)/A2stdlife)) -> 0 | AJ98: =IF(A2stdlife="n/a","n/a",IF(AJ$3>(A2stdlife+$E98),('PTRM input'!$N$144*(1+rvanilla08)^0.5)-SUM($N98:AI98),('PTRM input'!$N$144*(1+rvanilla08)^0.5)/A2stdlife)) -> 0 | AK98: =IF(A2stdlife="n/a","n/a",IF(AK$3>(A2stdlife+$E98),('PTRM input'!$N$144*(1+rvanilla08)^0.5)-SUM($N98:AJ98),('PTRM input'!$N$144*(1+rvanilla08)^0.5)/A2stdlife)) -> 0 | AL98: =IF(A2stdlife="n/a","n/a",IF(AL$3>(A2stdlife+$E98),('PTRM input'!$N$144*(1+rvanilla08)^0.5)-SUM($N98:AK98),('PTRM input'!$N$144*(1+rvanilla08)^0.5)/A2stdlife)) -> 0 | AM98: =IF(A2stdlife="n/a","n/a",IF(AM$3>(A2stdlife+$E98),('PTRM input'!$N$144*(1+rvanilla08)^0.5)-SUM($N98:AL98),('PTRM input'!$N$144*(1+rvanilla08)^0.5)/A2stdlife)) -> 0 | AN98: =IF(A2stdlife="n/a","n/a",IF(AN$3>(A2stdlife+$E98),('PTRM input'!$N$144*(1+rvanilla08)^0.5)-SUM($N98:AM98),('PTRM input'!$N$144*(1+rvanilla08)^0.5)/A2stdlife)) -> 0 | AO98: =IF(A2stdlife="n/a","n/a",IF(AO$3>(A2stdlife+$E98),('PTRM input'!$N$144*(1+rvanilla08)^0.5)-SUM($N98:AN98),('PTRM input'!$N$144*(1+rvanilla08)^0.5)/A2stdlife)) -> 0 | AP98: =IF(A2stdlife="n/a","n/a",IF(AP$3>(A2stdlife+$E98),('PTRM input'!$N$144*(1+rvanilla08)^0.5)-SUM($N98:AO98),('PTRM input'!$N$144*(1+rvanilla08)^0.5)/A2stdlife)) -> 0 | AQ98: =IF(A2stdlife="n/a","n/a",IF(AQ$3>(A2stdlife+$E98),('PTRM input'!$N$144*(1+rvanilla08)^0.5)-SUM($N98:AP98),('PTRM input'!$N$144*(1+rvanilla08)^0.5)/A2stdlife)) -> 0 | AR98: =IF(A2stdlife="n/a","n/a",IF(AR$3>(A2stdlife+$E98),('PTRM input'!$N$144*(1+rvanilla08)^0.5)-SUM($N98:AQ98),('PTRM input'!$N$144*(1+rvanilla08)^0.5)/A2stdlife)) -> 0 | AS98: =IF(A2stdlife="n/a","n/a",IF(AS$3>(A2stdlife+$E98),('PTRM input'!$N$144*(1+rvanilla08)^0.5)-SUM($N98:AR98),('PTRM input'!$N$144*(1+rvanilla08)^0.5)/A2stdlife)) -> 0 | AT98: =IF(A2stdlife="n/a","n/a",IF(AT$3>(A2stdlife+$E98),('PTRM input'!$N$144*(1+rvanilla08)^0.5)-SUM($N98:AS98),('PTRM input'!$N$144*(1+rvanilla08)^0.5)/A2stdlife)) -> 0 | AU98: =IF(A2stdlife="n/a","n/a",IF(AU$3>(A2stdlife+$E98),('PTRM input'!$N$144*(1+rvanilla08)^0.5)-SUM($N98:AT98),('PTRM input'!$N$144*(1+rvanilla08)^0.5)/A2stdlife)) -> 0 | AV98: =IF(A2stdlife="n/a","n/a",IF(AV$3>(A2stdlife+$E98),('PTRM input'!$N$144*(1+rvanilla08)^0.5)-SUM($N98:AU98),('PTRM input'!$N$144*(1+rvanilla08)^0.5)/A2stdlife)) -> 0 | AW98: =IF(A2stdlife="n/a","n/a",IF(AW$3>(A2stdlife+$E98),('PTRM input'!$N$144*(1+rvanilla08)^0.5)-SUM($N98:AV98),('PTRM input'!$N$144*(1+rvanilla08)^0.5)/A2stdlife)) -> 0 | AX98: =IF(A2stdlife="n/a","n/a",IF(AX$3>(A2stdlife+$E98),('PTRM input'!$N$144*(1+rvanilla08)^0.5)-SUM($N98:AW98),('PTRM input'!$N$144*(1+rvanilla08)^0.5)/A2stdlife)) -> 0 | AY98: =IF(A2stdlife="n/a","n/a",IF(AY$3>(A2stdlife+$E98),('PTRM input'!$N$144*(1+rvanilla08)^0.5)-SUM($N98:AX98),('PTRM input'!$N$144*(1+rvanilla08)^0.5)/A2stdlife)) -> 0 | AZ98: =IF(A2stdlife="n/a","n/a",IF(AZ$3>(A2stdlife+$E98),('PTRM input'!$N$144*(1+rvanilla08)^0.5)-SUM($N98:AY98),('PTRM input'!$N$144*(1+rvanilla08)^0.5)/A2stdlife)) -> 0 | BA98: =IF(A2stdlife="n/a","n/a",IF(BA$3>(A2stdlife+$E98),('PTRM input'!$N$144*(1+rvanilla08)^0.5)-SUM($N98:AZ98),('PTRM input'!$N$144*(1+rvanilla08)^0.5)/A2stdlife)) -> 0 | BB98: =IF(A2stdlife="n/a","n/a",IF(BB$3>(A2stdlife+$E98),('PTRM input'!$N$144*(1+rvanilla08)^0.5)-SUM($N98:BA98),('PTRM input'!$N$144*(1+rvanilla08)^0.5)/A2stdlife)) -> 0 | BC98: =IF(A2stdlife="n/a","n/a",IF(BC$3>(A2stdlife+$E98),('PTRM input'!$N$144*(1+rvanilla08)^0.5)-SUM($N98:BB98),('PTRM input'!$N$144*(1+rvanilla08)^0.5)/A2stdlife)) -> 0 | BD98: =IF(A2stdlife="n/a","n/a",IF(BD$3>(A2stdlife+$E98),('PTRM input'!$N$144*(1+rvanilla08)^0.5)-SUM($N98:BC98),('PTRM input'!$N$144*(1+rvanilla08)^0.5)/A2stdlife)) -> 0 | BE98: =IF(A2stdlife="n/a","n/a",IF(BE$3>(A2stdlife+$E98),('PTRM input'!$N$144*(1+rvanilla08)^0.5)-SUM($N98:BD98),('PTRM input'!$N$144*(1+rvanilla08)^0.5)/A2stdlife)) -> 0 | BF98: =IF(A2stdlife="n/a","n/a",IF(BF$3>(A2stdlife+$E98),('PTRM input'!$N$144*(1+rvanilla08)^0.5)-SUM($N98:BE98),('PTRM input'!$N$144*(1+rvanilla08)^0.5)/A2stdlife)) -> 0 | BG98: =IF(A2stdlife="n/a","n/a",IF(BG$3>(A2stdlife+$E98),('PTRM input'!$N$144*(1+rvanilla08)^0.5)-SUM($N98:BF98),('PTRM input'!$N$144*(1+rvanilla08)^0.5)/A2stdlife)) -> 0 | BH98: =IF(A2stdlife="n/a","n/a",IF(BH$3>(A2stdlife+$E98),('PTRM input'!$N$144*(1+rvanilla08)^0.5)-SUM($N98:BG98),('PTRM input'!$N$144*(1+rvanilla08)^0.5)/A2stdlife)) -> 0 | BI98: =IF(A2stdlife="n/a","n/a",IF(BI$3>(A2stdlife+$E98),('PTRM input'!$N$144*(1+rvanilla08)^0.5)-SUM($N98:BH98),('PTRM input'!$N$144*(1+rvanilla08)^0.5)/A2stdlife)) -> 0
E99: 9 | P99: =IF(A2stdlife="n/a","n/a",IF(P$3>(A2stdlife+$E99),('PTRM input'!$O$144*(1+rvanilla09)^0.5)-SUM($O99:O99),('PTRM input'!$O$144*(1+rvanilla09)^0.5)/A2stdlife)) -> 0 | Q99: =IF(A2stdlife="n/a","n/a",IF(Q$3>(A2stdlife+$E99),('PTRM input'!$O$144*(1+rvanilla09)^0.5)-SUM($O99:P99),('PTRM input'!$O$144*(1+rvanilla09)^0.5)/A2stdlife)) -> 0 | R99: =IF(A2stdlife="n/a","n/a",IF(R$3>(A2stdlife+$E99),('PTRM input'!$O$144*(1+rvanilla09)^0.5)-SUM($O99:Q99),('PTRM input'!$O$144*(1+rvanilla09)^0.5)/A2stdlife)) -> 0 | S99: =IF(A2stdlife="n/a","n/a",IF(S$3>(A2stdlife+$E99),('PTRM input'!$O$144*(1+rvanilla09)^0.5)-SUM($O99:R99),('PTRM input'!$O$144*(1+rvanilla09)^0.5)/A2stdlife)) -> 0 | T99: =IF(A2stdlife="n/a","n/a",IF(T$3>(A2stdlife+$E99),('PTRM input'!$O$144*(1+rvanilla09)^0.5)-SUM($O99:S99),('PTRM input'!$O$144*(1+rvanilla09)^0.5)/A2stdlife)) -> 0 | U99: =IF(A2stdlife="n/a","n/a",IF(U$3>(A2stdlife+$E99),('PTRM input'!$O$144*(1+rvanilla09)^0.5)-SUM($O99:T99),('PTRM input'!$O$144*(1+rvanilla09)^0.5)/A2stdlife)) -> 0 | V99: =IF(A2stdlife="n/a","n/a",IF(V$3>(A2stdlife+$E99),('PTRM input'!$O$144*(1+rvanilla09)^0.5)-SUM($O99:U99),('PTRM input'!$O$144*(1+rvanilla09)^0.5)/A2stdlife)) -> 0 | W99: =IF(A2stdlife="n/a","n/a",IF(W$3>(A2stdlife+$E99),('PTRM input'!$O$144*(1+rvanilla09)^0.5)-SUM($O99:V99),('PTRM input'!$O$144*(1+rvanilla09)^0.5)/A2stdlife)) -> 0 | X99: =IF(A2stdlife="n/a","n/a",IF(X$3>(A2stdlife+$E99),('PTRM input'!$O$144*(1+rvanilla09)^0.5)-SUM($O99:W99),('PTRM input'!$O$144*(1+rvanilla09)^0.5)/A2stdlife)) -> 0 | Y99: =IF(A2stdlife="n/a","n/a",IF(Y$3>(A2stdlife+$E99),('PTRM input'!$O$144*(1+rvanilla09)^0.5)-SUM($O99:X99),('PTRM input'!$O$144*(1+rvanilla09)^0.5)/A2stdlife)) -> 0 | Z99: =IF(A2stdlife="n/a","n/a",IF(Z$3>(A2stdlife+$E99),('PTRM input'!$O$144*(1+rvanilla09)^0.5)-SUM($O99:Y99),('PTRM input'!$O$144*(1+rvanilla09)^0.5)/A2stdlife)) -> 0 | AA99: =IF(A2stdlife="n/a","n/a",IF(AA$3>(A2stdlife+$E99),('PTRM input'!$O$144*(1+rvanilla09)^0.5)-SUM($O99:Z99),('PTRM input'!$O$144*(1+rvanilla09)^0.5)/A2stdlife)) -> 0 | AB99: =IF(A2stdlife="n/a","n/a",IF(AB$3>(A2stdlife+$E99),('PTRM input'!$O$144*(1+rvanilla09)^0.5)-SUM($O99:AA99),('PTRM input'!$O$144*(1+rvanilla09)^0.5)/A2stdlife)) -> 0 | AC99: =IF(A2stdlife="n/a","n/a",IF(AC$3>(A2stdlife+$E99),('PTRM input'!$O$144*(1+rvanilla09)^0.5)-SUM($O99:AB99),('PTRM input'!$O$144*(1+rvanilla09)^0.5)/A2stdlife)) -> 0 | AD99: =IF(A2stdlife="n/a","n/a",IF(AD$3>(A2stdlife+$E99),('PTRM input'!$O$144*(1+rvanilla09)^0.5)-SUM($O99:AC99),('PTRM input'!$O$144*(1+rvanilla09)^0.5)/A2stdlife)) -> 0 | AE99: =IF(A2stdlife="n/a","n/a",IF(AE$3>(A2stdlife+$E99),('PTRM input'!$O$144*(1+rvanilla09)^0.5)-SUM($O99:AD99),('PTRM input'!$O$144*(1+rvanilla09)^0.5)/A2stdlife)) -> 0 | AF99: =IF(A2stdlife="n/a","n/a",IF(AF$3>(A2stdlife+$E99),('PTRM input'!$O$144*(1+rvanilla09)^0.5)-SUM($O99:AE99),('PTRM input'!$O$144*(1+rvanilla09)^0.5)/A2stdlife)) -> 0 | AG99: =IF(A2stdlife="n/a","n/a",IF(AG$3>(A2stdlife+$E99),('PTRM input'!$O$144*(1+rvanilla09)^0.5)-SUM($O99:AF99),('PTRM input'!$O$144*(1+rvanilla09)^0.5)/A2stdlife)) -> 0 | AH99: =IF(A2stdlife="n/a","n/a",IF(AH$3>(A2stdlife+$E99),('PTRM input'!$O$144*(1+rvanilla09)^0.5)-SUM($O99:AG99),('PTRM input'!$O$144*(1+rvanilla09)^0.5)/A2stdlife)) -> 0 | AI99: =IF(A2stdlife="n/a","n/a",IF(AI$3>(A2stdlife+$E99),('PTRM input'!$O$144*(1+rvanilla09)^0.5)-SUM($O99:AH99),('PTRM input'!$O$144*(1+rvanilla09)^0.5)/A2stdlife)) -> 0 | AJ99: =IF(A2stdlife="n/a","n/a",IF(AJ$3>(A2stdlife+$E99),('PTRM input'!$O$144*(1+rvanilla09)^0.5)-SUM($O99:AI99),('PTRM input'!$O$144*(1+rvanilla09)^0.5)/A2stdlife)) -> 0 | AK99: =IF(A2stdlife="n/a","n/a",IF(AK$3>(A2stdlife+$E99),('PTRM input'!$O$144*(1+rvanilla09)^0.5)-SUM($O99:AJ99),('PTRM input'!$O$144*(1+rvanilla09)^0.5)/A2stdlife)) -> 0 | AL99: =IF(A2stdlife="n/a","n/a",IF(AL$3>(A2stdlife+$E99),('PTRM input'!$O$144*(1+rvanilla09)^0.5)-SUM($O99:AK99),('PTRM input'!$O$144*(1+rvanilla09)^0.5)/A2stdlife)) -> 0 | AM99: =IF(A2stdlife="n/a","n/a",IF(AM$3>(A2stdlife+$E99),('PTRM input'!$O$144*(1+rvanilla09)^0.5)-SUM($O99:AL99),('PTRM input'!$O$144*(1+rvanilla09)^0.5)/A2stdlife)) -> 0 | AN99: =IF(A2stdlife="n/a","n/a",IF(AN$3>(A2stdlife+$E99),('PTRM input'!$O$144*(1+rvanilla09)^0.5)-SUM($O99:AM99),('PTRM input'!$O$144*(1+rvanilla09)^0.5)/A2stdlife)) -> 0 | AO99: =IF(A2stdlife="n/a","n/a",IF(AO$3>(A2stdlife+$E99),('PTRM input'!$O$144*(1+rvanilla09)^0.5)-SUM($O99:AN99),('PTRM input'!$O$144*(1+rvanilla09)^0.5)/A2stdlife)) -> 0 | AP99: =IF(A2stdlife="n/a","n/a",IF(AP$3>(A2stdlife+$E99),('PTRM input'!$O$144*(1+rvanilla09)^0.5)-SUM($O99:AO99),('PTRM input'!$O$144*(1+rvanilla09)^0.5)/A2stdlife)) -> 0 | AQ99: =IF(A2stdlife="n/a","n/a",IF(AQ$3>(A2stdlife+$E99),('PTRM input'!$O$144*(1+rvanilla09)^0.5)-SUM($O99:AP99),('PTRM input'!$O$144*(1+rvanilla09)^0.5)/A2stdlife)) -> 0 | AR99: =IF(A2stdlife="n/a","n/a",IF(AR$3>(A2stdlife+$E99),('PTRM input'!$O$144*(1+rvanilla09)^0.5)-SUM($O99:AQ99),('PTRM input'!$O$144*(1+rvanilla09)^0.5)/A2stdlife)) -> 0 | AS99: =IF(A2stdlife="n/a","n/a",IF(AS$3>(A2stdlife+$E99),('PTRM input'!$O$144*(1+rvanilla09)^0.5)-SUM($O99:AR99),('PTRM input'!$O$144*(1+rvanilla09)^0.5)/A2stdlife)) -> 0 | AT99: =IF(A2stdlife="n/a","n/a",IF(AT$3>(A2stdlife+$E99),('PTRM input'!$O$144*(1+rvanilla09)^0.5)-SUM($O99:AS99),('PTRM input'!$O$144*(1+rvanilla09)^0.5)/A2stdlife)) -> 0 | AU99: =IF(A2stdlife="n/a","n/a",IF(AU$3>(A2stdlife+$E99),('PTRM input'!$O$144*(1+rvanilla09)^0.5)-SUM($O99:AT99),('PTRM input'!$O$144*(1+rvanilla09)^0.5)/A2stdlife)) -> 0 | AV99: =IF(A2stdlife="n/a","n/a",IF(AV$3>(A2stdlife+$E99),('PTRM input'!$O$144*(1+rvanilla09)^0.5)-SUM($O99:AU99),('PTRM input'!$O$144*(1+rvanilla09)^0.5)/A2stdlife)) -> 0 | AW99: =IF(A2stdlife="n/a","n/a",IF(AW$3>(A2stdlife+$E99),('PTRM input'!$O$144*(1+rvanilla09)^0.5)-SUM($O99:AV99),('PTRM input'!$O$144*(1+rvanilla09)^0.5)/A2stdlife)) -> 0 | AX99: =IF(A2stdlife="n/a","n/a",IF(AX$3>(A2stdlife+$E99),('PTRM input'!$O$144*(1+rvanilla09)^0.5)-SUM($O99:AW99),('PTRM input'!$O$144*(1+rvanilla09)^0.5)/A2stdlife)) -> 0 | AY99: =IF(A2stdlife="n/a","n/a",IF(AY$3>(A2stdlife+$E99),('PTRM input'!$O$144*(1+rvanilla09)^0.5)-SUM($O99:AX99),('PTRM input'!$O$144*(1+rvanilla09)^0.5)/A2stdlife)) -> 0 | AZ99: =IF(A2stdlife="n/a","n/a",IF(AZ$3>(A2stdlife+$E99),('PTRM input'!$O$144*(1+rvanilla09)^0.5)-SUM($O99:AY99),('PTRM input'!$O$144*(1+rvanilla09)^0.5)/A2stdlife)) -> 0 | BA99: =IF(A2stdlife="n/a","n/a",IF(BA$3>(A2stdlife+$E99),('PTRM input'!$O$144*(1+rvanilla09)^0.5)-SUM($O99:AZ99),('PTRM input'!$O$144*(1+rvanilla09)^0.5)/A2stdlife)) -> 0 | BB99: =IF(A2stdlife="n/a","n/a",IF(BB$3>(A2stdlife+$E99),('PTRM input'!$O$144*(1+rvanilla09)^0.5)-SUM($O99:BA99),('PTRM input'!$O$144*(1+rvanilla09)^0.5)/A2stdlife)) -> 0 | BC99: =IF(A2stdlife="n/a","n/a",IF(BC$3>(A2stdlife+$E99),('PTRM input'!$O$144*(1+rvanilla09)^0.5)-SUM($O99:BB99),('PTRM input'!$O$144*(1+rvanilla09)^0.5)/A2stdlife)) -> 0 | BD99: =IF(A2stdlife="n/a","n/a",IF(BD$3>(A2stdlife+$E99),('PTRM input'!$O$144*(1+rvanilla09)^0.5)-SUM($O99:BC99),('PTRM input'!$O$144*(1+rvanilla09)^0.5)/A2stdlife)) -> 0 | BE99: =IF(A2stdlife="n/a","n/a",IF(BE$3>(A2stdlife+$E99),('PTRM input'!$O$144*(1+rvanilla09)^0.5)-SUM($O99:BD99),('PTRM input'!$O$144*(1+rvanilla09)^0.5)/A2stdlife)) -> 0 | BF99: =IF(A2stdlife="n/a","n/a",IF(BF$3>(A2stdlife+$E99),('PTRM input'!$O$144*(1+rvanilla09)^0.5)-SUM($O99:BE99),('PTRM input'!$O$144*(1+rvanilla09)^0.5)/A2stdlife)) -> 0 | BG99: =IF(A2stdlife="n/a","n/a",IF(BG$3>(A2stdlife+$E99),('PTRM input'!$O$144*(1+rvanilla09)^0.5)-SUM($O99:BF99),('PTRM input'!$O$144*(1+rvanilla09)^0.5)/A2stdlife)) -> 0 | BH99: =IF(A2stdlife="n/a","n/a",IF(BH$3>(A2stdlife+$E99),('PTRM input'!$O$144*(1+rvanilla09)^0.5)-SUM($O99:BG99),('PTRM input'!$O$144*(1+rvanilla09)^0.5)/A2stdlife)) -> 0 | BI99: =IF(A2stdlife="n/a","n/a",IF(BI$3>(A2stdlife+$E99),('PTRM input'!$O$144*(1+rvanilla09)^0.5)-SUM($O99:BH99),('PTRM input'!$O$144*(1+rvanilla09)^0.5)/A2stdlife)) -> 0
E100: 10 | Q100: =IF(A2stdlife="n/a","n/a",IF(Q$3>(A2stdlife+$E100),('PTRM input'!$P$144*(1+rvanilla10)^0.5)-SUM($P100:P100),('PTRM input'!$P$144*(1+rvanilla10)^0.5)/A2stdlife)) -> 0 | R100: =IF(A2stdlife="n/a","n/a",IF(R$3>(A2stdlife+$E100),('PTRM input'!$P$144*(1+rvanilla10)^0.5)-SUM($P100:Q100),('PTRM input'!$P$144*(1+rvanilla10)^0.5)/A2stdlife)) -> 0 | S100: =IF(A2stdlife="n/a","n/a",IF(S$3>(A2stdlife+$E100),('PTRM input'!$P$144*(1+rvanilla10)^0.5)-SUM($P100:R100),('PTRM input'!$P$144*(1+rvanilla10)^0.5)/A2stdlife)) -> 0 | T100: =IF(A2stdlife="n/a","n/a",IF(T$3>(A2stdlife+$E100),('PTRM input'!$P$144*(1+rvanilla10)^0.5)-SUM($P100:S100),('PTRM input'!$P$144*(1+rvanilla10)^0.5)/A2stdlife)) -> 0 | U100: =IF(A2stdlife="n/a","n/a",IF(U$3>(A2stdlife+$E100),('PTRM input'!$P$144*(1+rvanilla10)^0.5)-SUM($P100:T100),('PTRM input'!$P$144*(1+rvanilla10)^0.5)/A2stdlife)) -> 0 | V100: =IF(A2stdlife="n/a","n/a",IF(V$3>(A2stdlife+$E100),('PTRM input'!$P$144*(1+rvanilla10)^0.5)-SUM($P100:U100),('PTRM input'!$P$144*(1+rvanilla10)^0.5)/A2stdlife)) -> 0 | W100: =IF(A2stdlife="n/a","n/a",IF(W$3>(A2stdlife+$E100),('PTRM input'!$P$144*(1+rvanilla10)^0.5)-SUM($P100:V100),('PTRM input'!$P$144*(1+rvanilla10)^0.5)/A2stdlife)) -> 0 | X100: =IF(A2stdlife="n/a","n/a",IF(X$3>(A2stdlife+$E100),('PTRM input'!$P$144*(1+rvanilla10)^0.5)-SUM($P100:W100),('PTRM input'!$P$144*(1+rvanilla10)^0.5)/A2stdlife)) -> 0 | Y100: =IF(A2stdlife="n/a","n/a",IF(Y$3>(A2stdlife+$E100),('PTRM input'!$P$144*(1+rvanilla10)^0.5)-SUM($P100:X100),('PTRM input'!$P$144*(1+rvanilla10)^0.5)/A2stdlife)) -> 0 | Z100: =IF(A2stdlife="n/a","n/a",IF(Z$3>(A2stdlife+$E100),('PTRM input'!$P$144*(1+rvanilla10)^0.5)-SUM($P100:Y100),('PTRM input'!$P$144*(1+rvanilla10)^0.5)/A2stdlife)) -> 0 | AA100: =IF(A2stdlife="n/a","n/a",IF(AA$3>(A2stdlife+$E100),('PTRM input'!$P$144*(1+rvanilla10)^0.5)-SUM($P100:Z100),('PTRM input'!$P$144*(1+rvanilla10)^0.5)/A2stdlife)) -> 0 | AB100: =IF(A2stdlife="n/a","n/a",IF(AB$3>(A2stdlife+$E100),('PTRM input'!$P$144*(1+rvanilla10)^0.5)-SUM($P100:AA100),('PTRM input'!$P$144*(1+rvanilla10)^0.5)/A2stdlife)) -> 0 | AC100: =IF(A2stdlife="n/a","n/a",IF(AC$3>(A2stdlife+$E100),('PTRM input'!$P$144*(1+rvanilla10)^0.5)-SUM($P100:AB100),('PTRM input'!$P$144*(1+rvanilla10)^0.5)/A2stdlife)) -> 0 | AD100: =IF(A2stdlife="n/a","n/a",IF(AD$3>(A2stdlife+$E100),('PTRM input'!$P$144*(1+rvanilla10)^0.5)-SUM($P100:AC100),('PTRM input'!$P$144*(1+rvanilla10)^0.5)/A2stdlife)) -> 0 | AE100: =IF(A2stdlife="n/a","n/a",IF(AE$3>(A2stdlife+$E100),('PTRM input'!$P$144*(1+rvanilla10)^0.5)-SUM($P100:AD100),('PTRM input'!$P$144*(1+rvanilla10)^0.5)/A2stdlife)) -> 0 | AF100: =IF(A2stdlife="n/a","n/a",IF(AF$3>(A2stdlife+$E100),('PTRM input'!$P$144*(1+rvanilla10)^0.5)-SUM($P100:AE100),('PTRM input'!$P$144*(1+rvanilla10)^0.5)/A2stdlife)) -> 0 | AG100: =IF(A2stdlife="n/a","n/a",IF(AG$3>(A2stdlife+$E100),('PTRM input'!$P$144*(1+rvanilla10)^0.5)-SUM($P100:AF100),('PTRM input'!$P$144*(1+rvanilla10)^0.5)/A2stdlife)) -> 0 | AH100: =IF(A2stdlife="n/a","n/a",IF(AH$3>(A2stdlife+$E100),('PTRM input'!$P$144*(1+rvanilla10)^0.5)-SUM($P100:AG100),('PTRM input'!$P$144*(1+rvanilla10)^0.5)/A2stdlife)) -> 0 | AI100: =IF(A2stdlife="n/a","n/a",IF(AI$3>(A2stdlife+$E100),('PTRM input'!$P$144*(1+rvanilla10)^0.5)-SUM($P100:AH100),('PTRM input'!$P$144*(1+rvanilla10)^0.5)/A2stdlife)) -> 0 | AJ100: =IF(A2stdlife="n/a","n/a",IF(AJ$3>(A2stdlife+$E100),('PTRM input'!$P$144*(1+rvanilla10)^0.5)-SUM($P100:AI100),('PTRM input'!$P$144*(1+rvanilla10)^0.5)/A2stdlife)) -> 0 | AK100: =IF(A2stdlife="n/a","n/a",IF(AK$3>(A2stdlife+$E100),('PTRM input'!$P$144*(1+rvanilla10)^0.5)-SUM($P100:AJ100),('PTRM input'!$P$144*(1+rvanilla10)^0.5)/A2stdlife)) -> 0 | AL100: =IF(A2stdlife="n/a","n/a",IF(AL$3>(A2stdlife+$E100),('PTRM input'!$P$144*(1+rvanilla10)^0.5)-SUM($P100:AK100),('PTRM input'!$P$144*(1+rvanilla10)^0.5)/A2stdlife)) -> 0 | AM100: =IF(A2stdlife="n/a","n/a",IF(AM$3>(A2stdlife+$E100),('PTRM input'!$P$144*(1+rvanilla10)^0.5)-SUM($P100:AL100),('PTRM input'!$P$144*(1+rvanilla10)^0.5)/A2stdlife)) -> 0 | AN100: =IF(A2stdlife="n/a","n/a",IF(AN$3>(A2stdlife+$E100),('PTRM input'!$P$144*(1+rvanilla10)^0.5)-SUM($P100:AM100),('PTRM input'!$P$144*(1+rvanilla10)^0.5)/A2stdlife)) -> 0 | AO100: =IF(A2stdlife="n/a","n/a",IF(AO$3>(A2stdlife+$E100),('PTRM input'!$P$144*(1+rvanilla10)^0.5)-SUM($P100:AN100),('PTRM input'!$P$144*(1+rvanilla10)^0.5)/A2stdlife)) -> 0 | AP100: =IF(A2stdlife="n/a","n/a",IF(AP$3>(A2stdlife+$E100),('PTRM input'!$P$144*(1+rvanilla10)^0.5)-SUM($P100:AO100),('PTRM input'!$P$144*(1+rvanilla10)^0.5)/A2stdlife)) -> 0 | AQ100: =IF(A2stdlife="n/a","n/a",IF(AQ$3>(A2stdlife+$E100),('PTRM input'!$P$144*(1+rvanilla10)^0.5)-SUM($P100:AP100),('PTRM input'!$P$144*(1+rvanilla10)^0.5)/A2stdlife)) -> 0 | AR100: =IF(A2stdlife="n/a","n/a",IF(AR$3>(A2stdlife+$E100),('PTRM input'!$P$144*(1+rvanilla10)^0.5)-SUM($P100:AQ100),('PTRM input'!$P$144*(1+rvanilla10)^0.5)/A2stdlife)) -> 0 | AS100: =IF(A2stdlife="n/a","n/a",IF(AS$3>(A2stdlife+$E100),('PTRM input'!$P$144*(1+rvanilla10)^0.5)-SUM($P100:AR100),('PTRM input'!$P$144*(1+rvanilla10)^0.5)/A2stdlife)) -> 0 | AT100: =IF(A2stdlife="n/a","n/a",IF(AT$3>(A2stdlife+$E100),('PTRM input'!$P$144*(1+rvanilla10)^0.5)-SUM($P100:AS100),('PTRM input'!$P$144*(1+rvanilla10)^0.5)/A2stdlife)) -> 0 | AU100: =IF(A2stdlife="n/a","n/a",IF(AU$3>(A2stdlife+$E100),('PTRM input'!$P$144*(1+rvanilla10)^0.5)-SUM($P100:AT100),('PTRM input'!$P$144*(1+rvanilla10)^0.5)/A2stdlife)) -> 0 | AV100: =IF(A2stdlife="n/a","n/a",IF(AV$3>(A2stdlife+$E100),('PTRM input'!$P$144*(1+rvanilla10)^0.5)-SUM($P100:AU100),('PTRM input'!$P$144*(1+rvanilla10)^0.5)/A2stdlife)) -> 0 | AW100: =IF(A2stdlife="n/a","n/a",IF(AW$3>(A2stdlife+$E100),('PTRM input'!$P$144*(1+rvanilla10)^0.5)-SUM($P100:AV100),('PTRM input'!$P$144*(1+rvanilla10)^0.5)/A2stdlife)) -> 0 | AX100: =IF(A2stdlife="n/a","n/a",IF(AX$3>(A2stdlife+$E100),('PTRM input'!$P$144*(1+rvanilla10)^0.5)-SUM($P100:AW100),('PTRM input'!$P$144*(1+rvanilla10)^0.5)/A2stdlife)) -> 0 | AY100: =IF(A2stdlife="n/a","n/a",IF(AY$3>(A2stdlife+$E100),('PTRM input'!$P$144*(1+rvanilla10)^0.5)-SUM($P100:AX100),('PTRM input'!$P$144*(1+rvanilla10)^0.5)/A2stdlife)) -> 0 | AZ100: =IF(A2stdlife="n/a","n/a",IF(AZ$3>(A2stdlife+$E100),('PTRM input'!$P$144*(1+rvanilla10)^0.5)-SUM($P100:AY100),('PTRM input'!$P$144*(1+rvanilla10)^0.5)/A2stdlife)) -> 0 | BA100: =IF(A2stdlife="n/a","n/a",IF(BA$3>(A2stdlife+$E100),('PTRM input'!$P$144*(1+rvanilla10)^0.5)-SUM($P100:AZ100),('PTRM input'!$P$144*(1+rvanilla10)^0.5)/A2stdlife)) -> 0 | BB100: =IF(A2stdlife="n/a","n/a",IF(BB$3>(A2stdlife+$E100),('PTRM input'!$P$144*(1+rvanilla10)^0.5)-SUM($P100:BA100),('PTRM input'!$P$144*(1+rvanilla10)^0.5)/A2stdlife)) -> 0 | BC100: =IF(A2stdlife="n/a","n/a",IF(BC$3>(A2stdlife+$E100),('PTRM input'!$P$144*(1+rvanilla10)^0.5)-SUM($P100:BB100),('PTRM input'!$P$144*(1+rvanilla10)^0.5)/A2stdlife)) -> 0 | BD100: =IF(A2stdlife="n/a","n/a",IF(BD$3>(A2stdlife+$E100),('PTRM input'!$P$144*(1+rvanilla10)^0.5)-SUM($P100:BC100),('PTRM input'!$P$144*(1+rvanilla10)^0.5)/A2stdlife)) -> 0 | BE100: =IF(A2stdlife="n/a","n/a",IF(BE$3>(A2stdlife+$E100),('PTRM input'!$P$144*(1+rvanilla10)^0.5)-SUM($P100:BD100),('PTRM input'!$P$144*(1+rvanilla10)^0.5)/A2stdlife)) -> 0 | BF100: =IF(A2stdlife="n/a","n/a",IF(BF$3>(A2stdlife+$E100),('PTRM input'!$P$144*(1+rvanilla10)^0.5)-SUM($P100:BE100),('PTRM input'!$P$144*(1+rvanilla10)^0.5)/A2stdlife)) -> 0 | BG100: =IF(A2stdlife="n/a","n/a",IF(BG$3>(A2stdlife+$E100),('PTRM input'!$P$144*(1+rvanilla10)^0.5)-SUM($P100:BF100),('PTRM input'!$P$144*(1+rvanilla10)^0.5)/A2stdlife)) -> 0 | BH100: =IF(A2stdlife="n/a","n/a",IF(BH$3>(A2stdlife+$E100),('PTRM input'!$P$144*(1+rvanilla10)^0.5)-SUM($P100:BG100),('PTRM input'!$P$144*(1+rvanilla10)^0.5)/A2stdlife)) -> 0 | BI100: =IF(A2stdlife="n/a","n/a",IF(BI$3>(A2stdlife+$E100),('PTRM input'!$P$144*(1+rvanilla10)^0.5)-SUM($P100:BH100),('PTRM input'!$P$144*(1+rvanilla10)^0.5)/A2stdlife)) -> 0
C101: =Asset2 -> Distribution system assets | G101: =SUM(G89:G100) -> 95.49672755 | H101: =SUM(H89:H100) -> 100.0502711 | I101: 106.8169335 | J101: 115.6876441 | K101: 120.4911149 | L101: 118.9613456 | M101: 118.9613456 | N101: 118.9613456 | O101: 118.9613456 | P101: 118.9613456 | Q101: 118.9613456 | R101: 118.9613456 | S101: 118.9613456 | T101: 118.9613456 | U101: 118.9613456 | V101: 118.9613456 | W101: 118.9613456 | X101: 118.9613456 | Y101: 118.9613456 | Z101: 118.9613456 | AA101: 89.01912088 | AB101: 42.92783187 | AC101: 42.92783187 | AD101: 42.92783187 | AE101: 42.92783187 | AF101: 42.92783187 | AG101: 42.92783187 | AH101: 42.92783187 | AI101: 42.92783187 | AJ101: 42.92783187 | AK101: 42.92783187 | AL101: 42.92783187 | AM101: 42.92783187 | AN101: 42.92783187 | AO101: 42.92783187 | AP101: 42.92783187 | AQ101: 42.92783187 | AR101: 42.92783187 | AS101: 42.92783187 | AT101: 42.92783187 | AU101: 42.92783187 | AV101: 42.92783187 | AW101: 42.92783187 | AX101: 42.92783187 | AY101: 42.92783187 | AZ101: 42.92783187 | BA101: 43.00590993 | BB101: 39.87891635 | BC101: 35.62327791 | BD101: 32.44111331 | BE101: 27.83534074 | BF101: 24.23052004 | BG101: 19.67697645 | BH101: 14.54879834 | BI101: 9.196770267
B102: =C114 -> Standard metering | D102: Initial Asset Base | G102: 13.33914445 | H102: 0 | I102: 0 | J102: 0 | K102: 0 | L102: 0 | M102: 0 | N102: 0 | O102: 0 | P102: 0 | Q102: 0 | R102: 0 | S102: 0 | T102: 0 | U102: 0 | V102: 0 | W102: 0 | X102: 0 | Y102: 0 | Z102: 0 | AA102: 0 | AB102: 0 | AC102: 0 | AD102: 0 | AE102: 0 | AF102: 0 | AG102: 0 | AH102: 0 | AI102: 0 | AJ102: 0 | AK102: 0 | AL102: 0 | AM102: 0 | AN102: 0 | AO102: 0 | AP102: 0 | AQ102: 0 | AR102: 0 | AS102: 0 | AT102: 0 | AU102: 0 | AV102: 0 | AW102: 0 | AX102: 0 | AY102: 0 | AZ102: 0 | BA102: 0 | BB102: 0 | BC102: 0 | BD102: 0 | BE102: 0 | BF102: 0 | BG102: 0 | BH102: 0 | BI102: 0
D103: Capex in year | E103: 0
E104: 1 | H104: =IF(A3stdlife="n/a","n/a",IF(H$3>(A3stdlife+$E104),('PTRM input'!$G$145*(1+rvanilla01)^0.5)-SUM($G104:G104),('PTRM input'!$G$145*(1+rvanilla01)^0.5)/A3stdlife)) -> n/a | I104: =IF(A3stdlife="n/a","n/a",IF(I$3>(A3stdlife+$E104),('PTRM input'!$G$145*(1+rvanilla01)^0.5)-SUM($G104:H104),('PTRM input'!$G$145*(1+rvanilla01)^0.5)/A3stdlife)) -> n/a | J104: =IF(A3stdlife="n/a","n/a",IF(J$3>(A3stdlife+$E104),('PTRM input'!$G$145*(1+rvanilla01)^0.5)-SUM($G104:I104),('PTRM input'!$G$145*(1+rvanilla01)^0.5)/A3stdlife)) -> n/a | K104: =IF(A3stdlife="n/a","n/a",IF(K$3>(A3stdlife+$E104),('PTRM input'!$G$145*(1+rvanilla01)^0.5)-SUM($G104:J104),('PTRM input'!$G$145*(1+rvanilla01)^0.5)/A3stdlife)) -> n/a | L104: =IF(A3stdlife="n/a","n/a",IF(L$3>(A3stdlife+$E104),('PTRM input'!$G$145*(1+rvanilla01)^0.5)-SUM($G104:K104),('PTRM input'!$G$145*(1+rvanilla01)^0.5)/A3stdlife)) -> n/a | M104: =IF(A3stdlife="n/a","n/a",IF(M$3>(A3stdlife+$E104),('PTRM input'!$G$145*(1+rvanilla01)^0.5)-SUM($G104:L104),('PTRM input'!$G$145*(1+rvanilla01)^0.5)/A3stdlife)) -> n/a | N104: =IF(A3stdlife="n/a","n/a",IF(N$3>(A3stdlife+$E104),('PTRM input'!$G$145*(1+rvanilla01)^0.5)-SUM($G104:M104),('PTRM input'!$G$145*(1+rvanilla01)^0.5)/A3stdlife)) -> n/a | O104: =IF(A3stdlife="n/a","n/a",IF(O$3>(A3stdlife+$E104),('PTRM input'!$G$145*(1+rvanilla01)^0.5)-SUM($G104:N104),('PTRM input'!$G$145*(1+rvanilla01)^0.5)/A3stdlife)) -> n/a | P104: =IF(A3stdlife="n/a","n/a",IF(P$3>(A3stdlife+$E104),('PTRM input'!$G$145*(1+rvanilla01)^0.5)-SUM($G104:O104),('PTRM input'!$G$145*(1+rvanilla01)^0.5)/A3stdlife)) -> n/a | Q104: =IF(A3stdlife="n/a","n/a",IF(Q$3>(A3stdlife+$E104),('PTRM input'!$G$145*(1+rvanilla01)^0.5)-SUM($G104:P104),('PTRM input'!$G$145*(1+rvanilla01)^0.5)/A3stdlife)) -> n/a | R104: =IF(A3stdlife="n/a","n/a",IF(R$3>(A3stdlife+$E104),('PTRM input'!$G$145*(1+rvanilla01)^0.5)-SUM($G104:Q104),('PTRM input'!$G$145*(1+rvanilla01)^0.5)/A3stdlife)) -> n/a | S104: =IF(A3stdlife="n/a","n/a",IF(S$3>(A3stdlife+$E104),('PTRM input'!$G$145*(1+rvanilla01)^0.5)-SUM($G104:R104),('PTRM input'!$G$145*(1+rvanilla01)^0.5)/A3stdlife)) -> n/a | T104: =IF(A3stdlife="n/a","n/a",IF(T$3>(A3stdlife+$E104),('PTRM input'!$G$145*(1+rvanilla01)^0.5)-SUM($G104:S104),('PTRM input'!$G$145*(1+rvanilla01)^0.5)/A3stdlife)) -> n/a | U104: =IF(A3stdlife="n/a","n/a",IF(U$3>(A3stdlife+$E104),('PTRM input'!$G$145*(1+rvanilla01)^0.5)-SUM($G104:T104),('PTRM input'!$G$145*(1+rvanilla01)^0.5)/A3stdlife)) -> n/a | V104: =IF(A3stdlife="n/a","n/a",IF(V$3>(A3stdlife+$E104),('PTRM input'!$G$145*(1+rvanilla01)^0.5)-SUM($G104:U104),('PTRM input'!$G$145*(1+rvanilla01)^0.5)/A3stdlife)) -> n/a | W104: =IF(A3stdlife="n/a","n/a",IF(W$3>(A3stdlife+$E104),('PTRM input'!$G$145*(1+rvanilla01)^0.5)-SUM($G104:V104),('PTRM input'!$G$145*(1+rvanilla01)^0.5)/A3stdlife)) -> n/a | X104: =IF(A3stdlife="n/a","n/a",IF(X$3>(A3stdlife+$E104),('PTRM input'!$G$145*(1+rvanilla01)^0.5)-SUM($G104:W104),('PTRM input'!$G$145*(1+rvanilla01)^0.5)/A3stdlife)) -> n/a | Y104: =IF(A3stdlife="n/a","n/a",IF(Y$3>(A3stdlife+$E104),('PTRM input'!$G$145*(1+rvanilla01)^0.5)-SUM($G104:X104),('PTRM input'!$G$145*(1+rvanilla01)^0.5)/A3stdlife)) -> n/a | Z104: =IF(A3stdlife="n/a","n/a",IF(Z$3>(A3stdlife+$E104),('PTRM input'!$G$145*(1+rvanilla01)^0.5)-SUM($G104:Y104),('PTRM input'!$G$145*(1+rvanilla01)^0.5)/A3stdlife)) -> n/a | AA104: =IF(A3stdlife="n/a","n/a",IF(AA$3>(A3stdlife+$E104),('PTRM input'!$G$145*(1+rvanilla01)^0.5)-SUM($G104:Z104),('PTRM input'!$G$145*(1+rvanilla01)^0.5)/A3stdlife)) -> n/a | AB104: =IF(A3stdlife="n/a","n/a",IF(AB$3>(A3stdlife+$E104),('PTRM input'!$G$145*(1+rvanilla01)^0.5)-SUM($G104:AA104),('PTRM input'!$G$145*(1+rvanilla01)^0.5)/A3stdlife)) -> n/a | AC104: =IF(A3stdlife="n/a","n/a",IF(AC$3>(A3stdlife+$E104),('PTRM input'!$G$145*(1+rvanilla01)^0.5)-SUM($G104:AB104),('PTRM input'!$G$145*(1+rvanilla01)^0.5)/A3stdlife)) -> n/a | AD104: =IF(A3stdlife="n/a","n/a",IF(AD$3>(A3stdlife+$E104),('PTRM input'!$G$145*(1+rvanilla01)^0.5)-SUM($G104:AC104),('PTRM input'!$G$145*(1+rvanilla01)^0.5)/A3stdlife)) -> n/a | AE104: =IF(A3stdlife="n/a","n/a",IF(AE$3>(A3stdlife+$E104),('PTRM input'!$G$145*(1+rvanilla01)^0.5)-SUM($G104:AD104),('PTRM input'!$G$145*(1+rvanilla01)^0.5)/A3stdlife)) -> n/a | AF104: =IF(A3stdlife="n/a","n/a",IF(AF$3>(A3stdlife+$E104),('PTRM input'!$G$145*(1+rvanilla01)^0.5)-SUM($G104:AE104),('PTRM input'!$G$145*(1+rvanilla01)^0.5)/A3stdlife)) -> n/a | AG104: =IF(A3stdlife="n/a","n/a",IF(AG$3>(A3stdlife+$E104),('PTRM input'!$G$145*(1+rvanilla01)^0.5)-SUM($G104:AF104),('PTRM input'!$G$145*(1+rvanilla01)^0.5)/A3stdlife)) -> n/a | AH104: =IF(A3stdlife="n/a","n/a",IF(AH$3>(A3stdlife+$E104),('PTRM input'!$G$145*(1+rvanilla01)^0.5)-SUM($G104:AG104),('PTRM input'!$G$145*(1+rvanilla01)^0.5)/A3stdlife)) -> n/a | AI104: =IF(A3stdlife="n/a","n/a",IF(AI$3>(A3stdlife+$E104),('PTRM input'!$G$145*(1+rvanilla01)^0.5)-SUM($G104:AH104),('PTRM input'!$G$145*(1+rvanilla01)^0.5)/A3stdlife)) -> n/a | AJ104: =IF(A3stdlife="n/a","n/a",IF(AJ$3>(A3stdlife+$E104),('PTRM input'!$G$145*(1+rvanilla01)^0.5)-SUM($G104:AI104),('PTRM input'!$G$145*(1+rvanilla01)^0.5)/A3stdlife)) -> n/a | AK104: =IF(A3stdlife="n/a","n/a",IF(AK$3>(A3stdlife+$E104),('PTRM input'!$G$145*(1+rvanilla01)^0.5)-SUM($G104:AJ104),('PTRM input'!$G$145*(1+rvanilla01)^0.5)/A3stdlife)) -> n/a | AL104: =IF(A3stdlife="n/a","n/a",IF(AL$3>(A3stdlife+$E104),('PTRM input'!$G$145*(1+rvanilla01)^0.5)-SUM($G104:AK104),('PTRM input'!$G$145*(1+rvanilla01)^0.5)/A3stdlife)) -> n/a | AM104: =IF(A3stdlife="n/a","n/a",IF(AM$3>(A3stdlife+$E104),('PTRM input'!$G$145*(1+rvanilla01)^0.5)-SUM($G104:AL104),('PTRM input'!$G$145*(1+rvanilla01)^0.5)/A3stdlife)) -> n/a | AN104: =IF(A3stdlife="n/a","n/a",IF(AN$3>(A3stdlife+$E104),('PTRM input'!$G$145*(1+rvanilla01)^0.5)-SUM($G104:AM104),('PTRM input'!$G$145*(1+rvanilla01)^0.5)/A3stdlife)) -> n/a | AO104: =IF(A3stdlife="n/a","n/a",IF(AO$3>(A3stdlife+$E104),('PTRM input'!$G$145*(1+rvanilla01)^0.5)-SUM($G104:AN104),('PTRM input'!$G$145*(1+rvanilla01)^0.5)/A3stdlife)) -> n/a | AP104: =IF(A3stdlife="n/a","n/a",IF(AP$3>(A3stdlife+$E104),('PTRM input'!$G$145*(1+rvanilla01)^0.5)-SUM($G104:AO104),('PTRM input'!$G$145*(1+rvanilla01)^0.5)/A3stdlife)) -> n/a | AQ104: =IF(A3stdlife="n/a","n/a",IF(AQ$3>(A3stdlife+$E104),('PTRM input'!$G$145*(1+rvanilla01)^0.5)-SUM($G104:AP104),('PTRM input'!$G$145*(1+rvanilla01)^0.5)/A3stdlife)) -> n/a | AR104: =IF(A3stdlife="n/a","n/a",IF(AR$3>(A3stdlife+$E104),('PTRM input'!$G$145*(1+rvanilla01)^0.5)-SUM($G104:AQ104),('PTRM input'!$G$145*(1+rvanilla01)^0.5)/A3stdlife)) -> n/a | AS104: =IF(A3stdlife="n/a","n/a",IF(AS$3>(A3stdlife+$E104),('PTRM input'!$G$145*(1+rvanilla01)^0.5)-SUM($G104:AR104),('PTRM input'!$G$145*(1+rvanilla01)^0.5)/A3stdlife)) -> n/a | AT104: =IF(A3stdlife="n/a","n/a",IF(AT$3>(A3stdlife+$E104),('PTRM input'!$G$145*(1+rvanilla01)^0.5)-SUM($G104:AS104),('PTRM input'!$G$145*(1+rvanilla01)^0.5)/A3stdlife)) -> n/a | AU104: =IF(A3stdlife="n/a","n/a",IF(AU$3>(A3stdlife+$E104),('PTRM input'!$G$145*(1+rvanilla01)^0.5)-SUM($G104:AT104),('PTRM input'!$G$145*(1+rvanilla01)^0.5)/A3stdlife)) -> n/a | AV104: =IF(A3stdlife="n/a","n/a",IF(AV$3>(A3stdlife+$E104),('PTRM input'!$G$145*(1+rvanilla01)^0.5)-SUM($G104:AU104),('PTRM input'!$G$145*(1+rvanilla01)^0.5)/A3stdlife)) -> n/a | AW104: =IF(A3stdlife="n/a","n/a",IF(AW$3>(A3stdlife+$E104),('PTRM input'!$G$145*(1+rvanilla01)^0.5)-SUM($G104:AV104),('PTRM input'!$G$145*(1+rvanilla01)^0.5)/A3stdlife)) -> n/a | AX104: =IF(A3stdlife="n/a","n/a",IF(AX$3>(A3stdlife+$E104),('PTRM input'!$G$145*(1+rvanilla01)^0.5)-SUM($G104:AW104),('PTRM input'!$G$145*(1+rvanilla01)^0.5)/A3stdlife)) -> n/a | AY104: =IF(A3stdlife="n/a","n/a",IF(AY$3>(A3stdlife+$E104),('PTRM input'!$G$145*(1+rvanilla01)^0.5)-SUM($G104:AX104),('PTRM input'!$G$145*(1+rvanilla01)^0.5)/A3stdlife)) -> n/a | AZ104: =IF(A3stdlife="n/a","n/a",IF(AZ$3>(A3stdlife+$E104),('PTRM input'!$G$145*(1+rvanilla01)^0.5)-SUM($G104:AY104),('PTRM input'!$G$145*(1+rvanilla01)^0.5)/A3stdlife)) -> n/a | BA104: =IF(A3stdlife="n/a","n/a",IF(BA$3>(A3stdlife+$E104),('PTRM input'!$G$145*(1+rvanilla01)^0.5)-SUM($G104:AZ104),('PTRM input'!$G$145*(1+rvanilla01)^0.5)/A3stdlife)) -> n/a | BB104: =IF(A3stdlife="n/a","n/a",IF(BB$3>(A3stdlife+$E104),('PTRM input'!$G$145*(1+rvanilla01)^0.5)-SUM($G104:BA104),('PTRM input'!$G$145*(1+rvanilla01)^0.5)/A3stdlife)) -> n/a | BC104: =IF(A3stdlife="n/a","n/a",IF(BC$3>(A3stdlife+$E104),('PTRM input'!$G$145*(1+rvanilla01)^0.5)-SUM($G104:BB104),('PTRM input'!$G$145*(1+rvanilla01)^0.5)/A3stdlife)) -> n/a | BD104: =IF(A3stdlife="n/a","n/a",IF(BD$3>(A3stdlife+$E104),('PTRM input'!$G$145*(1+rvanilla01)^0.5)-SUM($G104:BC104),('PTRM input'!$G$145*(1+rvanilla01)^0.5)/A3stdlife)) -> n/a | BE104: =IF(A3stdlife="n/a","n/a",IF(BE$3>(A3stdlife+$E104),('PTRM input'!$G$145*(1+rvanilla01)^0.5)-SUM($G104:BD104),('PTRM input'!$G$145*(1+rvanilla01)^0.5)/A3stdlife)) -> n/a | BF104: =IF(A3stdlife="n/a","n/a",IF(BF$3>(A3stdlife+$E104),('PTRM input'!$G$145*(1+rvanilla01)^0.5)-SUM($G104:BE104),('PTRM input'!$G$145*(1+rvanilla01)^0.5)/A3stdlife)) -> n/a | BG104: =IF(A3stdlife="n/a","n/a",IF(BG$3>(A3stdlife+$E104),('PTRM input'!$G$145*(1+rvanilla01)^0.5)-SUM($G104:BF104),('PTRM input'!$G$145*(1+rvanilla01)^0.5)/A3stdlife)) -> n/a | BH104: =IF(A3stdlife="n/a","n/a",IF(BH$3>(A3stdlife+$E104),('PTRM input'!$G$145*(1+rvanilla01)^0.5)-SUM($G104:BG104),('PTRM input'!$G$145*(1+rvanilla01)^0.5)/A3stdlife)) -> n/a | BI104: =IF(A3stdlife="n/a","n/a",IF(BI$3>(A3stdlife+$E104),('PTRM input'!$G$145*(1+rvanilla01)^0.5)-SUM($G104:BH104),('PTRM input'!$G$145*(1+rvanilla01)^0.5)/A3stdlife)) -> n/a
E105: 2 | I105: =IF(A3stdlife="n/a","n/a",IF(I$3>(A3stdlife+$E105),('PTRM input'!$H$145*(1+rvanilla02)^0.5)-SUM($H105:H105),('PTRM input'!$H$145*(1+rvanilla02)^0.5)/A3stdlife)) -> n/a | J105: =IF(A3stdlife="n/a","n/a",IF(J$3>(A3stdlife+$E105),('PTRM input'!$H$145*(1+rvanilla02)^0.5)-SUM($H105:I105),('PTRM input'!$H$145*(1+rvanilla02)^0.5)/A3stdlife)) -> n/a | K105: =IF(A3stdlife="n/a","n/a",IF(K$3>(A3stdlife+$E105),('PTRM input'!$H$145*(1+rvanilla02)^0.5)-SUM($H105:J105),('PTRM input'!$H$145*(1+rvanilla02)^0.5)/A3stdlife)) -> n/a | L105: =IF(A3stdlife="n/a","n/a",IF(L$3>(A3stdlife+$E105),('PTRM input'!$H$145*(1+rvanilla02)^0.5)-SUM($H105:K105),('PTRM input'!$H$145*(1+rvanilla02)^0.5)/A3stdlife)) -> n/a | M105: =IF(A3stdlife="n/a","n/a",IF(M$3>(A3stdlife+$E105),('PTRM input'!$H$145*(1+rvanilla02)^0.5)-SUM($H105:L105),('PTRM input'!$H$145*(1+rvanilla02)^0.5)/A3stdlife)) -> n/a | N105: =IF(A3stdlife="n/a","n/a",IF(N$3>(A3stdlife+$E105),('PTRM input'!$H$145*(1+rvanilla02)^0.5)-SUM($H105:M105),('PTRM input'!$H$145*(1+rvanilla02)^0.5)/A3stdlife)) -> n/a | O105: =IF(A3stdlife="n/a","n/a",IF(O$3>(A3stdlife+$E105),('PTRM input'!$H$145*(1+rvanilla02)^0.5)-SUM($H105:N105),('PTRM input'!$H$145*(1+rvanilla02)^0.5)/A3stdlife)) -> n/a | P105: =IF(A3stdlife="n/a","n/a",IF(P$3>(A3stdlife+$E105),('PTRM input'!$H$145*(1+rvanilla02)^0.5)-SUM($H105:O105),('PTRM input'!$H$145*(1+rvanilla02)^0.5)/A3stdlife)) -> n/a | Q105: =IF(A3stdlife="n/a","n/a",IF(Q$3>(A3stdlife+$E105),('PTRM input'!$H$145*(1+rvanilla02)^0.5)-SUM($H105:P105),('PTRM input'!$H$145*(1+rvanilla02)^0.5)/A3stdlife)) -> n/a | R105: =IF(A3stdlife="n/a","n/a",IF(R$3>(A3stdlife+$E105),('PTRM input'!$H$145*(1+rvanilla02)^0.5)-SUM($H105:Q105),('PTRM input'!$H$145*(1+rvanilla02)^0.5)/A3stdlife)) -> n/a | S105: =IF(A3stdlife="n/a","n/a",IF(S$3>(A3stdlife+$E105),('PTRM input'!$H$145*(1+rvanilla02)^0.5)-SUM($H105:R105),('PTRM input'!$H$145*(1+rvanilla02)^0.5)/A3stdlife)) -> n/a | T105: =IF(A3stdlife="n/a","n/a",IF(T$3>(A3stdlife+$E105),('PTRM input'!$H$145*(1+rvanilla02)^0.5)-SUM($H105:S105),('PTRM input'!$H$145*(1+rvanilla02)^0.5)/A3stdlife)) -> n/a | U105: =IF(A3stdlife="n/a","n/a",IF(U$3>(A3stdlife+$E105),('PTRM input'!$H$145*(1+rvanilla02)^0.5)-SUM($H105:T105),('PTRM input'!$H$145*(1+rvanilla02)^0.5)/A3stdlife)) -> n/a | V105: =IF(A3stdlife="n/a","n/a",IF(V$3>(A3stdlife+$E105),('PTRM input'!$H$145*(1+rvanilla02)^0.5)-SUM($H105:U105),('PTRM input'!$H$145*(1+rvanilla02)^0.5)/A3stdlife)) -> n/a | W105: =IF(A3stdlife="n/a","n/a",IF(W$3>(A3stdlife+$E105),('PTRM input'!$H$145*(1+rvanilla02)^0.5)-SUM($H105:V105),('PTRM input'!$H$145*(1+rvanilla02)^0.5)/A3stdlife)) -> n/a | X105: =IF(A3stdlife="n/a","n/a",IF(X$3>(A3stdlife+$E105),('PTRM input'!$H$145*(1+rvanilla02)^0.5)-SUM($H105:W105),('PTRM input'!$H$145*(1+rvanilla02)^0.5)/A3stdlife)) -> n/a | Y105: =IF(A3stdlife="n/a","n/a",IF(Y$3>(A3stdlife+$E105),('PTRM input'!$H$145*(1+rvanilla02)^0.5)-SUM($H105:X105),('PTRM input'!$H$145*(1+rvanilla02)^0.5)/A3stdlife)) -> n/a | Z105: =IF(A3stdlife="n/a","n/a",IF(Z$3>(A3stdlife+$E105),('PTRM input'!$H$145*(1+rvanilla02)^0.5)-SUM($H105:Y105),('PTRM input'!$H$145*(1+rvanilla02)^0.5)/A3stdlife)) -> n/a | AA105: =IF(A3stdlife="n/a","n/a",IF(AA$3>(A3stdlife+$E105),('PTRM input'!$H$145*(1+rvanilla02)^0.5)-SUM($H105:Z105),('PTRM input'!$H$145*(1+rvanilla02)^0.5)/A3stdlife)) -> n/a | AB105: =IF(A3stdlife="n/a","n/a",IF(AB$3>(A3stdlife+$E105),('PTRM input'!$H$145*(1+rvanilla02)^0.5)-SUM($H105:AA105),('PTRM input'!$H$145*(1+rvanilla02)^0.5)/A3stdlife)) -> n/a | AC105: =IF(A3stdlife="n/a","n/a",IF(AC$3>(A3stdlife+$E105),('PTRM input'!$H$145*(1+rvanilla02)^0.5)-SUM($H105:AB105),('PTRM input'!$H$145*(1+rvanilla02)^0.5)/A3stdlife)) -> n/a | AD105: =IF(A3stdlife="n/a","n/a",IF(AD$3>(A3stdlife+$E105),('PTRM input'!$H$145*(1+rvanilla02)^0.5)-SUM($H105:AC105),('PTRM input'!$H$145*(1+rvanilla02)^0.5)/A3stdlife)) -> n/a | AE105: =IF(A3stdlife="n/a","n/a",IF(AE$3>(A3stdlife+$E105),('PTRM input'!$H$145*(1+rvanilla02)^0.5)-SUM($H105:AD105),('PTRM input'!$H$145*(1+rvanilla02)^0.5)/A3stdlife)) -> n/a | AF105: =IF(A3stdlife="n/a","n/a",IF(AF$3>(A3stdlife+$E105),('PTRM input'!$H$145*(1+rvanilla02)^0.5)-SUM($H105:AE105),('PTRM input'!$H$145*(1+rvanilla02)^0.5)/A3stdlife)) -> n/a | AG105: =IF(A3stdlife="n/a","n/a",IF(AG$3>(A3stdlife+$E105),('PTRM input'!$H$145*(1+rvanilla02)^0.5)-SUM($H105:AF105),('PTRM input'!$H$145*(1+rvanilla02)^0.5)/A3stdlife)) -> n/a | AH105: =IF(A3stdlife="n/a","n/a",IF(AH$3>(A3stdlife+$E105),('PTRM input'!$H$145*(1+rvanilla02)^0.5)-SUM($H105:AG105),('PTRM input'!$H$145*(1+rvanilla02)^0.5)/A3stdlife)) -> n/a | AI105: =IF(A3stdlife="n/a","n/a",IF(AI$3>(A3stdlife+$E105),('PTRM input'!$H$145*(1+rvanilla02)^0.5)-SUM($H105:AH105),('PTRM input'!$H$145*(1+rvanilla02)^0.5)/A3stdlife)) -> n/a | AJ105: =IF(A3stdlife="n/a","n/a",IF(AJ$3>(A3stdlife+$E105),('PTRM input'!$H$145*(1+rvanilla02)^0.5)-SUM($H105:AI105),('PTRM input'!$H$145*(1+rvanilla02)^0.5)/A3stdlife)) -> n/a | AK105: =IF(A3stdlife="n/a","n/a",IF(AK$3>(A3stdlife+$E105),('PTRM input'!$H$145*(1+rvanilla02)^0.5)-SUM($H105:AJ105),('PTRM input'!$H$145*(1+rvanilla02)^0.5)/A3stdlife)) -> n/a | AL105: =IF(A3stdlife="n/a","n/a",IF(AL$3>(A3stdlife+$E105),('PTRM input'!$H$145*(1+rvanilla02)^0.5)-SUM($H105:AK105),('PTRM input'!$H$145*(1+rvanilla02)^0.5)/A3stdlife)) -> n/a | AM105: =IF(A3stdlife="n/a","n/a",IF(AM$3>(A3stdlife+$E105),('PTRM input'!$H$145*(1+rvanilla02)^0.5)-SUM($H105:AL105),('PTRM input'!$H$145*(1+rvanilla02)^0.5)/A3stdlife)) -> n/a | AN105: =IF(A3stdlife="n/a","n/a",IF(AN$3>(A3stdlife+$E105),('PTRM input'!$H$145*(1+rvanilla02)^0.5)-SUM($H105:AM105),('PTRM input'!$H$145*(1+rvanilla02)^0.5)/A3stdlife)) -> n/a | AO105: =IF(A3stdlife="n/a","n/a",IF(AO$3>(A3stdlife+$E105),('PTRM input'!$H$145*(1+rvanilla02)^0.5)-SUM($H105:AN105),('PTRM input'!$H$145*(1+rvanilla02)^0.5)/A3stdlife)) -> n/a | AP105: =IF(A3stdlife="n/a","n/a",IF(AP$3>(A3stdlife+$E105),('PTRM input'!$H$145*(1+rvanilla02)^0.5)-SUM($H105:AO105),('PTRM input'!$H$145*(1+rvanilla02)^0.5)/A3stdlife)) -> n/a | AQ105: =IF(A3stdlife="n/a","n/a",IF(AQ$3>(A3stdlife+$E105),('PTRM input'!$H$145*(1+rvanilla02)^0.5)-SUM($H105:AP105),('PTRM input'!$H$145*(1+rvanilla02)^0.5)/A3stdlife)) -> n/a | AR105: =IF(A3stdlife="n/a","n/a",IF(AR$3>(A3stdlife+$E105),('PTRM input'!$H$145*(1+rvanilla02)^0.5)-SUM($H105:AQ105),('PTRM input'!$H$145*(1+rvanilla02)^0.5)/A3stdlife)) -> n/a | AS105: =IF(A3stdlife="n/a","n/a",IF(AS$3>(A3stdlife+$E105),('PTRM input'!$H$145*(1+rvanilla02)^0.5)-SUM($H105:AR105),('PTRM input'!$H$145*(1+rvanilla02)^0.5)/A3stdlife)) -> n/a | AT105: =IF(A3stdlife="n/a","n/a",IF(AT$3>(A3stdlife+$E105),('PTRM input'!$H$145*(1+rvanilla02)^0.5)-SUM($H105:AS105),('PTRM input'!$H$145*(1+rvanilla02)^0.5)/A3stdlife)) -> n/a | AU105: =IF(A3stdlife="n/a","n/a",IF(AU$3>(A3stdlife+$E105),('PTRM input'!$H$145*(1+rvanilla02)^0.5)-SUM($H105:AT105),('PTRM input'!$H$145*(1+rvanilla02)^0.5)/A3stdlife)) -> n/a | AV105: =IF(A3stdlife="n/a","n/a",IF(AV$3>(A3stdlife+$E105),('PTRM input'!$H$145*(1+rvanilla02)^0.5)-SUM($H105:AU105),('PTRM input'!$H$145*(1+rvanilla02)^0.5)/A3stdlife)) -> n/a | AW105: =IF(A3stdlife="n/a","n/a",IF(AW$3>(A3stdlife+$E105),('PTRM input'!$H$145*(1+rvanilla02)^0.5)-SUM($H105:AV105),('PTRM input'!$H$145*(1+rvanilla02)^0.5)/A3stdlife)) -> n/a | AX105: =IF(A3stdlife="n/a","n/a",IF(AX$3>(A3stdlife+$E105),('PTRM input'!$H$145*(1+rvanilla02)^0.5)-SUM($H105:AW105),('PTRM input'!$H$145*(1+rvanilla02)^0.5)/A3stdlife)) -> n/a | AY105: =IF(A3stdlife="n/a","n/a",IF(AY$3>(A3stdlife+$E105),('PTRM input'!$H$145*(1+rvanilla02)^0.5)-SUM($H105:AX105),('PTRM input'!$H$145*(1+rvanilla02)^0.5)/A3stdlife)) -> n/a | AZ105: =IF(A3stdlife="n/a","n/a",IF(AZ$3>(A3stdlife+$E105),('PTRM input'!$H$145*(1+rvanilla02)^0.5)-SUM($H105:AY105),('PTRM input'!$H$145*(1+rvanilla02)^0.5)/A3stdlife)) -> n/a | BA105: =IF(A3stdlife="n/a","n/a",IF(BA$3>(A3stdlife+$E105),('PTRM input'!$H$145*(1+rvanilla02)^0.5)-SUM($H105:AZ105),('PTRM input'!$H$145*(1+rvanilla02)^0.5)/A3stdlife)) -> n/a | BB105: =IF(A3stdlife="n/a","n/a",IF(BB$3>(A3stdlife+$E105),('PTRM input'!$H$145*(1+rvanilla02)^0.5)-SUM($H105:BA105),('PTRM input'!$H$145*(1+rvanilla02)^0.5)/A3stdlife)) -> n/a | BC105: =IF(A3stdlife="n/a","n/a",IF(BC$3>(A3stdlife+$E105),('PTRM input'!$H$145*(1+rvanilla02)^0.5)-SUM($H105:BB105),('PTRM input'!$H$145*(1+rvanilla02)^0.5)/A3stdlife)) -> n/a | BD105: =IF(A3stdlife="n/a","n/a",IF(BD$3>(A3stdlife+$E105),('PTRM input'!$H$145*(1+rvanilla02)^0.5)-SUM($H105:BC105),('PTRM input'!$H$145*(1+rvanilla02)^0.5)/A3stdlife)) -> n/a | BE105: =IF(A3stdlife="n/a","n/a",IF(BE$3>(A3stdlife+$E105),('PTRM input'!$H$145*(1+rvanilla02)^0.5)-SUM($H105:BD105),('PTRM input'!$H$145*(1+rvanilla02)^0.5)/A3stdlife)) -> n/a | BF105: =IF(A3stdlife="n/a","n/a",IF(BF$3>(A3stdlife+$E105),('PTRM input'!$H$145*(1+rvanilla02)^0.5)-SUM($H105:BE105),('PTRM input'!$H$145*(1+rvanilla02)^0.5)/A3stdlife)) -> n/a | BG105: =IF(A3stdlife="n/a","n/a",IF(BG$3>(A3stdlife+$E105),('PTRM input'!$H$145*(1+rvanilla02)^0.5)-SUM($H105:BF105),('PTRM input'!$H$145*(1+rvanilla02)^0.5)/A3stdlife)) -> n/a | BH105: =IF(A3stdlife="n/a","n/a",IF(BH$3>(A3stdlife+$E105),('PTRM input'!$H$145*(1+rvanilla02)^0.5)-SUM($H105:BG105),('PTRM input'!$H$145*(1+rvanilla02)^0.5)/A3stdlife)) -> n/a | BI105: =IF(A3stdlife="n/a","n/a",IF(BI$3>(A3stdlife+$E105),('PTRM input'!$H$145*(1+rvanilla02)^0.5)-SUM($H105:BH105),('PTRM input'!$H$145*(1+rvanilla02)^0.5)/A3stdlife)) -> n/a
E106: 3 | J106: =IF(A3stdlife="n/a","n/a",IF(J$3>(A3stdlife+$E106),('PTRM input'!$I$145*(1+rvanilla03)^0.5)-SUM($I106:I106),('PTRM input'!$I$145*(1+rvanilla03)^0.5)/A3stdlife)) -> n/a | K106: =IF(A3stdlife="n/a","n/a",IF(K$3>(A3stdlife+$E106),('PTRM input'!$I$145*(1+rvanilla03)^0.5)-SUM($I106:J106),('PTRM input'!$I$145*(1+rvanilla03)^0.5)/A3stdlife)) -> n/a | L106: =IF(A3stdlife="n/a","n/a",IF(L$3>(A3stdlife+$E106),('PTRM input'!$I$145*(1+rvanilla03)^0.5)-SUM($I106:K106),('PTRM input'!$I$145*(1+rvanilla03)^0.5)/A3stdlife)) -> n/a | M106: =IF(A3stdlife="n/a","n/a",IF(M$3>(A3stdlife+$E106),('PTRM input'!$I$145*(1+rvanilla03)^0.5)-SUM($I106:L106),('PTRM input'!$I$145*(1+rvanilla03)^0.5)/A3stdlife)) -> n/a | N106: =IF(A3stdlife="n/a","n/a",IF(N$3>(A3stdlife+$E106),('PTRM input'!$I$145*(1+rvanilla03)^0.5)-SUM($I106:M106),('PTRM input'!$I$145*(1+rvanilla03)^0.5)/A3stdlife)) -> n/a | O106: =IF(A3stdlife="n/a","n/a",IF(O$3>(A3stdlife+$E106),('PTRM input'!$I$145*(1+rvanilla03)^0.5)-SUM($I106:N106),('PTRM input'!$I$145*(1+rvanilla03)^0.5)/A3stdlife)) -> n/a | P106: =IF(A3stdlife="n/a","n/a",IF(P$3>(A3stdlife+$E106),('PTRM input'!$I$145*(1+rvanilla03)^0.5)-SUM($I106:O106),('PTRM input'!$I$145*(1+rvanilla03)^0.5)/A3stdlife)) -> n/a | Q106: =IF(A3stdlife="n/a","n/a",IF(Q$3>(A3stdlife+$E106),('PTRM input'!$I$145*(1+rvanilla03)^0.5)-SUM($I106:P106),('PTRM input'!$I$145*(1+rvanilla03)^0.5)/A3stdlife)) -> n/a | R106: =IF(A3stdlife="n/a","n/a",IF(R$3>(A3stdlife+$E106),('PTRM input'!$I$145*(1+rvanilla03)^0.5)-SUM($I106:Q106),('PTRM input'!$I$145*(1+rvanilla03)^0.5)/A3stdlife)) -> n/a | S106: =IF(A3stdlife="n/a","n/a",IF(S$3>(A3stdlife+$E106),('PTRM input'!$I$145*(1+rvanilla03)^0.5)-SUM($I106:R106),('PTRM input'!$I$145*(1+rvanilla03)^0.5)/A3stdlife)) -> n/a | T106: =IF(A3stdlife="n/a","n/a",IF(T$3>(A3stdlife+$E106),('PTRM input'!$I$145*(1+rvanilla03)^0.5)-SUM($I106:S106),('PTRM input'!$I$145*(1+rvanilla03)^0.5)/A3stdlife)) -> n/a | U106: =IF(A3stdlife="n/a","n/a",IF(U$3>(A3stdlife+$E106),('PTRM input'!$I$145*(1+rvanilla03)^0.5)-SUM($I106:T106),('PTRM input'!$I$145*(1+rvanilla03)^0.5)/A3stdlife)) -> n/a | V106: =IF(A3stdlife="n/a","n/a",IF(V$3>(A3stdlife+$E106),('PTRM input'!$I$145*(1+rvanilla03)^0.5)-SUM($I106:U106),('PTRM input'!$I$145*(1+rvanilla03)^0.5)/A3stdlife)) -> n/a | W106: =IF(A3stdlife="n/a","n/a",IF(W$3>(A3stdlife+$E106),('PTRM input'!$I$145*(1+rvanilla03)^0.5)-SUM($I106:V106),('PTRM input'!$I$145*(1+rvanilla03)^0.5)/A3stdlife)) -> n/a | X106: =IF(A3stdlife="n/a","n/a",IF(X$3>(A3stdlife+$E106),('PTRM input'!$I$145*(1+rvanilla03)^0.5)-SUM($I106:W106),('PTRM input'!$I$145*(1+rvanilla03)^0.5)/A3stdlife)) -> n/a | Y106: =IF(A3stdlife="n/a","n/a",IF(Y$3>(A3stdlife+$E106),('PTRM input'!$I$145*(1+rvanilla03)^0.5)-SUM($I106:X106),('PTRM input'!$I$145*(1+rvanilla03)^0.5)/A3stdlife)) -> n/a | Z106: =IF(A3stdlife="n/a","n/a",IF(Z$3>(A3stdlife+$E106),('PTRM input'!$I$145*(1+rvanilla03)^0.5)-SUM($I106:Y106),('PTRM input'!$I$145*(1+rvanilla03)^0.5)/A3stdlife)) -> n/a | AA106: =IF(A3stdlife="n/a","n/a",IF(AA$3>(A3stdlife+$E106),('PTRM input'!$I$145*(1+rvanilla03)^0.5)-SUM($I106:Z106),('PTRM input'!$I$145*(1+rvanilla03)^0.5)/A3stdlife)) -> n/a | AB106: =IF(A3stdlife="n/a","n/a",IF(AB$3>(A3stdlife+$E106),('PTRM input'!$I$145*(1+rvanilla03)^0.5)-SUM($I106:AA106),('PTRM input'!$I$145*(1+rvanilla03)^0.5)/A3stdlife)) -> n/a | AC106: =IF(A3stdlife="n/a","n/a",IF(AC$3>(A3stdlife+$E106),('PTRM input'!$I$145*(1+rvanilla03)^0.5)-SUM($I106:AB106),('PTRM input'!$I$145*(1+rvanilla03)^0.5)/A3stdlife)) -> n/a | AD106: =IF(A3stdlife="n/a","n/a",IF(AD$3>(A3stdlife+$E106),('PTRM input'!$I$145*(1+rvanilla03)^0.5)-SUM($I106:AC106),('PTRM input'!$I$145*(1+rvanilla03)^0.5)/A3stdlife)) -> n/a | AE106: =IF(A3stdlife="n/a","n/a",IF(AE$3>(A3stdlife+$E106),('PTRM input'!$I$145*(1+rvanilla03)^0.5)-SUM($I106:AD106),('PTRM input'!$I$145*(1+rvanilla03)^0.5)/A3stdlife)) -> n/a | AF106: =IF(A3stdlife="n/a","n/a",IF(AF$3>(A3stdlife+$E106),('PTRM input'!$I$145*(1+rvanilla03)^0.5)-SUM($I106:AE106),('PTRM input'!$I$145*(1+rvanilla03)^0.5)/A3stdlife)) -> n/a | AG106: =IF(A3stdlife="n/a","n/a",IF(AG$3>(A3stdlife+$E106),('PTRM input'!$I$145*(1+rvanilla03)^0.5)-SUM($I106:AF106),('PTRM input'!$I$145*(1+rvanilla03)^0.5)/A3stdlife)) -> n/a | AH106: =IF(A3stdlife="n/a","n/a",IF(AH$3>(A3stdlife+$E106),('PTRM input'!$I$145*(1+rvanilla03)^0.5)-SUM($I106:AG106),('PTRM input'!$I$145*(1+rvanilla03)^0.5)/A3stdlife)) -> n/a | AI106: =IF(A3stdlife="n/a","n/a",IF(AI$3>(A3stdlife+$E106),('PTRM input'!$I$145*(1+rvanilla03)^0.5)-SUM($I106:AH106),('PTRM input'!$I$145*(1+rvanilla03)^0.5)/A3stdlife)) -> n/a | AJ106: =IF(A3stdlife="n/a","n/a",IF(AJ$3>(A3stdlife+$E106),('PTRM input'!$I$145*(1+rvanilla03)^0.5)-SUM($I106:AI106),('PTRM input'!$I$145*(1+rvanilla03)^0.5)/A3stdlife)) -> n/a | AK106: =IF(A3stdlife="n/a","n/a",IF(AK$3>(A3stdlife+$E106),('PTRM input'!$I$145*(1+rvanilla03)^0.5)-SUM($I106:AJ106),('PTRM input'!$I$145*(1+rvanilla03)^0.5)/A3stdlife)) -> n/a | AL106: =IF(A3stdlife="n/a","n/a",IF(AL$3>(A3stdlife+$E106),('PTRM input'!$I$145*(1+rvanilla03)^0.5)-SUM($I106:AK106),('PTRM input'!$I$145*(1+rvanilla03)^0.5)/A3stdlife)) -> n/a | AM106: =IF(A3stdlife="n/a","n/a",IF(AM$3>(A3stdlife+$E106),('PTRM input'!$I$145*(1+rvanilla03)^0.5)-SUM($I106:AL106),('PTRM input'!$I$145*(1+rvanilla03)^0.5)/A3stdlife)) -> n/a | AN106: =IF(A3stdlife="n/a","n/a",IF(AN$3>(A3stdlife+$E106),('PTRM input'!$I$145*(1+rvanilla03)^0.5)-SUM($I106:AM106),('PTRM input'!$I$145*(1+rvanilla03)^0.5)/A3stdlife)) -> n/a | AO106: =IF(A3stdlife="n/a","n/a",IF(AO$3>(A3stdlife+$E106),('PTRM input'!$I$145*(1+rvanilla03)^0.5)-SUM($I106:AN106),('PTRM input'!$I$145*(1+rvanilla03)^0.5)/A3stdlife)) -> n/a | AP106: =IF(A3stdlife="n/a","n/a",IF(AP$3>(A3stdlife+$E106),('PTRM input'!$I$145*(1+rvanilla03)^0.5)-SUM($I106:AO106),('PTRM input'!$I$145*(1+rvanilla03)^0.5)/A3stdlife)) -> n/a | AQ106: =IF(A3stdlife="n/a","n/a",IF(AQ$3>(A3stdlife+$E106),('PTRM input'!$I$145*(1+rvanilla03)^0.5)-SUM($I106:AP106),('PTRM input'!$I$145*(1+rvanilla03)^0.5)/A3stdlife)) -> n/a | AR106: =IF(A3stdlife="n/a","n/a",IF(AR$3>(A3stdlife+$E106),('PTRM input'!$I$145*(1+rvanilla03)^0.5)-SUM($I106:AQ106),('PTRM input'!$I$145*(1+rvanilla03)^0.5)/A3stdlife)) -> n/a | AS106: =IF(A3stdlife="n/a","n/a",IF(AS$3>(A3stdlife+$E106),('PTRM input'!$I$145*(1+rvanilla03)^0.5)-SUM($I106:AR106),('PTRM input'!$I$145*(1+rvanilla03)^0.5)/A3stdlife)) -> n/a | AT106: =IF(A3stdlife="n/a","n/a",IF(AT$3>(A3stdlife+$E106),('PTRM input'!$I$145*(1+rvanilla03)^0.5)-SUM($I106:AS106),('PTRM input'!$I$145*(1+rvanilla03)^0.5)/A3stdlife)) -> n/a | AU106: =IF(A3stdlife="n/a","n/a",IF(AU$3>(A3stdlife+$E106),('PTRM input'!$I$145*(1+rvanilla03)^0.5)-SUM($I106:AT106),('PTRM input'!$I$145*(1+rvanilla03)^0.5)/A3stdlife)) -> n/a | AV106: =IF(A3stdlife="n/a","n/a",IF(AV$3>(A3stdlife+$E106),('PTRM input'!$I$145*(1+rvanilla03)^0.5)-SUM($I106:AU106),('PTRM input'!$I$145*(1+rvanilla03)^0.5)/A3stdlife)) -> n/a | AW106: =IF(A3stdlife="n/a","n/a",IF(AW$3>(A3stdlife+$E106),('PTRM input'!$I$145*(1+rvanilla03)^0.5)-SUM($I106:AV106),('PTRM input'!$I$145*(1+rvanilla03)^0.5)/A3stdlife)) -> n/a | AX106: =IF(A3stdlife="n/a","n/a",IF(AX$3>(A3stdlife+$E106),('PTRM input'!$I$145*(1+rvanilla03)^0.5)-SUM($I106:AW106),('PTRM input'!$I$145*(1+rvanilla03)^0.5)/A3stdlife)) -> n/a | AY106: =IF(A3stdlife="n/a","n/a",IF(AY$3>(A3stdlife+$E106),('PTRM input'!$I$145*(1+rvanilla03)^0.5)-SUM($I106:AX106),('PTRM input'!$I$145*(1+rvanilla03)^0.5)/A3stdlife)) -> n/a | AZ106: =IF(A3stdlife="n/a","n/a",IF(AZ$3>(A3stdlife+$E106),('PTRM input'!$I$145*(1+rvanilla03)^0.5)-SUM($I106:AY106),('PTRM input'!$I$145*(1+rvanilla03)^0.5)/A3stdlife)) -> n/a | BA106: =IF(A3stdlife="n/a","n/a",IF(BA$3>(A3stdlife+$E106),('PTRM input'!$I$145*(1+rvanilla03)^0.5)-SUM($I106:AZ106),('PTRM input'!$I$145*(1+rvanilla03)^0.5)/A3stdlife)) -> n/a | BB106: =IF(A3stdlife="n/a","n/a",IF(BB$3>(A3stdlife+$E106),('PTRM input'!$I$145*(1+rvanilla03)^0.5)-SUM($I106:BA106),('PTRM input'!$I$145*(1+rvanilla03)^0.5)/A3stdlife)) -> n/a | BC106: =IF(A3stdlife="n/a","n/a",IF(BC$3>(A3stdlife+$E106),('PTRM input'!$I$145*(1+rvanilla03)^0.5)-SUM($I106:BB106),('PTRM input'!$I$145*(1+rvanilla03)^0.5)/A3stdlife)) -> n/a | BD106: =IF(A3stdlife="n/a","n/a",IF(BD$3>(A3stdlife+$E106),('PTRM input'!$I$145*(1+rvanilla03)^0.5)-SUM($I106:BC106),('PTRM input'!$I$145*(1+rvanilla03)^0.5)/A3stdlife)) -> n/a | BE106: =IF(A3stdlife="n/a","n/a",IF(BE$3>(A3stdlife+$E106),('PTRM input'!$I$145*(1+rvanilla03)^0.5)-SUM($I106:BD106),('PTRM input'!$I$145*(1+rvanilla03)^0.5)/A3stdlife)) -> n/a | BF106: =IF(A3stdlife="n/a","n/a",IF(BF$3>(A3stdlife+$E106),('PTRM input'!$I$145*(1+rvanilla03)^0.5)-SUM($I106:BE106),('PTRM input'!$I$145*(1+rvanilla03)^0.5)/A3stdlife)) -> n/a | BG106: =IF(A3stdlife="n/a","n/a",IF(BG$3>(A3stdlife+$E106),('PTRM input'!$I$145*(1+rvanilla03)^0.5)-SUM($I106:BF106),('PTRM input'!$I$145*(1+rvanilla03)^0.5)/A3stdlife)) -> n/a | BH106: =IF(A3stdlife="n/a","n/a",IF(BH$3>(A3stdlife+$E106),('PTRM input'!$I$145*(1+rvanilla03)^0.5)-SUM($I106:BG106),('PTRM input'!$I$145*(1+rvanilla03)^0.5)/A3stdlife)) -> n/a | BI106: =IF(A3stdlife="n/a","n/a",IF(BI$3>(A3stdlife+$E106),('PTRM input'!$I$145*(1+rvanilla03)^0.5)-SUM($I106:BH106),('PTRM input'!$I$145*(1+rvanilla03)^0.5)/A3stdlife)) -> n/a
E107: 4 | K107: =IF(A3stdlife="n/a","n/a",IF(K$3>(A3stdlife+$E107),('PTRM input'!$J$145*(1+rvanilla04)^0.5)-SUM($J107:J107),('PTRM input'!$J$145*(1+rvanilla04)^0.5)/A3stdlife)) -> n/a | L107: =IF(A3stdlife="n/a","n/a",IF(L$3>(A3stdlife+$E107),('PTRM input'!$J$145*(1+rvanilla04)^0.5)-SUM($J107:K107),('PTRM input'!$J$145*(1+rvanilla04)^0.5)/A3stdlife)) -> n/a | M107: =IF(A3stdlife="n/a","n/a",IF(M$3>(A3stdlife+$E107),('PTRM input'!$J$145*(1+rvanilla04)^0.5)-SUM($J107:L107),('PTRM input'!$J$145*(1+rvanilla04)^0.5)/A3stdlife)) -> n/a | N107: =IF(A3stdlife="n/a","n/a",IF(N$3>(A3stdlife+$E107),('PTRM input'!$J$145*(1+rvanilla04)^0.5)-SUM($J107:M107),('PTRM input'!$J$145*(1+rvanilla04)^0.5)/A3stdlife)) -> n/a | O107: =IF(A3stdlife="n/a","n/a",IF(O$3>(A3stdlife+$E107),('PTRM input'!$J$145*(1+rvanilla04)^0.5)-SUM($J107:N107),('PTRM input'!$J$145*(1+rvanilla04)^0.5)/A3stdlife)) -> n/a | P107: =IF(A3stdlife="n/a","n/a",IF(P$3>(A3stdlife+$E107),('PTRM input'!$J$145*(1+rvanilla04)^0.5)-SUM($J107:O107),('PTRM input'!$J$145*(1+rvanilla04)^0.5)/A3stdlife)) -> n/a | Q107: =IF(A3stdlife="n/a","n/a",IF(Q$3>(A3stdlife+$E107),('PTRM input'!$J$145*(1+rvanilla04)^0.5)-SUM($J107:P107),('PTRM input'!$J$145*(1+rvanilla04)^0.5)/A3stdlife)) -> n/a | R107: =IF(A3stdlife="n/a","n/a",IF(R$3>(A3stdlife+$E107),('PTRM input'!$J$145*(1+rvanilla04)^0.5)-SUM($J107:Q107),('PTRM input'!$J$145*(1+rvanilla04)^0.5)/A3stdlife)) -> n/a | S107: =IF(A3stdlife="n/a","n/a",IF(S$3>(A3stdlife+$E107),('PTRM input'!$J$145*(1+rvanilla04)^0.5)-SUM($J107:R107),('PTRM input'!$J$145*(1+rvanilla04)^0.5)/A3stdlife)) -> n/a | T107: =IF(A3stdlife="n/a","n/a",IF(T$3>(A3stdlife+$E107),('PTRM input'!$J$145*(1+rvanilla04)^0.5)-SUM($J107:S107),('PTRM input'!$J$145*(1+rvanilla04)^0.5)/A3stdlife)) -> n/a | U107: =IF(A3stdlife="n/a","n/a",IF(U$3>(A3stdlife+$E107),('PTRM input'!$J$145*(1+rvanilla04)^0.5)-SUM($J107:T107),('PTRM input'!$J$145*(1+rvanilla04)^0.5)/A3stdlife)) -> n/a | V107: =IF(A3stdlife="n/a","n/a",IF(V$3>(A3stdlife+$E107),('PTRM input'!$J$145*(1+rvanilla04)^0.5)-SUM($J107:U107),('PTRM input'!$J$145*(1+rvanilla04)^0.5)/A3stdlife)) -> n/a | W107: =IF(A3stdlife="n/a","n/a",IF(W$3>(A3stdlife+$E107),('PTRM input'!$J$145*(1+rvanilla04)^0.5)-SUM($J107:V107),('PTRM input'!$J$145*(1+rvanilla04)^0.5)/A3stdlife)) -> n/a | X107: =IF(A3stdlife="n/a","n/a",IF(X$3>(A3stdlife+$E107),('PTRM input'!$J$145*(1+rvanilla04)^0.5)-SUM($J107:W107),('PTRM input'!$J$145*(1+rvanilla04)^0.5)/A3stdlife)) -> n/a | Y107: =IF(A3stdlife="n/a","n/a",IF(Y$3>(A3stdlife+$E107),('PTRM input'!$J$145*(1+rvanilla04)^0.5)-SUM($J107:X107),('PTRM input'!$J$145*(1+rvanilla04)^0.5)/A3stdlife)) -> n/a | Z107: =IF(A3stdlife="n/a","n/a",IF(Z$3>(A3stdlife+$E107),('PTRM input'!$J$145*(1+rvanilla04)^0.5)-SUM($J107:Y107),('PTRM input'!$J$145*(1+rvanilla04)^0.5)/A3stdlife)) -> n/a | AA107: =IF(A3stdlife="n/a","n/a",IF(AA$3>(A3stdlife+$E107),('PTRM input'!$J$145*(1+rvanilla04)^0.5)-SUM($J107:Z107),('PTRM input'!$J$145*(1+rvanilla04)^0.5)/A3stdlife)) -> n/a | AB107: =IF(A3stdlife="n/a","n/a",IF(AB$3>(A3stdlife+$E107),('PTRM input'!$J$145*(1+rvanilla04)^0.5)-SUM($J107:AA107),('PTRM input'!$J$145*(1+rvanilla04)^0.5)/A3stdlife)) -> n/a | AC107: =IF(A3stdlife="n/a","n/a",IF(AC$3>(A3stdlife+$E107),('PTRM input'!$J$145*(1+rvanilla04)^0.5)-SUM($J107:AB107),('PTRM input'!$J$145*(1+rvanilla04)^0.5)/A3stdlife)) -> n/a | AD107: =IF(A3stdlife="n/a","n/a",IF(AD$3>(A3stdlife+$E107),('PTRM input'!$J$145*(1+rvanilla04)^0.5)-SUM($J107:AC107),('PTRM input'!$J$145*(1+rvanilla04)^0.5)/A3stdlife)) -> n/a | AE107: =IF(A3stdlife="n/a","n/a",IF(AE$3>(A3stdlife+$E107),('PTRM input'!$J$145*(1+rvanilla04)^0.5)-SUM($J107:AD107),('PTRM input'!$J$145*(1+rvanilla04)^0.5)/A3stdlife)) -> n/a | AF107: =IF(A3stdlife="n/a","n/a",IF(AF$3>(A3stdlife+$E107),('PTRM input'!$J$145*(1+rvanilla04)^0.5)-SUM($J107:AE107),('PTRM input'!$J$145*(1+rvanilla04)^0.5)/A3stdlife)) -> n/a | AG107: =IF(A3stdlife="n/a","n/a",IF(AG$3>(A3stdlife+$E107),('PTRM input'!$J$145*(1+rvanilla04)^0.5)-SUM($J107:AF107),('PTRM input'!$J$145*(1+rvanilla04)^0.5)/A3stdlife)) -> n/a | AH107: =IF(A3stdlife="n/a","n/a",IF(AH$3>(A3stdlife+$E107),('PTRM input'!$J$145*(1+rvanilla04)^0.5)-SUM($J107:AG107),('PTRM input'!$J$145*(1+rvanilla04)^0.5)/A3stdlife)) -> n/a | AI107: =IF(A3stdlife="n/a","n/a",IF(AI$3>(A3stdlife+$E107),('PTRM input'!$J$145*(1+rvanilla04)^0.5)-SUM($J107:AH107),('PTRM input'!$J$145*(1+rvanilla04)^0.5)/A3stdlife)) -> n/a | AJ107: =IF(A3stdlife="n/a","n/a",IF(AJ$3>(A3stdlife+$E107),('PTRM input'!$J$145*(1+rvanilla04)^0.5)-SUM($J107:AI107),('PTRM input'!$J$145*(1+rvanilla04)^0.5)/A3stdlife)) -> n/a | AK107: =IF(A3stdlife="n/a","n/a",IF(AK$3>(A3stdlife+$E107),('PTRM input'!$J$145*(1+rvanilla04)^0.5)-SUM($J107:AJ107),('PTRM input'!$J$145*(1+rvanilla04)^0.5)/A3stdlife)) -> n/a | AL107: =IF(A3stdlife="n/a","n/a",IF(AL$3>(A3stdlife+$E107),('PTRM input'!$J$145*(1+rvanilla04)^0.5)-SUM($J107:AK107),('PTRM input'!$J$145*(1+rvanilla04)^0.5)/A3stdlife)) -> n/a | AM107: =IF(A3stdlife="n/a","n/a",IF(AM$3>(A3stdlife+$E107),('PTRM input'!$J$145*(1+rvanilla04)^0.5)-SUM($J107:AL107),('PTRM input'!$J$145*(1+rvanilla04)^0.5)/A3stdlife)) -> n/a | AN107: =IF(A3stdlife="n/a","n/a",IF(AN$3>(A3stdlife+$E107),('PTRM input'!$J$145*(1+rvanilla04)^0.5)-SUM($J107:AM107),('PTRM input'!$J$145*(1+rvanilla04)^0.5)/A3stdlife)) -> n/a | AO107: =IF(A3stdlife="n/a","n/a",IF(AO$3>(A3stdlife+$E107),('PTRM input'!$J$145*(1+rvanilla04)^0.5)-SUM($J107:AN107),('PTRM input'!$J$145*(1+rvanilla04)^0.5)/A3stdlife)) -> n/a | AP107: =IF(A3stdlife="n/a","n/a",IF(AP$3>(A3stdlife+$E107),('PTRM input'!$J$145*(1+rvanilla04)^0.5)-SUM($J107:AO107),('PTRM input'!$J$145*(1+rvanilla04)^0.5)/A3stdlife)) -> n/a | AQ107: =IF(A3stdlife="n/a","n/a",IF(AQ$3>(A3stdlife+$E107),('PTRM input'!$J$145*(1+rvanilla04)^0.5)-SUM($J107:AP107),('PTRM input'!$J$145*(1+rvanilla04)^0.5)/A3stdlife)) -> n/a | AR107: =IF(A3stdlife="n/a","n/a",IF(AR$3>(A3stdlife+$E107),('PTRM input'!$J$145*(1+rvanilla04)^0.5)-SUM($J107:AQ107),('PTRM input'!$J$145*(1+rvanilla04)^0.5)/A3stdlife)) -> n/a | AS107: =IF(A3stdlife="n/a","n/a",IF(AS$3>(A3stdlife+$E107),('PTRM input'!$J$145*(1+rvanilla04)^0.5)-SUM($J107:AR107),('PTRM input'!$J$145*(1+rvanilla04)^0.5)/A3stdlife)) -> n/a | AT107: =IF(A3stdlife="n/a","n/a",IF(AT$3>(A3stdlife+$E107),('PTRM input'!$J$145*(1+rvanilla04)^0.5)-SUM($J107:AS107),('PTRM input'!$J$145*(1+rvanilla04)^0.5)/A3stdlife)) -> n/a | AU107: =IF(A3stdlife="n/a","n/a",IF(AU$3>(A3stdlife+$E107),('PTRM input'!$J$145*(1+rvanilla04)^0.5)-SUM($J107:AT107),('PTRM input'!$J$145*(1+rvanilla04)^0.5)/A3stdlife)) -> n/a | AV107: =IF(A3stdlife="n/a","n/a",IF(AV$3>(A3stdlife+$E107),('PTRM input'!$J$145*(1+rvanilla04)^0.5)-SUM($J107:AU107),('PTRM input'!$J$145*(1+rvanilla04)^0.5)/A3stdlife)) -> n/a | AW107: =IF(A3stdlife="n/a","n/a",IF(AW$3>(A3stdlife+$E107),('PTRM input'!$J$145*(1+rvanilla04)^0.5)-SUM($J107:AV107),('PTRM input'!$J$145*(1+rvanilla04)^0.5)/A3stdlife)) -> n/a | AX107: =IF(A3stdlife="n/a","n/a",IF(AX$3>(A3stdlife+$E107),('PTRM input'!$J$145*(1+rvanilla04)^0.5)-SUM($J107:AW107),('PTRM input'!$J$145*(1+rvanilla04)^0.5)/A3stdlife)) -> n/a | AY107: =IF(A3stdlife="n/a","n/a",IF(AY$3>(A3stdlife+$E107),('PTRM input'!$J$145*(1+rvanilla04)^0.5)-SUM($J107:AX107),('PTRM input'!$J$145*(1+rvanilla04)^0.5)/A3stdlife)) -> n/a | AZ107: =IF(A3stdlife="n/a","n/a",IF(AZ$3>(A3stdlife+$E107),('PTRM input'!$J$145*(1+rvanilla04)^0.5)-SUM($J107:AY107),('PTRM input'!$J$145*(1+rvanilla04)^0.5)/A3stdlife)) -> n/a | BA107: =IF(A3stdlife="n/a","n/a",IF(BA$3>(A3stdlife+$E107),('PTRM input'!$J$145*(1+rvanilla04)^0.5)-SUM($J107:AZ107),('PTRM input'!$J$145*(1+rvanilla04)^0.5)/A3stdlife)) -> n/a | BB107: =IF(A3stdlife="n/a","n/a",IF(BB$3>(A3stdlife+$E107),('PTRM input'!$J$145*(1+rvanilla04)^0.5)-SUM($J107:BA107),('PTRM input'!$J$145*(1+rvanilla04)^0.5)/A3stdlife)) -> n/a | BC107: =IF(A3stdlife="n/a","n/a",IF(BC$3>(A3stdlife+$E107),('PTRM input'!$J$145*(1+rvanilla04)^0.5)-SUM($J107:BB107),('PTRM input'!$J$145*(1+rvanilla04)^0.5)/A3stdlife)) -> n/a | BD107: =IF(A3stdlife="n/a","n/a",IF(BD$3>(A3stdlife+$E107),('PTRM input'!$J$145*(1+rvanilla04)^0.5)-SUM($J107:BC107),('PTRM input'!$J$145*(1+rvanilla04)^0.5)/A3stdlife)) -> n/a | BE107: =IF(A3stdlife="n/a","n/a",IF(BE$3>(A3stdlife+$E107),('PTRM input'!$J$145*(1+rvanilla04)^0.5)-SUM($J107:BD107),('PTRM input'!$J$145*(1+rvanilla04)^0.5)/A3stdlife)) -> n/a | BF107: =IF(A3stdlife="n/a","n/a",IF(BF$3>(A3stdlife+$E107),('PTRM input'!$J$145*(1+rvanilla04)^0.5)-SUM($J107:BE107),('PTRM input'!$J$145*(1+rvanilla04)^0.5)/A3stdlife)) -> n/a | BG107: =IF(A3stdlife="n/a","n/a",IF(BG$3>(A3stdlife+$E107),('PTRM input'!$J$145*(1+rvanilla04)^0.5)-SUM($J107:BF107),('PTRM input'!$J$145*(1+rvanilla04)^0.5)/A3stdlife)) -> n/a | BH107: =IF(A3stdlife="n/a","n/a",IF(BH$3>(A3stdlife+$E107),('PTRM input'!$J$145*(1+rvanilla04)^0.5)-SUM($J107:BG107),('PTRM input'!$J$145*(1+rvanilla04)^0.5)/A3stdlife)) -> n/a | BI107: =IF(A3stdlife="n/a","n/a",IF(BI$3>(A3stdlife+$E107),('PTRM input'!$J$145*(1+rvanilla04)^0.5)-SUM($J107:BH107),('PTRM input'!$J$145*(1+rvanilla04)^0.5)/A3stdlife)) -> n/a
E108: 5 | L108: =IF(A3stdlife="n/a","n/a",IF(L$3>(A3stdlife+$E108),('PTRM input'!$K$145*(1+rvanilla05)^0.5)-SUM($K108:K108),('PTRM input'!$K$145*(1+rvanilla05)^0.5)/A3stdlife)) -> n/a | M108: =IF(A3stdlife="n/a","n/a",IF(M$3>(A3stdlife+$E108),('PTRM input'!$K$145*(1+rvanilla05)^0.5)-SUM($K108:L108),('PTRM input'!$K$145*(1+rvanilla05)^0.5)/A3stdlife)) -> n/a | N108: =IF(A3stdlife="n/a","n/a",IF(N$3>(A3stdlife+$E108),('PTRM input'!$K$145*(1+rvanilla05)^0.5)-SUM($K108:M108),('PTRM input'!$K$145*(1+rvanilla05)^0.5)/A3stdlife)) -> n/a | O108: =IF(A3stdlife="n/a","n/a",IF(O$3>(A3stdlife+$E108),('PTRM input'!$K$145*(1+rvanilla05)^0.5)-SUM($K108:N108),('PTRM input'!$K$145*(1+rvanilla05)^0.5)/A3stdlife)) -> n/a | P108: =IF(A3stdlife="n/a","n/a",IF(P$3>(A3stdlife+$E108),('PTRM input'!$K$145*(1+rvanilla05)^0.5)-SUM($K108:O108),('PTRM input'!$K$145*(1+rvanilla05)^0.5)/A3stdlife)) -> n/a | Q108: =IF(A3stdlife="n/a","n/a",IF(Q$3>(A3stdlife+$E108),('PTRM input'!$K$145*(1+rvanilla05)^0.5)-SUM($K108:P108),('PTRM input'!$K$145*(1+rvanilla05)^0.5)/A3stdlife)) -> n/a | R108: =IF(A3stdlife="n/a","n/a",IF(R$3>(A3stdlife+$E108),('PTRM input'!$K$145*(1+rvanilla05)^0.5)-SUM($K108:Q108),('PTRM input'!$K$145*(1+rvanilla05)^0.5)/A3stdlife)) -> n/a | S108: =IF(A3stdlife="n/a","n/a",IF(S$3>(A3stdlife+$E108),('PTRM input'!$K$145*(1+rvanilla05)^0.5)-SUM($K108:R108),('PTRM input'!$K$145*(1+rvanilla05)^0.5)/A3stdlife)) -> n/a | T108: =IF(A3stdlife="n/a","n/a",IF(T$3>(A3stdlife+$E108),('PTRM input'!$K$145*(1+rvanilla05)^0.5)-SUM($K108:S108),('PTRM input'!$K$145*(1+rvanilla05)^0.5)/A3stdlife)) -> n/a | U108: =IF(A3stdlife="n/a","n/a",IF(U$3>(A3stdlife+$E108),('PTRM input'!$K$145*(1+rvanilla05)^0.5)-SUM($K108:T108),('PTRM input'!$K$145*(1+rvanilla05)^0.5)/A3stdlife)) -> n/a | V108: =IF(A3stdlife="n/a","n/a",IF(V$3>(A3stdlife+$E108),('PTRM input'!$K$145*(1+rvanilla05)^0.5)-SUM($K108:U108),('PTRM input'!$K$145*(1+rvanilla05)^0.5)/A3stdlife)) -> n/a | W108: =IF(A3stdlife="n/a","n/a",IF(W$3>(A3stdlife+$E108),('PTRM input'!$K$145*(1+rvanilla05)^0.5)-SUM($K108:V108),('PTRM input'!$K$145*(1+rvanilla05)^0.5)/A3stdlife)) -> n/a | X108: =IF(A3stdlife="n/a","n/a",IF(X$3>(A3stdlife+$E108),('PTRM input'!$K$145*(1+rvanilla05)^0.5)-SUM($K108:W108),('PTRM input'!$K$145*(1+rvanilla05)^0.5)/A3stdlife)) -> n/a | Y108: =IF(A3stdlife="n/a","n/a",IF(Y$3>(A3stdlife+$E108),('PTRM input'!$K$145*(1+rvanilla05)^0.5)-SUM($K108:X108),('PTRM input'!$K$145*(1+rvanilla05)^0.5)/A3stdlife)) -> n/a | Z108: =IF(A3stdlife="n/a","n/a",IF(Z$3>(A3stdlife+$E108),('PTRM input'!$K$145*(1+rvanilla05)^0.5)-SUM($K108:Y108),('PTRM input'!$K$145*(1+rvanilla05)^0.5)/A3stdlife)) -> n/a | AA108: =IF(A3stdlife="n/a","n/a",IF(AA$3>(A3stdlife+$E108),('PTRM input'!$K$145*(1+rvanilla05)^0.5)-SUM($K108:Z108),('PTRM input'!$K$145*(1+rvanilla05)^0.5)/A3stdlife)) -> n/a | AB108: =IF(A3stdlife="n/a","n/a",IF(AB$3>(A3stdlife+$E108),('PTRM input'!$K$145*(1+rvanilla05)^0.5)-SUM($K108:AA108),('PTRM input'!$K$145*(1+rvanilla05)^0.5)/A3stdlife)) -> n/a | AC108: =IF(A3stdlife="n/a","n/a",IF(AC$3>(A3stdlife+$E108),('PTRM input'!$K$145*(1+rvanilla05)^0.5)-SUM($K108:AB108),('PTRM input'!$K$145*(1+rvanilla05)^0.5)/A3stdlife)) -> n/a | AD108: =IF(A3stdlife="n/a","n/a",IF(AD$3>(A3stdlife+$E108),('PTRM input'!$K$145*(1+rvanilla05)^0.5)-SUM($K108:AC108),('PTRM input'!$K$145*(1+rvanilla05)^0.5)/A3stdlife)) -> n/a | AE108: =IF(A3stdlife="n/a","n/a",IF(AE$3>(A3stdlife+$E108),('PTRM input'!$K$145*(1+rvanilla05)^0.5)-SUM($K108:AD108),('PTRM input'!$K$145*(1+rvanilla05)^0.5)/A3stdlife)) -> n/a | AF108: =IF(A3stdlife="n/a","n/a",IF(AF$3>(A3stdlife+$E108),('PTRM input'!$K$145*(1+rvanilla05)^0.5)-SUM($K108:AE108),('PTRM input'!$K$145*(1+rvanilla05)^0.5)/A3stdlife)) -> n/a | AG108: =IF(A3stdlife="n/a","n/a",IF(AG$3>(A3stdlife+$E108),('PTRM input'!$K$145*(1+rvanilla05)^0.5)-SUM($K108:AF108),('PTRM input'!$K$145*(1+rvanilla05)^0.5)/A3stdlife)) -> n/a | AH108: =IF(A3stdlife="n/a","n/a",IF(AH$3>(A3stdlife+$E108),('PTRM input'!$K$145*(1+rvanilla05)^0.5)-SUM($K108:AG108),('PTRM input'!$K$145*(1+rvanilla05)^0.5)/A3stdlife)) -> n/a | AI108: =IF(A3stdlife="n/a","n/a",IF(AI$3>(A3stdlife+$E108),('PTRM input'!$K$145*(1+rvanilla05)^0.5)-SUM($K108:AH108),('PTRM input'!$K$145*(1+rvanilla05)^0.5)/A3stdlife)) -> n/a | AJ108: =IF(A3stdlife="n/a","n/a",IF(AJ$3>(A3stdlife+$E108),('PTRM input'!$K$145*(1+rvanilla05)^0.5)-SUM($K108:AI108),('PTRM input'!$K$145*(1+rvanilla05)^0.5)/A3stdlife)) -> n/a | AK108: =IF(A3stdlife="n/a","n/a",IF(AK$3>(A3stdlife+$E108),('PTRM input'!$K$145*(1+rvanilla05)^0.5)-SUM($K108:AJ108),('PTRM input'!$K$145*(1+rvanilla05)^0.5)/A3stdlife)) -> n/a | AL108: =IF(A3stdlife="n/a","n/a",IF(AL$3>(A3stdlife+$E108),('PTRM input'!$K$145*(1+rvanilla05)^0.5)-SUM($K108:AK108),('PTRM input'!$K$145*(1+rvanilla05)^0.5)/A3stdlife)) -> n/a | AM108: =IF(A3stdlife="n/a","n/a",IF(AM$3>(A3stdlife+$E108),('PTRM input'!$K$145*(1+rvanilla05)^0.5)-SUM($K108:AL108),('PTRM input'!$K$145*(1+rvanilla05)^0.5)/A3stdlife)) -> n/a | AN108: =IF(A3stdlife="n/a","n/a",IF(AN$3>(A3stdlife+$E108),('PTRM input'!$K$145*(1+rvanilla05)^0.5)-SUM($K108:AM108),('PTRM input'!$K$145*(1+rvanilla05)^0.5)/A3stdlife)) -> n/a | AO108: =IF(A3stdlife="n/a","n/a",IF(AO$3>(A3stdlife+$E108),('PTRM input'!$K$145*(1+rvanilla05)^0.5)-SUM($K108:AN108),('PTRM input'!$K$145*(1+rvanilla05)^0.5)/A3stdlife)) -> n/a | AP108: =IF(A3stdlife="n/a","n/a",IF(AP$3>(A3stdlife+$E108),('PTRM input'!$K$145*(1+rvanilla05)^0.5)-SUM($K108:AO108),('PTRM input'!$K$145*(1+rvanilla05)^0.5)/A3stdlife)) -> n/a | AQ108: =IF(A3stdlife="n/a","n/a",IF(AQ$3>(A3stdlife+$E108),('PTRM input'!$K$145*(1+rvanilla05)^0.5)-SUM($K108:AP108),('PTRM input'!$K$145*(1+rvanilla05)^0.5)/A3stdlife)) -> n/a | AR108: =IF(A3stdlife="n/a","n/a",IF(AR$3>(A3stdlife+$E108),('PTRM input'!$K$145*(1+rvanilla05)^0.5)-SUM($K108:AQ108),('PTRM input'!$K$145*(1+rvanilla05)^0.5)/A3stdlife)) -> n/a | AS108: =IF(A3stdlife="n/a","n/a",IF(AS$3>(A3stdlife+$E108),('PTRM input'!$K$145*(1+rvanilla05)^0.5)-SUM($K108:AR108),('PTRM input'!$K$145*(1+rvanilla05)^0.5)/A3stdlife)) -> n/a | AT108: =IF(A3stdlife="n/a","n/a",IF(AT$3>(A3stdlife+$E108),('PTRM input'!$K$145*(1+rvanilla05)^0.5)-SUM($K108:AS108),('PTRM input'!$K$145*(1+rvanilla05)^0.5)/A3stdlife)) -> n/a | AU108: =IF(A3stdlife="n/a","n/a",IF(AU$3>(A3stdlife+$E108),('PTRM input'!$K$145*(1+rvanilla05)^0.5)-SUM($K108:AT108),('PTRM input'!$K$145*(1+rvanilla05)^0.5)/A3stdlife)) -> n/a | AV108: =IF(A3stdlife="n/a","n/a",IF(AV$3>(A3stdlife+$E108),('PTRM input'!$K$145*(1+rvanilla05)^0.5)-SUM($K108:AU108),('PTRM input'!$K$145*(1+rvanilla05)^0.5)/A3stdlife)) -> n/a | AW108: =IF(A3stdlife="n/a","n/a",IF(AW$3>(A3stdlife+$E108),('PTRM input'!$K$145*(1+rvanilla05)^0.5)-SUM($K108:AV108),('PTRM input'!$K$145*(1+rvanilla05)^0.5)/A3stdlife)) -> n/a | AX108: =IF(A3stdlife="n/a","n/a",IF(AX$3>(A3stdlife+$E108),('PTRM input'!$K$145*(1+rvanilla05)^0.5)-SUM($K108:AW108),('PTRM input'!$K$145*(1+rvanilla05)^0.5)/A3stdlife)) -> n/a | AY108: =IF(A3stdlife="n/a","n/a",IF(AY$3>(A3stdlife+$E108),('PTRM input'!$K$145*(1+rvanilla05)^0.5)-SUM($K108:AX108),('PTRM input'!$K$145*(1+rvanilla05)^0.5)/A3stdlife)) -> n/a | AZ108: =IF(A3stdlife="n/a","n/a",IF(AZ$3>(A3stdlife+$E108),('PTRM input'!$K$145*(1+rvanilla05)^0.5)-SUM($K108:AY108),('PTRM input'!$K$145*(1+rvanilla05)^0.5)/A3stdlife)) -> n/a | BA108: =IF(A3stdlife="n/a","n/a",IF(BA$3>(A3stdlife+$E108),('PTRM input'!$K$145*(1+rvanilla05)^0.5)-SUM($K108:AZ108),('PTRM input'!$K$145*(1+rvanilla05)^0.5)/A3stdlife)) -> n/a | BB108: =IF(A3stdlife="n/a","n/a",IF(BB$3>(A3stdlife+$E108),('PTRM input'!$K$145*(1+rvanilla05)^0.5)-SUM($K108:BA108),('PTRM input'!$K$145*(1+rvanilla05)^0.5)/A3stdlife)) -> n/a | BC108: =IF(A3stdlife="n/a","n/a",IF(BC$3>(A3stdlife+$E108),('PTRM input'!$K$145*(1+rvanilla05)^0.5)-SUM($K108:BB108),('PTRM input'!$K$145*(1+rvanilla05)^0.5)/A3stdlife)) -> n/a | BD108: =IF(A3stdlife="n/a","n/a",IF(BD$3>(A3stdlife+$E108),('PTRM input'!$K$145*(1+rvanilla05)^0.5)-SUM($K108:BC108),('PTRM input'!$K$145*(1+rvanilla05)^0.5)/A3stdlife)) -> n/a | BE108: =IF(A3stdlife="n/a","n/a",IF(BE$3>(A3stdlife+$E108),('PTRM input'!$K$145*(1+rvanilla05)^0.5)-SUM($K108:BD108),('PTRM input'!$K$145*(1+rvanilla05)^0.5)/A3stdlife)) -> n/a | BF108: =IF(A3stdlife="n/a","n/a",IF(BF$3>(A3stdlife+$E108),('PTRM input'!$K$145*(1+rvanilla05)^0.5)-SUM($K108:BE108),('PTRM input'!$K$145*(1+rvanilla05)^0.5)/A3stdlife)) -> n/a | BG108: =IF(A3stdlife="n/a","n/a",IF(BG$3>(A3stdlife+$E108),('PTRM input'!$K$145*(1+rvanilla05)^0.5)-SUM($K108:BF108),('PTRM input'!$K$145*(1+rvanilla05)^0.5)/A3stdlife)) -> n/a | BH108: =IF(A3stdlife="n/a","n/a",IF(BH$3>(A3stdlife+$E108),('PTRM input'!$K$145*(1+rvanilla05)^0.5)-SUM($K108:BG108),('PTRM input'!$K$145*(1+rvanilla05)^0.5)/A3stdlife)) -> n/a | BI108: =IF(A3stdlife="n/a","n/a",IF(BI$3>(A3stdlife+$E108),('PTRM input'!$K$145*(1+rvanilla05)^0.5)-SUM($K108:BH108),('PTRM input'!$K$145*(1+rvanilla05)^0.5)/A3stdlife)) -> n/a
E109: 6 | M109: =IF(A3stdlife="n/a","n/a",IF(M$3>(A3stdlife+$E109),('PTRM input'!$L$145*(1+rvanilla06)^0.5)-SUM($L109:L109),('PTRM input'!$L$145*(1+rvanilla06)^0.5)/A3stdlife)) -> n/a | N109: =IF(A3stdlife="n/a","n/a",IF(N$3>(A3stdlife+$E109),('PTRM input'!$L$145*(1+rvanilla06)^0.5)-SUM($L109:M109),('PTRM input'!$L$145*(1+rvanilla06)^0.5)/A3stdlife)) -> n/a | O109: =IF(A3stdlife="n/a","n/a",IF(O$3>(A3stdlife+$E109),('PTRM input'!$L$145*(1+rvanilla06)^0.5)-SUM($L109:N109),('PTRM input'!$L$145*(1+rvanilla06)^0.5)/A3stdlife)) -> n/a | P109: =IF(A3stdlife="n/a","n/a",IF(P$3>(A3stdlife+$E109),('PTRM input'!$L$145*(1+rvanilla06)^0.5)-SUM($L109:O109),('PTRM input'!$L$145*(1+rvanilla06)^0.5)/A3stdlife)) -> n/a | Q109: =IF(A3stdlife="n/a","n/a",IF(Q$3>(A3stdlife+$E109),('PTRM input'!$L$145*(1+rvanilla06)^0.5)-SUM($L109:P109),('PTRM input'!$L$145*(1+rvanilla06)^0.5)/A3stdlife)) -> n/a | R109: =IF(A3stdlife="n/a","n/a",IF(R$3>(A3stdlife+$E109),('PTRM input'!$L$145*(1+rvanilla06)^0.5)-SUM($L109:Q109),('PTRM input'!$L$145*(1+rvanilla06)^0.5)/A3stdlife)) -> n/a | S109: =IF(A3stdlife="n/a","n/a",IF(S$3>(A3stdlife+$E109),('PTRM input'!$L$145*(1+rvanilla06)^0.5)-SUM($L109:R109),('PTRM input'!$L$145*(1+rvanilla06)^0.5)/A3stdlife)) -> n/a | T109: =IF(A3stdlife="n/a","n/a",IF(T$3>(A3stdlife+$E109),('PTRM input'!$L$145*(1+rvanilla06)^0.5)-SUM($L109:S109),('PTRM input'!$L$145*(1+rvanilla06)^0.5)/A3stdlife)) -> n/a | U109: =IF(A3stdlife="n/a","n/a",IF(U$3>(A3stdlife+$E109),('PTRM input'!$L$145*(1+rvanilla06)^0.5)-SUM($L109:T109),('PTRM input'!$L$145*(1+rvanilla06)^0.5)/A3stdlife)) -> n/a | V109: =IF(A3stdlife="n/a","n/a",IF(V$3>(A3stdlife+$E109),('PTRM input'!$L$145*(1+rvanilla06)^0.5)-SUM($L109:U109),('PTRM input'!$L$145*(1+rvanilla06)^0.5)/A3stdlife)) -> n/a | W109: =IF(A3stdlife="n/a","n/a",IF(W$3>(A3stdlife+$E109),('PTRM input'!$L$145*(1+rvanilla06)^0.5)-SUM($L109:V109),('PTRM input'!$L$145*(1+rvanilla06)^0.5)/A3stdlife)) -> n/a | X109: =IF(A3stdlife="n/a","n/a",IF(X$3>(A3stdlife+$E109),('PTRM input'!$L$145*(1+rvanilla06)^0.5)-SUM($L109:W109),('PTRM input'!$L$145*(1+rvanilla06)^0.5)/A3stdlife)) -> n/a | Y109: =IF(A3stdlife="n/a","n/a",IF(Y$3>(A3stdlife+$E109),('PTRM input'!$L$145*(1+rvanilla06)^0.5)-SUM($L109:X109),('PTRM input'!$L$145*(1+rvanilla06)^0.5)/A3stdlife)) -> n/a | Z109: =IF(A3stdlife="n/a","n/a",IF(Z$3>(A3stdlife+$E109),('PTRM input'!$L$145*(1+rvanilla06)^0.5)-SUM($L109:Y109),('PTRM input'!$L$145*(1+rvanilla06)^0.5)/A3stdlife)) -> n/a | AA109: =IF(A3stdlife="n/a","n/a",IF(AA$3>(A3stdlife+$E109),('PTRM input'!$L$145*(1+rvanilla06)^0.5)-SUM($L109:Z109),('PTRM input'!$L$145*(1+rvanilla06)^0.5)/A3stdlife)) -> n/a | AB109: =IF(A3stdlife="n/a","n/a",IF(AB$3>(A3stdlife+$E109),('PTRM input'!$L$145*(1+rvanilla06)^0.5)-SUM($L109:AA109),('PTRM input'!$L$145*(1+rvanilla06)^0.5)/A3stdlife)) -> n/a | AC109: =IF(A3stdlife="n/a","n/a",IF(AC$3>(A3stdlife+$E109),('PTRM input'!$L$145*(1+rvanilla06)^0.5)-SUM($L109:AB109),('PTRM input'!$L$145*(1+rvanilla06)^0.5)/A3stdlife)) -> n/a | AD109: =IF(A3stdlife="n/a","n/a",IF(AD$3>(A3stdlife+$E109),('PTRM input'!$L$145*(1+rvanilla06)^0.5)-SUM($L109:AC109),('PTRM input'!$L$145*(1+rvanilla06)^0.5)/A3stdlife)) -> n/a | AE109: =IF(A3stdlife="n/a","n/a",IF(AE$3>(A3stdlife+$E109),('PTRM input'!$L$145*(1+rvanilla06)^0.5)-SUM($L109:AD109),('PTRM input'!$L$145*(1+rvanilla06)^0.5)/A3stdlife)) -> n/a | AF109: =IF(A3stdlife="n/a","n/a",IF(AF$3>(A3stdlife+$E109),('PTRM input'!$L$145*(1+rvanilla06)^0.5)-SUM($L109:AE109),('PTRM input'!$L$145*(1+rvanilla06)^0.5)/A3stdlife)) -> n/a | AG109: =IF(A3stdlife="n/a","n/a",IF(AG$3>(A3stdlife+$E109),('PTRM input'!$L$145*(1+rvanilla06)^0.5)-SUM($L109:AF109),('PTRM input'!$L$145*(1+rvanilla06)^0.5)/A3stdlife)) -> n/a | AH109: =IF(A3stdlife="n/a","n/a",IF(AH$3>(A3stdlife+$E109),('PTRM input'!$L$145*(1+rvanilla06)^0.5)-SUM($L109:AG109),('PTRM input'!$L$145*(1+rvanilla06)^0.5)/A3stdlife)) -> n/a | AI109: =IF(A3stdlife="n/a","n/a",IF(AI$3>(A3stdlife+$E109),('PTRM input'!$L$145*(1+rvanilla06)^0.5)-SUM($L109:AH109),('PTRM input'!$L$145*(1+rvanilla06)^0.5)/A3stdlife)) -> n/a | AJ109: =IF(A3stdlife="n/a","n/a",IF(AJ$3>(A3stdlife+$E109),('PTRM input'!$L$145*(1+rvanilla06)^0.5)-SUM($L109:AI109),('PTRM input'!$L$145*(1+rvanilla06)^0.5)/A3stdlife)) -> n/a | AK109: =IF(A3stdlife="n/a","n/a",IF(AK$3>(A3stdlife+$E109),('PTRM input'!$L$145*(1+rvanilla06)^0.5)-SUM($L109:AJ109),('PTRM input'!$L$145*(1+rvanilla06)^0.5)/A3stdlife)) -> n/a | AL109: =IF(A3stdlife="n/a","n/a",IF(AL$3>(A3stdlife+$E109),('PTRM input'!$L$145*(1+rvanilla06)^0.5)-SUM($L109:AK109),('PTRM input'!$L$145*(1+rvanilla06)^0.5)/A3stdlife)) -> n/a | AM109: =IF(A3stdlife="n/a","n/a",IF(AM$3>(A3stdlife+$E109),('PTRM input'!$L$145*(1+rvanilla06)^0.5)-SUM($L109:AL109),('PTRM input'!$L$145*(1+rvanilla06)^0.5)/A3stdlife)) -> n/a | AN109: =IF(A3stdlife="n/a","n/a",IF(AN$3>(A3stdlife+$E109),('PTRM input'!$L$145*(1+rvanilla06)^0.5)-SUM($L109:AM109),('PTRM input'!$L$145*(1+rvanilla06)^0.5)/A3stdlife)) -> n/a | AO109: =IF(A3stdlife="n/a","n/a",IF(AO$3>(A3stdlife+$E109),('PTRM input'!$L$145*(1+rvanilla06)^0.5)-SUM($L109:AN109),('PTRM input'!$L$145*(1+rvanilla06)^0.5)/A3stdlife)) -> n/a | AP109: =IF(A3stdlife="n/a","n/a",IF(AP$3>(A3stdlife+$E109),('PTRM input'!$L$145*(1+rvanilla06)^0.5)-SUM($L109:AO109),('PTRM input'!$L$145*(1+rvanilla06)^0.5)/A3stdlife)) -> n/a | AQ109: =IF(A3stdlife="n/a","n/a",IF(AQ$3>(A3stdlife+$E109),('PTRM input'!$L$145*(1+rvanilla06)^0.5)-SUM($L109:AP109),('PTRM input'!$L$145*(1+rvanilla06)^0.5)/A3stdlife)) -> n/a | AR109: =IF(A3stdlife="n/a","n/a",IF(AR$3>(A3stdlife+$E109),('PTRM input'!$L$145*(1+rvanilla06)^0.5)-SUM($L109:AQ109),('PTRM input'!$L$145*(1+rvanilla06)^0.5)/A3stdlife)) -> n/a | AS109: =IF(A3stdlife="n/a","n/a",IF(AS$3>(A3stdlife+$E109),('PTRM input'!$L$145*(1+rvanilla06)^0.5)-SUM($L109:AR109),('PTRM input'!$L$145*(1+rvanilla06)^0.5)/A3stdlife)) -> n/a | AT109: =IF(A3stdlife="n/a","n/a",IF(AT$3>(A3stdlife+$E109),('PTRM input'!$L$145*(1+rvanilla06)^0.5)-SUM($L109:AS109),('PTRM input'!$L$145*(1+rvanilla06)^0.5)/A3stdlife)) -> n/a | AU109: =IF(A3stdlife="n/a","n/a",IF(AU$3>(A3stdlife+$E109),('PTRM input'!$L$145*(1+rvanilla06)^0.5)-SUM($L109:AT109),('PTRM input'!$L$145*(1+rvanilla06)^0.5)/A3stdlife)) -> n/a | AV109: =IF(A3stdlife="n/a","n/a",IF(AV$3>(A3stdlife+$E109),('PTRM input'!$L$145*(1+rvanilla06)^0.5)-SUM($L109:AU109),('PTRM input'!$L$145*(1+rvanilla06)^0.5)/A3stdlife)) -> n/a | AW109: =IF(A3stdlife="n/a","n/a",IF(AW$3>(A3stdlife+$E109),('PTRM input'!$L$145*(1+rvanilla06)^0.5)-SUM($L109:AV109),('PTRM input'!$L$145*(1+rvanilla06)^0.5)/A3stdlife)) -> n/a | AX109: =IF(A3stdlife="n/a","n/a",IF(AX$3>(A3stdlife+$E109),('PTRM input'!$L$145*(1+rvanilla06)^0.5)-SUM($L109:AW109),('PTRM input'!$L$145*(1+rvanilla06)^0.5)/A3stdlife)) -> n/a | AY109: =IF(A3stdlife="n/a","n/a",IF(AY$3>(A3stdlife+$E109),('PTRM input'!$L$145*(1+rvanilla06)^0.5)-SUM($L109:AX109),('PTRM input'!$L$145*(1+rvanilla06)^0.5)/A3stdlife)) -> n/a | AZ109: =IF(A3stdlife="n/a","n/a",IF(AZ$3>(A3stdlife+$E109),('PTRM input'!$L$145*(1+rvanilla06)^0.5)-SUM($L109:AY109),('PTRM input'!$L$145*(1+rvanilla06)^0.5)/A3stdlife)) -> n/a | BA109: =IF(A3stdlife="n/a","n/a",IF(BA$3>(A3stdlife+$E109),('PTRM input'!$L$145*(1+rvanilla06)^0.5)-SUM($L109:AZ109),('PTRM input'!$L$145*(1+rvanilla06)^0.5)/A3stdlife)) -> n/a | BB109: =IF(A3stdlife="n/a","n/a",IF(BB$3>(A3stdlife+$E109),('PTRM input'!$L$145*(1+rvanilla06)^0.5)-SUM($L109:BA109),('PTRM input'!$L$145*(1+rvanilla06)^0.5)/A3stdlife)) -> n/a | BC109: =IF(A3stdlife="n/a","n/a",IF(BC$3>(A3stdlife+$E109),('PTRM input'!$L$145*(1+rvanilla06)^0.5)-SUM($L109:BB109),('PTRM input'!$L$145*(1+rvanilla06)^0.5)/A3stdlife)) -> n/a | BD109: =IF(A3stdlife="n/a","n/a",IF(BD$3>(A3stdlife+$E109),('PTRM input'!$L$145*(1+rvanilla06)^0.5)-SUM($L109:BC109),('PTRM input'!$L$145*(1+rvanilla06)^0.5)/A3stdlife)) -> n/a | BE109: =IF(A3stdlife="n/a","n/a",IF(BE$3>(A3stdlife+$E109),('PTRM input'!$L$145*(1+rvanilla06)^0.5)-SUM($L109:BD109),('PTRM input'!$L$145*(1+rvanilla06)^0.5)/A3stdlife)) -> n/a | BF109: =IF(A3stdlife="n/a","n/a",IF(BF$3>(A3stdlife+$E109),('PTRM input'!$L$145*(1+rvanilla06)^0.5)-SUM($L109:BE109),('PTRM input'!$L$145*(1+rvanilla06)^0.5)/A3stdlife)) -> n/a | BG109: =IF(A3stdlife="n/a","n/a",IF(BG$3>(A3stdlife+$E109),('PTRM input'!$L$145*(1+rvanilla06)^0.5)-SUM($L109:BF109),('PTRM input'!$L$145*(1+rvanilla06)^0.5)/A3stdlife)) -> n/a | BH109: =IF(A3stdlife="n/a","n/a",IF(BH$3>(A3stdlife+$E109),('PTRM input'!$L$145*(1+rvanilla06)^0.5)-SUM($L109:BG109),('PTRM input'!$L$145*(1+rvanilla06)^0.5)/A3stdlife)) -> n/a | BI109: =IF(A3stdlife="n/a","n/a",IF(BI$3>(A3stdlife+$E109),('PTRM input'!$L$145*(1+rvanilla06)^0.5)-SUM($L109:BH109),('PTRM input'!$L$145*(1+rvanilla06)^0.5)/A3stdlife)) -> n/a
